Workbook

Sheet NOMBRE (hidden)
C1: CÓDIGOS
A2: NOMBRE DE COMUNA | I2: =IF(OR(NOMBRE!C2="",NOMBRE!D2="",NOMBRE!E2="",NOMBRE!F2="",NOMBRE!G2=""),"Falta Cód. Com.","") -> Falta Cód. Com. | AG2: =IF(I2>"",1,0) -> 1
A3: NOMBRE ESTABLECIMIENTO/ESTRATEGIA | I3: =IF(OR(NOMBRE!C3="",NOMBRE!D3="",NOMBRE!E3="",NOMBRE!F3="",NOMBRE!G3="",NOMBRE!H3=""),"Falta Cód. Est.","") -> Falta Cód. Est. | AG3: =IF(I3>"",1,0) -> 1
A4: TIPO DE ESTABLECIMIENTO/ESTRATEGIA | I4: =IF(OR(NOMBRE!B4=""),"Falta Tipo. Est.","") -> Falta Tipo. Est. | AG4: =IF(I4>"",1,0) -> 1
A5: DEPENDENCIA | I5: =IF(OR(NOMBRE!B5=""),"Falta Dependencia. Est.","") -> Falta Dependencia. Est. | AG5: =IF(I5>"",1,0) -> 1
A6: MES: | I6: =IF(OR(NOMBRE!C6="",NOMBRE!D6=""),"Falta Cód. Mes.","") -> Falta Cód. Mes. | AG6: =IF(I6>"",1,0) -> 1
A7: AÑO: | B7: 2023 | AG7: =SUM(AG2:AG6) -> 5
A9: Versión 1.1: Junio 2023
A11: Director/a Servicio de Salud o Director/a Establecimiento | AA11: JUNIO | AB11: Establecimiento de Mayor Complejidad (EMAYC) | AC11: SERVICIO DE SALUD
A12: Jefe/a de Estadísticas | AA12: DICIEMBRE | AB12: Establecimiento de Mediana Complejidad (EMEDC) | AC12: MUNICIPAL
AB13: Establecimiento de Menor Complejidad (EMENC) | AC13: Organizaciones sin fines de lucro y ONG (Delegado)
AB14: Centros de Diagnóstico Terapeutico (CDT)
A15: MINSAL - DEIS | AB15: Centro de Referencia de Salud (CRS)
AB16: Consultorio General Urbano (CGU)
B17: SERIE P | AB17: Consultorio General Urbano (CGU) - CESFAM
AB18: Consultorio General Urbano(CGU) con SAPU/SUR/SAR
AB19: Consultorio General Urbano (CGU) - CESFAM con SAPU/SAR
AB20: Consultorio General Rural (CGR)
AB21: Consultorio General Rural (CGR) - CESFAM
AB22: Consultorio General Rural (CGR) con SAPU/SAR/SUR
AB23: Consultorio General Rural (CGR) - CESFAM con SAPU/SAR/SUR
AB24: Posta de Salud Rural (PSR)
AB25: Centro Comunitario de Salud Familiar (CECOF)
AB26: Consultorio de Salud Mental (COSAM)
AB27: Programa de Reparación y Atención Integral de Salud (PRAIS)
AB28: Centro de Atención Funcionarios (CAF)
AB29: Unidad de Salud de Funcionarios (USF)
AB30: ClÍnica Dental Móvil (CDM)
AB31: Dirección Servicio de Salud (DSS)
AB32: Servicio de Atención Primaria de Urgencia (SAPU)
AB33: Servicio de Atención Primaria de Urgencia de Alta Resolutividad (SAR)
AB34: Servicio de Urgencia Rural (SUR)
AB35: Laboratorio Clínico o Dental
AB36: Servicio de Atención Primaria de Urgencia Dental (SAPUDENT)
AB37: Centro de Rehabilitación (CR)
AB38: Hospital de Campaña
AB39: Centro Oncologico
AB40: SAMU

Sheet FILTRO
A1: Mes | B1: (Todas)
A2: COMUNA | B2: (Todas)
A3: ESTABLECIMIENTO | B3: (Todas)
A5: Etiquetas de fila | B5: Suma de Col01 | C5: Suma de Col02 | D5: Suma de Col03 | E5: Suma de Col04 | F5: Suma de Col05 | G5: Suma de Col06 | H5: Suma de Col07 | I5: Suma de Col08 | J5: Suma de Col09 | K5: Suma de Col10 | L5: Suma de Col11 | M5: Suma de Col12 | N5: Suma de Col13 | O5: Suma de Col14 | P5: Suma de Col15 | Q5: Suma de Col16 | R5: Suma de Col17 | S5: Suma de Col18 | T5: Suma de Col19 | U5: Suma de Col20 | V5: Suma de Col21 | W5: Suma de Col22 | X5: Suma de Col23 | Y5: Suma de Col24 | Z5: Suma de Col25 | AA5: Suma de Col26 | AB5: Suma de Col27 | AC5: Suma de Col28 | AD5: Suma de Col29 | AE5: Suma de Col30 | AF5: Suma de Col31 | AG5: Suma de Col32 | AH5: Suma de Col33 | AI5: Suma de Col34 | AJ5: Suma de Col35 | AK5: Suma de Col36 | AL5: Suma de Col37 | AM5: Suma de Col38 | AN5: Suma de Col39 | AO5: Suma de Col40 | AP5: Suma de Col41 | AQ5: Suma de col42 | AR5: Suma de col43 | AS5: Suma de col44 | AT5: Suma de col45 | AU5: Suma de col46 | AV5: Suma de col47 | AW5: Suma de col48 | AX5: Cuenta de col49 | AY5: Cuenta de col50
A6: P1010100 | B6: 6880 | C6: 0 | D6: 50 | E6: 376 | F6: 1078 | G6: 1461 | H6: 1310 | I6: 1062 | J6: 884 | K6: 528 | L6: 131 | P6: 91 | Q6: 241 | R6: 7
A7: P1010201 | B7: 13573 | C7: 292 | D7: 2145 | E7: 2694 | F7: 2279 | G7: 2155 | H7: 1840 | I7: 1252 | J7: 716 | K7: 186 | L7: 14 | P7: 148 | Q7: 393 | R7: 3
A8: P1010202 | B8: 4677 | C8: 20 | D8: 173 | E8: 317 | F8: 602 | G8: 717 | H8: 644 | I8: 798 | J8: 932 | K8: 434 | L8: 40 | P8: 51 | Q8: 153 | R8: 0
A9: P1010203 | B9: 6628 | C9: 84 | D9: 955 | E9: 1581 | F9: 1418 | G9: 1059 | H9: 780 | I9: 476 | J9: 218 | K9: 51 | L9: 6 | P9: 109 | Q9: 270 | R9: 2
A10: P1010301 | B10: 1702 | C10: 32 | D10: 251 | E10: 207 | F10: 238 | G10: 258 | H10: 219 | I10: 222 | J10: 135 | K10: 108 | L10: 32 | P10: 21 | Q10: 91 | R10: 3
A11: P1010302 | B11: 641 | C11: 46 | D11: 276 | E11: 73 | F11: 62 | G11: 60 | H11: 39 | I11: 42 | J11: 22 | K11: 5 | L11: 16 | P11: 1 | Q11: 39 | R11: 5
A12: P1020100 | B12: 6 | C12: 6 | D12: 1 | E12: 4 | F12: 1
A13: P1020200 | B13: 172 | C13: 82 | D13: 8 | E13: 63 | F13: 25
A14: P1030101 | B14: 1275 | C14: 1 | D14: 34 | E14: 252 | F14: 380 | G14: 365 | H14: 190 | I14: 52 | J14: 1 | K14: 0
A15: P1030102 | B15: 1083 | C15: 1 | D15: 39 | E15: 240 | F15: 333 | G15: 289 | H15: 148 | I15: 31 | J15: 2 | K15: 0
A16: P1030103 | B16: 822 | C16: 3 | D16: 77 | E16: 219 | F16: 251 | G16: 160 | H16: 92 | I16: 19 | J16: 1 | K16: 0
A17: P1030104 | B17: 127 | C17: 1 | D17: 22 | E17: 36 | F17: 34 | G17: 25 | H17: 8 | I17: 1 | J17: 0 | K17: 0
A18: P1030201 | B18: 228 | C18: 0 | D18: 11 | E18: 46 | F18: 60 | G18: 61 | H18: 42 | I18: 8 | J18: 0 | K18: 0
A19: P1030202 | B19: 196 | C19: 0 | D19: 7 | E19: 41 | F19: 60 | G19: 59 | H19: 20 | I19: 8 | J19: 1 | K19: 0
A20: P1030203 | B20: 151 | C20: 0 | D20: 20 | E20: 42 | F20: 59 | G20: 26 | H20: 2 | I20: 1 | J20: 1 | K20: 0
A21: P1030204 | B21: 6 | D21: 2 | E21: 1 | F21: 2 | G21: 1
A22: P1030301 | B22: 3788
A23: P1030303 | B23: 1
A24: P1030304 | B24: 47
A25: P1030401 | B25: 28
A26: P1030403 | B26: 278
A27: P1030404 | B27: 602
A28: P1040500 | B28: 9767 | C28: 184 | D28: 1780 | E28: 2265 | F28: 2056 | G28: 1675 | H28: 991 | I28: 526 | J28: 241 | K28: 47 | L28: 2 | P28: 111 | Q28: 771 | R28: 6
A29: P1040501 | B29: 747 | C29: 189 | D29: 14 | E29: 201 | F29: 101
A30: P1040502 | B30: 339 | C30: 339
A31: P1040503 | B31: 106 | C31: 212
A32: P1040504 | B32: 70 | C32: 210
A33: P1040505 | B33: 42 | C33: 113
A34: P1040506 | B34: 17
A35: P1040507 | B35: 4
A36: P1040508 | B36: 13377 | C36: 171 | D36: 1242 | E36: 2269 | F36: 2703 | G36: 2488 | H36: 1802 | I36: 1286 | J36: 1068 | K36: 338 | L36: 10 | P36: 196 | Q36: 759 | R36: 7
A37: P1050100 | B37: 34
A38: P1050101 | B38: 703
A39: P1050102 | B39: 588
A40: P1050103 | B40: 51
A41: P1050104 | B41: 237
A42: P1060010 | B42: 3199 | C42: 0 | D42: 11 | E42: 92 | F42: 176 | G42: 280 | H42: 492 | I42: 683 | J42: 810 | K42: 514 | L42: 141 | P42: 31 | Q42: 46 | R42: 0
A43: P1060040 | B43: 2629
A44: P1060050 | B44: 1215
A45: P1060060 | B45: 607
A46: P1060070 | B46: 34
A47: P1060080 | B47: 11
A48: P1060090 | B48: 4882 | C48: 114 | D48: 1253 | E48: 1109 | F48: 814 | G48: 617 | H48: 456 | I48: 271 | J48: 187 | K48: 54 | L48: 7 | P48: 55 | Q48: 239 | R48: 3
A49: P1060100 | B49: 998 | C49: 219 | D49: 18 | E49: 378 | F49: 113
A50: P1060101 | B50: 839 | C50: 164 | D50: 15 | E50: 382 | F50: 82
A51: P1060102 | B51: 438 | C51: 83 | D51: 8 | E51: 227 | F51: 58
A52: P1060103 | B52: 103 | C52: 27 | D52: 1 | E52: 74 | F52: 12
A53: P1060104 | B53: 4 | C53: 1 | D53: 0 | E53: 2 | F53: 0
A54: P1060106 | B54: 3 | C54: 4 | D54: 2 | E54: 2
A55: P1060107 | B55: 78 | C55: 137 | D55: 94 | E55: 62
A56: P1060108 | B56: 358 | C56: 436 | D56: 326 | E56: 164
A57: P1060109 | B57: 478 | C57: 647 | D57: 459 | E57: 226
A58: P1060110 | B58: 443 | C58: 535 | D58: 442 | E58: 205
A59: P1060111 | B59: 202 | C59: 283 | D59: 218 | E59: 109
A60: P1060112 | B60: 45 | C60: 61 | D60: 47 | E60: 23
A61: P1060113 | B61: 2 | C61: 3 | D61: 2 | E61: 2
A62: P1060115 | B62: 28
A63: P1060116 | B63: 102
A64: P1060117 | B64: 28
A65: P1060118 | B65: 12
A66: P1060119 | B66: 5
A67: P1060120 | B67: 24
A68: P1060121 | B68: 12
A69: P1060122 | B69: 11
A70: P1060123 | B70: 11
A71: P1060124 | B71: 1221 | C71: 3 | D71: 36 | E71: 148 | F71: 280 | G71: 323 | H71: 213 | I71: 141 | J71: 61 | K71: 12 | L71: 4 | P71: 29 | Q71: 61 | R71: 2
A72: P11000140 | B72: 12 | C72: 2 | D72: 10 | E72: 0 | F72: 0 | G72: 0 | H72: 0 | I72: 1 | J72: 1 | K72: 0 | L72: 0 | M72: 1 | N72: 5 | O72: 0 | P72: 2 | Q72: 0 | R72: 2 | S72: 0 | T72: 0 | U72: 0 | V72: 0 | W72: 0 | X72: 0 | Y72: 0 | Z72: 0 | AA72: 0 | AB72: 0 | AC72: 0 | AD72: 0 | AE72: 0 | AF72: 0 | AG72: 0 | AH72: 0 | AI72: 0 | AJ72: 7
A73: P11000150 | B73: 4 | D73: 4 | R73: 1 | V73: 2 | X73: 1 | AQ73: 0 | AR73: 0 | AS73: 1 | AT73: 1 | AU73: 0 | AV73: 0
A74: P11000160 | B74: 7 | D74: 7 | T74: 1 | V74: 1 | X74: 5 | AQ74: 0 | AR74: 0 | AS74: 0 | AT74: 0 | AU74: 0 | AV74: 0
A75: P11000170 | B75: 2228 | C75: 1805 | D75: 423 | E75: 0 | F75: 0 | G75: 0 | H75: 0 | I75: 1 | J75: 0 | K75: 1 | L75: 0 | M75: 2 | N75: 3 | O75: 6 | P75: 8 | Q75: 86 | R75: 11 | S75: 261 | T75: 27 | U75: 378 | V75: 54 | W75: 267 | X75: 64 | Y75: 236 | Z75: 57 | AA75: 150 | AB75: 50 | AC75: 158 | AD75: 51 | AE75: 108 | AF75: 48 | AG75: 86 | AH75: 26 | AI75: 26 | AJ75: 13 | AK75: 21 | AL75: 11 | AM75: 12 | AN75: 0 | AO75: 6 | AP75: 0 | AQ75: 16 | AR75: 16 | AS75: 5 | AT75: 294 | AU75: 0 | AV75: 0
A76: P11000180 | B76: 81 | C76: 60 | D76: 21 | E76: 0 | F76: 0 | G76: 0 | H76: 0 | I76: 0 | J76: 0 | K76: 0 | L76: 0 | M76: 0 | N76: 0 | O76: 0 | P76: 0 | Q76: 6 | R76: 1 | S76: 13 | T76: 0 | U76: 12 | V76: 3 | W76: 13 | X76: 7 | Y76: 11 | Z76: 2 | AA76: 1 | AB76: 3 | AC76: 4 | AD76: 1 | AE76: 0 | AF76: 0 | AG76: 0 | AH76: 4 | AI76: 0 | AJ76: 0 | AK76: 0 | AL76: 0 | AM76: 0 | AN76: 0 | AO76: 0 | AP76: 0 | AQ76: 0 | AR76: 0 | AS76: 0 | AT76: 5 | AU76: 0 | AV76: 0
A77: P11000190 | B77: 5 | D77: 5 | R77: 1 | V77: 2 | X77: 2 | AQ77: 0 | AR77: 0 | AS77: 1 | AT77: 1 | AU77: 0 | AV77: 0
A78: P11000200 | B78: 1934 | C78: 1577 | D78: 357 | E78: 0 | F78: 0 | G78: 0 | H78: 0 | I78: 1 | J78: 0 | K78: 0 | L78: 0 | M78: 2 | N78: 3 | O78: 5 | P78: 5 | Q78: 68 | R78: 9 | S78: 212 | T78: 23 | U78: 327 | V78: 39 | W78: 231 | X78: 50 | Y78: 219 | Z78: 50 | AA78: 136 | AB78: 43 | AC78: 139 | AD78: 44 | AE78: 96 | AF78: 42 | AG78: 76 | AH78: 25 | AI78: 26 | AJ78: 12 | AK78: 21 | AL78: 11 | AM78: 12 | AN78: 0 | AO78: 6 | AP78: 1 | AQ78: 12 | AR78: 0 | AS78: 4 | AT78: 143 | AU78: 0 | AV78: 0
A79: P1200190 | B79: 2907 | C79: 61 | D79: 528 | E79: 676 | F79: 626 | G79: 487 | H79: 301 | I79: 173 | J79: 50 | K79: 5 | L79: 0 | P79: 40 | Q79: 323 | R79: 2
A80: P1200200 | B80: 566 | C80: 7 | D80: 94 | E80: 104 | F80: 111 | G80: 80 | H80: 50 | I80: 47 | J80: 24 | K80: 27 | L80: 15 | M80: 2 | N80: 3 | O80: 2 | P80: 14 | Q80: 25 | R80: 3
A81: P1200210 | B81: 36 | C81: 4 | D81: 14 | E81: 2 | F81: 5 | G81: 1 | H81: 2 | I81: 1 | J81: 2 | K81: 1 | L81: 2 | M81: 2 | N81: 0 | O81: 0 | P81: 0 | Q81: 2 | R81: 0
A82: P1200220 | B82: 1087 | C82: 0 | D82: 21 | E82: 53 | F82: 71 | G82: 78 | H82: 73 | I82: 80 | J82: 147 | K82: 207 | L82: 175 | M82: 104 | N82: 47 | O82: 31 | P82: 7 | Q82: 36 | R82: 2
A83: P1200230 | B83: 16 | C83: 1 | D83: 1 | E83: 1 | F83: 1 | G83: 1 | H83: 2 | I83: 5 | J83: 3 | K83: 0 | L83: 0 | M83: 1 | N83: 0 | O83: 0 | P83: 0 | Q83: 0 | R83: 0
A84: P1200240 | B84: 2859 | C84: 0 | D84: 0 | E84: 17 | F84: 122 | G84: 343 | H84: 623 | I84: 689 | J84: 551 | K84: 319 | L84: 195 | P84: 48 | Q84: 138 | R84: 7
A85: P1200250 | B85: 5 | G85: 2 | H85: 1 | I85: 1 | J85: 1 | P85: 0 | Q85: 0 | R85: 0
A86: P1200270 | B86: 386 | C86: 5 | D86: 50 | E86: 109 | F86: 114 | G86: 63 | H86: 37 | I86: 7 | J86: 1 | K86: 0 | L86: 0 | P86: 12 | Q86: 16 | R86: 0
A87: P1200280 | B87: 62 | C87: 4 | D87: 10 | E87: 23 | F87: 17 | G87: 8 | H87: 0 | I87: 2
A88: P1200290 | B88: 148 | C88: 3 | D88: 24 | E88: 54 | F88: 46 | G88: 21 | H88: 2 | I88: 2
A89: P1200300 | B89: 40 | C89: 1 | D89: 3 | E89: 14 | F89: 15 | G89: 7 | H89: 0 | I89: 1
A90: P1200310 | B90: 73 | C90: 36 | D90: 6 | E90: 16 | F90: 12 | G90: 3 | H90: 0 | I90: 0
A91: P1200320 | B91: 9 | C91: 0 | D91: 5 | E91: 4 | F91: 0 | G91: 0 | H91: 0 | I91: 0
A92: P1200330 | B92: 450 | C92: 10 | D92: 83 | E92: 199 | F92: 128 | G92: 30 | H92: 3 | I92: 13
A93: P1200340 | B93: 22
A94: P1200350 | B94: 325 | C94: 4 | D94: 42 | E94: 52 | F94: 62 | G94: 58 | H94: 43 | I94: 19 | J94: 40 | K94: 3 | L94: 0 | M94: 0 | N94: 2 | O94: 0 | P94: 1 | Q94: 7 | R94: 0
A95: P1206010 | B95: 9131 | C95: 0
A96: P1206020 | B96: 9559 | C96: 0
A97: P1206030 | B97: 8440 | C97: 0
A98: P1206040 | B98: 7751 | C98: 0
A99: P1206050 | B99: 7574 | C99: 0
A100: P1206060 | B100: 7408 | C100: 0
A101: P1206070 | B101: 6987 | C101: 0
A102: P1206080 | B102: 5683 | C102: 0
A103: P1207010 | B103: 2657 | C103: 2211 | D103: 320 | E103: 73 | F103: 17 | G103: 21 | H103: 5 | I103: 8 | J103: 1 | K103: 1 | L103: 0
A104: P1207020 | B104: 2775 | C104: 2285 | D104: 285 | E104: 52 | F104: 102 | G104: 15 | H104: 11 | I104: 23 | J104: 1 | K104: 1 | L104: 0
A105: P1207030 | B105: 6679
A106: P1207040 | B106: 5397
A107: P1207050 | B107: 3008
A108: P1207060 | B108: 1259
A109: P1207070 | B109: 477
A110: P1207080 | B110: 168
A111: P1207090 | B111: 7623
A112: P1207100 | B112: 5949
A113: P1207110 | B113: 2695
A114: P1207120 | B114: 759
A115: P1207130 | B115: 245
A116: P1207140 | B116: 62
A117: P1207150 | B117: 5831 | C117: 0
A118: P1207160 | B118: 2376 | C118: 0
A119: P1207170 | B119: 1348 | C119: 1102 | D119: 170 | E119: 34 | F119: 13 | G119: 17 | H119: 10 | I119: 2 | J119: 0 | K119: 0 | L119: 0
A120: P1207180 | B120: 23203
A121: P1207190 | B121: 165
A122: P1208020 | B122: 2437 | C122: 1993 | D122: 242 | E122: 52 | F122: 112 | G122: 12 | H122: 8 | I122: 15 | J122: 3 | K122: 0 | L122: 0
A123: P1208030 | B123: 2275 | C123: 1906 | D123: 204 | E123: 36 | F123: 92 | G123: 10 | H123: 6 | I123: 19 | J123: 2 | K123: 0 | L123: 0
A124: P1208040 | B124: 2312 | C124: 1985 | D124: 181 | E124: 46 | F124: 80 | G124: 7 | H124: 3 | I124: 7 | J124: 3 | K124: 0 | L124: 0
A125: P1208050 | B125: 2158 | C125: 1897 | D125: 165 | E125: 25 | F125: 58 | G125: 3 | H125: 2 | I125: 7 | J125: 1 | K125: 0 | L125: 0
A126: P1208060 | B126: 2101 | C126: 1784 | D126: 191 | E126: 31 | F126: 85 | G126: 1 | H126: 4 | I126: 4 | J126: 1 | K126: 0 | L126: 0
A127: P1208070 | B127: 1690 | C127: 1472 | D127: 146 | E127: 19 | F127: 47 | G127: 2 | H127: 0 | I127: 2 | J127: 1 | K127: 1 | L127: 0
A128: P1208080 | B128: 617 | C128: 553 | D128: 53 | E128: 6 | F128: 2 | G128: 1 | H128: 0 | I128: 1 | J128: 0 | K128: 1 | L128: 0
A129: P1208090 | B129: 166 | C129: 154 | D129: 5 | E129: 5 | F129: 0 | G129: 2 | H129: 0 | I129: 0 | J129: 0 | K129: 0 | L129: 0
A130: P1208100 | B130: 47 | C130: 45 | D130: 1 | E130: 1 | F130: 0 | G130: 0 | H130: 0 | I130: 0 | J130: 0 | K130: 0 | L130: 0
A131: P1220020 | B131: 10697
A132: P1220030 | B132: 7030
A133: P1220070 | B133: 25215
A134: P1220090 | B134: 8159
A135: P1220091 | B135: 2 | C135: 0 | D135: 0 | E135: 1 | F135: 0 | G135: 0 | H135: 0 | I135: 1 | J135: 0 | K135: 0 | L135: 0
A136: P1220092 | B136: 9 | C136: 6 | D136: 0 | E136: 1 | F136: 0 | G136: 1 | H136: 0 | I136: 1 | J136: 0 | K136: 0 | L136: 0
A137: P1220093 | B137: 13 | C137: 10 | D137: 0 | E137: 0 | F137: 0 | G137: 3 | H137: 0 | I137: 0 | J137: 0 | K137: 0 | L137: 0
A138: P1220094 | B138: 10 | C138: 7 | D138: 0 | E138: 0 | F138: 0 | G138: 1 | H138: 1 | I138: 1 | J138: 0 | K138: 0 | L138: 0
A139: P1220095 | B139: 18 | C139: 14 | D139: 0 | E139: 1 | F139: 0 | G139: 1 | H139: 1 | I139: 1 | J139: 0 | K139: 0 | L139: 0
A140: P1220096 | B140: 10 | C140: 7 | D140: 1 | E140: 0 | F140: 0 | G140: 1 | H140: 1 | I140: 0 | J140: 0 | K140: 0 | L140: 0
A141: P1220097 | B141: 12 | C141: 7 | D141: 0 | E141: 0 | F141: 1 | G141: 1 | H141: 1 | I141: 0 | J141: 1 | K141: 1 | L141: 0
A142: P1220098 | B142: 6 | C142: 5 | D142: 0 | E142: 1 | F142: 0 | G142: 0 | H142: 0 | I142: 0 | J142: 0 | K142: 0 | L142: 0
A143: P1220099 | B143: 1 | C143: 1
A144: P1220101 | B144: 1 | K144: 1
A145: P1230001 | B145: 554 | C145: 0
A146: P1230002 | B146: 197 | C146: 0
A147: P1230003 | B147: 47 | C147: 0
A148: P1230004 | B148: 8 | C148: 8 | D148: 0 | E148: 0 | F148: 0 | G148: 0 | H148: 0 | I148: 0 | J148: 0 | K148: 0 | L148: 0
A149: P1240010 | B149: 2765 | C149: 0
A150: P1240011 | B150: 2935 | C150: 0
A151: P1240012 | B151: 2565 | C151: 0
A152: P1240013 | B152: 2538 | C152: 0
A153: P1240014 | B153: 2330 | C153: 0
A154: P1240015 | B154: 2124 | C154: 0
A155: P1240016 | B155: 1497 | C155: 0
A156: P1240017 | B156: 1685 | C156: 1305 | D156: 93 | E156: 23 | F156: 281 | G156: 0
A157: P1240018 | B157: 1779 | C157: 1518 | D157: 63 | E157: 24 | F157: 206 | G157: 0
A158: P1240019 | B158: 1574 | C158: 1371 | D158: 65 | E158: 17 | F158: 148 | G158: 0
A159: P1240020 | B159: 1540 | C159: 1374 | D159: 46 | E159: 7 | F159: 129 | G159: 0
A160: P1240021 | B160: 1359 | C160: 1207 | D160: 59 | E160: 10 | F160: 101 | G160: 0
A161: P1240022 | B161: 1311 | C161: 1167 | D161: 37 | E161: 10 | F161: 108 | G161: 0
A162: P1240023 | B162: 872 | C162: 789 | D162: 26 | E162: 2 | F162: 62 | G162: 0
A163: P1240024 | B163: 117 | C163: 107 | D163: 2 | E163: 2 | F163: 6 | G163: 0
A164: P1240025 | B164: 2 | C164: 2 | D164: 0 | E164: 0 | F164: 0 | G164: 0
A165: P1240026 | B165: 1 | F165: 1
A166: P1240028 | B166: 3 | C166: 0 | D166: 1 | E166: 0 | F166: 2 | G166: 0
A167: P1240030 | B167: 1 | C167: 1
A168: P1240032 | B168: 1 | C168: 0 | D168: 1 | E168: 0 | F168: 0 | G168: 0
A169: P1240033 | B169: 2 | C169: 1 | D169: 0 | E169: 0 | F169: 1 | G169: 0
A170: P1240034 | B170: 1 | C170: 1 | D170: 0 | E170: 0 | F170: 0 | G170: 0
A171: P1310020 | B171: 2708 | C171: 1240 | D171: 1468 | E171: 327 | F171: 388 | G171: 326 | H171: 290 | I171: 364 | J171: 432 | K171: 206 | L171: 323 | M171: 12 | N171: 9 | O171: 5 | P171: 26 | Q171: 32 | R171: 47
A172: P1310030 | B172: 199 | C172: 102 | D172: 97 | E172: 19 | F172: 11 | G172: 24 | H172: 19 | I172: 29 | J172: 34 | K172: 30 | L172: 33 | M172: 0 | N172: 0 | O172: 0 | P172: 0 | Q172: 4 | R172: 0
A173: P1310040 | B173: 27 | C173: 26 | D173: 1 | I173: 1 | J173: 0 | K173: 20 | L173: 1 | M173: 5 | N173: 0 | O173: 0 | P173: 0 | Q173: 1 | R173: 1
A174: P1310050 | B174: 430 | C174: 7 | D174: 423 | I174: 4 | J174: 42 | K174: 3 | L174: 131 | M174: 0 | N174: 55 | O174: 0 | P174: 195 | Q174: 5 | R174: 10 | S174: 117 | T174: 30
A175: P1310060 | B175: 19 | C175: 6 | D175: 13 | I175: 1 | J175: 2 | K175: 3 | L175: 10 | M175: 2 | N175: 0 | O175: 0 | P175: 1 | Q175: 0 | R175: 0 | S175: 19 | T175: 0
A176: P1310070 | B176: 644 | C176: 328 | D176: 316 | E176: 139 | F176: 138 | G176: 189 | H176: 178 | Q176: 5 | R176: 12 | S176: 423 | T176: 36
A177: P1310080 | B177: 467 | C177: 209 | D177: 258 | I177: 136 | J177: 166 | K177: 73 | L177: 92 | M177: 0 | N177: 0 | O177: 0 | P177: 0 | Q177: 7 | R177: 11 | S177: 355 | T177: 32
A178: P1310090 | B178: 1230 | C178: 562 | D178: 668 | E178: 12 | F178: 14 | G178: 174 | H178: 147 | I178: 194 | J178: 262 | K178: 165 | L178: 219 | M178: 13 | N178: 7 | O178: 4 | P178: 19 | Q178: 18 | R178: 10 | S178: 760 | T178: 293
A179: P1320010 | B179: 153 | C179: 64 | D179: 89 | E179: 9 | F179: 18 | G179: 20 | H179: 22 | I179: 24 | J179: 26 | K179: 10 | L179: 23 | M179: 1 | N179: 0 | Q179: 2 | R179: 4 | S179: 98 | T179: 20
A180: P1600100 | B180: 19923 | C180: 113 | D180: 1309 | E180: 2762 | F180: 3722 | G180: 3742 | H180: 3165 | I180: 2505 | J180: 1899 | K180: 832
A181: P1600101 | B181: 19356 | C181: 206 | D181: 1865 | E181: 2946 | F181: 3420 | G181: 3480 | H181: 2927 | I181: 2133 | J181: 1604 | K181: 775
A182: P1600102 | B182: 16202 | C182: 375 | D182: 2989 | E182: 3470 | F182: 2988 | G182: 2511 | H182: 1614 | I182: 1153 | J182: 791 | K182: 311
A183: P1600103 | B183: 886 | C183: 41 | D183: 270 | E183: 216 | F183: 174 | G183: 86 | H183: 51 | I183: 26 | J183: 19 | K183: 3
A184: P1600105 | B184: 222 | C184: 1 | D184: 17 | E184: 40 | F184: 45 | G184: 57 | H184: 41 | I184: 15 | J184: 5 | K184: 1 | L184: 0 | P184: 3 | Q184: 9 | R184: 0
A185: P1600106 | B185: 174 | C185: 1 | D185: 33 | E185: 44 | F185: 48 | G185: 32 | H185: 10 | I185: 5 | J185: 1 | K185: 0 | L185: 0 | P185: 0 | Q185: 12 | R185: 0
A186: P1600107 | B186: 6 | C186: 0 | D186: 1 | E186: 3 | F186: 2 | G186: 0 | H186: 0 | I186: 0 | J186: 0 | K186: 0 | L186: 0 | P186: 0 | Q186: 1 | R186: 0
A187: P1600108 | B187: 82 | C187: 2 | D187: 10 | E187: 29 | F187: 12 | G187: 14 | H187: 9 | I187: 4 | J187: 2 | K187: 0 | L187: 0 | P187: 0 | Q187: 12 | R187: 1
A188: P1600109 | B188: 6 | C188: 0 | D188: 0 | E188: 2 | F188: 1 | G188: 2 | H188: 1 | I188: 0 | J188: 0 | K188: 0 | L188: 0 | P188: 0 | Q188: 2 | R188: 0
A189: P1600110 | B189: 78 | C189: 7 | D189: 7 | E189: 23 | F189: 30 | G189: 11 | H189: 0 | I189: 3
A190: P1600111 | B190: 6 | C190: 6 | D190: 4 | E190: 6 | F190: 6 | G190: 6
A191: P1600112 | B191: 165 | C191: 153 | D191: 154 | E191: 53 | F191: 48 | G191: 47
A192: P1600113 | B192: 747 | C192: 687 | D192: 672 | E192: 153 | F192: 136 | G192: 134
A193: P1600114 | B193: 983 | C193: 918 | D193: 900 | E193: 219 | F193: 180 | G193: 174
A194: P1600115 | B194: 830 | C194: 758 | D194: 747 | E194: 212 | F194: 169 | G194: 168
A195: P1600116 | B195: 423 | C195: 388 | D195: 378 | E195: 104 | F195: 81 | G195: 81
A196: P1600117 | B196: 99 | C196: 95 | D196: 91 | E196: 21 | F196: 16 | G196: 14
A197: P1600118 | B197: 4 | C197: 4 | D197: 4 | E197: 1 | F197: 1 | G197: 1
A198: P1600120 | C198: 95 | D198: 133 | F198: 233 | G198: 270
A199: P2060000 | B199: 30654 | C199: 15560 | D199: 15094 | E199: 104 | F199: 113 | G199: 336 | H199: 332 | I199: 394 | J199: 424 | K199: 367 | L199: 383 | M199: 399 | N199: 450 | O199: 266 | P199: 296 | Q199: 491 | R199: 460 | S199: 1329 | T199: 1346 | U199: 1655 | V199: 1541 | W199: 1541 | X199: 1523 | Y199: 2773 | Z199: 2655 | AA199: 2951 | AB199: 2840 | AC199: 2954 | AD199: 2731 | AE199: 153 | AF199: 204 | AG199: 347 | AH199: 359
A200: P2070101 | B200: 1633 | C200: 904 | D200: 729 | E200: 3 | F200: 6 | G200: 27 | H200: 20 | I200: 31 | J200: 38 | K200: 24 | L200: 19 | M200: 18 | N200: 23 | O200: 14 | P200: 11 | Q200: 27 | R200: 15 | S200: 57 | T200: 56 | U200: 112 | V200: 60 | W200: 110 | X200: 74 | Y200: 166 | Z200: 122 | AA200: 170 | AB200: 154 | AC200: 145 | AD200: 131 | AE200: 7 | AF200: 10 | AG200: 18 | AH200: 28
A201: P2070102 | B201: 239 | C201: 141 | D201: 98 | E201: 4 | F201: 0 | G201: 7 | H201: 13 | I201: 11 | J201: 4 | K201: 3 | L201: 4 | M201: 5 | N201: 3 | O201: 5 | P201: 3 | Q201: 3 | R201: 0 | S201: 5 | T201: 3 | U201: 23 | V201: 7 | W201: 18 | X201: 10 | Y201: 23 | Z201: 20 | AA201: 21 | AB201: 15 | AC201: 13 | AD201: 16 | AE201: 1 | AF201: 0 | AG201: 4 | AH201: 3
... 429 more rows

Sheet P1
B1: DATOS DEL ESTABLECIMIENTO
B2: =CONCATENATE("COMUNA: ",NOMBRE!$B$2," - ","( ",NOMBRE!$C$2,NOMBRE!$D$2,NOMBRE!$E$2,NOMBRE!$F$2,NOMBRE!$G$2," )") -> COMUNA: - ( )
B3: =CONCATENATE("ESTABLECIMIENTO/ESTRATEGIA: ",NOMBRE!$B$3," - ","( ",NOMBRE!$C$3,NOMBRE!$D$3,NOMBRE!$E$3,NOMBRE!$F$3,NOMBRE!$G$3,NOMBRE!$H$3," )") -> ESTABLECIMIENTO/ESTRATEGIA: - ( )
B4: =CONCATENATE("MES: ",NOMBRE!$B$6," - ","( ",NOMBRE!$C$6,NOMBRE!$D$6," )") -> MES: - ( )
B5: =CONCATENATE("AÑO: ",NOMBRE!$B$7) -> AÑO: 2023
D6: REM-P1. POBLACIÓN EN CONTROL PROGRAMA DE SALUD DE LA MUJER
B7: ATENCIÓN PRIMARIA DE SALUD
B8: SECCION A: POBLACIÓN EN CONTROL SEGÚN MÉTODO DE REGULACIÓN DE FERTILIDAD Y SALUD SEXUAL
B9: MÉTODOS | D9: TOTAL | E9: GRUPO DE EDAD (en años) | R9: Pueblos Originarios | S9: Migrantes | T9: PV-VIH (personas viviendo con VIH)
E10: Menor de 15 años | F10: 15 a 19 años | G10: 20 a 24 años | H10: 25 a 29 años | I10: 30 a 34 años | J10: 35 a 39 años | K10: 40 a 44 años | L10: 45 a 49 años | M10: 50 a 54 años | N10: 55 a 59 años | O10: 60 a 64 años | P10: 65 a 69 años | Q10: 70 y más años
A11: P1010100 | B11: D . I . U T con Cobre | D11: =IFERROR(VLOOKUP($A11,FILTRO!$A5:$AY630,2,FALSE),0) -> 6880 | E11: =IFERROR(VLOOKUP($A11,FILTRO!$A5:$AY630,3,FALSE),0) -> 0 | F11: =IFERROR(VLOOKUP($A11,FILTRO!$A5:$AY630,4,FALSE),0) -> 50 | G11: =IFERROR(VLOOKUP($A11,FILTRO!$A5:$AY630,5,FALSE),0) -> 376 | H11: =IFERROR(VLOOKUP($A11,FILTRO!$A5:$AY630,6,FALSE),0) -> 1078 | I11: =IFERROR(VLOOKUP($A11,FILTRO!$A5:$AY630,7,FALSE),0) -> 1461 | J11: =IFERROR(VLOOKUP($A11,FILTRO!$A5:$AY630,8,FALSE),0) -> 1310 | K11: =IFERROR(VLOOKUP($A11,FILTRO!$A5:$AY630,9,FALSE),0) -> 1062 | L11: =IFERROR(VLOOKUP($A11,FILTRO!$A5:$AY630,10,FALSE),0) -> 884 | M11: =IFERROR(VLOOKUP($A11,FILTRO!$A5:$AY630,11,FALSE),0) -> 528 | N11: =IFERROR(VLOOKUP($A11,FILTRO!$A5:$AY630,12,FALSE),0) -> 131 | O11: =IFERROR(VLOOKUP($A11,FILTRO!$A5:$AY630,13,FALSE),0) -> 0 | P11: =IFERROR(VLOOKUP($A11,FILTRO!$A5:$AY630,14,FALSE),0) -> 0 | Q11: =IFERROR(VLOOKUP($A11,FILTRO!$A5:$AY630,15,FALSE),0) -> 0 | R11: =IFERROR(VLOOKUP($A11,FILTRO!$A5:$AY630,16,FALSE),0) -> 91 | S11: =IFERROR(VLOOKUP($A11,FILTRO!$A5:$AY630,17,FALSE),0) -> 241 | T11: =IFERROR(VLOOKUP($A11,FILTRO!$A5:$AY630,18,FALSE),0) -> 7 | CC11: =IF($R11>$D11,"* La celda 'Pueblos Originarios' debe ser menor o igual al Total en control. ","") ->  | CD11: =IF($S11>$D11,"* La celda 'Población Migrantes' debe ser menor o igual al Total en control. ","") ->  | CE11: =IF($T11>$D11,"* La celda 'Personas Viviendo con VIH' debe ser menor o igual al Total en control. ","") ->  | CF11: =IF(AND($D11<>0,$R11=""),"* No olvide escribir en la celda de 'Pueblos Originarios' (Digite CERO si no tiene). ","") ->  | CG11: =IF(AND($D11<>0,$S11=""),"* No olvide escribir en la celda de 'Población Migrantes' (Digite CERO si no tiene). ","") ->  | CH11: =IF(AND($D11<>0,$T11=""),"* No olvide escribir en la celda de 'PV-VIH' (Digite CERO si no tiene). ","") ->  | DC11: =IF($R11>$D11,1,0) -> 0 | DD11: =IF($S11>$D11,1,0) -> 0 | DE11: =IF($T11>$D11,1,0) -> 0 | DF11: =IF(AND($D11<>0,$R11=""),1,0) -> 0 | DG11: =IF(AND($D11<>0,$S11=""),1,0) -> 0 | DH11: =IF(AND($D11<>0,$T11=""),1,0) -> 0
A12: P1060124 | B12: D . I . U con Levonorgestrel | D12: =IFERROR(VLOOKUP($A12,FILTRO!$A6:$AY631,2,FALSE),0) -> 1221 | E12: =IFERROR(VLOOKUP($A12,FILTRO!$A6:$AY631,3,FALSE),0) -> 3 | F12: =IFERROR(VLOOKUP($A12,FILTRO!$A6:$AY631,4,FALSE),0) -> 36 | G12: =IFERROR(VLOOKUP($A12,FILTRO!$A6:$AY631,5,FALSE),0) -> 148 | H12: =IFERROR(VLOOKUP($A12,FILTRO!$A6:$AY631,6,FALSE),0) -> 280 | I12: =IFERROR(VLOOKUP($A12,FILTRO!$A6:$AY631,7,FALSE),0) -> 323 | J12: =IFERROR(VLOOKUP($A12,FILTRO!$A6:$AY631,8,FALSE),0) -> 213 | K12: =IFERROR(VLOOKUP($A12,FILTRO!$A6:$AY631,9,FALSE),0) -> 141 | L12: =IFERROR(VLOOKUP($A12,FILTRO!$A6:$AY631,10,FALSE),0) -> 61 | M12: =IFERROR(VLOOKUP($A12,FILTRO!$A6:$AY631,11,FALSE),0) -> 12 | N12: =IFERROR(VLOOKUP($A12,FILTRO!$A6:$AY631,12,FALSE),0) -> 4 | O12: =IFERROR(VLOOKUP($A12,FILTRO!$A6:$AY631,13,FALSE),0) -> 0 | P12: =IFERROR(VLOOKUP($A12,FILTRO!$A6:$AY631,14,FALSE),0) -> 0 | Q12: =IFERROR(VLOOKUP($A12,FILTRO!$A6:$AY631,15,FALSE),0) -> 0 | R12: =IFERROR(VLOOKUP($A12,FILTRO!$A6:$AY631,16,FALSE),0) -> 29 | S12: =IFERROR(VLOOKUP($A12,FILTRO!$A6:$AY631,17,FALSE),0) -> 61 | T12: =IFERROR(VLOOKUP($A12,FILTRO!$A6:$AY631,18,FALSE),0) -> 2 | DC12: 0 | DD12: 0 | DE12: 0 | DF12: 0 | DG12: 0 | DH12: 0
A13: P1010201 | B13: HORMONAL | C13: Oral Combinado | D13: =IFERROR(VLOOKUP($A13,FILTRO!$A7:$AY632,2,FALSE),0) -> 13573 | E13: =IFERROR(VLOOKUP($A13,FILTRO!$A7:$AY632,3,FALSE),0) -> 292 | F13: =IFERROR(VLOOKUP($A13,FILTRO!$A7:$AY632,4,FALSE),0) -> 2145 | G13: =IFERROR(VLOOKUP($A13,FILTRO!$A7:$AY632,5,FALSE),0) -> 2694 | H13: =IFERROR(VLOOKUP($A13,FILTRO!$A7:$AY632,6,FALSE),0) -> 2279 | I13: =IFERROR(VLOOKUP($A13,FILTRO!$A7:$AY632,7,FALSE),0) -> 2155 | J13: =IFERROR(VLOOKUP($A13,FILTRO!$A7:$AY632,8,FALSE),0) -> 1840 | K13: =IFERROR(VLOOKUP($A13,FILTRO!$A7:$AY632,9,FALSE),0) -> 1252 | L13: =IFERROR(VLOOKUP($A13,FILTRO!$A7:$AY632,10,FALSE),0) -> 716 | M13: =IFERROR(VLOOKUP($A13,FILTRO!$A7:$AY632,11,FALSE),0) -> 186 | N13: =IFERROR(VLOOKUP($A13,FILTRO!$A7:$AY632,12,FALSE),0) -> 14 | O13: =IFERROR(VLOOKUP($A13,FILTRO!$A7:$AY632,13,FALSE),0) -> 0 | P13: =IFERROR(VLOOKUP($A13,FILTRO!$A7:$AY632,14,FALSE),0) -> 0 | Q13: =IFERROR(VLOOKUP($A13,FILTRO!$A7:$AY632,15,FALSE),0) -> 0 | R13: =IFERROR(VLOOKUP($A13,FILTRO!$A7:$AY632,16,FALSE),0) -> 148 | S13: =IFERROR(VLOOKUP($A13,FILTRO!$A7:$AY632,17,FALSE),0) -> 393 | T13: =IFERROR(VLOOKUP($A13,FILTRO!$A7:$AY632,18,FALSE),0) -> 3 | DC13: 0 | DD13: 0 | DE13: 0 | DF13: 0 | DG13: 0 | DH13: 0
A14: P1010202 | C14: Oral Progestágeno | D14: =IFERROR(VLOOKUP($A14,FILTRO!$A8:$AY633,2,FALSE),0) -> 4677 | E14: =IFERROR(VLOOKUP($A14,FILTRO!$A8:$AY633,3,FALSE),0) -> 20 | F14: =IFERROR(VLOOKUP($A14,FILTRO!$A8:$AY633,4,FALSE),0) -> 173 | G14: =IFERROR(VLOOKUP($A14,FILTRO!$A8:$AY633,5,FALSE),0) -> 317 | H14: =IFERROR(VLOOKUP($A14,FILTRO!$A8:$AY633,6,FALSE),0) -> 602 | I14: =IFERROR(VLOOKUP($A14,FILTRO!$A8:$AY633,7,FALSE),0) -> 717 | J14: =IFERROR(VLOOKUP($A14,FILTRO!$A8:$AY633,8,FALSE),0) -> 644 | K14: =IFERROR(VLOOKUP($A14,FILTRO!$A8:$AY633,9,FALSE),0) -> 798 | L14: =IFERROR(VLOOKUP($A14,FILTRO!$A8:$AY633,10,FALSE),0) -> 932 | M14: =IFERROR(VLOOKUP($A14,FILTRO!$A8:$AY633,11,FALSE),0) -> 434 | N14: =IFERROR(VLOOKUP($A14,FILTRO!$A8:$AY633,12,FALSE),0) -> 40 | O14: =IFERROR(VLOOKUP($A14,FILTRO!$A8:$AY633,13,FALSE),0) -> 0 | P14: =IFERROR(VLOOKUP($A14,FILTRO!$A8:$AY633,14,FALSE),0) -> 0 | Q14: =IFERROR(VLOOKUP($A14,FILTRO!$A8:$AY633,15,FALSE),0) -> 0 | R14: =IFERROR(VLOOKUP($A14,FILTRO!$A8:$AY633,16,FALSE),0) -> 51 | S14: =IFERROR(VLOOKUP($A14,FILTRO!$A8:$AY633,17,FALSE),0) -> 153 | T14: =IFERROR(VLOOKUP($A14,FILTRO!$A8:$AY633,18,FALSE),0) -> 0 | DC14: 0 | DD14: 0 | DE14: 0 | DF14: 0 | DG14: 0 | DH14: 0
A15: P1010203 | C15: Inyectable Combinado | D15: =IFERROR(VLOOKUP($A15,FILTRO!$A9:$AY634,2,FALSE),0) -> 6628 | E15: =IFERROR(VLOOKUP($A15,FILTRO!$A9:$AY634,3,FALSE),0) -> 84 | F15: =IFERROR(VLOOKUP($A15,FILTRO!$A9:$AY634,4,FALSE),0) -> 955 | G15: =IFERROR(VLOOKUP($A15,FILTRO!$A9:$AY634,5,FALSE),0) -> 1581 | H15: =IFERROR(VLOOKUP($A15,FILTRO!$A9:$AY634,6,FALSE),0) -> 1418 | I15: =IFERROR(VLOOKUP($A15,FILTRO!$A9:$AY634,7,FALSE),0) -> 1059 | J15: =IFERROR(VLOOKUP($A15,FILTRO!$A9:$AY634,8,FALSE),0) -> 780 | K15: =IFERROR(VLOOKUP($A15,FILTRO!$A9:$AY634,9,FALSE),0) -> 476 | L15: =IFERROR(VLOOKUP($A15,FILTRO!$A9:$AY634,10,FALSE),0) -> 218 | M15: =IFERROR(VLOOKUP($A15,FILTRO!$A9:$AY634,11,FALSE),0) -> 51 | N15: =IFERROR(VLOOKUP($A15,FILTRO!$A9:$AY634,12,FALSE),0) -> 6 | O15: =IFERROR(VLOOKUP($A15,FILTRO!$A9:$AY634,13,FALSE),0) -> 0 | P15: =IFERROR(VLOOKUP($A15,FILTRO!$A9:$AY634,14,FALSE),0) -> 0 | Q15: =IFERROR(VLOOKUP($A15,FILTRO!$A9:$AY634,15,FALSE),0) -> 0 | R15: =IFERROR(VLOOKUP($A15,FILTRO!$A9:$AY634,16,FALSE),0) -> 109 | S15: =IFERROR(VLOOKUP($A15,FILTRO!$A9:$AY634,17,FALSE),0) -> 270 | T15: =IFERROR(VLOOKUP($A15,FILTRO!$A9:$AY634,18,FALSE),0) -> 2 | DC15: 0 | DD15: 0 | DE15: 0 | DF15: 0 | DG15: 0 | DH15: 0
A16: P1040508 | C16: Inyectable Progestágeno | D16: =IFERROR(VLOOKUP($A16,FILTRO!$A10:$AY635,2,FALSE),0) -> 13377 | E16: =IFERROR(VLOOKUP($A16,FILTRO!$A10:$AY635,3,FALSE),0) -> 171 | F16: =IFERROR(VLOOKUP($A16,FILTRO!$A10:$AY635,4,FALSE),0) -> 1242 | G16: =IFERROR(VLOOKUP($A16,FILTRO!$A10:$AY635,5,FALSE),0) -> 2269 | H16: =IFERROR(VLOOKUP($A16,FILTRO!$A10:$AY635,6,FALSE),0) -> 2703 | I16: =IFERROR(VLOOKUP($A16,FILTRO!$A10:$AY635,7,FALSE),0) -> 2488 | J16: =IFERROR(VLOOKUP($A16,FILTRO!$A10:$AY635,8,FALSE),0) -> 1802 | K16: =IFERROR(VLOOKUP($A16,FILTRO!$A10:$AY635,9,FALSE),0) -> 1286 | L16: =IFERROR(VLOOKUP($A16,FILTRO!$A10:$AY635,10,FALSE),0) -> 1068 | M16: =IFERROR(VLOOKUP($A16,FILTRO!$A10:$AY635,11,FALSE),0) -> 338 | N16: =IFERROR(VLOOKUP($A16,FILTRO!$A10:$AY635,12,FALSE),0) -> 10 | O16: =IFERROR(VLOOKUP($A16,FILTRO!$A10:$AY635,13,FALSE),0) -> 0 | P16: =IFERROR(VLOOKUP($A16,FILTRO!$A10:$AY635,14,FALSE),0) -> 0 | Q16: =IFERROR(VLOOKUP($A16,FILTRO!$A10:$AY635,15,FALSE),0) -> 0 | R16: =IFERROR(VLOOKUP($A16,FILTRO!$A10:$AY635,16,FALSE),0) -> 196 | S16: =IFERROR(VLOOKUP($A16,FILTRO!$A10:$AY635,17,FALSE),0) -> 759 | T16: =IFERROR(VLOOKUP($A16,FILTRO!$A10:$AY635,18,FALSE),0) -> 7 | DC16: 0 | DD16: 0 | DE16: 0 | DF16: 0 | DG16: 0 | DH16: 0
A17: P1040500 | C17: Implante Etonogestrel (3 años) | D17: =IFERROR(VLOOKUP($A17,FILTRO!$A11:$AY636,2,FALSE),0) -> 9767 | E17: =IFERROR(VLOOKUP($A17,FILTRO!$A11:$AY636,3,FALSE),0) -> 184 | F17: =IFERROR(VLOOKUP($A17,FILTRO!$A11:$AY636,4,FALSE),0) -> 1780 | G17: =IFERROR(VLOOKUP($A17,FILTRO!$A11:$AY636,5,FALSE),0) -> 2265 | H17: =IFERROR(VLOOKUP($A17,FILTRO!$A11:$AY636,6,FALSE),0) -> 2056 | I17: =IFERROR(VLOOKUP($A17,FILTRO!$A11:$AY636,7,FALSE),0) -> 1675 | J17: =IFERROR(VLOOKUP($A17,FILTRO!$A11:$AY636,8,FALSE),0) -> 991 | K17: =IFERROR(VLOOKUP($A17,FILTRO!$A11:$AY636,9,FALSE),0) -> 526 | L17: =IFERROR(VLOOKUP($A17,FILTRO!$A11:$AY636,10,FALSE),0) -> 241 | M17: =IFERROR(VLOOKUP($A17,FILTRO!$A11:$AY636,11,FALSE),0) -> 47 | N17: =IFERROR(VLOOKUP($A17,FILTRO!$A11:$AY636,12,FALSE),0) -> 2 | O17: =IFERROR(VLOOKUP($A17,FILTRO!$A11:$AY636,13,FALSE),0) -> 0 | P17: =IFERROR(VLOOKUP($A17,FILTRO!$A11:$AY636,14,FALSE),0) -> 0 | Q17: =IFERROR(VLOOKUP($A17,FILTRO!$A11:$AY636,15,FALSE),0) -> 0 | R17: =IFERROR(VLOOKUP($A17,FILTRO!$A11:$AY636,16,FALSE),0) -> 111 | S17: =IFERROR(VLOOKUP($A17,FILTRO!$A11:$AY636,17,FALSE),0) -> 771 | T17: =IFERROR(VLOOKUP($A17,FILTRO!$A11:$AY636,18,FALSE),0) -> 6 | DC17: 0 | DD17: 0 | DE17: 0 | DF17: 0 | DG17: 0 | DH17: 0
A18: P1200190 | C18: Implante Levonorgestrel (5 años) | D18: =IFERROR(VLOOKUP($A18,FILTRO!$A12:$AY637,2,FALSE),0) -> 2907 | E18: =IFERROR(VLOOKUP($A18,FILTRO!$A12:$AY637,3,FALSE),0) -> 61 | F18: =IFERROR(VLOOKUP($A18,FILTRO!$A12:$AY637,4,FALSE),0) -> 528 | G18: =IFERROR(VLOOKUP($A18,FILTRO!$A12:$AY637,5,FALSE),0) -> 676 | H18: =IFERROR(VLOOKUP($A18,FILTRO!$A12:$AY637,6,FALSE),0) -> 626 | I18: =IFERROR(VLOOKUP($A18,FILTRO!$A12:$AY637,7,FALSE),0) -> 487 | J18: =IFERROR(VLOOKUP($A18,FILTRO!$A12:$AY637,8,FALSE),0) -> 301 | K18: =IFERROR(VLOOKUP($A18,FILTRO!$A12:$AY637,9,FALSE),0) -> 173 | L18: =IFERROR(VLOOKUP($A18,FILTRO!$A12:$AY637,10,FALSE),0) -> 50 | M18: =IFERROR(VLOOKUP($A18,FILTRO!$A12:$AY637,11,FALSE),0) -> 5 | N18: =IFERROR(VLOOKUP($A18,FILTRO!$A12:$AY637,12,FALSE),0) -> 0 | O18: =IFERROR(VLOOKUP($A18,FILTRO!$A12:$AY637,13,FALSE),0) -> 0 | P18: =IFERROR(VLOOKUP($A18,FILTRO!$A12:$AY637,14,FALSE),0) -> 0 | Q18: =IFERROR(VLOOKUP($A18,FILTRO!$A12:$AY637,15,FALSE),0) -> 0 | R18: =IFERROR(VLOOKUP($A18,FILTRO!$A12:$AY637,16,FALSE),0) -> 40 | S18: =IFERROR(VLOOKUP($A18,FILTRO!$A12:$AY637,17,FALSE),0) -> 323 | T18: =IFERROR(VLOOKUP($A18,FILTRO!$A12:$AY637,18,FALSE),0) -> 2 | DC18: 0 | DD18: 0 | DE18: 0 | DF18: 0 | DG18: 0 | DH18: 0
A19: P1600105 | C19: Anillo Vaginal | D19: =IFERROR(VLOOKUP($A19,FILTRO!$A13:$AY638,2,FALSE),0) -> 222 | E19: =IFERROR(VLOOKUP($A19,FILTRO!$A13:$AY638,3,FALSE),0) -> 1 | F19: =IFERROR(VLOOKUP($A19,FILTRO!$A13:$AY638,4,FALSE),0) -> 17 | G19: =IFERROR(VLOOKUP($A19,FILTRO!$A13:$AY638,5,FALSE),0) -> 40 | H19: =IFERROR(VLOOKUP($A19,FILTRO!$A13:$AY638,6,FALSE),0) -> 45 | I19: =IFERROR(VLOOKUP($A19,FILTRO!$A13:$AY638,7,FALSE),0) -> 57 | J19: =IFERROR(VLOOKUP($A19,FILTRO!$A13:$AY638,8,FALSE),0) -> 41 | K19: =IFERROR(VLOOKUP($A19,FILTRO!$A13:$AY638,9,FALSE),0) -> 15 | L19: =IFERROR(VLOOKUP($A19,FILTRO!$A13:$AY638,10,FALSE),0) -> 5 | M19: =IFERROR(VLOOKUP($A19,FILTRO!$A13:$AY638,11,FALSE),0) -> 1 | N19: =IFERROR(VLOOKUP($A19,FILTRO!$A13:$AY638,12,FALSE),0) -> 0 | O19: =IFERROR(VLOOKUP($A19,FILTRO!$A13:$AY638,13,FALSE),0) -> 0 | P19: =IFERROR(VLOOKUP($A19,FILTRO!$A13:$AY638,14,FALSE),0) -> 0 | Q19: =IFERROR(VLOOKUP($A19,FILTRO!$A13:$AY638,15,FALSE),0) -> 0 | R19: =IFERROR(VLOOKUP($A19,FILTRO!$A13:$AY638,16,FALSE),0) -> 3 | S19: =IFERROR(VLOOKUP($A19,FILTRO!$A13:$AY638,17,FALSE),0) -> 9 | T19: =IFERROR(VLOOKUP($A19,FILTRO!$A13:$AY638,18,FALSE),0) -> 0 | DC19: 0 | DD19: 0 | DE19: 0 | DF19: 0 | DG19: 0 | DH19: 0
A20: P1010301 | B20: SÓLO PRESERVATIVO MAC | C20: Mujer | D20: =IFERROR(VLOOKUP($A20,FILTRO!$A14:$AY639,2,FALSE),0) -> 0 | E20: =IFERROR(VLOOKUP($A20,FILTRO!$A14:$AY639,3,FALSE),0) -> 0 | F20: =IFERROR(VLOOKUP($A20,FILTRO!$A14:$AY639,4,FALSE),0) -> 0 | G20: =IFERROR(VLOOKUP($A20,FILTRO!$A14:$AY639,5,FALSE),0) -> 0 | H20: =IFERROR(VLOOKUP($A20,FILTRO!$A14:$AY639,6,FALSE),0) -> 0 | I20: =IFERROR(VLOOKUP($A20,FILTRO!$A14:$AY639,7,FALSE),0) -> 0 | J20: =IFERROR(VLOOKUP($A20,FILTRO!$A14:$AY639,8,FALSE),0) -> 0 | K20: =IFERROR(VLOOKUP($A20,FILTRO!$A14:$AY639,9,FALSE),0) -> 0 | L20: =IFERROR(VLOOKUP($A20,FILTRO!$A14:$AY639,10,FALSE),0) -> 0 | M20: =IFERROR(VLOOKUP($A20,FILTRO!$A14:$AY639,11,FALSE),0) -> 0 | N20: =IFERROR(VLOOKUP($A20,FILTRO!$A14:$AY639,12,FALSE),0) -> 0 | O20: =IFERROR(VLOOKUP($A20,FILTRO!$A14:$AY639,13,FALSE),0) -> 0 | P20: =IFERROR(VLOOKUP($A20,FILTRO!$A14:$AY639,14,FALSE),0) -> 0 | Q20: =IFERROR(VLOOKUP($A20,FILTRO!$A14:$AY639,15,FALSE),0) -> 0 | R20: =IFERROR(VLOOKUP($A20,FILTRO!$A14:$AY639,16,FALSE),0) -> 0 | S20: =IFERROR(VLOOKUP($A20,FILTRO!$A14:$AY639,17,FALSE),0) -> 0 | T20: =IFERROR(VLOOKUP($A20,FILTRO!$A14:$AY639,18,FALSE),0) -> 0 | DC20: 0 | DD20: 0 | DE20: 0 | DF20: 0 | DG20: 0 | DH20: 0
A21: P1010302 | C21: Hombres | D21: =IFERROR(VLOOKUP($A21,FILTRO!$A15:$AY640,2,FALSE),0) -> 0 | E21: =IFERROR(VLOOKUP($A21,FILTRO!$A15:$AY640,3,FALSE),0) -> 0 | F21: =IFERROR(VLOOKUP($A21,FILTRO!$A15:$AY640,4,FALSE),0) -> 0 | G21: =IFERROR(VLOOKUP($A21,FILTRO!$A15:$AY640,5,FALSE),0) -> 0 | H21: =IFERROR(VLOOKUP($A21,FILTRO!$A15:$AY640,6,FALSE),0) -> 0 | I21: =IFERROR(VLOOKUP($A21,FILTRO!$A15:$AY640,7,FALSE),0) -> 0 | J21: =IFERROR(VLOOKUP($A21,FILTRO!$A15:$AY640,8,FALSE),0) -> 0 | K21: =IFERROR(VLOOKUP($A21,FILTRO!$A15:$AY640,9,FALSE),0) -> 0 | L21: =IFERROR(VLOOKUP($A21,FILTRO!$A15:$AY640,10,FALSE),0) -> 0 | M21: =IFERROR(VLOOKUP($A21,FILTRO!$A15:$AY640,11,FALSE),0) -> 0 | N21: =IFERROR(VLOOKUP($A21,FILTRO!$A15:$AY640,12,FALSE),0) -> 0 | O21: =IFERROR(VLOOKUP($A21,FILTRO!$A15:$AY640,13,FALSE),0) -> 0 | P21: =IFERROR(VLOOKUP($A21,FILTRO!$A15:$AY640,14,FALSE),0) -> 0 | Q21: =IFERROR(VLOOKUP($A21,FILTRO!$A15:$AY640,15,FALSE),0) -> 0 | R21: =IFERROR(VLOOKUP($A21,FILTRO!$A15:$AY640,16,FALSE),0) -> 0 | S21: =IFERROR(VLOOKUP($A21,FILTRO!$A15:$AY640,17,FALSE),0) -> 0 | T21: =IFERROR(VLOOKUP($A21,FILTRO!$A15:$AY640,18,FALSE),0) -> 0 | DC21: 0 | DD21: 0 | DE21: 0 | DF21: 0 | DG21: 0 | DH21: 0
A22: P1200240 | B22: ESTERILIZACIÓN QUIRURGICA | C22: Mujer | D22: =IFERROR(VLOOKUP($A22,FILTRO!$A16:$AY641,2,FALSE),0) -> 2859 | E22: =IFERROR(VLOOKUP($A22,FILTRO!$A16:$AY641,3,FALSE),0) -> 0 | F22: =IFERROR(VLOOKUP($A22,FILTRO!$A16:$AY641,4,FALSE),0) -> 0 | G22: =IFERROR(VLOOKUP($A22,FILTRO!$A16:$AY641,5,FALSE),0) -> 17 | H22: =IFERROR(VLOOKUP($A22,FILTRO!$A16:$AY641,6,FALSE),0) -> 122 | I22: =IFERROR(VLOOKUP($A22,FILTRO!$A16:$AY641,7,FALSE),0) -> 343 | J22: =IFERROR(VLOOKUP($A22,FILTRO!$A16:$AY641,8,FALSE),0) -> 623 | K22: =IFERROR(VLOOKUP($A22,FILTRO!$A16:$AY641,9,FALSE),0) -> 689 | L22: =IFERROR(VLOOKUP($A22,FILTRO!$A16:$AY641,10,FALSE),0) -> 551 | M22: =IFERROR(VLOOKUP($A22,FILTRO!$A16:$AY641,11,FALSE),0) -> 319 | N22: =IFERROR(VLOOKUP($A22,FILTRO!$A16:$AY641,12,FALSE),0) -> 195 | O22: =IFERROR(VLOOKUP($A22,FILTRO!$A16:$AY641,13,FALSE),0) -> 0 | P22: =IFERROR(VLOOKUP($A22,FILTRO!$A16:$AY641,14,FALSE),0) -> 0 | Q22: =IFERROR(VLOOKUP($A22,FILTRO!$A16:$AY641,15,FALSE),0) -> 0 | R22: =IFERROR(VLOOKUP($A22,FILTRO!$A16:$AY641,16,FALSE),0) -> 48 | S22: =IFERROR(VLOOKUP($A22,FILTRO!$A16:$AY641,17,FALSE),0) -> 138 | T22: =IFERROR(VLOOKUP($A22,FILTRO!$A16:$AY641,18,FALSE),0) -> 7 | DC22: 0 | DD22: 0 | DE22: 0 | DF22: 0 | DG22: 0 | DH22: 0
A23: P1200250 | C23: Hombres | D23: =IFERROR(VLOOKUP($A23,FILTRO!$A17:$AY642,2,FALSE),0) -> 5 | E23: =IFERROR(VLOOKUP($A23,FILTRO!$A17:$AY642,3,FALSE),0) -> 0 | F23: =IFERROR(VLOOKUP($A23,FILTRO!$A17:$AY642,4,FALSE),0) -> 0 | G23: =IFERROR(VLOOKUP($A23,FILTRO!$A17:$AY642,5,FALSE),0) -> 0 | H23: =IFERROR(VLOOKUP($A23,FILTRO!$A17:$AY642,6,FALSE),0) -> 0 | I23: =IFERROR(VLOOKUP($A23,FILTRO!$A17:$AY642,7,FALSE),0) -> 2 | J23: =IFERROR(VLOOKUP($A23,FILTRO!$A17:$AY642,8,FALSE),0) -> 1 | K23: =IFERROR(VLOOKUP($A23,FILTRO!$A17:$AY642,9,FALSE),0) -> 1 | L23: =IFERROR(VLOOKUP($A23,FILTRO!$A17:$AY642,10,FALSE),0) -> 1 | M23: =IFERROR(VLOOKUP($A23,FILTRO!$A17:$AY642,11,FALSE),0) -> 0 | N23: =IFERROR(VLOOKUP($A23,FILTRO!$A17:$AY642,12,FALSE),0) -> 0 | O23: =IFERROR(VLOOKUP($A23,FILTRO!$A17:$AY642,13,FALSE),0) -> 0 | P23: =IFERROR(VLOOKUP($A23,FILTRO!$A17:$AY642,14,FALSE),0) -> 0 | Q23: =IFERROR(VLOOKUP($A23,FILTRO!$A17:$AY642,15,FALSE),0) -> 0 | R23: =IFERROR(VLOOKUP($A23,FILTRO!$A17:$AY642,16,FALSE),0) -> 0 | S23: =IFERROR(VLOOKUP($A23,FILTRO!$A17:$AY642,17,FALSE),0) -> 0 | T23: =IFERROR(VLOOKUP($A23,FILTRO!$A17:$AY642,18,FALSE),0) -> 0 | DC23: 0 | DD23: 0 | DE23: 0 | DF23: 0 | DG23: 0 | DH23: 0
B24: TOTAL | D24: =SUM(D11:D23) -> 62116 | E24: =SUM(E11:E23) -> 816 | F24: 6926 | G24: 10383 | H24: 11209 | I24: 10767 | J24: 8546 | K24: 6419 | L24: 4727 | M24: 1921 | N24: 402 | O24: 0 | P24: 0 | Q24: 0 | R24: 826 | S24: 3118 | T24: 36
A25: P1060010 | B25: Mujeres en control con enfermedad cardiovascular (DM-HTA) | D25: =IFERROR(VLOOKUP($A25,FILTRO!$A19:$AY644,2,FALSE),0) -> 3199 | E25: =IFERROR(VLOOKUP($A25,FILTRO!$A19:$AY644,3,FALSE),0) -> 0 | F25: =IFERROR(VLOOKUP($A25,FILTRO!$A19:$AY644,4,FALSE),0) -> 11 | G25: =IFERROR(VLOOKUP($A25,FILTRO!$A19:$AY644,5,FALSE),0) -> 92 | H25: =IFERROR(VLOOKUP($A25,FILTRO!$A19:$AY644,6,FALSE),0) -> 176 | I25: =IFERROR(VLOOKUP($A25,FILTRO!$A19:$AY644,7,FALSE),0) -> 280 | J25: =IFERROR(VLOOKUP($A25,FILTRO!$A19:$AY644,8,FALSE),0) -> 492 | K25: =IFERROR(VLOOKUP($A25,FILTRO!$A19:$AY644,9,FALSE),0) -> 683 | L25: =IFERROR(VLOOKUP($A25,FILTRO!$A19:$AY644,10,FALSE),0) -> 810 | M25: =IFERROR(VLOOKUP($A25,FILTRO!$A19:$AY644,11,FALSE),0) -> 514 | N25: =IFERROR(VLOOKUP($A25,FILTRO!$A19:$AY644,12,FALSE),0) -> 141 | O25: =IFERROR(VLOOKUP($A25,FILTRO!$A19:$AY644,13,FALSE),0) -> 0 | P25: =IFERROR(VLOOKUP($A25,FILTRO!$A19:$AY644,14,FALSE),0) -> 0 | Q25: =IFERROR(VLOOKUP($A25,FILTRO!$A19:$AY644,15,FALSE),0) -> 0 | R25: =IFERROR(VLOOKUP($A25,FILTRO!$A19:$AY644,16,FALSE),0) -> 31 | S25: =IFERROR(VLOOKUP($A25,FILTRO!$A19:$AY644,17,FALSE),0) -> 46 | T25: =IFERROR(VLOOKUP($A25,FILTRO!$A19:$AY644,18,FALSE),0) -> 0 | CC25: =IF($R25>$D25,"* La celda 'Pueblos Originarios' debe ser menor o igual al Total en control. ","") ->  | CD25: =IF($S25>$D25,"* La celda 'Población Migrantes' debe ser menor o igual al Total en control. ","") ->  | CE25: =IF($T25>$D25,"* La celda 'Personas Viviendo con VIH' debe ser menor o igual al Total en control. ","") ->  | CF25: =IF(AND($D25<>0,$R25=""),"* No olvide escribir en la celda de 'Pueblos Originarios' (Digite CERO si no tiene). ","") ->  | CG25: =IF(AND($D25<>0,$S25=""),"* No olvide escribir en la celda de 'Población Migrantes' (Digite CERO si no tiene). ","") ->  | CH25: =IF(AND($D25<>0,$T25=""),"* No olvide escribir en la celda de 'PV-VIH' (Digite CERO si no tiene). ","") ->  | DC25: =IF($R25>$D25,1,0) -> 0 | DD25: =IF($S25>$D25,1,0) -> 0 | DE25: =IF($T25>$D25,1,0) -> 0 | DF25: =IF(AND($D25<>0,$R25=""),1,0) -> 0 | DG25: =IF(AND($D25<>0,$S25=""),1,0) -> 0 | DH25: =IF(AND($D25<>0,$T25=""),1,0) -> 0
A26: P1600106 | B26: Mujeres con Retiro de Implante Anticipado en el semestre (antes de los 3 años) | C26: En APS | D26: =IFERROR(VLOOKUP($A26,FILTRO!$A20:$AY645,2,FALSE),0) -> 174 | E26: =IFERROR(VLOOKUP($A26,FILTRO!$A20:$AY645,3,FALSE),0) -> 1 | F26: =IFERROR(VLOOKUP($A26,FILTRO!$A20:$AY645,4,FALSE),0) -> 33 | G26: =IFERROR(VLOOKUP($A26,FILTRO!$A20:$AY645,5,FALSE),0) -> 44 | H26: =IFERROR(VLOOKUP($A26,FILTRO!$A20:$AY645,6,FALSE),0) -> 48 | I26: =IFERROR(VLOOKUP($A26,FILTRO!$A20:$AY645,7,FALSE),0) -> 32 | J26: =IFERROR(VLOOKUP($A26,FILTRO!$A20:$AY645,8,FALSE),0) -> 10 | K26: =IFERROR(VLOOKUP($A26,FILTRO!$A20:$AY645,9,FALSE),0) -> 5 | L26: =IFERROR(VLOOKUP($A26,FILTRO!$A20:$AY645,10,FALSE),0) -> 1 | M26: =IFERROR(VLOOKUP($A26,FILTRO!$A20:$AY645,11,FALSE),0) -> 0 | N26: =IFERROR(VLOOKUP($A26,FILTRO!$A20:$AY645,12,FALSE),0) -> 0 | O26: =IFERROR(VLOOKUP($A26,FILTRO!$A20:$AY645,13,FALSE),0) -> 0 | P26: =IFERROR(VLOOKUP($A26,FILTRO!$A20:$AY645,14,FALSE),0) -> 0 | Q26: =IFERROR(VLOOKUP($A26,FILTRO!$A20:$AY645,15,FALSE),0) -> 0 | R26: =IFERROR(VLOOKUP($A26,FILTRO!$A20:$AY645,16,FALSE),0) -> 0 | S26: =IFERROR(VLOOKUP($A26,FILTRO!$A20:$AY645,17,FALSE),0) -> 12 | T26: =IFERROR(VLOOKUP($A26,FILTRO!$A20:$AY645,18,FALSE),0) -> 0 | DC26: 0 | DD26: 0 | DE26: 0 | DF26: 0 | DG26: 0 | DH26: 0
A27: P1600107 | C27: En Extrasistema | D27: =IFERROR(VLOOKUP($A27,FILTRO!$A21:$AY646,2,FALSE),0) -> 6 | E27: =IFERROR(VLOOKUP($A27,FILTRO!$A21:$AY646,3,FALSE),0) -> 0 | F27: =IFERROR(VLOOKUP($A27,FILTRO!$A21:$AY646,4,FALSE),0) -> 1 | G27: =IFERROR(VLOOKUP($A27,FILTRO!$A21:$AY646,5,FALSE),0) -> 3 | H27: =IFERROR(VLOOKUP($A27,FILTRO!$A21:$AY646,6,FALSE),0) -> 2 | I27: =IFERROR(VLOOKUP($A27,FILTRO!$A21:$AY646,7,FALSE),0) -> 0 | J27: =IFERROR(VLOOKUP($A27,FILTRO!$A21:$AY646,8,FALSE),0) -> 0 | K27: =IFERROR(VLOOKUP($A27,FILTRO!$A21:$AY646,9,FALSE),0) -> 0 | L27: =IFERROR(VLOOKUP($A27,FILTRO!$A21:$AY646,10,FALSE),0) -> 0 | M27: =IFERROR(VLOOKUP($A27,FILTRO!$A21:$AY646,11,FALSE),0) -> 0 | N27: =IFERROR(VLOOKUP($A27,FILTRO!$A21:$AY646,12,FALSE),0) -> 0 | O27: =IFERROR(VLOOKUP($A27,FILTRO!$A21:$AY646,13,FALSE),0) -> 0 | P27: =IFERROR(VLOOKUP($A27,FILTRO!$A21:$AY646,14,FALSE),0) -> 0 | Q27: =IFERROR(VLOOKUP($A27,FILTRO!$A21:$AY646,15,FALSE),0) -> 0 | R27: =IFERROR(VLOOKUP($A27,FILTRO!$A21:$AY646,16,FALSE),0) -> 0 | S27: =IFERROR(VLOOKUP($A27,FILTRO!$A21:$AY646,17,FALSE),0) -> 1 | T27: =IFERROR(VLOOKUP($A27,FILTRO!$A21:$AY646,18,FALSE),0) -> 0
A28: P1600108 | B28: Mujeres con Retiro de Implante Anticipado en el semestre (antes de los 5 años) | C28: En APS | D28: =IFERROR(VLOOKUP($A28,FILTRO!$A22:$AY647,2,FALSE),0) -> 82 | E28: =IFERROR(VLOOKUP($A28,FILTRO!$A22:$AY647,3,FALSE),0) -> 2 | F28: =IFERROR(VLOOKUP($A28,FILTRO!$A22:$AY647,4,FALSE),0) -> 10 | G28: =IFERROR(VLOOKUP($A28,FILTRO!$A22:$AY647,5,FALSE),0) -> 29 | H28: =IFERROR(VLOOKUP($A28,FILTRO!$A22:$AY647,6,FALSE),0) -> 12 | I28: =IFERROR(VLOOKUP($A28,FILTRO!$A22:$AY647,7,FALSE),0) -> 14 | J28: =IFERROR(VLOOKUP($A28,FILTRO!$A22:$AY647,8,FALSE),0) -> 9 | K28: =IFERROR(VLOOKUP($A28,FILTRO!$A22:$AY647,9,FALSE),0) -> 4 | L28: =IFERROR(VLOOKUP($A28,FILTRO!$A22:$AY647,10,FALSE),0) -> 2 | M28: =IFERROR(VLOOKUP($A28,FILTRO!$A22:$AY647,11,FALSE),0) -> 0 | N28: =IFERROR(VLOOKUP($A28,FILTRO!$A22:$AY647,12,FALSE),0) -> 0 | O28: =IFERROR(VLOOKUP($A28,FILTRO!$A22:$AY647,13,FALSE),0) -> 0 | P28: =IFERROR(VLOOKUP($A28,FILTRO!$A22:$AY647,14,FALSE),0) -> 0 | Q28: =IFERROR(VLOOKUP($A28,FILTRO!$A22:$AY647,15,FALSE),0) -> 0 | R28: =IFERROR(VLOOKUP($A28,FILTRO!$A22:$AY647,16,FALSE),0) -> 0 | S28: =IFERROR(VLOOKUP($A28,FILTRO!$A22:$AY647,17,FALSE),0) -> 12 | T28: =IFERROR(VLOOKUP($A28,FILTRO!$A22:$AY647,18,FALSE),0) -> 1
A29: P1600109 | C29: En Extrasistema | D29: =IFERROR(VLOOKUP($A29,FILTRO!$A23:$AY648,2,FALSE),0) -> 6 | E29: =IFERROR(VLOOKUP($A29,FILTRO!$A23:$AY648,3,FALSE),0) -> 0 | F29: =IFERROR(VLOOKUP($A29,FILTRO!$A23:$AY648,4,FALSE),0) -> 0 | G29: =IFERROR(VLOOKUP($A29,FILTRO!$A23:$AY648,5,FALSE),0) -> 2 | H29: =IFERROR(VLOOKUP($A29,FILTRO!$A23:$AY648,6,FALSE),0) -> 1 | I29: =IFERROR(VLOOKUP($A29,FILTRO!$A23:$AY648,7,FALSE),0) -> 2 | J29: =IFERROR(VLOOKUP($A29,FILTRO!$A23:$AY648,8,FALSE),0) -> 1 | K29: =IFERROR(VLOOKUP($A29,FILTRO!$A23:$AY648,9,FALSE),0) -> 0 | L29: =IFERROR(VLOOKUP($A29,FILTRO!$A23:$AY648,10,FALSE),0) -> 0 | M29: =IFERROR(VLOOKUP($A29,FILTRO!$A23:$AY648,11,FALSE),0) -> 0 | N29: =IFERROR(VLOOKUP($A29,FILTRO!$A23:$AY648,12,FALSE),0) -> 0 | O29: =IFERROR(VLOOKUP($A29,FILTRO!$A23:$AY648,13,FALSE),0) -> 0 | P29: =IFERROR(VLOOKUP($A29,FILTRO!$A23:$AY648,14,FALSE),0) -> 0 | Q29: =IFERROR(VLOOKUP($A29,FILTRO!$A23:$AY648,15,FALSE),0) -> 0 | R29: =IFERROR(VLOOKUP($A29,FILTRO!$A23:$AY648,16,FALSE),0) -> 0 | S29: =IFERROR(VLOOKUP($A29,FILTRO!$A23:$AY648,17,FALSE),0) -> 2 | T29: =IFERROR(VLOOKUP($A29,FILTRO!$A23:$AY648,18,FALSE),0) -> 0 | DC29: 0 | DD29: 0 | DE29: 0 | DF29: 0 | DG29: 0 | DH29: 0
A30: P1060090 | B30: Método de Regulación de Fertilidad más Preservativo | D30: =IFERROR(VLOOKUP($A30,FILTRO!$A24:$AY649,2,FALSE),0) -> 4882 | E30: =IFERROR(VLOOKUP($A30,FILTRO!$A24:$AY649,3,FALSE),0) -> 114 | F30: =IFERROR(VLOOKUP($A30,FILTRO!$A24:$AY649,4,FALSE),0) -> 1253 | G30: =IFERROR(VLOOKUP($A30,FILTRO!$A24:$AY649,5,FALSE),0) -> 1109 | H30: =IFERROR(VLOOKUP($A30,FILTRO!$A24:$AY649,6,FALSE),0) -> 814 | I30: =IFERROR(VLOOKUP($A30,FILTRO!$A24:$AY649,7,FALSE),0) -> 617 | J30: =IFERROR(VLOOKUP($A30,FILTRO!$A24:$AY649,8,FALSE),0) -> 456 | K30: =IFERROR(VLOOKUP($A30,FILTRO!$A24:$AY649,9,FALSE),0) -> 271 | L30: =IFERROR(VLOOKUP($A30,FILTRO!$A24:$AY649,10,FALSE),0) -> 187 | M30: =IFERROR(VLOOKUP($A30,FILTRO!$A24:$AY649,11,FALSE),0) -> 54 | N30: =IFERROR(VLOOKUP($A30,FILTRO!$A24:$AY649,12,FALSE),0) -> 7 | O30: =IFERROR(VLOOKUP($A30,FILTRO!$A24:$AY649,13,FALSE),0) -> 0 | P30: =IFERROR(VLOOKUP($A30,FILTRO!$A24:$AY649,14,FALSE),0) -> 0 | Q30: =IFERROR(VLOOKUP($A30,FILTRO!$A24:$AY649,15,FALSE),0) -> 0 | R30: =IFERROR(VLOOKUP($A30,FILTRO!$A24:$AY649,16,FALSE),0) -> 55 | S30: =IFERROR(VLOOKUP($A30,FILTRO!$A24:$AY649,17,FALSE),0) -> 239 | T30: =IFERROR(VLOOKUP($A30,FILTRO!$A24:$AY649,18,FALSE),0) -> 3 | DC30: 0 | DD30: 0 | DE30: 0 | DF30: 0 | DG30: 0 | DH30: 0
A31: P1200270 | B31: Gestantes que reciben preservativo | D31: =IFERROR(VLOOKUP($A31,FILTRO!$A25:$AY650,2,FALSE),0) -> 386 | E31: =IFERROR(VLOOKUP($A31,FILTRO!$A25:$AY650,3,FALSE),0) -> 5 | F31: =IFERROR(VLOOKUP($A31,FILTRO!$A25:$AY650,4,FALSE),0) -> 50 | G31: =IFERROR(VLOOKUP($A31,FILTRO!$A25:$AY650,5,FALSE),0) -> 109 | H31: =IFERROR(VLOOKUP($A31,FILTRO!$A25:$AY650,6,FALSE),0) -> 114 | I31: =IFERROR(VLOOKUP($A31,FILTRO!$A25:$AY650,7,FALSE),0) -> 63 | J31: =IFERROR(VLOOKUP($A31,FILTRO!$A25:$AY650,8,FALSE),0) -> 37 | K31: =IFERROR(VLOOKUP($A31,FILTRO!$A25:$AY650,9,FALSE),0) -> 7 | L31: =IFERROR(VLOOKUP($A31,FILTRO!$A25:$AY650,10,FALSE),0) -> 1 | M31: =IFERROR(VLOOKUP($A31,FILTRO!$A25:$AY650,11,FALSE),0) -> 0 | N31: =IFERROR(VLOOKUP($A31,FILTRO!$A25:$AY650,12,FALSE),0) -> 0 | O31: =IFERROR(VLOOKUP($A31,FILTRO!$A25:$AY650,13,FALSE),0) -> 0 | P31: =IFERROR(VLOOKUP($A31,FILTRO!$A25:$AY650,14,FALSE),0) -> 0 | Q31: =IFERROR(VLOOKUP($A31,FILTRO!$A25:$AY650,15,FALSE),0) -> 0 | R31: =IFERROR(VLOOKUP($A31,FILTRO!$A25:$AY650,16,FALSE),0) -> 12 | S31: =IFERROR(VLOOKUP($A31,FILTRO!$A25:$AY650,17,FALSE),0) -> 16 | T31: =IFERROR(VLOOKUP($A31,FILTRO!$A25:$AY650,18,FALSE),0) -> 0 | DC31: 0 | DD31: 0 | DE31: 0 | DF31: 0 | DG31: 0 | DH31: 0
A32: P1200200 | B32: PRESERVATIVO/PRACTICA SEXUAL SEGURA | C32: Mujer | D32: =IFERROR(VLOOKUP($A32,FILTRO!$A26:$AY651,2,FALSE),0) -> 566 | E32: =IFERROR(VLOOKUP($A32,FILTRO!$A26:$AY651,3,FALSE),0) -> 7 | F32: =IFERROR(VLOOKUP($A32,FILTRO!$A26:$AY651,4,FALSE),0) -> 94 | G32: =IFERROR(VLOOKUP($A32,FILTRO!$A26:$AY651,5,FALSE),0) -> 104 | H32: =IFERROR(VLOOKUP($A32,FILTRO!$A26:$AY651,6,FALSE),0) -> 111 | I32: =IFERROR(VLOOKUP($A32,FILTRO!$A26:$AY651,7,FALSE),0) -> 80 | J32: =IFERROR(VLOOKUP($A32,FILTRO!$A26:$AY651,8,FALSE),0) -> 50 | K32: =IFERROR(VLOOKUP($A32,FILTRO!$A26:$AY651,9,FALSE),0) -> 47 | L32: =IFERROR(VLOOKUP($A32,FILTRO!$A26:$AY651,10,FALSE),0) -> 24 | M32: =IFERROR(VLOOKUP($A32,FILTRO!$A26:$AY651,11,FALSE),0) -> 27 | N32: =IFERROR(VLOOKUP($A32,FILTRO!$A26:$AY651,12,FALSE),0) -> 15 | O32: =IFERROR(VLOOKUP($A32,FILTRO!$A26:$AY651,13,FALSE),0) -> 2 | P32: =IFERROR(VLOOKUP($A32,FILTRO!$A26:$AY651,14,FALSE),0) -> 3 | Q32: =IFERROR(VLOOKUP($A32,FILTRO!$A26:$AY651,15,FALSE),0) -> 2 | R32: =IFERROR(VLOOKUP($A32,FILTRO!$A26:$AY651,16,FALSE),0) -> 14 | S32: =IFERROR(VLOOKUP($A32,FILTRO!$A26:$AY651,17,FALSE),0) -> 25 | T32: =IFERROR(VLOOKUP($A32,FILTRO!$A26:$AY651,18,FALSE),0) -> 3 | DC32: 0 | DD32: 0 | DE32: 0 | DF32: 0 | DG32: 0 | DH32: 0
A33: P1200210 | C33: Hombres | D33: =IFERROR(VLOOKUP($A33,FILTRO!$A27:$AY652,2,FALSE),0) -> 36 | E33: =IFERROR(VLOOKUP($A33,FILTRO!$A27:$AY652,3,FALSE),0) -> 4 | F33: =IFERROR(VLOOKUP($A33,FILTRO!$A27:$AY652,4,FALSE),0) -> 14 | G33: =IFERROR(VLOOKUP($A33,FILTRO!$A27:$AY652,5,FALSE),0) -> 2 | H33: =IFERROR(VLOOKUP($A33,FILTRO!$A27:$AY652,6,FALSE),0) -> 5 | I33: =IFERROR(VLOOKUP($A33,FILTRO!$A27:$AY652,7,FALSE),0) -> 1 | J33: =IFERROR(VLOOKUP($A33,FILTRO!$A27:$AY652,8,FALSE),0) -> 2 | K33: =IFERROR(VLOOKUP($A33,FILTRO!$A27:$AY652,9,FALSE),0) -> 1 | L33: =IFERROR(VLOOKUP($A33,FILTRO!$A27:$AY652,10,FALSE),0) -> 2 | M33: =IFERROR(VLOOKUP($A33,FILTRO!$A27:$AY652,11,FALSE),0) -> 1 | N33: =IFERROR(VLOOKUP($A33,FILTRO!$A27:$AY652,12,FALSE),0) -> 2 | O33: =IFERROR(VLOOKUP($A33,FILTRO!$A27:$AY652,13,FALSE),0) -> 2 | P33: =IFERROR(VLOOKUP($A33,FILTRO!$A27:$AY652,14,FALSE),0) -> 0 | Q33: =IFERROR(VLOOKUP($A33,FILTRO!$A27:$AY652,15,FALSE),0) -> 0 | R33: =IFERROR(VLOOKUP($A33,FILTRO!$A27:$AY652,16,FALSE),0) -> 0 | S33: =IFERROR(VLOOKUP($A33,FILTRO!$A27:$AY652,17,FALSE),0) -> 2 | T33: =IFERROR(VLOOKUP($A33,FILTRO!$A27:$AY652,18,FALSE),0) -> 0 | DC33: 0 | DD33: 0 | DE33: 0 | DF33: 0 | DG33: 0 | DH33: 0
A34: P1200220 | B34: LUBRICANTES | C34: Mujer | D34: =IFERROR(VLOOKUP($A34,FILTRO!$A28:$AY653,2,FALSE),0) -> 1087 | E34: =IFERROR(VLOOKUP($A34,FILTRO!$A28:$AY653,3,FALSE),0) -> 0 | F34: =IFERROR(VLOOKUP($A34,FILTRO!$A28:$AY653,4,FALSE),0) -> 21 | G34: =IFERROR(VLOOKUP($A34,FILTRO!$A28:$AY653,5,FALSE),0) -> 53 | H34: =IFERROR(VLOOKUP($A34,FILTRO!$A28:$AY653,6,FALSE),0) -> 71 | I34: =IFERROR(VLOOKUP($A34,FILTRO!$A28:$AY653,7,FALSE),0) -> 78 | J34: =IFERROR(VLOOKUP($A34,FILTRO!$A28:$AY653,8,FALSE),0) -> 73 | K34: =IFERROR(VLOOKUP($A34,FILTRO!$A28:$AY653,9,FALSE),0) -> 80 | L34: =IFERROR(VLOOKUP($A34,FILTRO!$A28:$AY653,10,FALSE),0) -> 147 | M34: =IFERROR(VLOOKUP($A34,FILTRO!$A28:$AY653,11,FALSE),0) -> 207 | N34: =IFERROR(VLOOKUP($A34,FILTRO!$A28:$AY653,12,FALSE),0) -> 175 | O34: =IFERROR(VLOOKUP($A34,FILTRO!$A28:$AY653,13,FALSE),0) -> 104 | P34: =IFERROR(VLOOKUP($A34,FILTRO!$A28:$AY653,14,FALSE),0) -> 47 | Q34: =IFERROR(VLOOKUP($A34,FILTRO!$A28:$AY653,15,FALSE),0) -> 31 | R34: =IFERROR(VLOOKUP($A34,FILTRO!$A28:$AY653,16,FALSE),0) -> 7 | S34: =IFERROR(VLOOKUP($A34,FILTRO!$A28:$AY653,17,FALSE),0) -> 36 | T34: =IFERROR(VLOOKUP($A34,FILTRO!$A28:$AY653,18,FALSE),0) -> 2 | DC34: 0 | DD34: 0 | DE34: 0 | DF34: 0 | DG34: 0 | DH34: 0
A35: P1200230 | C35: Hombres | D35: =IFERROR(VLOOKUP($A35,FILTRO!$A29:$AY654,2,FALSE),0) -> 16 | E35: =IFERROR(VLOOKUP($A35,FILTRO!$A29:$AY654,3,FALSE),0) -> 1 | F35: =IFERROR(VLOOKUP($A35,FILTRO!$A29:$AY654,4,FALSE),0) -> 1 | G35: =IFERROR(VLOOKUP($A35,FILTRO!$A29:$AY654,5,FALSE),0) -> 1 | H35: =IFERROR(VLOOKUP($A35,FILTRO!$A29:$AY654,6,FALSE),0) -> 1 | I35: =IFERROR(VLOOKUP($A35,FILTRO!$A29:$AY654,7,FALSE),0) -> 1 | J35: =IFERROR(VLOOKUP($A35,FILTRO!$A29:$AY654,8,FALSE),0) -> 2 | K35: =IFERROR(VLOOKUP($A35,FILTRO!$A29:$AY654,9,FALSE),0) -> 5 | L35: =IFERROR(VLOOKUP($A35,FILTRO!$A29:$AY654,10,FALSE),0) -> 3 | M35: =IFERROR(VLOOKUP($A35,FILTRO!$A29:$AY654,11,FALSE),0) -> 0 | N35: =IFERROR(VLOOKUP($A35,FILTRO!$A29:$AY654,12,FALSE),0) -> 0 | O35: =IFERROR(VLOOKUP($A35,FILTRO!$A29:$AY654,13,FALSE),0) -> 1 | P35: =IFERROR(VLOOKUP($A35,FILTRO!$A29:$AY654,14,FALSE),0) -> 0 | Q35: =IFERROR(VLOOKUP($A35,FILTRO!$A29:$AY654,15,FALSE),0) -> 0 | R35: =IFERROR(VLOOKUP($A35,FILTRO!$A29:$AY654,16,FALSE),0) -> 0 | S35: =IFERROR(VLOOKUP($A35,FILTRO!$A29:$AY654,17,FALSE),0) -> 0 | T35: =IFERROR(VLOOKUP($A35,FILTRO!$A29:$AY654,18,FALSE),0) -> 0 | DC35: 0 | DD35: 0 | DE35: 0 | DF35: 0 | DG35: 0 | DH35: 0
A36: P1200350 | B36: CONDON FEMENINO | D36: =IFERROR(VLOOKUP($A36,FILTRO!$A30:$AY655,2,FALSE),0) -> 325 | E36: =IFERROR(VLOOKUP($A36,FILTRO!$A30:$AY655,3,FALSE),0) -> 4 | F36: =IFERROR(VLOOKUP($A36,FILTRO!$A30:$AY655,4,FALSE),0) -> 42 | G36: =IFERROR(VLOOKUP($A36,FILTRO!$A30:$AY655,5,FALSE),0) -> 52 | H36: =IFERROR(VLOOKUP($A36,FILTRO!$A30:$AY655,6,FALSE),0) -> 62 | I36: =IFERROR(VLOOKUP($A36,FILTRO!$A30:$AY655,7,FALSE),0) -> 58 | J36: =IFERROR(VLOOKUP($A36,FILTRO!$A30:$AY655,8,FALSE),0) -> 43 | K36: =IFERROR(VLOOKUP($A36,FILTRO!$A30:$AY655,9,FALSE),0) -> 19 | L36: =IFERROR(VLOOKUP($A36,FILTRO!$A30:$AY655,10,FALSE),0) -> 40 | M36: =IFERROR(VLOOKUP($A36,FILTRO!$A30:$AY655,11,FALSE),0) -> 3 | N36: =IFERROR(VLOOKUP($A36,FILTRO!$A30:$AY655,12,FALSE),0) -> 0 | O36: =IFERROR(VLOOKUP($A36,FILTRO!$A30:$AY655,13,FALSE),0) -> 0 | P36: =IFERROR(VLOOKUP($A36,FILTRO!$A30:$AY655,14,FALSE),0) -> 2 | Q36: =IFERROR(VLOOKUP($A36,FILTRO!$A30:$AY655,15,FALSE),0) -> 0 | R36: =IFERROR(VLOOKUP($A36,FILTRO!$A30:$AY655,16,FALSE),0) -> 1 | S36: =IFERROR(VLOOKUP($A36,FILTRO!$A30:$AY655,17,FALSE),0) -> 7 | T36: =IFERROR(VLOOKUP($A36,FILTRO!$A30:$AY655,18,FALSE),0) -> 0 | DC36: 0 | DD36: 0 | DE36: 0 | DF36: 0 | DG36: 0 | DH36: 0
B37: SECCION B: GESTANTES EN CONTROL CON EVALUACIÓN RIESGO BIOPSICOSOCIAL
B38: GRUPOS DE EDAD | C38: TOTAL DE GESTANTES EN CONTROL | D38: EN RIESGO PSICO- SOCIAL | E38: QUE PRESENTAN VIOLENCIA DE GÉNERO | F38: GESTANTES QUE PRESENTAN ARO | G38: MIGRANTES
A40: P1020100 | B40: Menos de 15 años | C40: =IFERROR(VLOOKUP($A40,FILTRO!$A34:$AY659,2,FALSE),0) -> 0 | D40: =IFERROR(VLOOKUP($A40,FILTRO!$A34:$AY659,3,FALSE),0) -> 0 | E40: =IFERROR(VLOOKUP($A40,FILTRO!$A34:$AY659,4,FALSE),0) -> 0 | F40: =IFERROR(VLOOKUP($A40,FILTRO!$A34:$AY659,5,FALSE),0) -> 0 | G40: =IFERROR(VLOOKUP($A40,FILTRO!$A34:$AY659,6,FALSE),0) -> 0 | H40: =($CB40&$CC40&$CD40&$CE40&$CF40&$CG40&$CH40&$CI40&$CJ40&$CK40&$CM40&$CN40&$CO40&$CP40&$CQ40&$CR40&$CS40&$CT40&$CU40&$CV40&$CW40&$CX40&$CY40&$CZ40&$DA40) ->  | CB40: =IF($D40<$E40,"* Las Gestantes Menores de 15 años con violencia de género deben estar incluidas en las Gestantes con riesgo psicosocial. ","") ->  | CC40: =IF($C40<$D40,"* Las Gestantes Menores de 15 años con Riesgo Psicosocial deben estar incluidas en el Total de Gestantes en Control misma edad. ","") ->  | CD40: =IF($C40<$F40,"* Las Gestantes Menores de 15 años que presentan ARO deben estar incluidas en el Total de Gestantes en Control misma edad. ","") ->  | CE40: =IF($C40<$G40,"* Las Gestantes Menores de 15 años que pertenecen a 'Población Migrantes' deben estar incluidas en el Total de Gestantes en Control misma edad. ","") ->  | CG40: =IF(AND(C40<>0,G40=""),"* No olvide escribir en la celda de 'Población Migrantes' (Digite CERO si no tiene). ","") ->  | DB40: =IF($D40<$E40,1,0) -> 0 | DC40: =IF($C40<$D40,1,0) -> 0 | DD40: =IF($C40<$F40,1,0) -> 0 | DE40: =IF($C40<$G40,1,0) -> 0 | DG40: =IF(AND(C40<>0,G40=""),1,0) -> 0
A41: P1020200 | B41: 15 a 19 años | C41: =IFERROR(VLOOKUP($A41,FILTRO!$A35:$AY660,2,FALSE),0) -> 0 | D41: =IFERROR(VLOOKUP($A41,FILTRO!$A35:$AY660,3,FALSE),0) -> 0 | E41: =IFERROR(VLOOKUP($A41,FILTRO!$A35:$AY660,4,FALSE),0) -> 0 | F41: =IFERROR(VLOOKUP($A41,FILTRO!$A35:$AY660,5,FALSE),0) -> 0 | G41: =IFERROR(VLOOKUP($A41,FILTRO!$A35:$AY660,6,FALSE),0) -> 0 | CB41: =IF($D41<$E41,"* Las Gestantes de 15 a 19 años con violencia de género deben estar incluidas en las Gestantes con riesgo psicosocial. ","") ->  | CC41: =IF($C41<$D41,"* Las Gestantes de 15 a 19 años con Riesgo Psicosocial deben estar incluidas en el Total de Gestantes en Control misma edad. ","") ->  | CD41: =IF($C41<$F41,"* Las Gestantes de 15 a 19 años que presentan ARO deben estar incluidas en el Total de Gestantes en Control misma edad. ","") ->  | CE41: =IF($C41<$G41,"* Las Gestantes de 15 a 19 años que pertenecen a 'Población Migrantes' deben estar incluidas en el Total de Gestantes en Control misma edad. ","") ->  | DB41: 0 | DC41: 0 | DD41: 0 | DE41: 0 | DG41: 0
A42: P1040501 | B42: 20 a 24 años | C42: =IFERROR(VLOOKUP($A42,FILTRO!$A36:$AY661,2,FALSE),0) -> 0 | D42: =IFERROR(VLOOKUP($A42,FILTRO!$A36:$AY661,3,FALSE),0) -> 0 | E42: =IFERROR(VLOOKUP($A42,FILTRO!$A36:$AY661,4,FALSE),0) -> 0 | F42: =IFERROR(VLOOKUP($A42,FILTRO!$A36:$AY661,5,FALSE),0) -> 0 | G42: =IFERROR(VLOOKUP($A42,FILTRO!$A36:$AY661,6,FALSE),0) -> 0 | CB42: =IF($D42<$E42,"* Las Gestantes de 20 a 24 años con violencia de género deben estar incluidas en las Gestantes con riesgo psicosocial. ","") ->  | CC42: =IF($C42<$D42,"* Las Gestantes de 20 a 24 años con Riesgo Psicosocial deben estar incluidas en el Total de Gestantes en Control misma edad. ","") ->  | CD42: =IF($C42<$F42,"* Las Gestantes de 20 a 24 años que presentan ARO deben estar incluidas en el Total de Gestantes en Control misma edad. ","") ->  | CE42: =IF($C42<$G42,"* Las Gestantes de 20 a 24 años que pertenecen a 'Población Migrantes' deben estar incluidas en el Total de Gestantes en Control misma edad. ","") ->  | DB42: 0 | DC42: 0 | DD42: 0 | DE42: 0 | DG42: 0
A43: P1060100 | B43: 25 a 29 años | C43: =IFERROR(VLOOKUP($A43,FILTRO!$A37:$AY662,2,FALSE),0) -> 998 | D43: =IFERROR(VLOOKUP($A43,FILTRO!$A37:$AY662,3,FALSE),0) -> 219 | E43: =IFERROR(VLOOKUP($A43,FILTRO!$A37:$AY662,4,FALSE),0) -> 18 | F43: =IFERROR(VLOOKUP($A43,FILTRO!$A37:$AY662,5,FALSE),0) -> 378 | G43: =IFERROR(VLOOKUP($A43,FILTRO!$A37:$AY662,6,FALSE),0) -> 113 | CB43: =IF($D43<$E43,"* Las Gestantes de 25 a 29 años con violencia de género deben estar incluidas en las Gestantes con riesgo psicosocial. ","") ->  | CC43: =IF($C43<$D43,"* Las Gestantes de 25 a 29 años con Riesgo Psicosocial deben estar incluidas en el Total de Gestantes en Control misma edad. ","") ->  | CD43: =IF($C43<$F43,"* Las Gestantes de 25 a 29 años que presentan ARO deben estar incluidas en el Total de Gestantes en Control misma edad. ","") ->  | CE43: =IF($C43<$G43,"* Las Gestantes de 25 a 29 años que pertenecen a 'Población Migrantes' deben estar incluidas en el Total de Gestantes en Control misma edad. ","") ->  | DB43: 0 | DC43: 0 | DD43: 0 | DE43: 0 | DG43: 0
A44: P1060101 | B44: 30 a 34 años | C44: =IFERROR(VLOOKUP($A44,FILTRO!$A38:$AY663,2,FALSE),0) -> 839 | D44: =IFERROR(VLOOKUP($A44,FILTRO!$A38:$AY663,3,FALSE),0) -> 164 | E44: =IFERROR(VLOOKUP($A44,FILTRO!$A38:$AY663,4,FALSE),0) -> 15 | F44: =IFERROR(VLOOKUP($A44,FILTRO!$A38:$AY663,5,FALSE),0) -> 382 | G44: =IFERROR(VLOOKUP($A44,FILTRO!$A38:$AY663,6,FALSE),0) -> 82 | CB44: =IF($D44<$E44,"* Las Gestantes de 30 a 34 años con violencia de género deben estar incluidas en las Gestantes con riesgo psicosocial. ","") ->  | CC44: =IF($C44<$D44,"* Las Gestantes de 30 a 34 años con Riesgo Psicosocial deben estar incluidas en el Total de Gestantes en Control misma edad. ","") ->  | CD44: =IF($C44<$F44,"* Las Gestantes de 30 a 34 años que presentan ARO deben estar incluidas en el Total de Gestantes en Control misma edad. ","") ->  | CE44: =IF($C44<$G44,"* Las Gestantes de 30 a 34 años que pertenecen a 'Población Migrantes' deben estar incluidas en el Total de Gestantes en Control misma edad. ","") ->  | DB44: 0 | DC44: 0 | DD44: 0 | DE44: 0 | DG44: 0
A45: P1060102 | B45: 35 a 39 años | C45: =IFERROR(VLOOKUP($A45,FILTRO!$A39:$AY664,2,FALSE),0) -> 438 | D45: =IFERROR(VLOOKUP($A45,FILTRO!$A39:$AY664,3,FALSE),0) -> 83 | E45: =IFERROR(VLOOKUP($A45,FILTRO!$A39:$AY664,4,FALSE),0) -> 8 | F45: =IFERROR(VLOOKUP($A45,FILTRO!$A39:$AY664,5,FALSE),0) -> 227 | G45: =IFERROR(VLOOKUP($A45,FILTRO!$A39:$AY664,6,FALSE),0) -> 58 | CB45: =IF($D45<$E45,"* Las Gestantes de 35 a 39 años con violencia de género deben estar incluidas en las Gestantes con riesgo psicosocial. ","") ->  | CC45: =IF($C45<$D45,"* Las Gestantes de 35 a 39 años con Riesgo Psicosocial deben estar incluidas en el Total de Gestantes en Control misma edad. ","") ->  | CD45: =IF($C45<$F45,"* Las Gestantes de 35 a 39 años que presentan ARO deben estar incluidas en el Total de Gestantes en Control misma edad. ","") ->  | CE45: =IF($C45<$G45,"* Las Gestantes de 35 a 39 años que pertenecen a 'Población Migrantes' deben estar incluidas en el Total de Gestantes en Control misma edad. ","") ->  | DB45: 0 | DC45: 0 | DD45: 0 | DE45: 0 | DG45: 0
A46: P1060103 | B46: 40 a 44 años | C46: =IFERROR(VLOOKUP($A46,FILTRO!$A40:$AY665,2,FALSE),0) -> 103 | D46: =IFERROR(VLOOKUP($A46,FILTRO!$A40:$AY665,3,FALSE),0) -> 27 | E46: =IFERROR(VLOOKUP($A46,FILTRO!$A40:$AY665,4,FALSE),0) -> 1 | F46: =IFERROR(VLOOKUP($A46,FILTRO!$A40:$AY665,5,FALSE),0) -> 74 | G46: =IFERROR(VLOOKUP($A46,FILTRO!$A40:$AY665,6,FALSE),0) -> 12 | CB46: =IF($D46<$E46,"* Las Gestantes de 40 a 44 años con violencia de género deben estar incluidas en las Gestantes con riesgo psicosocial. ","") ->  | CC46: =IF($C46<$D46,"* Las Gestantes de 40 a 44 años con Riesgo Psicosocial deben estar incluidas en el Total de Gestantes en Control misma edad. ","") ->  | CD46: =IF($C46<$F46,"* Las Gestantes de 40 a 44 años que presentan ARO deben estar incluidas en el Total de Gestantes en Control misma edad. ","") ->  | CE46: =IF($C46<$G46,"* Las Gestantes de 40 a 44 años que pertenecen a 'Población Migrantes' deben estar incluidas en el Total de Gestantes en Control misma edad. ","") ->  | DB46: 0 | DC46: 0 | DD46: 0 | DE46: 0 | DG46: 0
A47: P1060104 | B47: 45 a 49 años | C47: =IFERROR(VLOOKUP($A47,FILTRO!$A41:$AY666,2,FALSE),0) -> 4 | D47: =IFERROR(VLOOKUP($A47,FILTRO!$A41:$AY666,3,FALSE),0) -> 1 | E47: =IFERROR(VLOOKUP($A47,FILTRO!$A41:$AY666,4,FALSE),0) -> 0 | F47: =IFERROR(VLOOKUP($A47,FILTRO!$A41:$AY666,5,FALSE),0) -> 2 | G47: =IFERROR(VLOOKUP($A47,FILTRO!$A41:$AY666,6,FALSE),0) -> 0 | CB47: =IF($D47<$E47,"* Las Gestantes de 45 a 49 años con violencia de género deben estar incluidas en las Gestantes con riesgo psicosocial. ","") ->  | CC47: =IF($C47<$D47,"* Las Gestantes de 45 a 49 años con Riesgo Psicosocial deben estar incluidas en el Total de Gestantes en Control misma edad. ","") ->  | CD47: =IF($C47<$F47,"* Las Gestantes de 45 a 49 años que presentan ARO deben estar incluidas en el Total de Gestantes en Control misma edad. ","") ->  | CE47: =IF($C47<$G47,"* Las Gestantes de 45 a 49 años que pertenecen a 'Población Migrantes' deben estar incluidas en el Total de Gestantes en Control misma edad. ","") ->  | DB47: 0 | DC47: 0 | DD47: 0 | DE47: 0 | DG47: 0
A48: P1060105 | B48: 50 a 54 años | C48: =IFERROR(VLOOKUP($A48,FILTRO!$A42:$AY667,2,FALSE),0) -> 0 | D48: =IFERROR(VLOOKUP($A48,FILTRO!$A42:$AY667,3,FALSE),0) -> 0 | E48: =IFERROR(VLOOKUP($A48,FILTRO!$A42:$AY667,4,FALSE),0) -> 0 | F48: =IFERROR(VLOOKUP($A48,FILTRO!$A42:$AY667,5,FALSE),0) -> 0 | G48: =IFERROR(VLOOKUP($A48,FILTRO!$A42:$AY667,6,FALSE),0) -> 0 | CB48: =IF($D48<$E48,"* Las Gestantes de 50 a 54 años con violencia de género deben estar incluidas en las Gestantes con riesgo psicosocial. ","") ->  | CC48: =IF($C48<$D48,"* Las Gestantes de 50 a 54 años con Riesgo Psicosocial deben estar incluidas en el Total de Gestantes en Control misma edad. ","") ->  | CD48: =IF($C48<$F48,"* Las Gestantes de 50 a 54 años que presentan ARO deben estar incluidas en el Total de Gestantes en Control misma edad. ","") ->  | CE48: =IF($C48<$G48,"* Las Gestantes de 50 a 54 años que pertenecen a 'Población Migrantes' deben estar incluidas en el Total de Gestantes en Control misma edad. ","") ->  | DB48: 0 | DC48: 0 | DD48: 0 | DE48: 0 | DG48: 0
B49: TOTAL | C49: =SUM(C40:C48) -> 2382 | D49: =SUM(D40:D48) -> 494 | E49: =SUM(E40:E48) -> 42 | F49: =SUM(F40:F48) -> 1063 | G49: =SUM(G40:G48) -> 265
B50: SECCION C: GESTANTES EN RIESGO PSICOSOCIAL CON VISITA DOMICILIARIA INTEGRAL REALIZADA EN EL SEMESTRE
B51: N° VDI | C51: N° Gestantes con VDI | D51: TOTAL de Visitas
A53: P1040502 | B53: 1 Visita | C53: =IFERROR(VLOOKUP($A53,FILTRO!$A5:$AY630,2,FALSE),0) -> 339 | D53: =IFERROR(VLOOKUP($A53,FILTRO!$A5:$AY630,3,FALSE),0) -> 339 | E53: =($CB53&$CC53&$CD53&$CE53&$CF53&$CG53&$CH53&$CI53&$CJ53&$CK53&$CM53&$CN53&$CO53&$CP53&$CQ53&$CR53&$CS53&$CT53&$CU53&$CV53&$CW53&$CX53&$CY53&$CZ53&$DA53) ->  | CB53: =IF($D$53<>$C$53*1,"* NO ALTERE LAS FÓRMULAS, el Total de Visitas equivale a 1 visita por gestante. ","") ->  | DB53: =IF($D$53<>$C$53*1,1,0) -> 0
A54: P1040503 | B54: 2 Visitas | C54: =IFERROR(VLOOKUP($A54,FILTRO!$A6:$AY631,2,FALSE),0) -> 106 | D54: =IFERROR(VLOOKUP($A54,FILTRO!$A6:$AY631,3,FALSE),0) -> 212 | E54: =($CB54&$CC54&$CD54&$CE54&$CF54&$CG54&$CH54&$CI54&$CJ54&$CK54&$CM54&$CN54&$CO54&$CP54&$CQ54&$CR54&$CS54&$CT54&$CU54&$CV54&$CW54&$CX54&$CY54&$CZ54&$DA54) ->  | CB54: =IF($D$54<>$C$54*2,"* NO ALTERE LAS FÓRMULAS, el Total de Visitas equivale a 2 visitas por gestante. ","") ->  | DB54: =IF($D$54<>$C$54*2,1,0) -> 0
A55: P1040504 | B55: 3 Visitas | C55: =IFERROR(VLOOKUP($A55,FILTRO!$A7:$AY632,2,FALSE),0) -> 70 | D55: =IFERROR(VLOOKUP($A55,FILTRO!$A7:$AY632,3,FALSE),0) -> 210 | E55: =($CB55&$CC55&$CD55&$CE55&$CF55&$CG55&$CH55&$CI55&$CJ55&$CK55&$CM55&$CN55&$CO55&$CP55&$CQ55&$CR55&$CS55&$CT55&$CU55&$CV55&$CW55&$CX55&$CY55&$CZ55&$DA55) ->  | CB55: =IF($D$55<>$C$55*3,"* NO ALTERE LAS FÓRMULAS, el Total de Visitas equivale a 3 visitas por gestante. ","") ->  | DB55: =IF($D$55<>$C$55*3,1,0) -> 0
A56: P1040505 | B56: 4 y más visitas | C56: =IFERROR(VLOOKUP($A56,FILTRO!$A8:$AY633,2,FALSE),0) -> 42 | D56: =IFERROR(VLOOKUP($A56,FILTRO!$A8:$AY633,3,FALSE),0) -> 113 | E56: =($CB56&$CC56&$CD56&$CE56&$CF56&$CG56&$CH56&$CI56&$CJ56&$CK56&$CM56&$CN56&$CO56&$CP56&$CQ56&$CR56&$CS56&$CT56&$CU56&$CV56&$CW56&$CX56&$CY56&$CZ56&$DA56) -> 
B57: TOTAL | C57: =SUM(C53:C56) -> 557 | D57: =SUM(D53:D56) -> 874
B58: SECCION D: GESTANTES Y MUJERES DE 8° MES POST-PARTO EN CONTROL, SEGÚN ESTADO NUTRICIONAL
B59: POBLACION | C59: ESTADO NUTRICIONAL | D59: TOTAL | E59: GRUPOS DE EDAD (en años)
E60: Menos 15 años | F60: 15 a 19 años | G60: 20 a 24 años | H60: 25 a 29 años | I60: 30 a 34 años | J60: 35 a 39 años | K60: 40 a 44 años | L60: 45 a 49 años | M60: 50 a 54 años
A61: P1030101 | B61: GESTANTES EN CONTROL (Información a la fecha de corte) | C61: OBESA | D61: =IFERROR(VLOOKUP($A61,FILTRO!$A5:$AY630,2,FALSE),0) -> 1275 | E61: =IFERROR(VLOOKUP($A61,FILTRO!$A5:$AY630,3,FALSE),0) -> 1 | F61: =IFERROR(VLOOKUP($A61,FILTRO!$A5:$AY630,4,FALSE),0) -> 34 | G61: =IFERROR(VLOOKUP($A61,FILTRO!$A5:$AY630,5,FALSE),0) -> 252 | H61: =IFERROR(VLOOKUP($A61,FILTRO!$A5:$AY630,6,FALSE),0) -> 380 | I61: =IFERROR(VLOOKUP($A61,FILTRO!$A5:$AY630,7,FALSE),0) -> 365 | J61: =IFERROR(VLOOKUP($A61,FILTRO!$A5:$AY630,8,FALSE),0) -> 190 | K61: =IFERROR(VLOOKUP($A61,FILTRO!$A5:$AY630,9,FALSE),0) -> 52 | L61: =IFERROR(VLOOKUP($A61,FILTRO!$A5:$AY630,10,FALSE),0) -> 1 | M61: =IFERROR(VLOOKUP($A61,FILTRO!$A5:$AY630,11,FALSE),0) -> 0 | N61: =($CB61&$CC61&$CD61&$CE61&$CF61&$CG61&$CH61&$CI61&$CJ61&$CK61&$CM61&$CN61&$CO61&$CP61&$CQ61&$CR61&$CS61&$CT61&$CU61&$CV61&$CW61&$CX61&$CY61&$CZ61&$DA61) -> 
A62: P1030102 | C62: SOBREPESO | D62: =IFERROR(VLOOKUP($A62,FILTRO!$A6:$AY631,2,FALSE),0) -> 1083 | E62: =IFERROR(VLOOKUP($A62,FILTRO!$A6:$AY631,3,FALSE),0) -> 1 | F62: =IFERROR(VLOOKUP($A62,FILTRO!$A6:$AY631,4,FALSE),0) -> 39 | G62: =IFERROR(VLOOKUP($A62,FILTRO!$A6:$AY631,5,FALSE),0) -> 240 | H62: =IFERROR(VLOOKUP($A62,FILTRO!$A6:$AY631,6,FALSE),0) -> 333 | I62: =IFERROR(VLOOKUP($A62,FILTRO!$A6:$AY631,7,FALSE),0) -> 289 | J62: =IFERROR(VLOOKUP($A62,FILTRO!$A6:$AY631,8,FALSE),0) -> 148 | K62: =IFERROR(VLOOKUP($A62,FILTRO!$A6:$AY631,9,FALSE),0) -> 31 | L62: =IFERROR(VLOOKUP($A62,FILTRO!$A6:$AY631,10,FALSE),0) -> 2 | M62: =IFERROR(VLOOKUP($A62,FILTRO!$A6:$AY631,11,FALSE),0) -> 0
A63: P1030103 | C63: NORMAL | D63: =IFERROR(VLOOKUP($A63,FILTRO!$A7:$AY632,2,FALSE),0) -> 822 | E63: =IFERROR(VLOOKUP($A63,FILTRO!$A7:$AY632,3,FALSE),0) -> 3 | F63: =IFERROR(VLOOKUP($A63,FILTRO!$A7:$AY632,4,FALSE),0) -> 77 | G63: =IFERROR(VLOOKUP($A63,FILTRO!$A7:$AY632,5,FALSE),0) -> 219 | H63: =IFERROR(VLOOKUP($A63,FILTRO!$A7:$AY632,6,FALSE),0) -> 251 | I63: =IFERROR(VLOOKUP($A63,FILTRO!$A7:$AY632,7,FALSE),0) -> 160 | J63: =IFERROR(VLOOKUP($A63,FILTRO!$A7:$AY632,8,FALSE),0) -> 92 | K63: =IFERROR(VLOOKUP($A63,FILTRO!$A7:$AY632,9,FALSE),0) -> 19 | L63: =IFERROR(VLOOKUP($A63,FILTRO!$A7:$AY632,10,FALSE),0) -> 1 | M63: =IFERROR(VLOOKUP($A63,FILTRO!$A7:$AY632,11,FALSE),0) -> 0
A64: P1030104 | C64: BAJO PESO | D64: =IFERROR(VLOOKUP($A64,FILTRO!$A8:$AY633,2,FALSE),0) -> 127 | E64: =IFERROR(VLOOKUP($A64,FILTRO!$A8:$AY633,3,FALSE),0) -> 1 | F64: =IFERROR(VLOOKUP($A64,FILTRO!$A8:$AY633,4,FALSE),0) -> 22 | G64: =IFERROR(VLOOKUP($A64,FILTRO!$A8:$AY633,5,FALSE),0) -> 36 | H64: =IFERROR(VLOOKUP($A64,FILTRO!$A8:$AY633,6,FALSE),0) -> 34 | I64: =IFERROR(VLOOKUP($A64,FILTRO!$A8:$AY633,7,FALSE),0) -> 25 | J64: =IFERROR(VLOOKUP($A64,FILTRO!$A8:$AY633,8,FALSE),0) -> 8 | K64: =IFERROR(VLOOKUP($A64,FILTRO!$A8:$AY633,9,FALSE),0) -> 1 | L64: =IFERROR(VLOOKUP($A64,FILTRO!$A8:$AY633,10,FALSE),0) -> 0 | M64: =IFERROR(VLOOKUP($A64,FILTRO!$A8:$AY633,11,FALSE),0) -> 0
C65: TOTAL | D65: =SUM(D61:D64) -> 3307 | E65: =SUM(E61:E64) -> 6 | F65: 172 | G65: 747 | H65: 998 | I65: 839 | J65: 438 | K65: 103 | L65: 4 | M65: 0 | N65: =CB65 & CC65 & CD65 & CE65 & CF65 & CG65 & CH65 & CI65 & CJ65 -> * Las Gestantes Menores de 15 años, según Estado Nutricional debe ser igual al Total de gestantes en Control de esa edad en Sección B. * Las gestantes 15-19 años, según Estado Nutricional debe ser igual al Total de gestantes en Control de esa edad en Sección B. * Las gestantes20-24 años, según Estado Nutricional debe ser igual al Total de gestantes en Control de esa edad en Sección B. | CB65: =IF($C$40<>$E65,"* Las Gestantes Menores de 15 años, según Estado Nutricional debe ser igual al Total de gestantes en Control de esa edad en Sección B. ","") -> * Las Gestantes Menores de 15 años, según Estado Nutricional debe ser igual al Total de gestantes en Control de esa edad en Sección B. | CC65: =IF($C$41<>$F65,"* Las gestantes 15-19 años, según Estado Nutricional debe ser igual al Total de gestantes en Control de esa edad en Sección B. ","") -> * Las gestantes 15-19 años, según Estado Nutricional debe ser igual al Total de gestantes en Control de esa edad en Sección B. | CD65: =IF($C$42<>$G65,"* Las gestantes20-24 años, según Estado Nutricional debe ser igual al Total de gestantes en Control de esa edad en Sección B. ","") -> * Las gestantes20-24 años, según Estado Nutricional debe ser igual al Total de gestantes en Control de esa edad en Sección B. | CE65: =IF($C$43<>$H65,"* Las gestantes 25-29 años, según Estado Nutricional debe ser igual al Total de gestantes en Control de esa edad en Sección B. ","") ->  | CF65: =IF($C$44<>$I65,"* Las gestantes30-34 años, según Estado Nutricional debe ser igual al Total de gestantes en Control de esa edad en Sección B. ","") ->  | CG65: =IF($C$45<>$J65,"* Las gestantes 35-39 años, según Estado Nutricional debe ser igual al Total de gestantes en Control de esa edad en Sección B. ","") ->  | CH65: =IF($C$46<>$K65,"* Las gestantes 40-44 años, según Estado Nutricional debe ser igual al Total de gestantes en Control de esa edad en Sección B. ","") ->  | CI65: =IF($C$47<>$L65,"* Las gestantes 45-49 años, según Estado Nutricional debe ser igual al Total de gestantes en Control de esa edad en Sección B. ","") ->  | CJ65: =IF($C$48<>$M65,"* Las gestantes 50-54 años, según Estado Nutricional debe ser igual al Total de gestantes en Control de esa edad en Sección B. ","") ->  | DB65: =IF($C$40<>$E65,1,0) -> 1 | DC65: =IF($C$41<>$F65,1,0) -> 1 | DD65: =IF($C$42<>$G65,1,0) -> 1 | DE65: =IF($C$43<>$H65,1,0) -> 0 | DF65: =IF($C$44<>$I65,1,0) -> 0 | DG65: =IF($C$45<>$J65,1,0) -> 0 | DH65: =IF($C$46<>$K65,1,0) -> 0 | DI65: =IF($C$47<>$L65,1,0) -> 0 | DJ65: =IF($C$48<>$M65,1,0) -> 0
A66: P1030201 | B66: CONTROL AL 8º MES POST-PARTO (Información del semestre) | C66: OBESA | D66: =IFERROR(VLOOKUP($A66,FILTRO!$A10:$AY635,2,FALSE),0) -> 228 | E66: =IFERROR(VLOOKUP($A66,FILTRO!$A10:$AY635,3,FALSE),0) -> 0 | F66: =IFERROR(VLOOKUP($A66,FILTRO!$A10:$AY635,4,FALSE),0) -> 11 | G66: =IFERROR(VLOOKUP($A66,FILTRO!$A10:$AY635,5,FALSE),0) -> 46 | H66: =IFERROR(VLOOKUP($A66,FILTRO!$A10:$AY635,6,FALSE),0) -> 60 | I66: =IFERROR(VLOOKUP($A66,FILTRO!$A10:$AY635,7,FALSE),0) -> 61 | J66: =IFERROR(VLOOKUP($A66,FILTRO!$A10:$AY635,8,FALSE),0) -> 42 | K66: =IFERROR(VLOOKUP($A66,FILTRO!$A10:$AY635,9,FALSE),0) -> 8 | L66: =IFERROR(VLOOKUP($A66,FILTRO!$A10:$AY635,10,FALSE),0) -> 0 | M66: =IFERROR(VLOOKUP($A66,FILTRO!$A10:$AY635,11,FALSE),0) -> 0
A67: P1030202 | C67: SOBREPESO | D67: =IFERROR(VLOOKUP($A67,FILTRO!$A11:$AY636,2,FALSE),0) -> 196 | E67: =IFERROR(VLOOKUP($A67,FILTRO!$A11:$AY636,3,FALSE),0) -> 0 | F67: =IFERROR(VLOOKUP($A67,FILTRO!$A11:$AY636,4,FALSE),0) -> 7 | G67: =IFERROR(VLOOKUP($A67,FILTRO!$A11:$AY636,5,FALSE),0) -> 41 | H67: =IFERROR(VLOOKUP($A67,FILTRO!$A11:$AY636,6,FALSE),0) -> 60 | I67: =IFERROR(VLOOKUP($A67,FILTRO!$A11:$AY636,7,FALSE),0) -> 59 | J67: =IFERROR(VLOOKUP($A67,FILTRO!$A11:$AY636,8,FALSE),0) -> 20 | K67: =IFERROR(VLOOKUP($A67,FILTRO!$A11:$AY636,9,FALSE),0) -> 8 | L67: =IFERROR(VLOOKUP($A67,FILTRO!$A11:$AY636,10,FALSE),0) -> 1 | M67: =IFERROR(VLOOKUP($A67,FILTRO!$A11:$AY636,11,FALSE),0) -> 0
A68: P1030203 | C68: NORMAL | D68: =IFERROR(VLOOKUP($A68,FILTRO!$A12:$AY637,2,FALSE),0) -> 151 | E68: =IFERROR(VLOOKUP($A68,FILTRO!$A12:$AY637,3,FALSE),0) -> 0 | F68: =IFERROR(VLOOKUP($A68,FILTRO!$A12:$AY637,4,FALSE),0) -> 20 | G68: =IFERROR(VLOOKUP($A68,FILTRO!$A12:$AY637,5,FALSE),0) -> 42 | H68: =IFERROR(VLOOKUP($A68,FILTRO!$A12:$AY637,6,FALSE),0) -> 59 | I68: =IFERROR(VLOOKUP($A68,FILTRO!$A12:$AY637,7,FALSE),0) -> 26 | J68: =IFERROR(VLOOKUP($A68,FILTRO!$A12:$AY637,8,FALSE),0) -> 2 | K68: =IFERROR(VLOOKUP($A68,FILTRO!$A12:$AY637,9,FALSE),0) -> 1 | L68: =IFERROR(VLOOKUP($A68,FILTRO!$A12:$AY637,10,FALSE),0) -> 1 | M68: =IFERROR(VLOOKUP($A68,FILTRO!$A12:$AY637,11,FALSE),0) -> 0
A69: P1030204 | C69: BAJO PESO | D69: =IFERROR(VLOOKUP($A69,FILTRO!$A13:$AY638,2,FALSE),0) -> 6 | E69: =IFERROR(VLOOKUP($A69,FILTRO!$A13:$AY638,3,FALSE),0) -> 0 | F69: =IFERROR(VLOOKUP($A69,FILTRO!$A13:$AY638,4,FALSE),0) -> 2 | G69: =IFERROR(VLOOKUP($A69,FILTRO!$A13:$AY638,5,FALSE),0) -> 1 | H69: =IFERROR(VLOOKUP($A69,FILTRO!$A13:$AY638,6,FALSE),0) -> 2 | I69: =IFERROR(VLOOKUP($A69,FILTRO!$A13:$AY638,7,FALSE),0) -> 1 | J69: =IFERROR(VLOOKUP($A69,FILTRO!$A13:$AY638,8,FALSE),0) -> 0 | K69: =IFERROR(VLOOKUP($A69,FILTRO!$A13:$AY638,9,FALSE),0) -> 0 | L69: =IFERROR(VLOOKUP($A69,FILTRO!$A13:$AY638,10,FALSE),0) -> 0 | M69: =IFERROR(VLOOKUP($A69,FILTRO!$A13:$AY638,11,FALSE),0) -> 0
C70: TOTAL | D70: =SUM(E70:M70) -> 581 | E70: =SUM(E66:E69) -> 0 | F70: =SUM(F66:F69) -> 40 | G70: =SUM(G66:G69) -> 130 | H70: =SUM(H66:H69) -> 181 | I70: 147 | J70: 64 | K70: =SUM(K66:K69) -> 17 | L70: 2 | M70: 0
B71: SECCION E: MUJERES Y GESTANTES EN CONTROL CON CONSULTA NUTRICIONAL
B72: MUJERES | C72: TOTAL
A73: P1050100 | B73: Gestantes con malnutrición por déficit (bajo peso) | C73: =IFERROR(VLOOKUP($A73,FILTRO!$A17:$AY642,2,FALSE),0) -> 34 | CB73: =IF($C$73<=$D$64,"","* Gestantes malnutricion no debe ser mayor que Gestantes en Control Bajo Peso (Seccion D). ") ->  | DB73: =IF($C$73<=$D$64,0,1) -> 0
A74: P1050101 | B74: Gestantes con malnutrición por exceso - Obesa | C74: =IFERROR(VLOOKUP($A74,FILTRO!$A18:$AY643,2,FALSE),0) -> 703 | CB74: =IF($C$74<=$D$61,"","* Gestantes malnutricion no debe ser mayor que Gestantes en Control Obesa (Seccion D). ") ->  | DB74: =IF($C$74<=$D$61,0,1) -> 0
A75: P1050102 | B75: Gestantes con malnutrición por exceso - Sobrepeso | C75: =IFERROR(VLOOKUP($A75,FILTRO!$A19:$AY644,2,FALSE),0) -> 588 | CB75: =IF($C$75<=$D$62,"","* Gestantes malnutricion no debe ser mayor que Gestantes en Control Sobrepeso (Seccion D). ") ->  | DB75: =IF($C$75<=$D$62,0,1) -> 0
A76: P1050103 | B76: En 3º mes post parto | C76: =IFERROR(VLOOKUP($A76,FILTRO!$A20:$AY645,2,FALSE),0) -> 51
A77: P1050104 | B77: En 6º mes post parto | C77: =IFERROR(VLOOKUP($A77,FILTRO!$A21:$AY646,2,FALSE),0) -> 237
B78: SECCION F: MUJERES EN CONTROL DE CLIMATERIO
B79: Población | C79: 45 a 64 años
A80: P1030301 | B80: Población en Control | C80: =IFERROR(VLOOKUP($A80,FILTRO!$A24:$AY649,2,FALSE),0) -> 0 | D80: =($CB80&$CC80&$CD80&$CE80&$CF80&$CG80&$CH80&$CI80&$CJ80&$CK80&$CM80&$CN80&$CO80&$CP80&$CQ80&$CR80&$CS80&$CT80&$CU80&$CV80&$CW80&$CX80&$CY80&$CZ80&$DA80) -> 
A81: P1060040 | B81: Mujeres con pauta aplicada MRS* | C81: =IFERROR(VLOOKUP($A81,FILTRO!$A25:$AY650,2,FALSE),0) -> 2629 | D81: =($CB81&$CC81&$CD81&$CE81&$CF81&$CG81&$CH81&$CI81&$CJ81&$CK81&$CM81&$CN81&$CO81&$CP81&$CQ81&$CR81&$CS81&$CT81&$CU81&$CV81&$CW81&$CX81&$CY81&$CZ81&$DA81) -> * El Nº de mujeres con pauta aplicada MRS no debe ser mayor a la población de mujeres en control por climaterio. | CB81: =IF($C81>$C80,"* El Nº de mujeres con pauta aplicada MRS no debe ser mayor a la población de mujeres en control por climaterio. ","") -> * El Nº de mujeres con pauta aplicada MRS no debe ser mayor a la población de mujeres en control por climaterio. | DB81: =IF($C81>$C80,1,0) -> 1
A82: P1060050 | B82: Mujeres con MRS elevado* | C82: =IFERROR(VLOOKUP($A82,FILTRO!$A26:$AY651,2,FALSE),0) -> 1215 | D82: =($CB82&$CC82&$CD82&$CE82&$CF82&$CG82&$CH82&$CI82&$CJ82&$CK82&$CM82&$CN82&$CO82&$CP82&$CQ82&$CR82&$CS82&$CT82&$CU82&$CV82&$CW82&$CX82&$CY82&$CZ82&$DA82) ->  | CB82: =IF($C82>$C81,"* El Nº de mujeres con puntaje elevado de MRS no debe ser mayor al Nº de mujeres con pauta aplicada MRS. ","") ->  | DB82: =IF($C82>$C81,1,0) -> 0
A83: P1060060 | B83: Mujeres con aplicación de terapia hormonal de la menopausia según MRS* | C83: =IFERROR(VLOOKUP($A83,FILTRO!$A27:$AY652,2,FALSE),0) -> 607 | D83: =($CB83&$CC83&$CD83&$CE83&$CF83&$CG83&$CH83&$CI83&$CJ83&$CK83&$CM83&$CN83&$CO83&$CP83&$CQ83&$CR83&$CS83&$CT83&$CU83&$CV83&$CW83&$CX83&$CY83&$CZ83&$DA83) ->  | CB83: =IF($C83>$C82,"* El Nº de mujeres con aplicación de terapia hormonal de reemplazo según MRS no debe ser mayor que el numero de mujeres con puntaje elevado de MRS. ","") ->  | DB83: =IF($C83>$C82,1,0) -> 0
A84: P1200340 | B84: Mujeres que asisten a Talleres Educativos | C84: =IFERROR(VLOOKUP($A84,FILTRO!$A28:$AY653,2,FALSE),0) -> 22 | D84: =($CB84&$CC84&$CD84&$CE84&$CF84&$CG84&$CH84&$CI84&$CJ84&$CK84&$CM84&$CN84&$CO84&$CP84&$CQ84&$CR84&$CS84&$CT84&$CU84&$CV84&$CW84&$CX84&$CY84&$CZ84&$DA84) -> 
B85: * MRS: Menopause Rating Scale
B86: SECCION F.1: POBLACIÓN EN CONTROL CLIMATERIO SEGÚN TIPO TERAPIA REEMPLAZO HORMONAL
B87: MÉTODOS | D87: TOTAL | E87: GRUPO DE EDAD (en años) | J87: Pueblos Originarios | K87: Migrantes
E88: Menor de 45 años | F88: 45 a 49 años | G88: 50 a 54 años | H88: 55 a 60 años | I88: 60 a 64 años
A89: P1200280 | B89: Estradiol Micronizado 1mg | D89: =IFERROR(VLOOKUP($A89,FILTRO!$A5:$AY630,2,FALSE),0) -> 62 | E89: =IFERROR(VLOOKUP($A89,FILTRO!$A5:$AY630,3,FALSE),0) -> 4 | F89: =IFERROR(VLOOKUP($A89,FILTRO!$A5:$AY630,4,FALSE),0) -> 10 | G89: =IFERROR(VLOOKUP($A89,FILTRO!$A5:$AY630,5,FALSE),0) -> 23 | H89: =IFERROR(VLOOKUP($A89,FILTRO!$A5:$AY630,6,FALSE),0) -> 17 | I89: =IFERROR(VLOOKUP($A89,FILTRO!$A5:$AY630,7,FALSE),0) -> 8 | J89: =IFERROR(VLOOKUP($A89,FILTRO!$A5:$AY630,8,FALSE),0) -> 0 | K89: =IFERROR(VLOOKUP($A89,FILTRO!$A5:$AY630,9,FALSE),0) -> 2 | L89: =($CB89&$CC89&$CD89&$CE89&$CF89&$CG89&$CH89&$CI89&$CJ89&$CK89&$CM89&$CN89&$CO89&$CP89&$CQ89&$CR89&$CS89&$CT89&$CU89&$CV89&$CW89&$CX89&$CY89&$CZ89&$DA89) ->  | CB89: =IF($J89>$D89,"* La celda 'Pueblos Originarios' debe ser menor o igual al Total en control. ","") ->  | CC89: =IF($K89>$D89,"* La celda 'Población Migrantes' debe ser menor o igual al Total en control. ","") ->  | CD89: =IF(AND($D89<>0,$J89=""),"* No olvide escribir en la celda de 'Pueblos Originarios' (Digite CERO si no tiene). ","") ->  | CE89: =IF(AND($D89<>0,$K89=""),"* No olvide escribir en la celda de 'Población Migrantes' (Digite CERO si no tiene). ","") ->  | DB89: =IF($J89>$D89,1,0) -> 0 | DC89: =IF($K89>$D89,1,0) -> 0 | DD89: =IF(AND($D89<>0,$J89=""),1,0) -> 0 | DE89: =IF(AND($D89<>0,$K89=""),1,0) -> 0
A90: P1200290 | B90: Estradiol Gel | D90: =IFERROR(VLOOKUP($A90,FILTRO!$A6:$AY631,2,FALSE),0) -> 148 | E90: =IFERROR(VLOOKUP($A90,FILTRO!$A6:$AY631,3,FALSE),0) -> 3 | F90: =IFERROR(VLOOKUP($A90,FILTRO!$A6:$AY631,4,FALSE),0) -> 24 | G90: =IFERROR(VLOOKUP($A90,FILTRO!$A6:$AY631,5,FALSE),0) -> 54 | H90: =IFERROR(VLOOKUP($A90,FILTRO!$A6:$AY631,6,FALSE),0) -> 46 | I90: =IFERROR(VLOOKUP($A90,FILTRO!$A6:$AY631,7,FALSE),0) -> 21 | J90: =IFERROR(VLOOKUP($A90,FILTRO!$A6:$AY631,8,FALSE),0) -> 2 | K90: =IFERROR(VLOOKUP($A90,FILTRO!$A6:$AY631,9,FALSE),0) -> 2 | DB90: 0 | DC90: 0 | DD90: 0 | DE90: 0
A91: P1200300 | B91: Progesterona Micronizada 100mg | D91: =IFERROR(VLOOKUP($A91,FILTRO!$A7:$AY632,2,FALSE),0) -> 40 | E91: =IFERROR(VLOOKUP($A91,FILTRO!$A7:$AY632,3,FALSE),0) -> 1 | F91: =IFERROR(VLOOKUP($A91,FILTRO!$A7:$AY632,4,FALSE),0) -> 3 | G91: =IFERROR(VLOOKUP($A91,FILTRO!$A7:$AY632,5,FALSE),0) -> 14 | H91: =IFERROR(VLOOKUP($A91,FILTRO!$A7:$AY632,6,FALSE),0) -> 15 | I91: =IFERROR(VLOOKUP($A91,FILTRO!$A7:$AY632,7,FALSE),0) -> 7 | J91: =IFERROR(VLOOKUP($A91,FILTRO!$A7:$AY632,8,FALSE),0) -> 0 | K91: =IFERROR(VLOOKUP($A91,FILTRO!$A7:$AY632,9,FALSE),0) -> 1 | DB91: 0 | DC91: 0 | DD91: 0 | DE91: 0
A92: P1200310 | B92: Progesterona Micronizada 200mg | D92: =IFERROR(VLOOKUP($A92,FILTRO!$A8:$AY633,2,FALSE),0) -> 73 | E92: =IFERROR(VLOOKUP($A92,FILTRO!$A8:$AY633,3,FALSE),0) -> 36 | F92: =IFERROR(VLOOKUP($A92,FILTRO!$A8:$AY633,4,FALSE),0) -> 6 | G92: =IFERROR(VLOOKUP($A92,FILTRO!$A8:$AY633,5,FALSE),0) -> 16 | H92: =IFERROR(VLOOKUP($A92,FILTRO!$A8:$AY633,6,FALSE),0) -> 12 | I92: =IFERROR(VLOOKUP($A92,FILTRO!$A8:$AY633,7,FALSE),0) -> 3 | J92: =IFERROR(VLOOKUP($A92,FILTRO!$A8:$AY633,8,FALSE),0) -> 0 | K92: =IFERROR(VLOOKUP($A92,FILTRO!$A8:$AY633,9,FALSE),0) -> 0 | DB92: 0 | DC92: 0 | DD92: 0 | DE92: 0
A93: P1200320 | B93: Nomegestrol 5mg comp. | D93: =IFERROR(VLOOKUP($A93,FILTRO!$A9:$AY634,2,FALSE),0) -> 9 | E93: =IFERROR(VLOOKUP($A93,FILTRO!$A9:$AY634,3,FALSE),0) -> 0 | F93: =IFERROR(VLOOKUP($A93,FILTRO!$A9:$AY634,4,FALSE),0) -> 5 | G93: =IFERROR(VLOOKUP($A93,FILTRO!$A9:$AY634,5,FALSE),0) -> 4 | H93: =IFERROR(VLOOKUP($A93,FILTRO!$A9:$AY634,6,FALSE),0) -> 0 | I93: =IFERROR(VLOOKUP($A93,FILTRO!$A9:$AY634,7,FALSE),0) -> 0 | J93: =IFERROR(VLOOKUP($A93,FILTRO!$A9:$AY634,8,FALSE),0) -> 0 | K93: =IFERROR(VLOOKUP($A93,FILTRO!$A9:$AY634,9,FALSE),0) -> 0 | DB93: 0 | DC93: 0 | DD93: 0 | DE93: 0
A94: P1200330 | B94: Tibolona 2,5mg comp. | D94: =IFERROR(VLOOKUP($A94,FILTRO!$A10:$AY635,2,FALSE),0) -> 450 | E94: =IFERROR(VLOOKUP($A94,FILTRO!$A10:$AY635,3,FALSE),0) -> 10 | F94: =IFERROR(VLOOKUP($A94,FILTRO!$A10:$AY635,4,FALSE),0) -> 83 | G94: =IFERROR(VLOOKUP($A94,FILTRO!$A10:$AY635,5,FALSE),0) -> 199 | H94: =IFERROR(VLOOKUP($A94,FILTRO!$A10:$AY635,6,FALSE),0) -> 128 | I94: =IFERROR(VLOOKUP($A94,FILTRO!$A10:$AY635,7,FALSE),0) -> 30 | J94: =IFERROR(VLOOKUP($A94,FILTRO!$A10:$AY635,8,FALSE),0) -> 3 | K94: =IFERROR(VLOOKUP($A94,FILTRO!$A10:$AY635,9,FALSE),0) -> 13 | DB94: 0 | DC94: 0 | DD94: 0 | DE94: 0
A95: P1600110 | B95: Terapia Dual | D95: =IFERROR(VLOOKUP($A95,FILTRO!$A11:$AY636,2,FALSE),0) -> 78 | E95: =IFERROR(VLOOKUP($A95,FILTRO!$A11:$AY636,3,FALSE),0) -> 7 | F95: =IFERROR(VLOOKUP($A95,FILTRO!$A11:$AY636,4,FALSE),0) -> 7 | G95: =IFERROR(VLOOKUP($A95,FILTRO!$A11:$AY636,5,FALSE),0) -> 23 | H95: =IFERROR(VLOOKUP($A95,FILTRO!$A11:$AY636,6,FALSE),0) -> 30 | I95: =IFERROR(VLOOKUP($A95,FILTRO!$A11:$AY636,7,FALSE),0) -> 11 | J95: =IFERROR(VLOOKUP($A95,FILTRO!$A11:$AY636,8,FALSE),0) -> 0 | K95: =IFERROR(VLOOKUP($A95,FILTRO!$A11:$AY636,9,FALSE),0) -> 3
B96: SECCION G: GESTANTES EN CONTROL CON ECOGRAFÍA POR TRIMESTRE DE GESTACION (EN EL SEMESTRE)
B97: Población | C97: Primer trimestre | E97: Segundo trimestre 22-24 semanas | F97: Tercer trimestre 30-34 semanas
C98: <11 semanas | D98: 11- 13+6 semanas
A99: P1060106 | B99: Menor de 15 | C99: =IFERROR(VLOOKUP($A99,FILTRO!A5:AY630,2,FALSE),0) -> 3 | D99: =IFERROR(VLOOKUP($A99,FILTRO!B5:AZ630,3,FALSE),0) -> 0 | E99: =IFERROR(VLOOKUP($A99,FILTRO!C5:BA630,4,FALSE),0) -> 0 | F99: =IFERROR(VLOOKUP($A99,FILTRO!D5:BB630,5,FALSE),0) -> 0
A100: P1060107 | B100: 15 - 19 | C100: =IFERROR(VLOOKUP($A100,FILTRO!A6:AY631,2,FALSE),0) -> 78 | D100: =IFERROR(VLOOKUP($A100,FILTRO!B6:AZ631,3,FALSE),0) -> 0 | E100: =IFERROR(VLOOKUP($A100,FILTRO!C6:BA631,4,FALSE),0) -> 0 | F100: =IFERROR(VLOOKUP($A100,FILTRO!D6:BB631,5,FALSE),0) -> 0
A101: P1060108 | B101: 20 - 24 | C101: =IFERROR(VLOOKUP($A101,FILTRO!A7:AY632,2,FALSE),0) -> 358 | D101: =IFERROR(VLOOKUP($A101,FILTRO!B7:AZ632,3,FALSE),0) -> 0 | E101: =IFERROR(VLOOKUP($A101,FILTRO!C7:BA632,4,FALSE),0) -> 0 | F101: =IFERROR(VLOOKUP($A101,FILTRO!D7:BB632,5,FALSE),0) -> 0
A102: P1060109 | B102: 25 - 29 | C102: =IFERROR(VLOOKUP($A102,FILTRO!A8:AY633,2,FALSE),0) -> 478 | D102: =IFERROR(VLOOKUP($A102,FILTRO!B8:AZ633,3,FALSE),0) -> 0 | E102: =IFERROR(VLOOKUP($A102,FILTRO!C8:BA633,4,FALSE),0) -> 0 | F102: =IFERROR(VLOOKUP($A102,FILTRO!D8:BB633,5,FALSE),0) -> 0
A103: P1060110 | B103: 30 - 34 | C103: =IFERROR(VLOOKUP($A103,FILTRO!A9:AY634,2,FALSE),0) -> 443 | D103: =IFERROR(VLOOKUP($A103,FILTRO!B9:AZ634,3,FALSE),0) -> 0 | E103: =IFERROR(VLOOKUP($A103,FILTRO!C9:BA634,4,FALSE),0) -> 0 | F103: =IFERROR(VLOOKUP($A103,FILTRO!D9:BB634,5,FALSE),0) -> 0
A104: P1060111 | B104: 35 - 39 | C104: =IFERROR(VLOOKUP($A104,FILTRO!A10:AY635,2,FALSE),0) -> 202 | D104: =IFERROR(VLOOKUP($A104,FILTRO!B10:AZ635,3,FALSE),0) -> 0 | E104: =IFERROR(VLOOKUP($A104,FILTRO!C10:BA635,4,FALSE),0) -> 0 | F104: =IFERROR(VLOOKUP($A104,FILTRO!D10:BB635,5,FALSE),0) -> 0
A105: P1060112 | B105: 40 - 44 | C105: =IFERROR(VLOOKUP($A105,FILTRO!A11:AY636,2,FALSE),0) -> 45 | D105: =IFERROR(VLOOKUP($A105,FILTRO!B11:AZ636,3,FALSE),0) -> 0 | E105: =IFERROR(VLOOKUP($A105,FILTRO!C11:BA636,4,FALSE),0) -> 0 | F105: =IFERROR(VLOOKUP($A105,FILTRO!D11:BB636,5,FALSE),0) -> 0
A106: P1060113 | B106: 45 - 49 | C106: =IFERROR(VLOOKUP($A106,FILTRO!A12:AY637,2,FALSE),0) -> 2 | D106: =IFERROR(VLOOKUP($A106,FILTRO!B12:AZ637,3,FALSE),0) -> 0 | E106: =IFERROR(VLOOKUP($A106,FILTRO!C12:BA637,4,FALSE),0) -> 0 | F106: =IFERROR(VLOOKUP($A106,FILTRO!D12:BB637,5,FALSE),0) -> 0
A107: P1060114 | B107: 50 - 54 | C107: =IFERROR(VLOOKUP($A107,FILTRO!A13:AY638,2,FALSE),0) -> 0 | D107: =IFERROR(VLOOKUP($A107,FILTRO!B13:AZ638,3,FALSE),0) -> 0 | E107: =IFERROR(VLOOKUP($A107,FILTRO!C13:BA638,4,FALSE),0) -> 0 | F107: =IFERROR(VLOOKUP($A107,FILTRO!D13:BB638,5,FALSE),0) -> 0
B108: TOTAL | C108: =SUM(C99:C107) -> 1609 | D108: =SUM(D99:D107) -> 0 | E108: =SUM(E99:E107) -> 0 | F108: =SUM(F99:F107) -> 0
B109: SECCION H: MUJERES BAJO CONTROL DE REGULACIÓN DE FERTILIDAD SEGÚN ESTADO NUTRICIONAL
B110: POBLACION | C110: ESTADO NUTRICIONAL | D110: TOTAL | E110: GRUPOS DE EDAD (en años)
E111: Menos 15 años | F111: 15 a 19 años | G111: 20 a 24 años | H111: 25 a 29 años | I111: 30 a 34 años | J111: 35 a 39 años | K111: 40 a 44 años | L111: 45 a 49 años | M111: 50 a 54 años
A112: P1600100 | B112: MUJERES BAJO CONTROL DE REGULACIÓN DE FERTILIDAD SEGÚN ESTADO NUTRICIONAL | C112: OBESA | D112: =IFERROR(VLOOKUP($A112,FILTRO!$A5:$AY630,2,FALSE),0) -> 19923 | E112: =IFERROR(VLOOKUP($A112,FILTRO!$A5:$AY630,3,FALSE),0) -> 113 | F112: =IFERROR(VLOOKUP($A112,FILTRO!$A5:$AY630,4,FALSE),0) -> 1309 | G112: =IFERROR(VLOOKUP($A112,FILTRO!$A5:$AY630,5,FALSE),0) -> 2762 | H112: =IFERROR(VLOOKUP($A112,FILTRO!$A5:$AY630,6,FALSE),0) -> 3722 | I112: =IFERROR(VLOOKUP($A112,FILTRO!$A5:$AY630,7,FALSE),0) -> 3742 | J112: =IFERROR(VLOOKUP($A112,FILTRO!$A5:$AY630,8,FALSE),0) -> 3165 | K112: =IFERROR(VLOOKUP($A112,FILTRO!$A5:$AY630,9,FALSE),0) -> 2505 | L112: =IFERROR(VLOOKUP($A112,FILTRO!$A5:$AY630,10,FALSE),0) -> 1899 | M112: =IFERROR(VLOOKUP($A112,FILTRO!$A5:$AY630,11,FALSE),0) -> 832
A113: P1600101 | C113: SOBREPESO | D113: =IFERROR(VLOOKUP($A113,FILTRO!$A6:$AY631,2,FALSE),0) -> 19356 | E113: =IFERROR(VLOOKUP($A113,FILTRO!$A6:$AY631,3,FALSE),0) -> 206 | F113: =IFERROR(VLOOKUP($A113,FILTRO!$A6:$AY631,4,FALSE),0) -> 1865 | G113: =IFERROR(VLOOKUP($A113,FILTRO!$A6:$AY631,5,FALSE),0) -> 2946 | H113: =IFERROR(VLOOKUP($A113,FILTRO!$A6:$AY631,6,FALSE),0) -> 3420 | I113: =IFERROR(VLOOKUP($A113,FILTRO!$A6:$AY631,7,FALSE),0) -> 3480 | J113: =IFERROR(VLOOKUP($A113,FILTRO!$A6:$AY631,8,FALSE),0) -> 2927 | K113: =IFERROR(VLOOKUP($A113,FILTRO!$A6:$AY631,9,FALSE),0) -> 2133 | L113: =IFERROR(VLOOKUP($A113,FILTRO!$A6:$AY631,10,FALSE),0) -> 1604 | M113: =IFERROR(VLOOKUP($A113,FILTRO!$A6:$AY631,11,FALSE),0) -> 775
A114: P1600102 | C114: NORMAL | D114: =IFERROR(VLOOKUP($A114,FILTRO!$A7:$AY632,2,FALSE),0) -> 16202 | E114: =IFERROR(VLOOKUP($A114,FILTRO!$A7:$AY632,3,FALSE),0) -> 375 | F114: =IFERROR(VLOOKUP($A114,FILTRO!$A7:$AY632,4,FALSE),0) -> 2989 | G114: =IFERROR(VLOOKUP($A114,FILTRO!$A7:$AY632,5,FALSE),0) -> 3470 | H114: =IFERROR(VLOOKUP($A114,FILTRO!$A7:$AY632,6,FALSE),0) -> 2988 | I114: =IFERROR(VLOOKUP($A114,FILTRO!$A7:$AY632,7,FALSE),0) -> 2511 | J114: =IFERROR(VLOOKUP($A114,FILTRO!$A7:$AY632,8,FALSE),0) -> 1614 | K114: =IFERROR(VLOOKUP($A114,FILTRO!$A7:$AY632,9,FALSE),0) -> 1153 | L114: =IFERROR(VLOOKUP($A114,FILTRO!$A7:$AY632,10,FALSE),0) -> 791 | M114: =IFERROR(VLOOKUP($A114,FILTRO!$A7:$AY632,11,FALSE),0) -> 311
A115: P1600103 | C115: BAJO PESO | D115: =IFERROR(VLOOKUP($A115,FILTRO!$A8:$AY633,2,FALSE),0) -> 886 | E115: =IFERROR(VLOOKUP($A115,FILTRO!$A8:$AY633,3,FALSE),0) -> 41 | F115: =IFERROR(VLOOKUP($A115,FILTRO!$A8:$AY633,4,FALSE),0) -> 270 | G115: =IFERROR(VLOOKUP($A115,FILTRO!$A8:$AY633,5,FALSE),0) -> 216 | H115: =IFERROR(VLOOKUP($A115,FILTRO!$A8:$AY633,6,FALSE),0) -> 174 | I115: =IFERROR(VLOOKUP($A115,FILTRO!$A8:$AY633,7,FALSE),0) -> 86 | J115: =IFERROR(VLOOKUP($A115,FILTRO!$A8:$AY633,8,FALSE),0) -> 51 | K115: =IFERROR(VLOOKUP($A115,FILTRO!$A8:$AY633,9,FALSE),0) -> 26 | L115: =IFERROR(VLOOKUP($A115,FILTRO!$A8:$AY633,10,FALSE),0) -> 19 | M115: =IFERROR(VLOOKUP($A115,FILTRO!$A8:$AY633,11,FALSE),0) -> 3
C116: TOTAL | D116: =SUM(E116:M116) -> 56493 | E116: =SUM(E112:E115) -> 735 | F116: =SUM(F112:F115) -> 6433 | G116: 9394 | H116: 10304 | I116: 9819 | J116: 7757 | K116: 5817 | L116: 4313 | M116: 1921
B117: SECCION I: GESTANTES EN CONTROL CON TEST DE VIH/SIFILIS TOMADO (EN EL SEMESTRE, RED PÚBLICA O EXTRASISTEMA)
B118: Población | C118: TOTAL GESTANTES BAJO CONTROL | D118: GESTANTES EN CONTROL CON RESULTADO 1° VIH | E118: GESTANTES EN CONTROL CON RESULTADO 1° TAMIZAJE SIFILIS | F118: TOTAL GESTANTES EN CONTROL >34 sem | G118: GESTANTES EN CONTROL CON RESULTADO 2° VIH | H118: GESTANTES EN CONTROL CON RESULTADO TAMIZAJE SIFILIS 3° TRIMESTRE GESTACION
A119: P1600111 | B119: Menor de 15 | C119: =IFERROR(VLOOKUP($A119,FILTRO!$A12:$AY637,2,FALSE),0) -> 6 | D119: =IFERROR(VLOOKUP($A119,FILTRO!$A12:$AY637,3,FALSE),0) -> 6 | E119: =IFERROR(VLOOKUP($A119,FILTRO!$A12:$AY637,4,FALSE),0) -> 4 | F119: =IFERROR(VLOOKUP($A119,FILTRO!$A12:$AY637,5,FALSE),0) -> 6 | G119: =IFERROR(VLOOKUP($A119,FILTRO!$A12:$AY637,6,FALSE),0) -> 6 | H119: =IFERROR(VLOOKUP($A119,FILTRO!$A12:$AY637,7,FALSE),0) -> 6
A120: P1600112 | B120: 15 - 19 | C120: =IFERROR(VLOOKUP($A120,FILTRO!$A13:$AY638,2,FALSE),0) -> 165 | D120: =IFERROR(VLOOKUP($A120,FILTRO!$A13:$AY638,3,FALSE),0) -> 153 | E120: =IFERROR(VLOOKUP($A120,FILTRO!$A13:$AY638,4,FALSE),0) -> 154 | F120: =IFERROR(VLOOKUP($A120,FILTRO!$A13:$AY638,5,FALSE),0) -> 53 | G120: =IFERROR(VLOOKUP($A120,FILTRO!$A13:$AY638,6,FALSE),0) -> 48 | H120: =IFERROR(VLOOKUP($A120,FILTRO!$A13:$AY638,7,FALSE),0) -> 47
A121: P1600113 | B121: 20 - 24 | C121: =IFERROR(VLOOKUP($A121,FILTRO!$A14:$AY639,2,FALSE),0) -> 747 | D121: =IFERROR(VLOOKUP($A121,FILTRO!$A14:$AY639,3,FALSE),0) -> 687 | E121: =IFERROR(VLOOKUP($A121,FILTRO!$A14:$AY639,4,FALSE),0) -> 672 | F121: =IFERROR(VLOOKUP($A121,FILTRO!$A14:$AY639,5,FALSE),0) -> 153 | G121: =IFERROR(VLOOKUP($A121,FILTRO!$A14:$AY639,6,FALSE),0) -> 136 | H121: =IFERROR(VLOOKUP($A121,FILTRO!$A14:$AY639,7,FALSE),0) -> 134
A122: P1600114 | B122: 25 - 29 | C122: =IFERROR(VLOOKUP($A122,FILTRO!$A15:$AY640,2,FALSE),0) -> 983 | D122: =IFERROR(VLOOKUP($A122,FILTRO!$A15:$AY640,3,FALSE),0) -> 918 | E122: =IFERROR(VLOOKUP($A122,FILTRO!$A15:$AY640,4,FALSE),0) -> 900 | F122: =IFERROR(VLOOKUP($A122,FILTRO!$A15:$AY640,5,FALSE),0) -> 219 | G122: =IFERROR(VLOOKUP($A122,FILTRO!$A15:$AY640,6,FALSE),0) -> 180 | H122: =IFERROR(VLOOKUP($A122,FILTRO!$A15:$AY640,7,FALSE),0) -> 174
A123: P1600115 | B123: 30 - 34 | C123: =IFERROR(VLOOKUP($A123,FILTRO!$A16:$AY641,2,FALSE),0) -> 830 | D123: =IFERROR(VLOOKUP($A123,FILTRO!$A16:$AY641,3,FALSE),0) -> 758 | E123: =IFERROR(VLOOKUP($A123,FILTRO!$A16:$AY641,4,FALSE),0) -> 747 | F123: =IFERROR(VLOOKUP($A123,FILTRO!$A16:$AY641,5,FALSE),0) -> 212 | G123: =IFERROR(VLOOKUP($A123,FILTRO!$A16:$AY641,6,FALSE),0) -> 169 | H123: =IFERROR(VLOOKUP($A123,FILTRO!$A16:$AY641,7,FALSE),0) -> 168
A124: P1600116 | B124: 35 - 39 | C124: =IFERROR(VLOOKUP($A124,FILTRO!$A17:$AY642,2,FALSE),0) -> 423 | D124: =IFERROR(VLOOKUP($A124,FILTRO!$A17:$AY642,3,FALSE),0) -> 388 | E124: =IFERROR(VLOOKUP($A124,FILTRO!$A17:$AY642,4,FALSE),0) -> 378 | F124: =IFERROR(VLOOKUP($A124,FILTRO!$A17:$AY642,5,FALSE),0) -> 104 | G124: =IFERROR(VLOOKUP($A124,FILTRO!$A17:$AY642,6,FALSE),0) -> 81 | H124: =IFERROR(VLOOKUP($A124,FILTRO!$A17:$AY642,7,FALSE),0) -> 81
A125: P1600117 | B125: 40 - 44 | C125: =IFERROR(VLOOKUP($A125,FILTRO!$A18:$AY643,2,FALSE),0) -> 99 | D125: =IFERROR(VLOOKUP($A125,FILTRO!$A18:$AY643,3,FALSE),0) -> 95 | E125: =IFERROR(VLOOKUP($A125,FILTRO!$A18:$AY643,4,FALSE),0) -> 91 | F125: =IFERROR(VLOOKUP($A125,FILTRO!$A18:$AY643,5,FALSE),0) -> 21 | G125: =IFERROR(VLOOKUP($A125,FILTRO!$A18:$AY643,6,FALSE),0) -> 16 | H125: =IFERROR(VLOOKUP($A125,FILTRO!$A18:$AY643,7,FALSE),0) -> 14
A126: P1600118 | B126: 45 - 49 | C126: =IFERROR(VLOOKUP($A126,FILTRO!$A19:$AY644,2,FALSE),0) -> 4 | D126: =IFERROR(VLOOKUP($A126,FILTRO!$A19:$AY644,3,FALSE),0) -> 4 | E126: =IFERROR(VLOOKUP($A126,FILTRO!$A19:$AY644,4,FALSE),0) -> 4 | F126: =IFERROR(VLOOKUP($A126,FILTRO!$A19:$AY644,5,FALSE),0) -> 1 | G126: =IFERROR(VLOOKUP($A126,FILTRO!$A19:$AY644,6,FALSE),0) -> 1 | H126: =IFERROR(VLOOKUP($A126,FILTRO!$A19:$AY644,7,FALSE),0) -> 1
A127: P1600119 | B127: 50 - 54 | C127: =IFERROR(VLOOKUP($A127,FILTRO!$A20:$AY645,2,FALSE),0) -> 0 | D127: =IFERROR(VLOOKUP($A127,FILTRO!$A20:$AY645,3,FALSE),0) -> 0 | E127: =IFERROR(VLOOKUP($A127,FILTRO!$A20:$AY645,4,FALSE),0) -> 0 | F127: =IFERROR(VLOOKUP($A127,FILTRO!$A20:$AY645,5,FALSE),0) -> 0 | G127: =IFERROR(VLOOKUP($A127,FILTRO!$A20:$AY645,6,FALSE),0) -> 0 | H127: =IFERROR(VLOOKUP($A127,FILTRO!$A20:$AY645,7,FALSE),0) -> 0
B128: TOTAL | C128: =SUM(C119:C127) -> 3257 | D128: =SUM(D119:D127) -> 3009 | E128: 2950 | F128: 769 | G128: 637 | H128: 625
A129: P1600120 | B129: Gestantes con Tamizajes resultado pendiente | C129: =IFERROR(VLOOKUP($A129,FILTRO!$A22:$AY647,2,FALSE),0) -> 0 | D129: =IFERROR(VLOOKUP($A129,FILTRO!$A22:$AY647,3,FALSE),0) -> 95 | E129: =IFERROR(VLOOKUP($A129,FILTRO!$A22:$AY647,4,FALSE),0) -> 133 | F129: =IFERROR(VLOOKUP($A129,FILTRO!$A22:$AY647,5,FALSE),0) -> 0 | G129: =IFERROR(VLOOKUP($A129,FILTRO!$A22:$AY647,6,FALSE),0) -> 233 | H129: =IFERROR(VLOOKUP($A129,FILTRO!$A22:$AY647,7,FALSE),0) -> 270
B130: NIVEL SECUNDARIO
B131: SECCIÓN J: POBLACIÓN EN CONTROL POR PATOLOGÍAS DE ALTO RIESGO OBSTÉTRICO
B132: PATOLOGÍA | C132: TOTAL
A133: P1030303 | B133: Preeclampsia (PE) | C133: =IFERROR(VLOOKUP($A133,FILTRO!$A26:$AY651,2,FALSE),0) -> 0 | D133: =($CB111&$CC111&$CD111&$CE111&$CF111&$CG111&$CH111&$CI111&$CJ111&$CK111&$CM111&$CN111&$CO111&$CP111&$CQ111&$CR111&$CS111&$CT111&$CU111&$CV111&$CW111&$CX111&$CY111&$CZ111&$DA111) -> 
A134: P1060070 | B134: Sindrome Hipertensivo del Embarazo (SHE) | C134: =IFERROR(VLOOKUP($A134,FILTRO!$A27:$AY652,2,FALSE),0) -> 34
A135: P1030304 | B135: Factores de riesgo y condicionantes de Parto Prematuro | C135: =IFERROR(VLOOKUP($A135,FILTRO!$A28:$AY653,2,FALSE),0) -> 0
A136: P1030401 | B136: Retardo Crecimiento Intrauterino (RCIU) | C136: =IFERROR(VLOOKUP($A136,FILTRO!$A29:$AY654,2,FALSE),0) -> 0
A137: P1040506 | B137: Sífilis | C137: =IFERROR(VLOOKUP($A137,FILTRO!$A30:$AY655,2,FALSE),0) -> 17
A138: P1040507 | B138: VIH | C138: =IFERROR(VLOOKUP($A138,FILTRO!$A31:$AY656,2,FALSE),0) -> 4
A139: P1060115 | B139: Diabetes Pre Gestacional | C139: =IFERROR(VLOOKUP($A139,FILTRO!$A32:$AY657,2,FALSE),0) -> 28 | D139: =($CB130&$CC130&$CD130&$CE130&$CF130&$CG130&$CH130&$CI130&$CJ130&$CK130&$CM130&$CN130&$CO130&$CP130&$CQ130&$CR130&$CS130&$CT130&$CU130&$CV130&$CW130&$CX130&$CY130&$CZ130&$DA130) -> 
A140: P1060116 | B140: Diabetes Gestacional | C140: =IFERROR(VLOOKUP($A140,FILTRO!$A33:$AY658,2,FALSE),0) -> 102
A141: P1030403 | B141: Cesárea anterior | C141: =IFERROR(VLOOKUP($A141,FILTRO!$A34:$AY659,2,FALSE),0) -> 0
A142: P1060080 | B142: Malformación Congénita | C142: =IFERROR(VLOOKUP($A142,FILTRO!$A35:$AY660,2,FALSE),0) -> 11
A143: P1060117 | B143: Anemia | C143: =IFERROR(VLOOKUP($A143,FILTRO!$A36:$AY661,2,FALSE),0) -> 28
A144: P1060118 | B144: Cardiopatías | C144: =IFERROR(VLOOKUP($A144,FILTRO!$A37:$AY662,2,FALSE),0) -> 12
A145: P1060119 | B145: Pielonefritis | C145: =IFERROR(VLOOKUP($A145,FILTRO!$A38:$AY663,2,FALSE),0) -> 5
A146: P1060120 | B146: Rh(-) sensibilizada | C146: =IFERROR(VLOOKUP($A146,FILTRO!$A39:$AY664,2,FALSE),0) -> 24
A147: P1060121 | B147: Placenta previa | C147: =IFERROR(VLOOKUP($A147,FILTRO!$A40:$AY665,2,FALSE),0) -> 12
A148: P1060122 | B148: Chagas | C148: =IFERROR(VLOOKUP($A148,FILTRO!$A41:$AY666,2,FALSE),0) -> 11
A149: P1060123 | B149: Colestasia Intrahépatica de Embarazo | C149: =IFERROR(VLOOKUP($A149,FILTRO!$A42:$AY667,2,FALSE),0) -> 11
A150: P1030404 | B150: Otras patologías del embarazo | C150: =IFERROR(VLOOKUP($A150,FILTRO!$A43:$AY668,2,FALSE),0) -> 0
B151: TOTAL | C151: =SUM(C133:C150) -> 299
A157: CODIGOS ELIMINADOS
A158: P1060020
A159: P1200260
B160: =SUM(D11:T36,C40:G49,C53:D57,D61:M70,C73:C77,C80:C84,D89:K95,C99:F108,,C133:C151,E112:M116) -> 430021 | C160: datos
B161: =SUM(DB$10:EA153) -> 4 | C161: errores
A162: CODIGOS NUEVOS
A163: P1600105
A164: P1600106
A165: P1600107
A166: P1600108
A167: P1600109
A168: P1600110
A169: P1600111
A170: P1600112
A171: P1600113
A172: P1600114
A173: P1600115
A174: P1600116
A175: P1600117
A176: P1600118
A177: P1600119
A178: P1600120

Sheet P2
B1: DATOS DEL ESTABLECIMIENTO
B2: =CONCATENATE("COMUNA: ",NOMBRE!$B$2," - ","( ",NOMBRE!$C$2,NOMBRE!$D$2,NOMBRE!$E$2,NOMBRE!$F$2,NOMBRE!$G$2," )") -> COMUNA: - ( )
B3: =CONCATENATE("ESTABLECIMIENTO/ESTRATEGIA: ",NOMBRE!$B$3," - ","( ",NOMBRE!$C$3,NOMBRE!$D$3,NOMBRE!$E$3,NOMBRE!$F$3,NOMBRE!$G$3,NOMBRE!$H$3," )") -> ESTABLECIMIENTO/ESTRATEGIA: - ( )
B4: =CONCATENATE("MES: ",NOMBRE!$B$6," - ","( ",NOMBRE!$C$6,NOMBRE!$D$6," )") -> MES: - ( )
B5: =CONCATENATE("AÑO: ",NOMBRE!$B$7) -> AÑO: 2023
B6: REM-P2. POBLACIÓN EN CONTROL PROGRAMA NACIONAL DE SALUD DE LA INFANCIA
B7: SECCION A: POBLACIÓN EN CONTROL, SEGÚN ESTADO NUTRICIONAL PARA NIÑOS MENOR DE UN MES- 59 MESES
B8: INDICADOR NUTRICIONAL Y PARÁMETROS DE MEDICIÓN | D8: TOTAL | G8: GRUPOS DE EDAD (en meses) Y SEXO | AG8: Pueblos Originarios | AI8: Migrantes
G9: Menor de 1 mes | I9: 1 mes | K9: 2 meses | M9: 3 meses | O9: 4 meses | Q9: 5 meses | S9: 6 meses | U9: 7 a 11 meses | W9: 12 a 17 meses | Y9: 18 a 23 meses | AA9: 24 a 35 meses | AC9: 36 a 47 meses | AE9: 48 a 59 meses
D10: Ambos sexos | E10: Hombres | F10: Mujeres | G10: Hombres | H10: Mujeres | I10: Hombres | J10: Mujeres | K10: Hombres | L10: Mujeres | M10: Hombres | N10: Mujeres | O10: Hombres | P10: Mujeres | Q10: Hombres | R10: Mujeres | S10: Hombres | T10: Mujeres | U10: Hombres | V10: Mujeres | W10: Hombres | X10: Mujeres | Y10: Hombres | Z10: Mujeres | AA10: Hombres | AB10: Mujeres | AC10: Hombres | AD10: Mujeres | AE10: Hombres | AF10: Mujeres | AG10: Hombres | AH10: Mujeres | AI10: Hombres | AJ10: Mujeres
A11: P2060000 | B11: TOTAL DE NIÑOS EN CONTROL | D11: =IFERROR(VLOOKUP($A11,FILTRO!$A5:$AY630,2,FALSE),0) -> 30654 | E11: =IFERROR(VLOOKUP($A11,FILTRO!$A5:$AY630,3,FALSE),0) -> 15560 | F11: =IFERROR(VLOOKUP($A11,FILTRO!$A5:$AY630,4,FALSE),0) -> 15094 | G11: =IFERROR(VLOOKUP($A11,FILTRO!$A5:$AY630,5,FALSE),0) -> 104 | H11: =IFERROR(VLOOKUP($A11,FILTRO!$A5:$AY630,6,FALSE),0) -> 113 | I11: =IFERROR(VLOOKUP($A11,FILTRO!$A5:$AY630,7,FALSE),0) -> 336 | J11: =IFERROR(VLOOKUP($A11,FILTRO!$A5:$AY630,8,FALSE),0) -> 332 | K11: =IFERROR(VLOOKUP($A11,FILTRO!$A5:$AY630,9,FALSE),0) -> 394 | L11: =IFERROR(VLOOKUP($A11,FILTRO!$A5:$AY630,10,FALSE),0) -> 424 | M11: =IFERROR(VLOOKUP($A11,FILTRO!$A5:$AY630,11,FALSE),0) -> 367 | N11: =IFERROR(VLOOKUP($A11,FILTRO!$A5:$AY630,12,FALSE),0) -> 383 | O11: =IFERROR(VLOOKUP($A11,FILTRO!$A5:$AY630,13,FALSE),0) -> 399 | P11: =IFERROR(VLOOKUP($A11,FILTRO!$A5:$AY630,14,FALSE),0) -> 450 | Q11: =IFERROR(VLOOKUP($A11,FILTRO!$A5:$AY630,15,FALSE),0) -> 266 | R11: =IFERROR(VLOOKUP($A11,FILTRO!$A5:$AY630,16,FALSE),0) -> 296 | S11: =IFERROR(VLOOKUP($A11,FILTRO!$A5:$AY630,17,FALSE),0) -> 491 | T11: =IFERROR(VLOOKUP($A11,FILTRO!$A5:$AY630,18,FALSE),0) -> 460 | U11: =IFERROR(VLOOKUP($A11,FILTRO!$A5:$AY630,19,FALSE),0) -> 1329 | V11: =IFERROR(VLOOKUP($A11,FILTRO!$A5:$AY630,20,FALSE),0) -> 1346 | W11: =IFERROR(VLOOKUP($A11,FILTRO!$A5:$AY630,21,FALSE),0) -> 1655 | X11: =IFERROR(VLOOKUP($A11,FILTRO!$A5:$AY630,22,FALSE),0) -> 1541 | Y11: =IFERROR(VLOOKUP($A11,FILTRO!$A5:$AY630,23,FALSE),0) -> 1541 | Z11: =IFERROR(VLOOKUP($A11,FILTRO!$A5:$AY630,24,FALSE),0) -> 1523 | AA11: =IFERROR(VLOOKUP($A11,FILTRO!$A5:$AY630,25,FALSE),0) -> 2773 | AB11: =IFERROR(VLOOKUP($A11,FILTRO!$A5:$AY630,26,FALSE),0) -> 2655 | AC11: =IFERROR(VLOOKUP($A11,FILTRO!$A5:$AY630,27,FALSE),0) -> 2951 | AD11: =IFERROR(VLOOKUP($A11,FILTRO!$A5:$AY630,28,FALSE),0) -> 2840 | AE11: =IFERROR(VLOOKUP($A11,FILTRO!$A5:$AY630,29,FALSE),0) -> 2954 | AF11: =IFERROR(VLOOKUP($A11,FILTRO!$A5:$AY630,30,FALSE),0) -> 2731 | AG11: =IFERROR(VLOOKUP($A11,FILTRO!$A5:$AY630,31,FALSE),0) -> 153 | AH11: =IFERROR(VLOOKUP($A11,FILTRO!$A5:$AY630,32,FALSE),0) -> 204 | AI11: =IFERROR(VLOOKUP($A11,FILTRO!$A5:$AY630,33,FALSE),0) -> 347 | AJ11: =IFERROR(VLOOKUP($A11,FILTRO!$A5:$AY630,34,FALSE),0) -> 359 | AK11: =BO11 & BP11 & BQ11 & BR11 & BS11 & BT11 & BU11 & BV11 & BT12 & BO12 & BP12 & BQ12 & BR12 & BS12 & BU12 & BV12 & BW12 & BV13 & BW13 -> * El Total de niños (as) en Control de 1 mes debe ser igual al Total de niños(as) según Diagnóstico Nutricional Integrado. * El Total de niños (as) en Control de 2 meses debe ser igual al Total de niños(as) según Diagnóstico Nutricional Integrado. * El Total de niños (as) en Control de 3 meses debe ser igual al Total de niños(as) según Diagnóstico Nutricional Integrado. * El Total de niños (as) en Control de 4 meses debe ser igual al Total de niños(as) según Diagnóstico Nutricional Integrado. * El Total de niños (as) en Control de 7 a 11 meses debe ser igual al Total de niños(as) según Diagnóstico Nutricional Integrado. * El Total de niños (as) en Control de 12 a 17 meses debe ser igual al Total de niños(as) según Diagnóstico Nutricional Integrado. * El Total de niños (as) en Control de 18 a 23 meses debe ser igual al Total de niños(as) según Diagnóstico Nutricional Integrado. * El Total de niños (as) en Control de 24 a 35 meses debe ser igual al Total de niños(as) según Diagnóstico Nutricional Integrado. * El Total de niños (as) en Control de 36 a 47 meses debe ser igual al Total de niños(as) según Diagnóstico Nutricional Integrado. * El Total de niños (as) en Control de 48 a 59 meses debe ser igual al Total de niños(as) según Diagnóstico Nutricional Integrado. * El Total de niños (as) en Control de Pueblos Originarios debe ser igual al Total de niños(as) según Diagnóstico Nutricional Integrado. * El Total de niños (as) en Control de Población Migrantes debe ser igual al Total de niños(as) según Diagnóstico Nutricional Integrado. | BO11: =IF(I11+J11<>I38+J38,"* El Total de niños (as) en Control de 1 mes debe ser igual al Total de niños(as) según Diagnóstico Nutricional Integrado. ","") -> * El Total de niños (as) en Control de 1 mes debe ser igual al Total de niños(as) según Diagnóstico Nutricional Integrado. | BP11: =IF(K11+L11<>K38+L38,"* El Total de niños (as) en Control de 2 meses debe ser igual al Total de niños(as) según Diagnóstico Nutricional Integrado. ","") -> * El Total de niños (as) en Control de 2 meses debe ser igual al Total de niños(as) según Diagnóstico Nutricional Integrado. | BQ11: =IF(M11+N11<>M38+N38,"* El Total de niños (as) en Control de 3 meses debe ser igual al Total de niños(as) según Diagnóstico Nutricional Integrado. ","") -> * El Total de niños (as) en Control de 3 meses debe ser igual al Total de niños(as) según Diagnóstico Nutricional Integrado. | BR11: =IF(O11+P11<>O38+P38,"* El Total de niños (as) en Control de 4 meses debe ser igual al Total de niños(as) según Diagnóstico Nutricional Integrado. ","") -> * El Total de niños (as) en Control de 4 meses debe ser igual al Total de niños(as) según Diagnóstico Nutricional Integrado. | BS11: =IF(Q11+R11<>Q38+R38,"* El Total de niños (as) en Control de 5 meses debe ser igual al Total de niños(as) según Diagnóstico Nutricional Integrado. ","") ->  | BT11: =IF($S$11+$T$11<>$S$38+$T$38,"* El Total de niños (as) en Control de 6 meses debe ser igual al Total de niños(as) según Diagnóstico Nutricional Integrado. ","") ->  | BU11: =IF($U$11+$V$11<>$U$38+$V$38,"* El Total de niños (as) en Control de 7 a 11 meses debe ser igual al Total de niños(as) según Diagnóstico Nutricional Integrado. ","") -> * El Total de niños (as) en Control de 7 a 11 meses debe ser igual al Total de niños(as) según Diagnóstico Nutricional Integrado. | BV11: =IF($W$11+$X$11<>$W$38+$X$38,"* El Total de niños (as) en Control de 12 a 17 meses debe ser igual al Total de niños(as) según Diagnóstico Nutricional Integrado. ","") -> * El Total de niños (as) en Control de 12 a 17 meses debe ser igual al Total de niños(as) según Diagnóstico Nutricional Integrado. | CS11: =IF($G$11+$H$11<>$G$39+$H$39,1,0) -> 1 | CT11: =IF($I$11+$J$11<>$I$39+$J$39,1,0) -> 1 | CU11: =IF($K$11+$L$11<>$K$39+$L$39,1,0) -> 1
A12: P2400100 | B12: INDICADOR PESO/EDAD | C12: + 2 D.S. (>= +2.0) | D12: =IFERROR(VLOOKUP($A12,FILTRO!$A6:$AY631,2,FALSE),0) -> 2634 | E12: =IFERROR(VLOOKUP($A12,FILTRO!$A6:$AY631,3,FALSE),0) -> 1409 | F12: =IFERROR(VLOOKUP($A12,FILTRO!$A6:$AY631,4,FALSE),0) -> 1225 | G12: =IFERROR(VLOOKUP($A12,FILTRO!$A6:$AY631,5,FALSE),0) -> 1 | H12: =IFERROR(VLOOKUP($A12,FILTRO!$A6:$AY631,6,FALSE),0) -> 0 | I12: =IFERROR(VLOOKUP($A12,FILTRO!$A6:$AY631,7,FALSE),0) -> 10 | J12: =IFERROR(VLOOKUP($A12,FILTRO!$A6:$AY631,8,FALSE),0) -> 2 | K12: =IFERROR(VLOOKUP($A12,FILTRO!$A6:$AY631,9,FALSE),0) -> 9 | L12: =IFERROR(VLOOKUP($A12,FILTRO!$A6:$AY631,10,FALSE),0) -> 9 | M12: =IFERROR(VLOOKUP($A12,FILTRO!$A6:$AY631,11,FALSE),0) -> 21 | N12: =IFERROR(VLOOKUP($A12,FILTRO!$A6:$AY631,12,FALSE),0) -> 24 | O12: =IFERROR(VLOOKUP($A12,FILTRO!$A6:$AY631,13,FALSE),0) -> 32 | P12: =IFERROR(VLOOKUP($A12,FILTRO!$A6:$AY631,14,FALSE),0) -> 23 | Q12: =IFERROR(VLOOKUP($A12,FILTRO!$A6:$AY631,15,FALSE),0) -> 18 | R12: =IFERROR(VLOOKUP($A12,FILTRO!$A6:$AY631,16,FALSE),0) -> 19 | S12: =IFERROR(VLOOKUP($A12,FILTRO!$A6:$AY631,17,FALSE),0) -> 42 | T12: =IFERROR(VLOOKUP($A12,FILTRO!$A6:$AY631,18,FALSE),0) -> 27 | U12: =IFERROR(VLOOKUP($A12,FILTRO!$A6:$AY631,19,FALSE),0) -> 105 | V12: =IFERROR(VLOOKUP($A12,FILTRO!$A6:$AY631,20,FALSE),0) -> 110 | W12: =IFERROR(VLOOKUP($A12,FILTRO!$A6:$AY631,21,FALSE),0) -> 134 | X12: =IFERROR(VLOOKUP($A12,FILTRO!$A6:$AY631,22,FALSE),0) -> 116 | Y12: =IFERROR(VLOOKUP($A12,FILTRO!$A6:$AY631,23,FALSE),0) -> 107 | Z12: =IFERROR(VLOOKUP($A12,FILTRO!$A6:$AY631,24,FALSE),0) -> 113 | AA12: =IFERROR(VLOOKUP($A12,FILTRO!$A6:$AY631,25,FALSE),0) -> 219 | AB12: =IFERROR(VLOOKUP($A12,FILTRO!$A6:$AY631,26,FALSE),0) -> 210 | AC12: =IFERROR(VLOOKUP($A12,FILTRO!$A6:$AY631,27,FALSE),0) -> 351 | AD12: =IFERROR(VLOOKUP($A12,FILTRO!$A6:$AY631,28,FALSE),0) -> 284 | AE12: =IFERROR(VLOOKUP($A12,FILTRO!$A6:$AY631,29,FALSE),0) -> 360 | AF12: =IFERROR(VLOOKUP($A12,FILTRO!$A6:$AY631,30,FALSE),0) -> 288 | AG12: =IFERROR(VLOOKUP($A12,FILTRO!$A6:$AY631,31,FALSE),0) -> 14 | AH12: =IFERROR(VLOOKUP($A12,FILTRO!$A6:$AY631,32,FALSE),0) -> 11 | AI12: =IFERROR(VLOOKUP($A12,FILTRO!$A6:$AY631,33,FALSE),0) -> 20 | AJ12: =IFERROR(VLOOKUP($A12,FILTRO!$A6:$AY631,34,FALSE),0) -> 17 | BO12: =IF($Y$11+$Z$11<>$Y$38+$Z$38,"* El Total de niños (as) en Control de 18 a 23 meses debe ser igual al Total de niños(as) según Diagnóstico Nutricional Integrado. ","") -> * El Total de niños (as) en Control de 18 a 23 meses debe ser igual al Total de niños(as) según Diagnóstico Nutricional Integrado. | BP12: =IF($AA$11+$AB$11<>$AA$38+$AB$38,"* El Total de niños (as) en Control de 24 a 35 meses debe ser igual al Total de niños(as) según Diagnóstico Nutricional Integrado. ","") -> * El Total de niños (as) en Control de 24 a 35 meses debe ser igual al Total de niños(as) según Diagnóstico Nutricional Integrado. | BQ12: =IF(AC11+AD11<>AC38+AD38,"* El Total de niños (as) en Control de 36 a 47 meses debe ser igual al Total de niños(as) según Diagnóstico Nutricional Integrado. ","") -> * El Total de niños (as) en Control de 36 a 47 meses debe ser igual al Total de niños(as) según Diagnóstico Nutricional Integrado. | BR12: =IF($AE$11+$AF$11<>$AE$38+$AF$38,"* El Total de niños (as) en Control de 48 a 59 meses debe ser igual al Total de niños(as) según Diagnóstico Nutricional Integrado. ","") -> * El Total de niños (as) en Control de 48 a 59 meses debe ser igual al Total de niños(as) según Diagnóstico Nutricional Integrado. | BT12: =IF($D11>=$W11+$X11,"","* El Total de Pueblos Originarios no debe ser mayor al total de niños en control. ") ->  | BU12: =IF($D11>=$Y11+$Z11,"","* El Total de Población Migrantes no debe ser mayor al total de niños en control. ") ->  | BV12: =IF($W$11+$X$11<>$U$39+$V$39,"* El Total de niños (as) en Control de Pueblos Originarios debe ser igual al Total de niños(as) según Diagnóstico Nutricional Integrado. ","") -> * El Total de niños (as) en Control de Pueblos Originarios debe ser igual al Total de niños(as) según Diagnóstico Nutricional Integrado. | BW12: =IF($Y$11+$Z$11<>$W$39+$X$39,"* El Total de niños (as) en Control de Población Migrantes debe ser igual al Total de niños(as) según Diagnóstico Nutricional Integrado. ","") -> * El Total de niños (as) en Control de Población Migrantes debe ser igual al Total de niños(as) según Diagnóstico Nutricional Integrado. | CN12: =IF($M$11+$N$11<>$M$39+$N$39,1,0) -> 1 | CO12: =IF($O$11+$P$11<>$O$39+$P$39,1,0) -> 1 | CQ12: =IF($Q$11+$R$11<>$Q$39+$R$39,1,0) -> 1 | CR12: =IF($S$11+$T$11<>$S$39+$T$39,1,0) -> 1 | CS12: =IF($D11>=$W11+$X11,0,1) -> 0 | CT12: =IF($D11>=$Y11+$Z11,0,1) -> 0 | CU12: =IF($W$11+$X$11<>$U$39+$V$39,1,0) -> 1 | CV12: =IF($Y$11+$Z$11<>$W$39+$X$39,1,0) -> 1
A13: P2400110 | C13: + 1 D.S. (+1.0 a +1.9) | D13: =IFERROR(VLOOKUP($A13,FILTRO!$A7:$AY632,2,FALSE),0) -> 5932 | E13: =IFERROR(VLOOKUP($A13,FILTRO!$A7:$AY632,3,FALSE),0) -> 2910 | F13: =IFERROR(VLOOKUP($A13,FILTRO!$A7:$AY632,4,FALSE),0) -> 3022 | G13: =IFERROR(VLOOKUP($A13,FILTRO!$A7:$AY632,5,FALSE),0) -> 6 | H13: =IFERROR(VLOOKUP($A13,FILTRO!$A7:$AY632,6,FALSE),0) -> 11 | I13: =IFERROR(VLOOKUP($A13,FILTRO!$A7:$AY632,7,FALSE),0) -> 49 | J13: =IFERROR(VLOOKUP($A13,FILTRO!$A7:$AY632,8,FALSE),0) -> 34 | K13: =IFERROR(VLOOKUP($A13,FILTRO!$A7:$AY632,9,FALSE),0) -> 60 | L13: =IFERROR(VLOOKUP($A13,FILTRO!$A7:$AY632,10,FALSE),0) -> 55 | M13: =IFERROR(VLOOKUP($A13,FILTRO!$A7:$AY632,11,FALSE),0) -> 60 | N13: =IFERROR(VLOOKUP($A13,FILTRO!$A7:$AY632,12,FALSE),0) -> 75 | O13: =IFERROR(VLOOKUP($A13,FILTRO!$A7:$AY632,13,FALSE),0) -> 71 | P13: =IFERROR(VLOOKUP($A13,FILTRO!$A7:$AY632,14,FALSE),0) -> 74 | Q13: =IFERROR(VLOOKUP($A13,FILTRO!$A7:$AY632,15,FALSE),0) -> 44 | R13: =IFERROR(VLOOKUP($A13,FILTRO!$A7:$AY632,16,FALSE),0) -> 63 | S13: =IFERROR(VLOOKUP($A13,FILTRO!$A7:$AY632,17,FALSE),0) -> 104 | T13: =IFERROR(VLOOKUP($A13,FILTRO!$A7:$AY632,18,FALSE),0) -> 112 | U13: =IFERROR(VLOOKUP($A13,FILTRO!$A7:$AY632,19,FALSE),0) -> 295 | V13: =IFERROR(VLOOKUP($A13,FILTRO!$A7:$AY632,20,FALSE),0) -> 326 | W13: =IFERROR(VLOOKUP($A13,FILTRO!$A7:$AY632,21,FALSE),0) -> 324 | X13: =IFERROR(VLOOKUP($A13,FILTRO!$A7:$AY632,22,FALSE),0) -> 341 | Y13: =IFERROR(VLOOKUP($A13,FILTRO!$A7:$AY632,23,FALSE),0) -> 319 | Z13: =IFERROR(VLOOKUP($A13,FILTRO!$A7:$AY632,24,FALSE),0) -> 345 | AA13: =IFERROR(VLOOKUP($A13,FILTRO!$A7:$AY632,25,FALSE),0) -> 491 | AB13: =IFERROR(VLOOKUP($A13,FILTRO!$A7:$AY632,26,FALSE),0) -> 585 | AC13: =IFERROR(VLOOKUP($A13,FILTRO!$A7:$AY632,27,FALSE),0) -> 538 | AD13: =IFERROR(VLOOKUP($A13,FILTRO!$A7:$AY632,28,FALSE),0) -> 550 | AE13: =IFERROR(VLOOKUP($A13,FILTRO!$A7:$AY632,29,FALSE),0) -> 549 | AF13: =IFERROR(VLOOKUP($A13,FILTRO!$A7:$AY632,30,FALSE),0) -> 451 | AG13: =IFERROR(VLOOKUP($A13,FILTRO!$A7:$AY632,31,FALSE),0) -> 16 | AH13: =IFERROR(VLOOKUP($A13,FILTRO!$A7:$AY632,32,FALSE),0) -> 38 | AI13: =IFERROR(VLOOKUP($A13,FILTRO!$A7:$AY632,33,FALSE),0) -> 43 | AJ13: =IFERROR(VLOOKUP($A13,FILTRO!$A7:$AY632,34,FALSE),0) -> 42 | BV13: =IF(AND(E11<>0,W11=""), "* No olvide escribir en la celda de Pueblos Originarios (Digite CERO si no tiene). ",IF(AND(F11<>0,X11=""), "* No olvide escribir en la celda de Pueblos Originarios (Digite CERO si no tiene). ","")) ->  | BW13: =IF(AND(E11<>0,Y11=""), "* No olvide escribir en la celda de Población Migrantes (Digite CERO si no tiene). ",IF(AND(F11<>0,Z11=""), "* No olvide escribir en la celda de Población Migrantes (Digite CERO si no tiene). ","")) ->  | CU13: =IF(AND(E11<>0,W11=""), 1,IF(AND(F11<>0,X11=""), 1,0)) -> 0 | CV13: =IF(AND(E11<>0,Y11=""), 1,IF(AND(F11<>0,Z11=""), 1,0)) -> 0
C14: TOTAL | D14: =SUM(D11:D13) -> 39220 | E14: =SUM(E11:E13) -> 19879 | F14: 19341 | G14: 111 | H14: 124 | I14: 395 | J14: 368 | K14: 463 | L14: 488 | M14: 448 | N14: 482 | O14: 502 | P14: 547 | Q14: 328 | R14: 378 | S14: 637 | T14: 599 | U14: 1729 | V14: 1782 | W14: 2113 | X14: 1998 | Y14: 1967 | Z14: 1981 | AA14: 3483 | AB14: 3450 | AC14: 3840 | AD14: 3674 | AE14: 3863 | AF14: 3470 | AG14: 183 | AH14: 253 | AI14: 410 | AJ14: 418 | BO14: =IF($D14>=$W14+$X14,"","* El Total de Pueblos Originarios no debe ser mayor al Total Indicador peso/edad") ->  | BP14: =IF($D14>=$Y14+$Z14,"","* El Total de Población Migrante no debe ser mayor al Total Indicador peso/edad") ->  | BR14: =IF(AND(E12<>0,W12=""), "* No olvide escribir en la celda de Pueblos Originarios (Digite CERO si no tiene). ",IF(AND(F12<>0,X12=""), "* No olvide escribir en la celda de Pueblos Originarios (Digite CERO si no tiene). ","")) ->  | BS14: =IF(AND(E12<>0,Y12=""), "* No olvide escribir en la celda de Población Migrantes (Digite CERO si no tiene). ",IF(AND(F12<>0,Z12=""), "* No olvide escribir en la celda de Población Migrantes (Digite CERO si no tiene). ","")) ->  | BT14: =IF(AND(E13<>0,W13=""), "* No olvide escribir en la celda de Pueblos Originarios (Digite CERO si no tiene). ",IF(AND(F13<>0,X13=""), "* No olvide escribir en la celda de Pueblos Originarios (Digite CERO si no tiene). ","")) ->  | BU14: =IF(AND(E13<>0,Y13=""), "* No olvide escribir en la celda de Población Migrantes (Digite CERO si no tiene). ",IF(AND(F13<>0,Z13=""), "* No olvide escribir en la celda de Población Migrantes (Digite CERO si no tiene). ","")) ->  | CN14: =IF($D14>=$W14+$X14,0,1) -> 0 | CO14: =IF($D14>=$Y14+$Z14,0,1) -> 0 | CR14: =IF(AND(E12<>0,W12=""), 1,IF(AND(F12<>0,X12=""), 1,0)) -> 0 | CS14: =IF(AND(E12<>0,Y12=""), 1,IF(AND(F12<>0,Z12=""), 1,0)) -> 0 | CT14: =IF(AND(E13<>0,Y13=""), 1,IF(AND(F13<>0,Z13=""), 1,0)) -> 0 | CU14: =IF(AND(E13<>0,Y13=""), 1,IF(AND(F13<>0,Z13=""), 1,0)) -> 0
A15: P2070101 | C15: - 1 D.S. (-1.0 a -1.9) | D15: =IFERROR(VLOOKUP($A15,FILTRO!$A9:$AY634,2,FALSE),0) -> 1633 | E15: =IFERROR(VLOOKUP($A15,FILTRO!$A9:$AY634,3,FALSE),0) -> 904 | F15: =IFERROR(VLOOKUP($A15,FILTRO!$A9:$AY634,4,FALSE),0) -> 729 | G15: =IFERROR(VLOOKUP($A15,FILTRO!$A9:$AY634,5,FALSE),0) -> 3 | H15: =IFERROR(VLOOKUP($A15,FILTRO!$A9:$AY634,6,FALSE),0) -> 6 | I15: =IFERROR(VLOOKUP($A15,FILTRO!$A9:$AY634,7,FALSE),0) -> 27 | J15: =IFERROR(VLOOKUP($A15,FILTRO!$A9:$AY634,8,FALSE),0) -> 20 | K15: =IFERROR(VLOOKUP($A15,FILTRO!$A9:$AY634,9,FALSE),0) -> 31 | L15: =IFERROR(VLOOKUP($A15,FILTRO!$A9:$AY634,10,FALSE),0) -> 38 | M15: =IFERROR(VLOOKUP($A15,FILTRO!$A9:$AY634,11,FALSE),0) -> 24 | N15: =IFERROR(VLOOKUP($A15,FILTRO!$A9:$AY634,12,FALSE),0) -> 19 | O15: =IFERROR(VLOOKUP($A15,FILTRO!$A9:$AY634,13,FALSE),0) -> 18 | P15: =IFERROR(VLOOKUP($A15,FILTRO!$A9:$AY634,14,FALSE),0) -> 23 | Q15: =IFERROR(VLOOKUP($A15,FILTRO!$A9:$AY634,15,FALSE),0) -> 14 | R15: =IFERROR(VLOOKUP($A15,FILTRO!$A9:$AY634,16,FALSE),0) -> 11 | S15: =IFERROR(VLOOKUP($A15,FILTRO!$A9:$AY634,17,FALSE),0) -> 27 | T15: =IFERROR(VLOOKUP($A15,FILTRO!$A9:$AY634,18,FALSE),0) -> 15 | U15: =IFERROR(VLOOKUP($A15,FILTRO!$A9:$AY634,19,FALSE),0) -> 57 | V15: =IFERROR(VLOOKUP($A15,FILTRO!$A9:$AY634,20,FALSE),0) -> 56 | W15: =IFERROR(VLOOKUP($A15,FILTRO!$A9:$AY634,21,FALSE),0) -> 112 | X15: =IFERROR(VLOOKUP($A15,FILTRO!$A9:$AY634,22,FALSE),0) -> 60 | Y15: =IFERROR(VLOOKUP($A15,FILTRO!$A9:$AY634,23,FALSE),0) -> 110 | Z15: =IFERROR(VLOOKUP($A15,FILTRO!$A9:$AY634,24,FALSE),0) -> 74 | AA15: =IFERROR(VLOOKUP($A15,FILTRO!$A9:$AY634,25,FALSE),0) -> 166 | AB15: =IFERROR(VLOOKUP($A15,FILTRO!$A9:$AY634,26,FALSE),0) -> 122 | AC15: =IFERROR(VLOOKUP($A15,FILTRO!$A9:$AY634,27,FALSE),0) -> 170 | AD15: =IFERROR(VLOOKUP($A15,FILTRO!$A9:$AY634,28,FALSE),0) -> 154 | AE15: =IFERROR(VLOOKUP($A15,FILTRO!$A9:$AY634,29,FALSE),0) -> 145 | AF15: =IFERROR(VLOOKUP($A15,FILTRO!$A9:$AY634,30,FALSE),0) -> 131 | AG15: =IFERROR(VLOOKUP($A15,FILTRO!$A9:$AY634,31,FALSE),0) -> 7 | AH15: =IFERROR(VLOOKUP($A15,FILTRO!$A9:$AY634,32,FALSE),0) -> 10 | AI15: =IFERROR(VLOOKUP($A15,FILTRO!$A9:$AY634,33,FALSE),0) -> 18 | AJ15: =IFERROR(VLOOKUP($A15,FILTRO!$A9:$AY634,34,FALSE),0) -> 28 | BO15: =IF($D17>=$W17+$X17,"","* El Total de Pueblos Originarios no debe ser mayor al Total Indicador peso/edad") ->  | BP15: =IF($D17>=$Y17+$Z17,"","* El Total de Población Migrante no debe ser mayor al Total Indicador peso/edad") ->  | BV15: =IF(AND(E15<>0,W15=""), "* No olvide escribir en la celda de Pueblos Originarios (Digite CERO si no tiene). ",IF(AND(F15<>0,X15=""), "* No olvide escribir en la celda de Pueblos Originarios (Digite CERO si no tiene). ","")) ->  | BW15: =IF(AND(E15<>0,Y15=""), "* No olvide escribir en la celda de Población Migrantes (Digite CERO si no tiene). ",IF(AND(F15<>0,Z15=""), "* No olvide escribir en la celda de Población Migrantes (Digite CERO si no tiene). ","")) ->  | CN15: =IF($D17>=$W17+$X17,0,1) -> 0 | CO15: =IF($D17>=$Y17+$Z17,0,1) -> 0 | CU15: =IF(AND(E15<>0,W15=""), 1,IF(AND(F15<>0,X15=""), 1,0)) -> 0 | CV15: =IF(AND(E15<>0,Y15=""), 1,IF(AND(F15<>0,Z15=""), 1,0)) -> 0
A16: P2070102 | C16: - 2 D.S. (<= -2.0) | D16: =IFERROR(VLOOKUP($A16,FILTRO!$A10:$AY635,2,FALSE),0) -> 239 | E16: =IFERROR(VLOOKUP($A16,FILTRO!$A10:$AY635,3,FALSE),0) -> 141 | F16: =IFERROR(VLOOKUP($A16,FILTRO!$A10:$AY635,4,FALSE),0) -> 98 | G16: =IFERROR(VLOOKUP($A16,FILTRO!$A10:$AY635,5,FALSE),0) -> 4 | H16: =IFERROR(VLOOKUP($A16,FILTRO!$A10:$AY635,6,FALSE),0) -> 0 | I16: =IFERROR(VLOOKUP($A16,FILTRO!$A10:$AY635,7,FALSE),0) -> 7 | J16: =IFERROR(VLOOKUP($A16,FILTRO!$A10:$AY635,8,FALSE),0) -> 13 | K16: =IFERROR(VLOOKUP($A16,FILTRO!$A10:$AY635,9,FALSE),0) -> 11 | L16: =IFERROR(VLOOKUP($A16,FILTRO!$A10:$AY635,10,FALSE),0) -> 4 | M16: =IFERROR(VLOOKUP($A16,FILTRO!$A10:$AY635,11,FALSE),0) -> 3 | N16: =IFERROR(VLOOKUP($A16,FILTRO!$A10:$AY635,12,FALSE),0) -> 4 | O16: =IFERROR(VLOOKUP($A16,FILTRO!$A10:$AY635,13,FALSE),0) -> 5 | P16: =IFERROR(VLOOKUP($A16,FILTRO!$A10:$AY635,14,FALSE),0) -> 3 | Q16: =IFERROR(VLOOKUP($A16,FILTRO!$A10:$AY635,15,FALSE),0) -> 5 | R16: =IFERROR(VLOOKUP($A16,FILTRO!$A10:$AY635,16,FALSE),0) -> 3 | S16: =IFERROR(VLOOKUP($A16,FILTRO!$A10:$AY635,17,FALSE),0) -> 3 | T16: =IFERROR(VLOOKUP($A16,FILTRO!$A10:$AY635,18,FALSE),0) -> 0 | U16: =IFERROR(VLOOKUP($A16,FILTRO!$A10:$AY635,19,FALSE),0) -> 5 | V16: =IFERROR(VLOOKUP($A16,FILTRO!$A10:$AY635,20,FALSE),0) -> 3 | W16: =IFERROR(VLOOKUP($A16,FILTRO!$A10:$AY635,21,FALSE),0) -> 23 | X16: =IFERROR(VLOOKUP($A16,FILTRO!$A10:$AY635,22,FALSE),0) -> 7 | Y16: =IFERROR(VLOOKUP($A16,FILTRO!$A10:$AY635,23,FALSE),0) -> 18 | Z16: =IFERROR(VLOOKUP($A16,FILTRO!$A10:$AY635,24,FALSE),0) -> 10 | AA16: =IFERROR(VLOOKUP($A16,FILTRO!$A10:$AY635,25,FALSE),0) -> 23 | AB16: =IFERROR(VLOOKUP($A16,FILTRO!$A10:$AY635,26,FALSE),0) -> 20 | AC16: =IFERROR(VLOOKUP($A16,FILTRO!$A10:$AY635,27,FALSE),0) -> 21 | AD16: =IFERROR(VLOOKUP($A16,FILTRO!$A10:$AY635,28,FALSE),0) -> 15 | AE16: =IFERROR(VLOOKUP($A16,FILTRO!$A10:$AY635,29,FALSE),0) -> 13 | AF16: =IFERROR(VLOOKUP($A16,FILTRO!$A10:$AY635,30,FALSE),0) -> 16 | AG16: =IFERROR(VLOOKUP($A16,FILTRO!$A10:$AY635,31,FALSE),0) -> 1 | AH16: =IFERROR(VLOOKUP($A16,FILTRO!$A10:$AY635,32,FALSE),0) -> 0 | AI16: =IFERROR(VLOOKUP($A16,FILTRO!$A10:$AY635,33,FALSE),0) -> 4 | AJ16: =IFERROR(VLOOKUP($A16,FILTRO!$A10:$AY635,34,FALSE),0) -> 3 | BV16: =IF(AND(E16<>0,W16=""), "* No olvide escribir en la celda de Pueblos Originarios (Digite CERO si no tiene). ",IF(AND(F16<>0,X16=""), "* No olvide escribir en la celda de Pueblos Originarios (Digite CERO si no tiene). ","")) ->  | BW16: =IF(AND(E16<>0,Y16=""), "* No olvide escribir en la celda de Población Migrantes (Digite CERO si no tiene). ",IF(AND(F16<>0,Z16=""), "* No olvide escribir en la celda de Población Migrantes (Digite CERO si no tiene). ","")) ->  | CU16: =IF(AND(E16<>0,W16=""), 1,IF(AND(F16<>0,X16=""), 1,0)) -> 0 | CV16: =IF(AND(E16<>0,Y16=""), 1,IF(AND(F16<>0,Z16=""), 1,0)) -> 0
C17: TOTAL | D17: =SUM(D15:D16) -> 1872 | E17: =SUM(E15:E16) -> 1045 | F17: 827 | G17: 7 | H17: 6 | I17: 34 | J17: 33 | K17: 42 | L17: 42 | M17: 27 | N17: 23 | O17: 23 | P17: 26 | Q17: 19 | R17: 14 | S17: 30 | T17: 15 | U17: 62 | V17: 59 | W17: 135 | X17: 67 | Y17: 128 | Z17: 84 | AA17: 189 | AB17: 142 | AC17: 191 | AD17: 169 | AE17: 158 | AF17: 147 | AG17: 8 | AH17: 10 | AI17: 22 | AJ17: 31
A18: P2070201 | B18: INDICADOR PESO/TALLA | C18: + 2 D.S. (>= +2.0) | D18: =IFERROR(VLOOKUP($A18,FILTRO!$A12:$AY637,2,FALSE),0) -> 3634 | E18: =IFERROR(VLOOKUP($A18,FILTRO!$A12:$AY637,3,FALSE),0) -> 1920 | F18: =IFERROR(VLOOKUP($A18,FILTRO!$A12:$AY637,4,FALSE),0) -> 1714 | G18: =IFERROR(VLOOKUP($A18,FILTRO!$A12:$AY637,5,FALSE),0) -> 0 | H18: =IFERROR(VLOOKUP($A18,FILTRO!$A12:$AY637,6,FALSE),0) -> 1 | I18: =IFERROR(VLOOKUP($A18,FILTRO!$A12:$AY637,7,FALSE),0) -> 21 | J18: =IFERROR(VLOOKUP($A18,FILTRO!$A12:$AY637,8,FALSE),0) -> 21 | K18: =IFERROR(VLOOKUP($A18,FILTRO!$A12:$AY637,9,FALSE),0) -> 23 | L18: =IFERROR(VLOOKUP($A18,FILTRO!$A12:$AY637,10,FALSE),0) -> 18 | M18: =IFERROR(VLOOKUP($A18,FILTRO!$A12:$AY637,11,FALSE),0) -> 32 | N18: =IFERROR(VLOOKUP($A18,FILTRO!$A12:$AY637,12,FALSE),0) -> 25 | O18: =IFERROR(VLOOKUP($A18,FILTRO!$A12:$AY637,13,FALSE),0) -> 43 | P18: =IFERROR(VLOOKUP($A18,FILTRO!$A12:$AY637,14,FALSE),0) -> 27 | Q18: =IFERROR(VLOOKUP($A18,FILTRO!$A12:$AY637,15,FALSE),0) -> 27 | R18: =IFERROR(VLOOKUP($A18,FILTRO!$A12:$AY637,16,FALSE),0) -> 18 | S18: =IFERROR(VLOOKUP($A18,FILTRO!$A12:$AY637,17,FALSE),0) -> 54 | T18: =IFERROR(VLOOKUP($A18,FILTRO!$A12:$AY637,18,FALSE),0) -> 44 | U18: =IFERROR(VLOOKUP($A18,FILTRO!$A12:$AY637,19,FALSE),0) -> 175 | V18: =IFERROR(VLOOKUP($A18,FILTRO!$A12:$AY637,20,FALSE),0) -> 155 | W18: =IFERROR(VLOOKUP($A18,FILTRO!$A12:$AY637,21,FALSE),0) -> 205 | X18: =IFERROR(VLOOKUP($A18,FILTRO!$A12:$AY637,22,FALSE),0) -> 177 | Y18: =IFERROR(VLOOKUP($A18,FILTRO!$A12:$AY637,23,FALSE),0) -> 163 | Z18: =IFERROR(VLOOKUP($A18,FILTRO!$A12:$AY637,24,FALSE),0) -> 155 | AA18: =IFERROR(VLOOKUP($A18,FILTRO!$A12:$AY637,25,FALSE),0) -> 277 | AB18: =IFERROR(VLOOKUP($A18,FILTRO!$A12:$AY637,26,FALSE),0) -> 277 | AC18: =IFERROR(VLOOKUP($A18,FILTRO!$A12:$AY637,27,FALSE),0) -> 426 | AD18: =IFERROR(VLOOKUP($A18,FILTRO!$A12:$AY637,28,FALSE),0) -> 382 | AE18: =IFERROR(VLOOKUP($A18,FILTRO!$A12:$AY637,29,FALSE),0) -> 474 | AF18: =IFERROR(VLOOKUP($A18,FILTRO!$A12:$AY637,30,FALSE),0) -> 414 | AG18: =IFERROR(VLOOKUP($A18,FILTRO!$A12:$AY637,31,FALSE),0) -> 6 | AH18: =IFERROR(VLOOKUP($A18,FILTRO!$A12:$AY637,32,FALSE),0) -> 7 | AI18: =IFERROR(VLOOKUP($A18,FILTRO!$A12:$AY637,33,FALSE),0) -> 9 | AJ18: =IFERROR(VLOOKUP($A18,FILTRO!$A12:$AY637,34,FALSE),0) -> 15 | BV18: =IF(AND(E18<>0,W18=""), "* No olvide escribir en la celda de Pueblos Originarios (Digite CERO si no tiene). ",IF(AND(F18<>0,X18=""), "* No olvide escribir en la celda de Pueblos Originarios (Digite CERO si no tiene). ","")) ->  | BW18: =IF(AND(E18<>0,Y18=""), "* No olvide escribir en la celda de Población Migrantes (Digite CERO si no tiene). ",IF(AND(F18<>0,Z18=""), "* No olvide escribir en la celda de Población Migrantes (Digite CERO si no tiene). ","")) ->  | CU18: =IF(AND(E18<>0,W18=""), 1,IF(AND(F18<>0,X18=""), 1,0)) -> 0 | CV18: =IF(AND(E18<>0,Y18=""), 1,IF(AND(F18<>0,Z18=""), 1,0)) -> 0
A19: P2070202 | C19: + 1 D.S. (+1.0 a +1.9) | D19: =IFERROR(VLOOKUP($A19,FILTRO!$A13:$AY638,2,FALSE),0) -> 6871 | E19: =IFERROR(VLOOKUP($A19,FILTRO!$A13:$AY638,3,FALSE),0) -> 3457 | F19: =IFERROR(VLOOKUP($A19,FILTRO!$A13:$AY638,4,FALSE),0) -> 3414 | G19: =IFERROR(VLOOKUP($A19,FILTRO!$A13:$AY638,5,FALSE),0) -> 6 | H19: =IFERROR(VLOOKUP($A19,FILTRO!$A13:$AY638,6,FALSE),0) -> 8 | I19: =IFERROR(VLOOKUP($A19,FILTRO!$A13:$AY638,7,FALSE),0) -> 59 | J19: =IFERROR(VLOOKUP($A19,FILTRO!$A13:$AY638,8,FALSE),0) -> 49 | K19: =IFERROR(VLOOKUP($A19,FILTRO!$A13:$AY638,9,FALSE),0) -> 91 | L19: =IFERROR(VLOOKUP($A19,FILTRO!$A13:$AY638,10,FALSE),0) -> 98 | M19: =IFERROR(VLOOKUP($A19,FILTRO!$A13:$AY638,11,FALSE),0) -> 81 | N19: =IFERROR(VLOOKUP($A19,FILTRO!$A13:$AY638,12,FALSE),0) -> 72 | O19: =IFERROR(VLOOKUP($A19,FILTRO!$A13:$AY638,13,FALSE),0) -> 93 | P19: =IFERROR(VLOOKUP($A19,FILTRO!$A13:$AY638,14,FALSE),0) -> 113 | Q19: =IFERROR(VLOOKUP($A19,FILTRO!$A13:$AY638,15,FALSE),0) -> 70 | R19: =IFERROR(VLOOKUP($A19,FILTRO!$A13:$AY638,16,FALSE),0) -> 80 | S19: =IFERROR(VLOOKUP($A19,FILTRO!$A13:$AY638,17,FALSE),0) -> 129 | T19: =IFERROR(VLOOKUP($A19,FILTRO!$A13:$AY638,18,FALSE),0) -> 130 | U19: =IFERROR(VLOOKUP($A19,FILTRO!$A13:$AY638,19,FALSE),0) -> 386 | V19: =IFERROR(VLOOKUP($A19,FILTRO!$A13:$AY638,20,FALSE),0) -> 363 | W19: =IFERROR(VLOOKUP($A19,FILTRO!$A13:$AY638,21,FALSE),0) -> 412 | X19: =IFERROR(VLOOKUP($A19,FILTRO!$A13:$AY638,22,FALSE),0) -> 416 | Y19: =IFERROR(VLOOKUP($A19,FILTRO!$A13:$AY638,23,FALSE),0) -> 350 | Z19: =IFERROR(VLOOKUP($A19,FILTRO!$A13:$AY638,24,FALSE),0) -> 374 | AA19: =IFERROR(VLOOKUP($A19,FILTRO!$A13:$AY638,25,FALSE),0) -> 597 | AB19: =IFERROR(VLOOKUP($A19,FILTRO!$A13:$AY638,26,FALSE),0) -> 560 | AC19: =IFERROR(VLOOKUP($A19,FILTRO!$A13:$AY638,27,FALSE),0) -> 587 | AD19: =IFERROR(VLOOKUP($A19,FILTRO!$A13:$AY638,28,FALSE),0) -> 624 | AE19: =IFERROR(VLOOKUP($A19,FILTRO!$A13:$AY638,29,FALSE),0) -> 596 | AF19: =IFERROR(VLOOKUP($A19,FILTRO!$A13:$AY638,30,FALSE),0) -> 527 | AG19: =IFERROR(VLOOKUP($A19,FILTRO!$A13:$AY638,31,FALSE),0) -> 17 | AH19: =IFERROR(VLOOKUP($A19,FILTRO!$A13:$AY638,32,FALSE),0) -> 22 | AI19: =IFERROR(VLOOKUP($A19,FILTRO!$A13:$AY638,33,FALSE),0) -> 34 | AJ19: =IFERROR(VLOOKUP($A19,FILTRO!$A13:$AY638,34,FALSE),0) -> 32 | BV19: =IF(AND(E19<>0,W19=""), "* No olvide escribir en la celda de Pueblos Originarios (Digite CERO si no tiene). ",IF(AND(F19<>0,X19=""), "* No olvide escribir en la celda de Pueblos Originarios (Digite CERO si no tiene). ","")) ->  | BW19: =IF(AND(E19<>0,Y19=""), "* No olvide escribir en la celda de Población Migrantes (Digite CERO si no tiene). ",IF(AND(F19<>0,Z19=""), "* No olvide escribir en la celda de Población Migrantes (Digite CERO si no tiene). ","")) ->  | CU19: =IF(AND(E19<>0,W19=""), 1,IF(AND(F19<>0,X19=""), 1,0)) -> 0 | CV19: =IF(AND(E19<>0,Y19=""), 1,IF(AND(F19<>0,Z19=""), 1,0)) -> 0
C20: TOTAL | D20: =SUM(D18:D19) -> 10505 | E20: =SUM(E18:E19) -> 5377 | F20: 5128 | G20: 6 | H20: 9 | I20: 80 | J20: 70 | K20: 114 | L20: 116 | M20: 113 | N20: 97 | O20: 136 | P20: 140 | Q20: 97 | R20: 98 | S20: 183 | T20: 174 | U20: 561 | V20: 518 | W20: 617 | X20: 593 | Y20: 513 | Z20: 529 | AA20: 874 | AB20: 837 | AC20: 1013 | AD20: 1006 | AE20: 1070 | AF20: 941 | AG20: 23 | AH20: 29 | AI20: 43 | AJ20: 47 | BO20: =IF($D20>=$W20+$X20,"","* El Total de Pueblos Originarios no debe ser mayor al Total Indicador peso/talla") ->  | BP20: =IF($D20>=$Y20+$Z20,"","* El Total de Población Migrante no debe ser mayor al Total Indicador peso/talla") ->  | CN20: =IF($D20>=$W20+$X20,0,1) -> 0 | CO20: =IF($D20>=$Y20+$Z20,0,1) -> 0
A21: P2070301 | C21: - 1 D.S. (-1.0 a -1.9) | D21: =IFERROR(VLOOKUP($A21,FILTRO!$A15:$AY640,2,FALSE),0) -> 883 | E21: =IFERROR(VLOOKUP($A21,FILTRO!$A15:$AY640,3,FALSE),0) -> 509 | F21: =IFERROR(VLOOKUP($A21,FILTRO!$A15:$AY640,4,FALSE),0) -> 374 | G21: =IFERROR(VLOOKUP($A21,FILTRO!$A15:$AY640,5,FALSE),0) -> 7 | H21: =IFERROR(VLOOKUP($A21,FILTRO!$A15:$AY640,6,FALSE),0) -> 5 | I21: =IFERROR(VLOOKUP($A21,FILTRO!$A15:$AY640,7,FALSE),0) -> 17 | J21: =IFERROR(VLOOKUP($A21,FILTRO!$A15:$AY640,8,FALSE),0) -> 18 | K21: =IFERROR(VLOOKUP($A21,FILTRO!$A15:$AY640,9,FALSE),0) -> 19 | L21: =IFERROR(VLOOKUP($A21,FILTRO!$A15:$AY640,10,FALSE),0) -> 19 | M21: =IFERROR(VLOOKUP($A21,FILTRO!$A15:$AY640,11,FALSE),0) -> 14 | N21: =IFERROR(VLOOKUP($A21,FILTRO!$A15:$AY640,12,FALSE),0) -> 6 | O21: =IFERROR(VLOOKUP($A21,FILTRO!$A15:$AY640,13,FALSE),0) -> 16 | P21: =IFERROR(VLOOKUP($A21,FILTRO!$A15:$AY640,14,FALSE),0) -> 12 | Q21: =IFERROR(VLOOKUP($A21,FILTRO!$A15:$AY640,15,FALSE),0) -> 9 | R21: =IFERROR(VLOOKUP($A21,FILTRO!$A15:$AY640,16,FALSE),0) -> 1 | S21: =IFERROR(VLOOKUP($A21,FILTRO!$A15:$AY640,17,FALSE),0) -> 19 | T21: =IFERROR(VLOOKUP($A21,FILTRO!$A15:$AY640,18,FALSE),0) -> 8 | U21: =IFERROR(VLOOKUP($A21,FILTRO!$A15:$AY640,19,FALSE),0) -> 35 | V21: =IFERROR(VLOOKUP($A21,FILTRO!$A15:$AY640,20,FALSE),0) -> 25 | W21: =IFERROR(VLOOKUP($A21,FILTRO!$A15:$AY640,21,FALSE),0) -> 39 | X21: =IFERROR(VLOOKUP($A21,FILTRO!$A15:$AY640,22,FALSE),0) -> 28 | Y21: =IFERROR(VLOOKUP($A21,FILTRO!$A15:$AY640,23,FALSE),0) -> 46 | Z21: =IFERROR(VLOOKUP($A21,FILTRO!$A15:$AY640,24,FALSE),0) -> 40 | AA21: =IFERROR(VLOOKUP($A21,FILTRO!$A15:$AY640,25,FALSE),0) -> 108 | AB21: =IFERROR(VLOOKUP($A21,FILTRO!$A15:$AY640,26,FALSE),0) -> 68 | AC21: =IFERROR(VLOOKUP($A21,FILTRO!$A15:$AY640,27,FALSE),0) -> 102 | AD21: =IFERROR(VLOOKUP($A21,FILTRO!$A15:$AY640,28,FALSE),0) -> 81 | AE21: =IFERROR(VLOOKUP($A21,FILTRO!$A15:$AY640,29,FALSE),0) -> 78 | AF21: =IFERROR(VLOOKUP($A21,FILTRO!$A15:$AY640,30,FALSE),0) -> 63 | AG21: =IFERROR(VLOOKUP($A21,FILTRO!$A15:$AY640,31,FALSE),0) -> 1 | AH21: =IFERROR(VLOOKUP($A21,FILTRO!$A15:$AY640,32,FALSE),0) -> 5 | AI21: =IFERROR(VLOOKUP($A21,FILTRO!$A15:$AY640,33,FALSE),0) -> 14 | AJ21: =IFERROR(VLOOKUP($A21,FILTRO!$A15:$AY640,34,FALSE),0) -> 14 | BV21: =IF(AND(E21<>0,W21=""), "* No olvide escribir en la celda de Pueblos Originarios (Digite CERO si no tiene). ",IF(AND(F21<>0,X21=""), "* No olvide escribir en la celda de Pueblos Originarios (Digite CERO si no tiene). ","")) ->  | BW21: =IF(AND(E21<>0,Y21=""), "* No olvide escribir en la celda de Población Migrantes (Digite CERO si no tiene). ",IF(AND(F21<>0,Z21=""), "* No olvide escribir en la celda de Población Migrantes (Digite CERO si no tiene). ","")) ->  | CU21: =IF(AND(E21<>0,W21=""), 1,IF(AND(F21<>0,X21=""), 1,0)) -> 0 | CV21: =IF(AND(E21<>0,Y21=""), 1,IF(AND(F21<>0,Z21=""), 1,0)) -> 0
A22: P2070302 | C22: - 2 D.S. (<= -2.0) | D22: =IFERROR(VLOOKUP($A22,FILTRO!$A16:$AY641,2,FALSE),0) -> 137 | E22: =IFERROR(VLOOKUP($A22,FILTRO!$A16:$AY641,3,FALSE),0) -> 83 | F22: =IFERROR(VLOOKUP($A22,FILTRO!$A16:$AY641,4,FALSE),0) -> 54 | G22: =IFERROR(VLOOKUP($A22,FILTRO!$A16:$AY641,5,FALSE),0) -> 4 | H22: =IFERROR(VLOOKUP($A22,FILTRO!$A16:$AY641,6,FALSE),0) -> 1 | I22: =IFERROR(VLOOKUP($A22,FILTRO!$A16:$AY641,7,FALSE),0) -> 4 | J22: =IFERROR(VLOOKUP($A22,FILTRO!$A16:$AY641,8,FALSE),0) -> 4 | K22: =IFERROR(VLOOKUP($A22,FILTRO!$A16:$AY641,9,FALSE),0) -> 5 | L22: =IFERROR(VLOOKUP($A22,FILTRO!$A16:$AY641,10,FALSE),0) -> 2 | M22: =IFERROR(VLOOKUP($A22,FILTRO!$A16:$AY641,11,FALSE),0) -> 6 | N22: =IFERROR(VLOOKUP($A22,FILTRO!$A16:$AY641,12,FALSE),0) -> 3 | O22: =IFERROR(VLOOKUP($A22,FILTRO!$A16:$AY641,13,FALSE),0) -> 0 | P22: =IFERROR(VLOOKUP($A22,FILTRO!$A16:$AY641,14,FALSE),0) -> 2 | Q22: =IFERROR(VLOOKUP($A22,FILTRO!$A16:$AY641,15,FALSE),0) -> 2 | R22: =IFERROR(VLOOKUP($A22,FILTRO!$A16:$AY641,16,FALSE),0) -> 2 | S22: =IFERROR(VLOOKUP($A22,FILTRO!$A16:$AY641,17,FALSE),0) -> 1 | T22: =IFERROR(VLOOKUP($A22,FILTRO!$A16:$AY641,18,FALSE),0) -> 1 | U22: =IFERROR(VLOOKUP($A22,FILTRO!$A16:$AY641,19,FALSE),0) -> 5 | V22: =IFERROR(VLOOKUP($A22,FILTRO!$A16:$AY641,20,FALSE),0) -> 5 | W22: =IFERROR(VLOOKUP($A22,FILTRO!$A16:$AY641,21,FALSE),0) -> 13 | X22: =IFERROR(VLOOKUP($A22,FILTRO!$A16:$AY641,22,FALSE),0) -> 3 | Y22: =IFERROR(VLOOKUP($A22,FILTRO!$A16:$AY641,23,FALSE),0) -> 5 | Z22: =IFERROR(VLOOKUP($A22,FILTRO!$A16:$AY641,24,FALSE),0) -> 1 | AA22: =IFERROR(VLOOKUP($A22,FILTRO!$A16:$AY641,25,FALSE),0) -> 10 | AB22: =IFERROR(VLOOKUP($A22,FILTRO!$A16:$AY641,26,FALSE),0) -> 11 | AC22: =IFERROR(VLOOKUP($A22,FILTRO!$A16:$AY641,27,FALSE),0) -> 19 | AD22: =IFERROR(VLOOKUP($A22,FILTRO!$A16:$AY641,28,FALSE),0) -> 8 | AE22: =IFERROR(VLOOKUP($A22,FILTRO!$A16:$AY641,29,FALSE),0) -> 9 | AF22: =IFERROR(VLOOKUP($A22,FILTRO!$A16:$AY641,30,FALSE),0) -> 11 | AG22: =IFERROR(VLOOKUP($A22,FILTRO!$A16:$AY641,31,FALSE),0) -> 0 | AH22: =IFERROR(VLOOKUP($A22,FILTRO!$A16:$AY641,32,FALSE),0) -> 0 | AI22: =IFERROR(VLOOKUP($A22,FILTRO!$A16:$AY641,33,FALSE),0) -> 1 | AJ22: =IFERROR(VLOOKUP($A22,FILTRO!$A16:$AY641,34,FALSE),0) -> 13 | BV22: =IF(AND(E22<>0,W22=""), "* No olvide escribir en la celda de Pueblos Originarios (Digite CERO si no tiene). ",IF(AND(F22<>0,X22=""), "* No olvide escribir en la celda de Pueblos Originarios (Digite CERO si no tiene). ","")) ->  | BW22: =IF(AND(E22<>0,Y22=""), "* No olvide escribir en la celda de Población Migrantes (Digite CERO si no tiene). ",IF(AND(F22<>0,Z22=""), "* No olvide escribir en la celda de Población Migrantes (Digite CERO si no tiene). ","")) ->  | CU22: =IF(AND(E22<>0,W22=""), 1,IF(AND(F22<>0,X22=""), 1,0)) -> 0 | CV22: =IF(AND(E22<>0,Y22=""), 1,IF(AND(F22<>0,Z22=""), 1,0)) -> 0
C23: TOTAL | D23: =SUM(D21:D22) -> 1020 | E23: =SUM(E21:E22) -> 592 | F23: 428 | G23: 11 | H23: 6 | I23: 21 | J23: 22 | K23: 24 | L23: 21 | M23: 20 | N23: 9 | O23: 16 | P23: 14 | Q23: 11 | R23: 3 | S23: 20 | T23: 9 | U23: 40 | V23: 30 | W23: 52 | X23: 31 | Y23: 51 | Z23: 41 | AA23: 118 | AB23: 79 | AC23: 121 | AD23: 89 | AE23: 87 | AF23: 74 | AG23: 1 | AH23: 5 | AI23: 15 | AJ23: 27 | BO23: =IF($D23>=$W23+$X23,"","* El Total de Pueblos Originarios no debe ser mayor al Total Indicador peso/talla. ") ->  | BP23: =IF($D23>=$Y23+$Z23,"","* El Total de Población Migrantes no debe ser mayor al Total Indicador peso/talla. ") ->  | CN23: =IF($D23>=$W23+$X23,0,1) -> 0 | CO23: =IF($D23>=$Y23+$Z23,0,1) -> 0
A24: P2400120 | B24: INDICADOR TALLA/EDAD | C24: + 2 D.S. (>= +2.0) | D24: =IFERROR(VLOOKUP($A24,FILTRO!$A18:$AY643,2,FALSE),0) -> 780 | E24: =IFERROR(VLOOKUP($A24,FILTRO!$A18:$AY643,3,FALSE),0) -> 459 | F24: =IFERROR(VLOOKUP($A24,FILTRO!$A18:$AY643,4,FALSE),0) -> 321 | G24: =IFERROR(VLOOKUP($A24,FILTRO!$A18:$AY643,5,FALSE),0) -> 1 | H24: =IFERROR(VLOOKUP($A24,FILTRO!$A18:$AY643,6,FALSE),0) -> 2 | I24: =IFERROR(VLOOKUP($A24,FILTRO!$A18:$AY643,7,FALSE),0) -> 6 | J24: =IFERROR(VLOOKUP($A24,FILTRO!$A18:$AY643,8,FALSE),0) -> 6 | K24: =IFERROR(VLOOKUP($A24,FILTRO!$A18:$AY643,9,FALSE),0) -> 4 | L24: =IFERROR(VLOOKUP($A24,FILTRO!$A18:$AY643,10,FALSE),0) -> 3 | M24: =IFERROR(VLOOKUP($A24,FILTRO!$A18:$AY643,11,FALSE),0) -> 9 | N24: =IFERROR(VLOOKUP($A24,FILTRO!$A18:$AY643,12,FALSE),0) -> 6 | O24: =IFERROR(VLOOKUP($A24,FILTRO!$A18:$AY643,13,FALSE),0) -> 10 | P24: =IFERROR(VLOOKUP($A24,FILTRO!$A18:$AY643,14,FALSE),0) -> 9 | Q24: =IFERROR(VLOOKUP($A24,FILTRO!$A18:$AY643,15,FALSE),0) -> 4 | R24: =IFERROR(VLOOKUP($A24,FILTRO!$A18:$AY643,16,FALSE),0) -> 2 | S24: =IFERROR(VLOOKUP($A24,FILTRO!$A18:$AY643,17,FALSE),0) -> 23 | T24: =IFERROR(VLOOKUP($A24,FILTRO!$A18:$AY643,18,FALSE),0) -> 10 | U24: =IFERROR(VLOOKUP($A24,FILTRO!$A18:$AY643,19,FALSE),0) -> 40 | V24: =IFERROR(VLOOKUP($A24,FILTRO!$A18:$AY643,20,FALSE),0) -> 27 | W24: =IFERROR(VLOOKUP($A24,FILTRO!$A18:$AY643,21,FALSE),0) -> 30 | X24: =IFERROR(VLOOKUP($A24,FILTRO!$A18:$AY643,22,FALSE),0) -> 27 | Y24: =IFERROR(VLOOKUP($A24,FILTRO!$A18:$AY643,23,FALSE),0) -> 33 | Z24: =IFERROR(VLOOKUP($A24,FILTRO!$A18:$AY643,24,FALSE),0) -> 28 | AA24: =IFERROR(VLOOKUP($A24,FILTRO!$A18:$AY643,25,FALSE),0) -> 78 | AB24: =IFERROR(VLOOKUP($A24,FILTRO!$A18:$AY643,26,FALSE),0) -> 59 | AC24: =IFERROR(VLOOKUP($A24,FILTRO!$A18:$AY643,27,FALSE),0) -> 99 | AD24: =IFERROR(VLOOKUP($A24,FILTRO!$A18:$AY643,28,FALSE),0) -> 65 | AE24: =IFERROR(VLOOKUP($A24,FILTRO!$A18:$AY643,29,FALSE),0) -> 122 | AF24: =IFERROR(VLOOKUP($A24,FILTRO!$A18:$AY643,30,FALSE),0) -> 77 | AG24: =IFERROR(VLOOKUP($A24,FILTRO!$A18:$AY643,31,FALSE),0) -> 4 | AH24: =IFERROR(VLOOKUP($A24,FILTRO!$A18:$AY643,32,FALSE),0) -> 7 | AI24: =IFERROR(VLOOKUP($A24,FILTRO!$A18:$AY643,33,FALSE),0) -> 7 | AJ24: =IFERROR(VLOOKUP($A24,FILTRO!$A18:$AY643,34,FALSE),0) -> 10 | BV24: =IF(AND(E24<>0,U24=""), "* No olvide escribir en la celda de Pueblos Originarios (Digite CERO si no tiene). ",IF(AND(F24<>0,V24=""), "* No olvide escribir en la celda de Pueblos Originarios (Digite CERO si no tiene). ","")) ->  | BW24: =IF(AND(E24<>0,W24=""), "* No olvide escribir en la celda de Población Migrantes (Digite CERO si no tiene). ",IF(AND(F24<>0,X24=""), "* No olvide escribir en la celda de Población Migrantes (Digite CERO si no tiene). ","")) ->  | CU24: =IF(AND(E24<>0,U24=""), 1,IF(AND(F24<>0,V24=""), 1,0)) -> 0 | CV24: =IF(AND(E24<>0,W24=""), 1,IF(AND(F24<>0,X24=""), 1,0)) -> 0
A25: P2400130 | C25: + 1 D.S. (+1.0 a +1.9) | D25: =IFERROR(VLOOKUP($A25,FILTRO!$A19:$AY644,2,FALSE),0) -> 3501 | E25: =IFERROR(VLOOKUP($A25,FILTRO!$A19:$AY644,3,FALSE),0) -> 1765 | F25: =IFERROR(VLOOKUP($A25,FILTRO!$A19:$AY644,4,FALSE),0) -> 1736 | G25: =IFERROR(VLOOKUP($A25,FILTRO!$A19:$AY644,5,FALSE),0) -> 6 | H25: =IFERROR(VLOOKUP($A25,FILTRO!$A19:$AY644,6,FALSE),0) -> 11 | I25: =IFERROR(VLOOKUP($A25,FILTRO!$A19:$AY644,7,FALSE),0) -> 25 | J25: =IFERROR(VLOOKUP($A25,FILTRO!$A19:$AY644,8,FALSE),0) -> 16 | K25: =IFERROR(VLOOKUP($A25,FILTRO!$A19:$AY644,9,FALSE),0) -> 21 | L25: =IFERROR(VLOOKUP($A25,FILTRO!$A19:$AY644,10,FALSE),0) -> 40 | M25: =IFERROR(VLOOKUP($A25,FILTRO!$A19:$AY644,11,FALSE),0) -> 29 | N25: =IFERROR(VLOOKUP($A25,FILTRO!$A19:$AY644,12,FALSE),0) -> 38 | O25: =IFERROR(VLOOKUP($A25,FILTRO!$A19:$AY644,13,FALSE),0) -> 42 | P25: =IFERROR(VLOOKUP($A25,FILTRO!$A19:$AY644,14,FALSE),0) -> 42 | Q25: =IFERROR(VLOOKUP($A25,FILTRO!$A19:$AY644,15,FALSE),0) -> 23 | R25: =IFERROR(VLOOKUP($A25,FILTRO!$A19:$AY644,16,FALSE),0) -> 31 | S25: =IFERROR(VLOOKUP($A25,FILTRO!$A19:$AY644,17,FALSE),0) -> 52 | T25: =IFERROR(VLOOKUP($A25,FILTRO!$A19:$AY644,18,FALSE),0) -> 42 | U25: =IFERROR(VLOOKUP($A25,FILTRO!$A19:$AY644,19,FALSE),0) -> 151 | V25: =IFERROR(VLOOKUP($A25,FILTRO!$A19:$AY644,20,FALSE),0) -> 156 | W25: =IFERROR(VLOOKUP($A25,FILTRO!$A19:$AY644,21,FALSE),0) -> 161 | X25: =IFERROR(VLOOKUP($A25,FILTRO!$A19:$AY644,22,FALSE),0) -> 161 | Y25: =IFERROR(VLOOKUP($A25,FILTRO!$A19:$AY644,23,FALSE),0) -> 158 | Z25: =IFERROR(VLOOKUP($A25,FILTRO!$A19:$AY644,24,FALSE),0) -> 168 | AA25: =IFERROR(VLOOKUP($A25,FILTRO!$A19:$AY644,25,FALSE),0) -> 288 | AB25: =IFERROR(VLOOKUP($A25,FILTRO!$A19:$AY644,26,FALSE),0) -> 374 | AC25: =IFERROR(VLOOKUP($A25,FILTRO!$A19:$AY644,27,FALSE),0) -> 393 | AD25: =IFERROR(VLOOKUP($A25,FILTRO!$A19:$AY644,28,FALSE),0) -> 365 | AE25: =IFERROR(VLOOKUP($A25,FILTRO!$A19:$AY644,29,FALSE),0) -> 416 | AF25: =IFERROR(VLOOKUP($A25,FILTRO!$A19:$AY644,30,FALSE),0) -> 292 | AG25: =IFERROR(VLOOKUP($A25,FILTRO!$A19:$AY644,31,FALSE),0) -> 14 | AH25: =IFERROR(VLOOKUP($A25,FILTRO!$A19:$AY644,32,FALSE),0) -> 25 | AI25: =IFERROR(VLOOKUP($A25,FILTRO!$A19:$AY644,33,FALSE),0) -> 30 | AJ25: =IFERROR(VLOOKUP($A25,FILTRO!$A19:$AY644,34,FALSE),0) -> 20 | BV25: =IF(AND(E25<>0,U25=""), "* No olvide escribir en la celda de Pueblos Originarios (Digite CERO si no tiene). ",IF(AND(F25<>0,V25=""), "* No olvide escribir en la celda de Pueblos Originarios (Digite CERO si no tiene). ","")) ->  | BW25: =IF(AND(E25<>0,W25=""), "* No olvide escribir en la celda de Población Migrantes (Digite CERO si no tiene). ",IF(AND(F25<>0,X25=""), "* No olvide escribir en la celda de Población Migrantes (Digite CERO si no tiene). ","")) ->  | CU25: =IF(AND(E25<>0,U25=""), 1,IF(AND(F25<>0,V25=""), 1,0)) -> 0 | CV25: =IF(AND(E25<>0,W25=""), 1,IF(AND(F25<>0,X25=""), 1,0)) -> 0
C26: TOTAL | D26: =SUM(D24:D25) -> 4281 | E26: =SUM(E24:E25) -> 2224 | F26: 2057 | G26: 7 | H26: 13 | I26: 31 | J26: 22 | K26: 25 | L26: 43 | M26: 38 | N26: 44 | O26: 52 | P26: 51 | Q26: 27 | R26: 33 | S26: 75 | T26: 52 | U26: 191 | V26: 183 | W26: 191 | X26: 188 | Y26: 191 | Z26: 196 | AA26: 366 | AB26: 433 | AC26: 492 | AD26: 430 | AE26: 538 | AF26: 369 | AG26: 18 | AH26: 32 | AI26: 37 | AJ26: 30 | BO26: =IF($D26>=$U26+$V26,"","* El Total de Pueblos Originarios no debe ser mayor al Total Indicador peso/talla. ") ->  | BP26: =IF($D26>=$W26+$X26,"","* El Total de Población Migrantes no debe ser mayor al Total Indicador peso/talla. ") ->  | CN26: =IF($D26>=$U26+$V26,0,1) -> 0 | CO26: =IF($D26>=$W26+$X26,0,1) -> 0
A27: P2070401 | C27: - 1 D.S. (-1.0 a -1.9) | D27: =IFERROR(VLOOKUP($A27,FILTRO!$A21:$AY646,2,FALSE),0) -> 3969 | E27: =IFERROR(VLOOKUP($A27,FILTRO!$A21:$AY646,3,FALSE),0) -> 2086 | F27: =IFERROR(VLOOKUP($A27,FILTRO!$A21:$AY646,4,FALSE),0) -> 1883 | G27: =IFERROR(VLOOKUP($A27,FILTRO!$A21:$AY646,5,FALSE),0) -> 5 | H27: =IFERROR(VLOOKUP($A27,FILTRO!$A21:$AY646,6,FALSE),0) -> 2 | I27: =IFERROR(VLOOKUP($A27,FILTRO!$A21:$AY646,7,FALSE),0) -> 36 | J27: =IFERROR(VLOOKUP($A27,FILTRO!$A21:$AY646,8,FALSE),0) -> 44 | K27: =IFERROR(VLOOKUP($A27,FILTRO!$A21:$AY646,9,FALSE),0) -> 60 | L27: =IFERROR(VLOOKUP($A27,FILTRO!$A21:$AY646,10,FALSE),0) -> 58 | M27: =IFERROR(VLOOKUP($A27,FILTRO!$A21:$AY646,11,FALSE),0) -> 59 | N27: =IFERROR(VLOOKUP($A27,FILTRO!$A21:$AY646,12,FALSE),0) -> 33 | O27: =IFERROR(VLOOKUP($A27,FILTRO!$A21:$AY646,13,FALSE),0) -> 56 | P27: =IFERROR(VLOOKUP($A27,FILTRO!$A21:$AY646,14,FALSE),0) -> 47 | Q27: =IFERROR(VLOOKUP($A27,FILTRO!$A21:$AY646,15,FALSE),0) -> 35 | R27: =IFERROR(VLOOKUP($A27,FILTRO!$A21:$AY646,16,FALSE),0) -> 33 | S27: =IFERROR(VLOOKUP($A27,FILTRO!$A21:$AY646,17,FALSE),0) -> 67 | T27: =IFERROR(VLOOKUP($A27,FILTRO!$A21:$AY646,18,FALSE),0) -> 55 | U27: =IFERROR(VLOOKUP($A27,FILTRO!$A21:$AY646,19,FALSE),0) -> 219 | V27: =IFERROR(VLOOKUP($A27,FILTRO!$A21:$AY646,20,FALSE),0) -> 200 | W27: =IFERROR(VLOOKUP($A27,FILTRO!$A21:$AY646,21,FALSE),0) -> 285 | X27: =IFERROR(VLOOKUP($A27,FILTRO!$A21:$AY646,22,FALSE),0) -> 219 | Y27: =IFERROR(VLOOKUP($A27,FILTRO!$A21:$AY646,23,FALSE),0) -> 258 | Z27: =IFERROR(VLOOKUP($A27,FILTRO!$A21:$AY646,24,FALSE),0) -> 216 | AA27: =IFERROR(VLOOKUP($A27,FILTRO!$A21:$AY646,25,FALSE),0) -> 359 | AB27: =IFERROR(VLOOKUP($A27,FILTRO!$A21:$AY646,26,FALSE),0) -> 327 | AC27: =IFERROR(VLOOKUP($A27,FILTRO!$A21:$AY646,27,FALSE),0) -> 346 | AD27: =IFERROR(VLOOKUP($A27,FILTRO!$A21:$AY646,28,FALSE),0) -> 337 | AE27: =IFERROR(VLOOKUP($A27,FILTRO!$A21:$AY646,29,FALSE),0) -> 301 | AF27: =IFERROR(VLOOKUP($A27,FILTRO!$A21:$AY646,30,FALSE),0) -> 312 | AG27: =IFERROR(VLOOKUP($A27,FILTRO!$A21:$AY646,31,FALSE),0) -> 14 | AH27: =IFERROR(VLOOKUP($A27,FILTRO!$A21:$AY646,32,FALSE),0) -> 18 | AI27: =IFERROR(VLOOKUP($A27,FILTRO!$A21:$AY646,33,FALSE),0) -> 42 | AJ27: =IFERROR(VLOOKUP($A27,FILTRO!$A21:$AY646,34,FALSE),0) -> 64 | BV27: =IF(AND(E27<>0,U27=""), "* No olvide escribir en la celda de Pueblos Originarios (Digite CERO si no tiene). ",IF(AND(F27<>0,V27=""), "* No olvide escribir en la celda de Pueblos Originarios (Digite CERO si no tiene). ","")) ->  | BW27: =IF(AND(E27<>0,W27=""), "* No olvide escribir en la celda de Población Migrantes (Digite CERO si no tiene). ",IF(AND(F27<>0,X27=""), "* No olvide escribir en la celda de Población Migrantes (Digite CERO si no tiene). ","")) ->  | CU27: =IF(AND(E27<>0,U27=""), 1,IF(AND(F27<>0,V27=""), 1,0)) -> 0 | CV27: =IF(AND(E27<>0,W27=""), 1,IF(AND(F27<>0,X27=""), 1,0)) -> 0
A28: P2070402 | C28: - 2 D.S. (<= -2.0) | D28: =IFERROR(VLOOKUP($A28,FILTRO!$A22:$AY647,2,FALSE),0) -> 706 | E28: =IFERROR(VLOOKUP($A28,FILTRO!$A22:$AY647,3,FALSE),0) -> 430 | F28: =IFERROR(VLOOKUP($A28,FILTRO!$A22:$AY647,4,FALSE),0) -> 276 | G28: =IFERROR(VLOOKUP($A28,FILTRO!$A22:$AY647,5,FALSE),0) -> 2 | H28: =IFERROR(VLOOKUP($A28,FILTRO!$A22:$AY647,6,FALSE),0) -> 0 | I28: =IFERROR(VLOOKUP($A28,FILTRO!$A22:$AY647,7,FALSE),0) -> 16 | J28: =IFERROR(VLOOKUP($A28,FILTRO!$A22:$AY647,8,FALSE),0) -> 10 | K28: =IFERROR(VLOOKUP($A28,FILTRO!$A22:$AY647,9,FALSE),0) -> 25 | L28: =IFERROR(VLOOKUP($A28,FILTRO!$A22:$AY647,10,FALSE),0) -> 11 | M28: =IFERROR(VLOOKUP($A28,FILTRO!$A22:$AY647,11,FALSE),0) -> 12 | N28: =IFERROR(VLOOKUP($A28,FILTRO!$A22:$AY647,12,FALSE),0) -> 8 | O28: =IFERROR(VLOOKUP($A28,FILTRO!$A22:$AY647,13,FALSE),0) -> 14 | P28: =IFERROR(VLOOKUP($A28,FILTRO!$A22:$AY647,14,FALSE),0) -> 5 | Q28: =IFERROR(VLOOKUP($A28,FILTRO!$A22:$AY647,15,FALSE),0) -> 10 | R28: =IFERROR(VLOOKUP($A28,FILTRO!$A22:$AY647,16,FALSE),0) -> 5 | S28: =IFERROR(VLOOKUP($A28,FILTRO!$A22:$AY647,17,FALSE),0) -> 15 | T28: =IFERROR(VLOOKUP($A28,FILTRO!$A22:$AY647,18,FALSE),0) -> 4 | U28: =IFERROR(VLOOKUP($A28,FILTRO!$A22:$AY647,19,FALSE),0) -> 47 | V28: =IFERROR(VLOOKUP($A28,FILTRO!$A22:$AY647,20,FALSE),0) -> 24 | W28: =IFERROR(VLOOKUP($A28,FILTRO!$A22:$AY647,21,FALSE),0) -> 88 | X28: =IFERROR(VLOOKUP($A28,FILTRO!$A22:$AY647,22,FALSE),0) -> 36 | Y28: =IFERROR(VLOOKUP($A28,FILTRO!$A22:$AY647,23,FALSE),0) -> 61 | Z28: =IFERROR(VLOOKUP($A28,FILTRO!$A22:$AY647,24,FALSE),0) -> 29 | AA28: =IFERROR(VLOOKUP($A28,FILTRO!$A22:$AY647,25,FALSE),0) -> 65 | AB28: =IFERROR(VLOOKUP($A28,FILTRO!$A22:$AY647,26,FALSE),0) -> 45 | AC28: =IFERROR(VLOOKUP($A28,FILTRO!$A22:$AY647,27,FALSE),0) -> 39 | AD28: =IFERROR(VLOOKUP($A28,FILTRO!$A22:$AY647,28,FALSE),0) -> 51 | AE28: =IFERROR(VLOOKUP($A28,FILTRO!$A22:$AY647,29,FALSE),0) -> 36 | AF28: =IFERROR(VLOOKUP($A28,FILTRO!$A22:$AY647,30,FALSE),0) -> 48 | AG28: =IFERROR(VLOOKUP($A28,FILTRO!$A22:$AY647,31,FALSE),0) -> 5 | AH28: =IFERROR(VLOOKUP($A28,FILTRO!$A22:$AY647,32,FALSE),0) -> 3 | AI28: =IFERROR(VLOOKUP($A28,FILTRO!$A22:$AY647,33,FALSE),0) -> 7 | AJ28: =IFERROR(VLOOKUP($A28,FILTRO!$A22:$AY647,34,FALSE),0) -> 7 | BV28: =IF(AND(E28<>0,U28=""), "* No olvide escribir en la celda de Pueblos Originarios (Digite CERO si no tiene). ",IF(AND(F28<>0,V28=""), "* No olvide escribir en la celda de Pueblos Originarios (Digite CERO si no tiene). ","")) ->  | BW28: =IF(AND(E28<>0,W28=""), "* No olvide escribir en la celda de Población Migrantes (Digite CERO si no tiene). ",IF(AND(F28<>0,X28=""), "* No olvide escribir en la celda de Población Migrantes (Digite CERO si no tiene). ","")) ->  | CU28: =IF(AND(E28<>0,U28=""), 1,IF(AND(F28<>0,V28=""), 1,0)) -> 0 | CV28: =IF(AND(E28<>0,W28=""), 1,IF(AND(F28<>0,X28=""), 1,0)) -> 0
C29: TOTAL | D29: =SUM(D27:D28) -> 4675 | E29: =SUM(E27:E28) -> 2516 | F29: 2159 | G29: 7 | H29: 2 | I29: 52 | J29: 54 | K29: 85 | L29: 69 | M29: 71 | N29: 41 | O29: 70 | P29: 52 | Q29: 45 | R29: 38 | S29: 82 | T29: 59 | U29: 266 | V29: 224 | W29: 373 | X29: 255 | Y29: 319 | Z29: 245 | AA29: 424 | AB29: 372 | AC29: 385 | AD29: 388 | AE29: 337 | AF29: 360 | AG29: 19 | AH29: 21 | AI29: 49 | AJ29: 71 | BO29: =IF($D29>=$U29+$V29,"","* El Total de Pueblos Originarios no debe ser mayor al Total Indicador peso/talla. ") ->  | BP29: =IF($D29>=$W29+$X29,"","* El Total de Población Migrantes no debe ser mayor al Total Indicador peso/talla. ") ->  | CN29: =IF($D29>=$U29+$V29,0,1) -> 0 | CO29: =IF($D29>=$W29+$X29,0,1) -> 0
A30: P2400140 | C30: PROMEDIO (-0,9 A + 0,9) | D30: =IFERROR(VLOOKUP($A30,FILTRO!$A24:$AY649,2,FALSE),0) -> 17267 | E30: =IFERROR(VLOOKUP($A30,FILTRO!$A24:$AY649,3,FALSE),0) -> 8575 | F30: =IFERROR(VLOOKUP($A30,FILTRO!$A24:$AY649,4,FALSE),0) -> 9178 | G30: =IFERROR(VLOOKUP($A30,FILTRO!$A24:$AY649,5,FALSE),0) -> 45 | H30: =IFERROR(VLOOKUP($A30,FILTRO!$A24:$AY649,6,FALSE),0) -> 50 | I30: =IFERROR(VLOOKUP($A30,FILTRO!$A24:$AY649,7,FALSE),0) -> 206 | J30: =IFERROR(VLOOKUP($A30,FILTRO!$A24:$AY649,8,FALSE),0) -> 222 | K30: =IFERROR(VLOOKUP($A30,FILTRO!$A24:$AY649,9,FALSE),0) -> 224 | L30: =IFERROR(VLOOKUP($A30,FILTRO!$A24:$AY649,10,FALSE),0) -> 270 | M30: =IFERROR(VLOOKUP($A30,FILTRO!$A24:$AY649,11,FALSE),0) -> 200 | N30: =IFERROR(VLOOKUP($A30,FILTRO!$A24:$AY649,12,FALSE),0) -> 257 | O30: =IFERROR(VLOOKUP($A30,FILTRO!$A24:$AY649,13,FALSE),0) -> 242 | P30: =IFERROR(VLOOKUP($A30,FILTRO!$A24:$AY649,14,FALSE),0) -> 293 | Q30: =IFERROR(VLOOKUP($A30,FILTRO!$A24:$AY649,15,FALSE),0) -> 158 | R30: =IFERROR(VLOOKUP($A30,FILTRO!$A24:$AY649,16,FALSE),0) -> 183 | S30: =IFERROR(VLOOKUP($A30,FILTRO!$A24:$AY649,17,FALSE),0) -> 279 | T30: =IFERROR(VLOOKUP($A30,FILTRO!$A24:$AY649,18,FALSE),0) -> 295 | U30: =IFERROR(VLOOKUP($A30,FILTRO!$A24:$AY649,19,FALSE),0) -> 738 | V30: =IFERROR(VLOOKUP($A30,FILTRO!$A24:$AY649,20,FALSE),0) -> 799 | W30: =IFERROR(VLOOKUP($A30,FILTRO!$A24:$AY649,21,FALSE),0) -> 938 | X30: =IFERROR(VLOOKUP($A30,FILTRO!$A24:$AY649,22,FALSE),0) -> 924 | Y30: =IFERROR(VLOOKUP($A30,FILTRO!$A24:$AY649,23,FALSE),0) -> 859 | Z30: =IFERROR(VLOOKUP($A30,FILTRO!$A24:$AY649,24,FALSE),0) -> 922 | AA30: =IFERROR(VLOOKUP($A30,FILTRO!$A24:$AY649,25,FALSE),0) -> 1662 | AB30: =IFERROR(VLOOKUP($A30,FILTRO!$A24:$AY649,26,FALSE),0) -> 1559 | AC30: =IFERROR(VLOOKUP($A30,FILTRO!$A24:$AY649,27,FALSE),0) -> 1799 | AD30: =IFERROR(VLOOKUP($A30,FILTRO!$A24:$AY649,28,FALSE),0) -> 1756 | AE30: =IFERROR(VLOOKUP($A30,FILTRO!$A24:$AY649,29,FALSE),0) -> 1721 | AF30: =IFERROR(VLOOKUP($A30,FILTRO!$A24:$AY649,30,FALSE),0) -> 1648 | AG30: =IFERROR(VLOOKUP($A30,FILTRO!$A24:$AY649,31,FALSE),0) -> 85 | AH30: =IFERROR(VLOOKUP($A30,FILTRO!$A24:$AY649,32,FALSE),0) -> 106 | AI30: =IFERROR(VLOOKUP($A30,FILTRO!$A24:$AY649,33,FALSE),0) -> 174 | AJ30: =IFERROR(VLOOKUP($A30,FILTRO!$A24:$AY649,34,FALSE),0) -> 150 | BV30: =IF(AND(E30<>0,U30=""), "* No olvide escribir en la celda de Pueblos Originarios (Digite CERO si no tiene). ",IF(AND(F30<>0,V30=""), "* No olvide escribir en la celda de Pueblos Originarios (Digite CERO si no tiene). ","")) ->  | BW30: =IF(AND(E30<>0,W30=""), "* No olvide escribir en la celda de Población Migrantes (Digite CERO si no tiene). ",IF(AND(F30<>0,X30=""), "* No olvide escribir en la celda de Población Migrantes (Digite CERO si no tiene). ","")) ->  | CU30: =IF(AND(E30<>0,U30=""), 1,IF(AND(F30<>0,V30=""), 1,0)) -> 0 | CV30: =IF(AND(E30<>0,W30=""), 1,IF(AND(F30<>0,X30=""), 1,0)) -> 0
A31: P2070501 | B31: DIAGNOSTICO NUTRICIONAL INTEGRADO | C31: RIESGO DE DESNUTRIR/ DEFICIT PONDERAL* | D31: =IFERROR(VLOOKUP($A31,FILTRO!$A25:$AY650,2,FALSE),0) -> 979 | E31: =IFERROR(VLOOKUP($A31,FILTRO!$A25:$AY650,3,FALSE),0) -> 556 | F31: =IFERROR(VLOOKUP($A31,FILTRO!$A25:$AY650,4,FALSE),0) -> 423 | G31: =IFERROR(VLOOKUP($A31,FILTRO!$A25:$AY650,5,FALSE),0) -> 0 | H31: =IFERROR(VLOOKUP($A31,FILTRO!$A25:$AY650,6,FALSE),0) -> 0 | I31: =IFERROR(VLOOKUP($A31,FILTRO!$A25:$AY650,7,FALSE),0) -> 21 | J31: =IFERROR(VLOOKUP($A31,FILTRO!$A25:$AY650,8,FALSE),0) -> 21 | K31: =IFERROR(VLOOKUP($A31,FILTRO!$A25:$AY650,9,FALSE),0) -> 27 | L31: =IFERROR(VLOOKUP($A31,FILTRO!$A25:$AY650,10,FALSE),0) -> 29 | M31: =IFERROR(VLOOKUP($A31,FILTRO!$A25:$AY650,11,FALSE),0) -> 22 | N31: =IFERROR(VLOOKUP($A31,FILTRO!$A25:$AY650,12,FALSE),0) -> 17 | O31: =IFERROR(VLOOKUP($A31,FILTRO!$A25:$AY650,13,FALSE),0) -> 18 | P31: =IFERROR(VLOOKUP($A31,FILTRO!$A25:$AY650,14,FALSE),0) -> 19 | Q31: =IFERROR(VLOOKUP($A31,FILTRO!$A25:$AY650,15,FALSE),0) -> 12 | R31: =IFERROR(VLOOKUP($A31,FILTRO!$A25:$AY650,16,FALSE),0) -> 10 | S31: =IFERROR(VLOOKUP($A31,FILTRO!$A25:$AY650,17,FALSE),0) -> 22 | T31: =IFERROR(VLOOKUP($A31,FILTRO!$A25:$AY650,18,FALSE),0) -> 15 | U31: =IFERROR(VLOOKUP($A31,FILTRO!$A25:$AY650,19,FALSE),0) -> 51 | V31: =IFERROR(VLOOKUP($A31,FILTRO!$A25:$AY650,20,FALSE),0) -> 44 | W31: =IFERROR(VLOOKUP($A31,FILTRO!$A25:$AY650,21,FALSE),0) -> 46 | X31: =IFERROR(VLOOKUP($A31,FILTRO!$A25:$AY650,22,FALSE),0) -> 32 | Y31: =IFERROR(VLOOKUP($A31,FILTRO!$A25:$AY650,23,FALSE),0) -> 52 | Z31: =IFERROR(VLOOKUP($A31,FILTRO!$A25:$AY650,24,FALSE),0) -> 35 | AA31: =IFERROR(VLOOKUP($A31,FILTRO!$A25:$AY650,25,FALSE),0) -> 106 | AB31: =IFERROR(VLOOKUP($A31,FILTRO!$A25:$AY650,26,FALSE),0) -> 58 | AC31: =IFERROR(VLOOKUP($A31,FILTRO!$A25:$AY650,27,FALSE),0) -> 104 | AD31: =IFERROR(VLOOKUP($A31,FILTRO!$A25:$AY650,28,FALSE),0) -> 80 | AE31: =IFERROR(VLOOKUP($A31,FILTRO!$A25:$AY650,29,FALSE),0) -> 75 | AF31: =IFERROR(VLOOKUP($A31,FILTRO!$A25:$AY650,30,FALSE),0) -> 63 | AG31: =IFERROR(VLOOKUP($A31,FILTRO!$A25:$AY650,31,FALSE),0) -> 7 | AH31: =IFERROR(VLOOKUP($A31,FILTRO!$A25:$AY650,32,FALSE),0) -> 7 | AI31: =IFERROR(VLOOKUP($A31,FILTRO!$A25:$AY650,33,FALSE),0) -> 18 | AJ31: =IFERROR(VLOOKUP($A31,FILTRO!$A25:$AY650,34,FALSE),0) -> 17 | CU31: 0 | CV31: 0
A32: P2070502 | C32: DESNUTRIDO | D32: =IFERROR(VLOOKUP($A32,FILTRO!$A26:$AY651,2,FALSE),0) -> 115 | E32: =IFERROR(VLOOKUP($A32,FILTRO!$A26:$AY651,3,FALSE),0) -> 80 | F32: =IFERROR(VLOOKUP($A32,FILTRO!$A26:$AY651,4,FALSE),0) -> 35 | G32: =IFERROR(VLOOKUP($A32,FILTRO!$A26:$AY651,5,FALSE),0) -> 0 | H32: =IFERROR(VLOOKUP($A32,FILTRO!$A26:$AY651,6,FALSE),0) -> 0 | I32: =IFERROR(VLOOKUP($A32,FILTRO!$A26:$AY651,7,FALSE),0) -> 3 | J32: =IFERROR(VLOOKUP($A32,FILTRO!$A26:$AY651,8,FALSE),0) -> 4 | K32: =IFERROR(VLOOKUP($A32,FILTRO!$A26:$AY651,9,FALSE),0) -> 10 | L32: =IFERROR(VLOOKUP($A32,FILTRO!$A26:$AY651,10,FALSE),0) -> 2 | M32: =IFERROR(VLOOKUP($A32,FILTRO!$A26:$AY651,11,FALSE),0) -> 4 | N32: =IFERROR(VLOOKUP($A32,FILTRO!$A26:$AY651,12,FALSE),0) -> 1 | O32: =IFERROR(VLOOKUP($A32,FILTRO!$A26:$AY651,13,FALSE),0) -> 3 | P32: =IFERROR(VLOOKUP($A32,FILTRO!$A26:$AY651,14,FALSE),0) -> 1 | Q32: =IFERROR(VLOOKUP($A32,FILTRO!$A26:$AY651,15,FALSE),0) -> 5 | R32: =IFERROR(VLOOKUP($A32,FILTRO!$A26:$AY651,16,FALSE),0) -> 3 | S32: =IFERROR(VLOOKUP($A32,FILTRO!$A26:$AY651,17,FALSE),0) -> 3 | T32: =IFERROR(VLOOKUP($A32,FILTRO!$A26:$AY651,18,FALSE),0) -> 0 | U32: =IFERROR(VLOOKUP($A32,FILTRO!$A26:$AY651,19,FALSE),0) -> 3 | V32: =IFERROR(VLOOKUP($A32,FILTRO!$A26:$AY651,20,FALSE),0) -> 2 | W32: =IFERROR(VLOOKUP($A32,FILTRO!$A26:$AY651,21,FALSE),0) -> 11 | X32: =IFERROR(VLOOKUP($A32,FILTRO!$A26:$AY651,22,FALSE),0) -> 3 | Y32: =IFERROR(VLOOKUP($A32,FILTRO!$A26:$AY651,23,FALSE),0) -> 6 | Z32: =IFERROR(VLOOKUP($A32,FILTRO!$A26:$AY651,24,FALSE),0) -> 0 | AA32: =IFERROR(VLOOKUP($A32,FILTRO!$A26:$AY651,25,FALSE),0) -> 7 | AB32: =IFERROR(VLOOKUP($A32,FILTRO!$A26:$AY651,26,FALSE),0) -> 10 | AC32: =IFERROR(VLOOKUP($A32,FILTRO!$A26:$AY651,27,FALSE),0) -> 18 | AD32: =IFERROR(VLOOKUP($A32,FILTRO!$A26:$AY651,28,FALSE),0) -> 4 | AE32: =IFERROR(VLOOKUP($A32,FILTRO!$A26:$AY651,29,FALSE),0) -> 7 | AF32: =IFERROR(VLOOKUP($A32,FILTRO!$A26:$AY651,30,FALSE),0) -> 5 | AG32: =IFERROR(VLOOKUP($A32,FILTRO!$A26:$AY651,31,FALSE),0) -> 0 | AH32: =IFERROR(VLOOKUP($A32,FILTRO!$A26:$AY651,32,FALSE),0) -> 0 | AI32: =IFERROR(VLOOKUP($A32,FILTRO!$A26:$AY651,33,FALSE),0) -> 1 | AJ32: =IFERROR(VLOOKUP($A32,FILTRO!$A26:$AY651,34,FALSE),0) -> 4 | CU32: 0 | CV32: 0
A33: P2070503 | C33: SOBREPESO / RIESGO OBESIDAD | D33: =IFERROR(VLOOKUP($A33,FILTRO!$A27:$AY652,2,FALSE),0) -> 7156 | E33: =IFERROR(VLOOKUP($A33,FILTRO!$A27:$AY652,3,FALSE),0) -> 3593 | F33: =IFERROR(VLOOKUP($A33,FILTRO!$A27:$AY652,4,FALSE),0) -> 3563 | G33: =IFERROR(VLOOKUP($A33,FILTRO!$A27:$AY652,5,FALSE),0) -> 0 | H33: =IFERROR(VLOOKUP($A33,FILTRO!$A27:$AY652,6,FALSE),0) -> 0 | I33: =IFERROR(VLOOKUP($A33,FILTRO!$A27:$AY652,7,FALSE),0) -> 59 | J33: =IFERROR(VLOOKUP($A33,FILTRO!$A27:$AY652,8,FALSE),0) -> 48 | K33: =IFERROR(VLOOKUP($A33,FILTRO!$A27:$AY652,9,FALSE),0) -> 89 | L33: =IFERROR(VLOOKUP($A33,FILTRO!$A27:$AY652,10,FALSE),0) -> 101 | M33: =IFERROR(VLOOKUP($A33,FILTRO!$A27:$AY652,11,FALSE),0) -> 86 | N33: =IFERROR(VLOOKUP($A33,FILTRO!$A27:$AY652,12,FALSE),0) -> 76 | O33: =IFERROR(VLOOKUP($A33,FILTRO!$A27:$AY652,13,FALSE),0) -> 88 | P33: =IFERROR(VLOOKUP($A33,FILTRO!$A27:$AY652,14,FALSE),0) -> 111 | Q33: =IFERROR(VLOOKUP($A33,FILTRO!$A27:$AY652,15,FALSE),0) -> 75 | R33: =IFERROR(VLOOKUP($A33,FILTRO!$A27:$AY652,16,FALSE),0) -> 82 | S33: =IFERROR(VLOOKUP($A33,FILTRO!$A27:$AY652,17,FALSE),0) -> 130 | T33: =IFERROR(VLOOKUP($A33,FILTRO!$A27:$AY652,18,FALSE),0) -> 137 | U33: =IFERROR(VLOOKUP($A33,FILTRO!$A27:$AY652,19,FALSE),0) -> 405 | V33: =IFERROR(VLOOKUP($A33,FILTRO!$A27:$AY652,20,FALSE),0) -> 382 | W33: =IFERROR(VLOOKUP($A33,FILTRO!$A27:$AY652,21,FALSE),0) -> 439 | X33: =IFERROR(VLOOKUP($A33,FILTRO!$A27:$AY652,22,FALSE),0) -> 442 | Y33: =IFERROR(VLOOKUP($A33,FILTRO!$A27:$AY652,23,FALSE),0) -> 368 | Z33: =IFERROR(VLOOKUP($A33,FILTRO!$A27:$AY652,24,FALSE),0) -> 401 | AA33: =IFERROR(VLOOKUP($A33,FILTRO!$A27:$AY652,25,FALSE),0) -> 621 | AB33: =IFERROR(VLOOKUP($A33,FILTRO!$A27:$AY652,26,FALSE),0) -> 588 | AC33: =IFERROR(VLOOKUP($A33,FILTRO!$A27:$AY652,27,FALSE),0) -> 609 | AD33: =IFERROR(VLOOKUP($A33,FILTRO!$A27:$AY652,28,FALSE),0) -> 690 | AE33: =IFERROR(VLOOKUP($A33,FILTRO!$A27:$AY652,29,FALSE),0) -> 647 | AF33: =IFERROR(VLOOKUP($A33,FILTRO!$A27:$AY652,30,FALSE),0) -> 568 | AG33: =IFERROR(VLOOKUP($A33,FILTRO!$A27:$AY652,31,FALSE),0) -> 36 | AH33: =IFERROR(VLOOKUP($A33,FILTRO!$A27:$AY652,32,FALSE),0) -> 45 | AI33: =IFERROR(VLOOKUP($A33,FILTRO!$A27:$AY652,33,FALSE),0) -> 68 | AJ33: =IFERROR(VLOOKUP($A33,FILTRO!$A27:$AY652,34,FALSE),0) -> 65 | CU33: 0 | CV33: 0
A34: P2070504 | C34: OBESO | D34: =IFERROR(VLOOKUP($A34,FILTRO!$A28:$AY653,2,FALSE),0) -> 3809 | E34: =IFERROR(VLOOKUP($A34,FILTRO!$A28:$AY653,3,FALSE),0) -> 1997 | F34: =IFERROR(VLOOKUP($A34,FILTRO!$A28:$AY653,4,FALSE),0) -> 1812 | G34: =IFERROR(VLOOKUP($A34,FILTRO!$A28:$AY653,5,FALSE),0) -> 0 | H34: =IFERROR(VLOOKUP($A34,FILTRO!$A28:$AY653,6,FALSE),0) -> 0 | I34: =IFERROR(VLOOKUP($A34,FILTRO!$A28:$AY653,7,FALSE),0) -> 24 | J34: =IFERROR(VLOOKUP($A34,FILTRO!$A28:$AY653,8,FALSE),0) -> 11 | K34: =IFERROR(VLOOKUP($A34,FILTRO!$A28:$AY653,9,FALSE),0) -> 22 | L34: =IFERROR(VLOOKUP($A34,FILTRO!$A28:$AY653,10,FALSE),0) -> 17 | M34: =IFERROR(VLOOKUP($A34,FILTRO!$A28:$AY653,11,FALSE),0) -> 32 | N34: =IFERROR(VLOOKUP($A34,FILTRO!$A28:$AY653,12,FALSE),0) -> 29 | O34: =IFERROR(VLOOKUP($A34,FILTRO!$A28:$AY653,13,FALSE),0) -> 47 | P34: =IFERROR(VLOOKUP($A34,FILTRO!$A28:$AY653,14,FALSE),0) -> 30 | Q34: =IFERROR(VLOOKUP($A34,FILTRO!$A28:$AY653,15,FALSE),0) -> 26 | R34: =IFERROR(VLOOKUP($A34,FILTRO!$A28:$AY653,16,FALSE),0) -> 24 | S34: =IFERROR(VLOOKUP($A34,FILTRO!$A28:$AY653,17,FALSE),0) -> 62 | T34: =IFERROR(VLOOKUP($A34,FILTRO!$A28:$AY653,18,FALSE),0) -> 47 | U34: =IFERROR(VLOOKUP($A34,FILTRO!$A28:$AY653,19,FALSE),0) -> 184 | V34: =IFERROR(VLOOKUP($A34,FILTRO!$A28:$AY653,20,FALSE),0) -> 172 | W34: =IFERROR(VLOOKUP($A34,FILTRO!$A28:$AY653,21,FALSE),0) -> 213 | X34: =IFERROR(VLOOKUP($A34,FILTRO!$A28:$AY653,22,FALSE),0) -> 187 | Y34: =IFERROR(VLOOKUP($A34,FILTRO!$A28:$AY653,23,FALSE),0) -> 173 | Z34: =IFERROR(VLOOKUP($A34,FILTRO!$A28:$AY653,24,FALSE),0) -> 169 | AA34: =IFERROR(VLOOKUP($A34,FILTRO!$A28:$AY653,25,FALSE),0) -> 291 | AB34: =IFERROR(VLOOKUP($A34,FILTRO!$A28:$AY653,26,FALSE),0) -> 290 | AC34: =IFERROR(VLOOKUP($A34,FILTRO!$A28:$AY653,27,FALSE),0) -> 435 | AD34: =IFERROR(VLOOKUP($A34,FILTRO!$A28:$AY653,28,FALSE),0) -> 427 | AE34: =IFERROR(VLOOKUP($A34,FILTRO!$A28:$AY653,29,FALSE),0) -> 488 | AF34: =IFERROR(VLOOKUP($A34,FILTRO!$A28:$AY653,30,FALSE),0) -> 451 | AG34: =IFERROR(VLOOKUP($A34,FILTRO!$A28:$AY653,31,FALSE),0) -> 21 | AH34: =IFERROR(VLOOKUP($A34,FILTRO!$A28:$AY653,32,FALSE),0) -> 23 | AI34: =IFERROR(VLOOKUP($A34,FILTRO!$A28:$AY653,33,FALSE),0) -> 25 | AJ34: =IFERROR(VLOOKUP($A34,FILTRO!$A28:$AY653,34,FALSE),0) -> 18 | CU34: 0 | CV34: 0
A35: P2070505 | C35: NORMAL | D35: =IFERROR(VLOOKUP($A35,FILTRO!$A29:$AY654,2,FALSE),0) -> 18326 | E35: =IFERROR(VLOOKUP($A35,FILTRO!$A29:$AY654,3,FALSE),0) -> 9206 | F35: =IFERROR(VLOOKUP($A35,FILTRO!$A29:$AY654,4,FALSE),0) -> 9120 | G35: =IFERROR(VLOOKUP($A35,FILTRO!$A29:$AY654,5,FALSE),0) -> 0 | H35: =IFERROR(VLOOKUP($A35,FILTRO!$A29:$AY654,6,FALSE),0) -> 0 | I35: =IFERROR(VLOOKUP($A35,FILTRO!$A29:$AY654,7,FALSE),0) -> 229 | J35: =IFERROR(VLOOKUP($A35,FILTRO!$A29:$AY654,8,FALSE),0) -> 256 | K35: =IFERROR(VLOOKUP($A35,FILTRO!$A29:$AY654,9,FALSE),0) -> 246 | L35: =IFERROR(VLOOKUP($A35,FILTRO!$A29:$AY654,10,FALSE),0) -> 273 | M35: =IFERROR(VLOOKUP($A35,FILTRO!$A29:$AY654,11,FALSE),0) -> 222 | N35: =IFERROR(VLOOKUP($A35,FILTRO!$A29:$AY654,12,FALSE),0) -> 260 | O35: =IFERROR(VLOOKUP($A35,FILTRO!$A29:$AY654,13,FALSE),0) -> 241 | P35: =IFERROR(VLOOKUP($A35,FILTRO!$A29:$AY654,14,FALSE),0) -> 288 | Q35: =IFERROR(VLOOKUP($A35,FILTRO!$A29:$AY654,15,FALSE),0) -> 149 | R35: =IFERROR(VLOOKUP($A35,FILTRO!$A29:$AY654,16,FALSE),0) -> 176 | S35: =IFERROR(VLOOKUP($A35,FILTRO!$A29:$AY654,17,FALSE),0) -> 274 | T35: =IFERROR(VLOOKUP($A35,FILTRO!$A29:$AY654,18,FALSE),0) -> 261 | U35: =IFERROR(VLOOKUP($A35,FILTRO!$A29:$AY654,19,FALSE),0) -> 684 | V35: =IFERROR(VLOOKUP($A35,FILTRO!$A29:$AY654,20,FALSE),0) -> 742 | W35: =IFERROR(VLOOKUP($A35,FILTRO!$A29:$AY654,21,FALSE),0) -> 944 | X35: =IFERROR(VLOOKUP($A35,FILTRO!$A29:$AY654,22,FALSE),0) -> 875 | Y35: =IFERROR(VLOOKUP($A35,FILTRO!$A29:$AY654,23,FALSE),0) -> 941 | Z35: =IFERROR(VLOOKUP($A35,FILTRO!$A29:$AY654,24,FALSE),0) -> 916 | AA35: =IFERROR(VLOOKUP($A35,FILTRO!$A29:$AY654,25,FALSE),0) -> 1746 | AB35: =IFERROR(VLOOKUP($A35,FILTRO!$A29:$AY654,26,FALSE),0) -> 1701 | AC35: =IFERROR(VLOOKUP($A35,FILTRO!$A29:$AY654,27,FALSE),0) -> 1892 | AD35: =IFERROR(VLOOKUP($A35,FILTRO!$A29:$AY654,28,FALSE),0) -> 1800 | AE35: =IFERROR(VLOOKUP($A35,FILTRO!$A29:$AY654,29,FALSE),0) -> 1829 | AF35: =IFERROR(VLOOKUP($A35,FILTRO!$A29:$AY654,30,FALSE),0) -> 1757 | AG35: =IFERROR(VLOOKUP($A35,FILTRO!$A29:$AY654,31,FALSE),0) -> 86 | AH35: =IFERROR(VLOOKUP($A35,FILTRO!$A29:$AY654,32,FALSE),0) -> 96 | AI35: =IFERROR(VLOOKUP($A35,FILTRO!$A29:$AY654,33,FALSE),0) -> 217 | AJ35: =IFERROR(VLOOKUP($A35,FILTRO!$A29:$AY654,34,FALSE),0) -> 234 | CU35: 0 | CV35: 0
C36: SUBTOTAL | D36: =SUM(E36:F36) -> 30889 | E36: =+I36+K36+M36+O36+Q36+S36+U36+W36+Y36+AA36+AC36+AE36 -> 15646 | F36: 15243 | I36: =SUM(I31:I35) -> 336 | J36: 340 | K36: 394 | L36: 422 | M36: 366 | N36: 383 | O36: 397 | P36: 449 | Q36: 267 | R36: 295 | S36: 491 | T36: 460 | U36: 1327 | V36: 1342 | W36: 1653 | X36: 1539 | Y36: 1540 | Z36: 1521 | AA36: 2771 | AB36: 2647 | AC36: 3058 | AD36: 3001 | AE36: 3046 | AF36: 2844 | AG36: 150 | AH36: 171 | AI36: 329 | AJ36: 338 | BO36: =IF($D36>=$U36+$V36,"","* El Total de Pueblos Originarios no debe ser mayor al Total Indicador peso/talla. ") ->  | BP36: =IF($D36>=$W36+$X36,"","* El Total de Población Migrantes no debe ser mayor al Total Indicador peso/talla. ") ->  | CN36: =IF($D36>=$U36+$V36,0,1) -> 0 | CO36: =IF($D36>=$W36+$X36,0,1) -> 0
A37: P2070506 | C37: DESNUTRICIÓN SECUNDARIA | D37: =IFERROR(VLOOKUP($A37,FILTRO!$A31:$AY656,2,FALSE),0) -> 13 | E37: =IFERROR(VLOOKUP($A37,FILTRO!$A31:$AY656,3,FALSE),0) -> 5 | F37: =IFERROR(VLOOKUP($A37,FILTRO!$A31:$AY656,4,FALSE),0) -> 8 | G37: =IFERROR(VLOOKUP($A37,FILTRO!$A31:$AY656,5,FALSE),0) -> 0 | H37: =IFERROR(VLOOKUP($A37,FILTRO!$A31:$AY656,6,FALSE),0) -> 0 | I37: =IFERROR(VLOOKUP($A37,FILTRO!$A31:$AY656,7,FALSE),0) -> 0 | J37: =IFERROR(VLOOKUP($A37,FILTRO!$A31:$AY656,8,FALSE),0) -> 1 | K37: =IFERROR(VLOOKUP($A37,FILTRO!$A31:$AY656,9,FALSE),0) -> 0 | L37: =IFERROR(VLOOKUP($A37,FILTRO!$A31:$AY656,10,FALSE),0) -> 0 | M37: =IFERROR(VLOOKUP($A37,FILTRO!$A31:$AY656,11,FALSE),0) -> 0 | N37: =IFERROR(VLOOKUP($A37,FILTRO!$A31:$AY656,12,FALSE),0) -> 0 | O37: =IFERROR(VLOOKUP($A37,FILTRO!$A31:$AY656,13,FALSE),0) -> 1 | P37: =IFERROR(VLOOKUP($A37,FILTRO!$A31:$AY656,14,FALSE),0) -> 0 | Q37: =IFERROR(VLOOKUP($A37,FILTRO!$A31:$AY656,15,FALSE),0) -> 0 | R37: =IFERROR(VLOOKUP($A37,FILTRO!$A31:$AY656,16,FALSE),0) -> 0 | S37: =IFERROR(VLOOKUP($A37,FILTRO!$A31:$AY656,17,FALSE),0) -> 0 | T37: =IFERROR(VLOOKUP($A37,FILTRO!$A31:$AY656,18,FALSE),0) -> 0 | U37: =IFERROR(VLOOKUP($A37,FILTRO!$A31:$AY656,19,FALSE),0) -> 0 | V37: =IFERROR(VLOOKUP($A37,FILTRO!$A31:$AY656,20,FALSE),0) -> 1 | W37: =IFERROR(VLOOKUP($A37,FILTRO!$A31:$AY656,21,FALSE),0) -> 1 | X37: =IFERROR(VLOOKUP($A37,FILTRO!$A31:$AY656,22,FALSE),0) -> 0 | Y37: =IFERROR(VLOOKUP($A37,FILTRO!$A31:$AY656,23,FALSE),0) -> 0 | Z37: =IFERROR(VLOOKUP($A37,FILTRO!$A31:$AY656,24,FALSE),0) -> 1 | AA37: =IFERROR(VLOOKUP($A37,FILTRO!$A31:$AY656,25,FALSE),0) -> 1 | AB37: =IFERROR(VLOOKUP($A37,FILTRO!$A31:$AY656,26,FALSE),0) -> 1 | AC37: =IFERROR(VLOOKUP($A37,FILTRO!$A31:$AY656,27,FALSE),0) -> 1 | AD37: =IFERROR(VLOOKUP($A37,FILTRO!$A31:$AY656,28,FALSE),0) -> 3 | AE37: =IFERROR(VLOOKUP($A37,FILTRO!$A31:$AY656,29,FALSE),0) -> 1 | AF37: =IFERROR(VLOOKUP($A37,FILTRO!$A31:$AY656,30,FALSE),0) -> 1 | AG37: =IFERROR(VLOOKUP($A37,FILTRO!$A31:$AY656,31,FALSE),0) -> 0 | AH37: =IFERROR(VLOOKUP($A37,FILTRO!$A31:$AY656,32,FALSE),0) -> 0 | AI37: =IFERROR(VLOOKUP($A37,FILTRO!$A31:$AY656,33,FALSE),0) -> 1 | AJ37: =IFERROR(VLOOKUP($A37,FILTRO!$A31:$AY656,34,FALSE),0) -> 1 | BV37: =IF(AND(E37<>0,U37=""), "* No olvide escribir en la celda de Pueblos Originarios (Digite CERO si no tiene). ",IF(AND(F37<>0,V37=""), "* No olvide escribir en la celda de Pueblos Originarios (Digite CERO si no tiene). ","")) ->  | BW37: =IF(AND(E37<>0,W37=""), "* No olvide escribir en la celda de Población Migrantes (Digite CERO si no tiene). ",IF(AND(F37<>0,X37=""), "* No olvide escribir en la celda de Población Migrantes (Digite CERO si no tiene). ","")) ->  | CU37: =IF(AND(E37<>0,U37=""), 1,IF(AND(F37<>0,V37=""), 1,0)) -> 0 | CV37: =IF(AND(E37<>0,W37=""), 1,IF(AND(F37<>0,X37=""), 1,0)) -> 0
C38: TOTAL | D38: =SUM(E38:F38) -> 30902 | E38: =+I38+K38+M38+O38+Q38+S38+U38+W38+Y38+AA38+AC38+AE38 -> 15651 | F38: 15251 | I38: =SUM(I31:I35)+I37 -> 336 | J38: 341 | K38: 394 | L38: 422 | M38: 366 | N38: 383 | O38: 398 | P38: 449 | Q38: 267 | R38: 295 | S38: 491 | T38: 460 | U38: 1327 | V38: 1343 | W38: 1654 | X38: 1539 | Y38: 1540 | Z38: 1522 | AA38: 2772 | AB38: 2648 | AC38: 3059 | AD38: 3004 | AE38: 3047 | AF38: 2845 | AG38: 150 | AH38: 171 | AI38: 330 | AJ38: 339
A39: P2501800 | B39: NIÑOS SIN EVALUACIÓN NUTRICIONAL POR CURSO DE VIDA (RECIÉN NACIDOS) O POR CONDICIÓN ESPECIAL DE SALUD | D39: =IFERROR(VLOOKUP($A39,FILTRO!$A33:$AY658,2,FALSE),0) -> 160 | E39: =IFERROR(VLOOKUP($A39,FILTRO!$A33:$AY658,3,FALSE),0) -> 80 | F39: =IFERROR(VLOOKUP($A39,FILTRO!$A33:$AY658,4,FALSE),0) -> 80 | G39: =IFERROR(VLOOKUP($A39,FILTRO!$A33:$AY658,5,FALSE),0) -> 72 | H39: =IFERROR(VLOOKUP($A39,FILTRO!$A33:$AY658,6,FALSE),0) -> 74 | I39: =IFERROR(VLOOKUP($A39,FILTRO!$A33:$AY658,7,FALSE),0) -> 0 | J39: =IFERROR(VLOOKUP($A39,FILTRO!$A33:$AY658,8,FALSE),0) -> 0 | K39: =IFERROR(VLOOKUP($A39,FILTRO!$A33:$AY658,9,FALSE),0) -> 0 | L39: =IFERROR(VLOOKUP($A39,FILTRO!$A33:$AY658,10,FALSE),0) -> 0 | M39: =IFERROR(VLOOKUP($A39,FILTRO!$A33:$AY658,11,FALSE),0) -> 0 | N39: =IFERROR(VLOOKUP($A39,FILTRO!$A33:$AY658,12,FALSE),0) -> 0 | O39: =IFERROR(VLOOKUP($A39,FILTRO!$A33:$AY658,13,FALSE),0) -> 0 | P39: =IFERROR(VLOOKUP($A39,FILTRO!$A33:$AY658,14,FALSE),0) -> 0 | Q39: =IFERROR(VLOOKUP($A39,FILTRO!$A33:$AY658,15,FALSE),0) -> 0 | R39: =IFERROR(VLOOKUP($A39,FILTRO!$A33:$AY658,16,FALSE),0) -> 0 | S39: =IFERROR(VLOOKUP($A39,FILTRO!$A33:$AY658,17,FALSE),0) -> 0 | T39: =IFERROR(VLOOKUP($A39,FILTRO!$A33:$AY658,18,FALSE),0) -> 0 | U39: =IFERROR(VLOOKUP($A39,FILTRO!$A33:$AY658,19,FALSE),0) -> 0 | V39: =IFERROR(VLOOKUP($A39,FILTRO!$A33:$AY658,20,FALSE),0) -> 0 | W39: =IFERROR(VLOOKUP($A39,FILTRO!$A33:$AY658,21,FALSE),0) -> 0 | X39: =IFERROR(VLOOKUP($A39,FILTRO!$A33:$AY658,22,FALSE),0) -> 2 | Y39: =IFERROR(VLOOKUP($A39,FILTRO!$A33:$AY658,23,FALSE),0) -> 0 | Z39: =IFERROR(VLOOKUP($A39,FILTRO!$A33:$AY658,24,FALSE),0) -> 2 | AA39: =IFERROR(VLOOKUP($A39,FILTRO!$A33:$AY658,25,FALSE),0) -> 1 | AB39: =IFERROR(VLOOKUP($A39,FILTRO!$A33:$AY658,26,FALSE),0) -> 0 | AC39: =IFERROR(VLOOKUP($A39,FILTRO!$A33:$AY658,27,FALSE),0) -> 3 | AD39: =IFERROR(VLOOKUP($A39,FILTRO!$A33:$AY658,28,FALSE),0) -> 0 | AE39: =IFERROR(VLOOKUP($A39,FILTRO!$A33:$AY658,29,FALSE),0) -> 4 | AF39: =IFERROR(VLOOKUP($A39,FILTRO!$A33:$AY658,30,FALSE),0) -> 2 | AG39: =IFERROR(VLOOKUP($A39,FILTRO!$A33:$AY658,31,FALSE),0) -> 0 | AH39: =IFERROR(VLOOKUP($A39,FILTRO!$A33:$AY658,32,FALSE),0) -> 0 | AI39: =IFERROR(VLOOKUP($A39,FILTRO!$A33:$AY658,33,FALSE),0) -> 0 | AJ39: =IFERROR(VLOOKUP($A39,FILTRO!$A33:$AY658,34,FALSE),0) -> 0 | BO39: =IF($D39>=$U39+$V39,"","* El Total de Pueblos Originarios no debe ser mayor al Total Indicador peso/talla. ") ->  | BP39: =IF($D39>=$W39+$X39,"","* El Total de Población Migrantes no debe ser mayor al Total Indicador peso/talla. ") ->  | CN39: =IF($D39>=$U39+$V39,0,1) -> 0 | CO39: =IF($D39>=$W39+$X39,0,1) -> 0
B40: SECCION A.1: POBLACIÓN EN CONTROL, SEGÚN ESTADO NUTRICIONAL PARA NIÑOS AS DE 60 MESES - 9 AÑOS 11 MESES
B41: INDICADOR NUTRICIONAL Y PARÁMETROS DE MEDICIÓN | D41: TOTAL | G41: GRUPOS DE EDAD (en meses - años) Y SEXO
G42: 60 a 71 meses | I42: 6 a 6 años 11 meses | K42: 7 a 7 años 11 meses | M42: 8 a 8 años 11 meses | O42: 9 a 9 años 11 meses | Q42: Pueblos Originarios | S42: Migrantes
D43: Ambos sexos | E43: Hombres | F43: Mujeres | G43: Hombres | H43: Mujeres | I43: Hombres | J43: Mujeres | K43: Hombres | L43: Mujeres | M43: Hombres | N43: Mujeres | O43: Hombres | P43: Mujeres | Q43: Hombres | R43: Mujeres | S43: Hombres | T43: Mujeres
A44: P2400150 | B44: TOTAL DE NIÑOS EN CONTROL | D44: =IFERROR(VLOOKUP($A44,FILTRO!$A38:$AY663,2,FALSE),0) -> 17414 | E44: =IFERROR(VLOOKUP($A44,FILTRO!$A38:$AY663,3,FALSE),0) -> 8788 | F44: =IFERROR(VLOOKUP($A44,FILTRO!$A38:$AY663,4,FALSE),0) -> 8626 | G44: =IFERROR(VLOOKUP($A44,FILTRO!$A38:$AY663,5,FALSE),0) -> 2540 | H44: =IFERROR(VLOOKUP($A44,FILTRO!$A38:$AY663,6,FALSE),0) -> 2503 | I44: =IFERROR(VLOOKUP($A44,FILTRO!$A38:$AY663,7,FALSE),0) -> 2152 | J44: =IFERROR(VLOOKUP($A44,FILTRO!$A38:$AY663,8,FALSE),0) -> 2011 | K44: =IFERROR(VLOOKUP($A44,FILTRO!$A38:$AY663,9,FALSE),0) -> 1668 | L44: =IFERROR(VLOOKUP($A44,FILTRO!$A38:$AY663,10,FALSE),0) -> 1667 | M44: =IFERROR(VLOOKUP($A44,FILTRO!$A38:$AY663,11,FALSE),0) -> 1374 | N44: =IFERROR(VLOOKUP($A44,FILTRO!$A38:$AY663,12,FALSE),0) -> 1391 | O44: =IFERROR(VLOOKUP($A44,FILTRO!$A38:$AY663,13,FALSE),0) -> 1054 | P44: =IFERROR(VLOOKUP($A44,FILTRO!$A38:$AY663,14,FALSE),0) -> 1054 | Q44: =IFERROR(VLOOKUP($A44,FILTRO!$A38:$AY663,15,FALSE),0) -> 124 | R44: =IFERROR(VLOOKUP($A44,FILTRO!$A38:$AY663,16,FALSE),0) -> 116 | S44: =IFERROR(VLOOKUP($A44,FILTRO!$A38:$AY663,17,FALSE),0) -> 308 | T44: =IFERROR(VLOOKUP($A44,FILTRO!$A38:$AY663,18,FALSE),0) -> 296 | U44: =CI44 & CJ44 & CK44 & CL44 & CM44 & CN44 & CP44 & CQ44 -> * El Total de niños en control de 60 a 71 meses no debe ser distinto al total del Diagnóstico Nutricional Integrado. * El Total de niñas en control de 8 a 8 años 11 meses no debe ser distinto al total del Diagnóstico Nutricional Integrado. | CI44: =IF(G44+H44<>G72+H72,"* El Total de niños en control de 60 a 71 meses no debe ser distinto al total del Diagnóstico Nutricional Integrado. ","") -> * El Total de niños en control de 60 a 71 meses no debe ser distinto al total del Diagnóstico Nutricional Integrado. | CJ44: =IF(I44+J44<>I72+J72,"* El Total de niñas en control de 6 a 6 años 11 meses no debe ser distinto al total del Diagnóstico Nutricional Integrado. ","") ->  | CK44: =IF(K44+L44<>K72+L72,"* El Total de niños en control de 7 a 7 años 11 meses no debe ser distinto al total del Diagnóstico Nutricional Integrado. ","") ->  | CL44: =IF(M44+N44<>M72+N72,"* El Total de niñas en control de 8 a 8 años 11 meses no debe ser distinto al total del Diagnóstico Nutricional Integrado. ","") -> * El Total de niñas en control de 8 a 8 años 11 meses no debe ser distinto al total del Diagnóstico Nutricional Integrado. | CM44: =IF($D44>=$Q44+$R44,"","* El Total de Pueblos Originarios no debe ser mayor al total de niños en control. ") ->  | CN44: =IF($D44>=$S44+$T44,"","* El Total de Pueblación Migrantes no debe ser mayor al total de niños en control. ") ->  | CP44: =IF(AND(E44<>0,Q44=""), "* No olvide escribir en la celda de Pueblos Originarios (Digite CERO si no tiene). ",IF(AND(F44<>0,R44=""), "* No olvide escribir en la celda de Pueblos Originarios (Digite CERO si no tiene). ","")) ->  | CQ44: =IF(AND(E44<>0,S44=""), "* No olvide escribir en la celda de Población Migrantes (Digite CERO si no tiene). ",IF(AND(F44<>0,T44=""), "* No olvide escribir en la celda de Población Migrantes (Digite CERO si no tiene). ","")) ->  | DH44: =IF(G44<>G72,1,0) -> 1 | DI44: =IF(H44<>H72,1,0) -> 1 | DJ44: =IF(O44<>O72,1,0) -> 1 | DK44: =IF(P44<>P72,1,0) -> 1 | DL44: =IF($D44>=$Q44+$R44,0,1) -> 0 | DM44: =IF($D44>=$S44+$T44,0,1) -> 0 | DO44: =IF(AND(E44<>0,Q44=""), 1,IF(AND(F44<>0,R44=""), 1,0)) -> 0 | DP44: =IF(AND(E44<>0,S44=""), 1,IF(AND(F44<>0,T44=""), 1,0)) -> 0
A45: P2400160 | B45: INDICADOR IMC / EDAD | C45: + 3 D.S. (>= 3 ) | D45: =IFERROR(VLOOKUP($A45,FILTRO!$A39:$AY664,2,FALSE),0) -> 1546 | E45: =IFERROR(VLOOKUP($A45,FILTRO!$A39:$AY664,3,FALSE),0) -> 1006 | F45: =IFERROR(VLOOKUP($A45,FILTRO!$A39:$AY664,4,FALSE),0) -> 540 | G45: =IFERROR(VLOOKUP($A45,FILTRO!$A39:$AY664,5,FALSE),0) -> 187 | H45: =IFERROR(VLOOKUP($A45,FILTRO!$A39:$AY664,6,FALSE),0) -> 93 | I45: =IFERROR(VLOOKUP($A45,FILTRO!$A39:$AY664,7,FALSE),0) -> 242 | J45: =IFERROR(VLOOKUP($A45,FILTRO!$A39:$AY664,8,FALSE),0) -> 129 | K45: =IFERROR(VLOOKUP($A45,FILTRO!$A39:$AY664,9,FALSE),0) -> 218 | L45: =IFERROR(VLOOKUP($A45,FILTRO!$A39:$AY664,10,FALSE),0) -> 127 | M45: =IFERROR(VLOOKUP($A45,FILTRO!$A39:$AY664,11,FALSE),0) -> 217 | N45: =IFERROR(VLOOKUP($A45,FILTRO!$A39:$AY664,12,FALSE),0) -> 119 | O45: =IFERROR(VLOOKUP($A45,FILTRO!$A39:$AY664,13,FALSE),0) -> 142 | P45: =IFERROR(VLOOKUP($A45,FILTRO!$A39:$AY664,14,FALSE),0) -> 72 | Q45: =IFERROR(VLOOKUP($A45,FILTRO!$A39:$AY664,15,FALSE),0) -> 3 | R45: =IFERROR(VLOOKUP($A45,FILTRO!$A39:$AY664,16,FALSE),0) -> 0 | S45: =IFERROR(VLOOKUP($A45,FILTRO!$A39:$AY664,17,FALSE),0) -> 4 | T45: =IFERROR(VLOOKUP($A45,FILTRO!$A39:$AY664,18,FALSE),0) -> 4 | U45: =CP45 & CQ45 ->  | CP45: =IF(AND(E45<>0,Q45=""), "* No olvide escribir en la celda de Pueblos Originarios (Digite CERO si no tiene). ",IF(AND(F45<>0,R45=""), "* No olvide escribir en la celda de Pueblos Originarios (Digite CERO si no tiene). ","")) ->  | CQ45: =IF(AND(E45<>0,S45=""), "* No olvide escribir en la celda de Población Migrantes (Digite CERO si no tiene). ",IF(AND(F45<>0,T45=""), "* No olvide escribir en la celda de Población Migrantes (Digite CERO si no tiene). ","")) ->  | DO45: =IF(AND(E45<>0,Q45=""), 1,IF(AND(F45<>0,R45=""), 1,0)) -> 0 | DP45: =IF(AND(E45<>0,S45=""), 1,IF(AND(F45<>0,T45=""), 1,0)) -> 0
A46: P2400170 | C46: + 2 D.S. (>= +2.0 a +2.9) | D46: =IFERROR(VLOOKUP($A46,FILTRO!$A40:$AY665,2,FALSE),0) -> 2972 | E46: =IFERROR(VLOOKUP($A46,FILTRO!$A40:$AY665,3,FALSE),0) -> 1472 | F46: =IFERROR(VLOOKUP($A46,FILTRO!$A40:$AY665,4,FALSE),0) -> 1500 | G46: =IFERROR(VLOOKUP($A46,FILTRO!$A40:$AY665,5,FALSE),0) -> 366 | H46: =IFERROR(VLOOKUP($A46,FILTRO!$A40:$AY665,6,FALSE),0) -> 358 | I46: =IFERROR(VLOOKUP($A46,FILTRO!$A40:$AY665,7,FALSE),0) -> 295 | J46: =IFERROR(VLOOKUP($A46,FILTRO!$A40:$AY665,8,FALSE),0) -> 325 | K46: =IFERROR(VLOOKUP($A46,FILTRO!$A40:$AY665,9,FALSE),0) -> 270 | L46: =IFERROR(VLOOKUP($A46,FILTRO!$A40:$AY665,10,FALSE),0) -> 290 | M46: =IFERROR(VLOOKUP($A46,FILTRO!$A40:$AY665,11,FALSE),0) -> 271 | N46: =IFERROR(VLOOKUP($A46,FILTRO!$A40:$AY665,12,FALSE),0) -> 300 | O46: =IFERROR(VLOOKUP($A46,FILTRO!$A40:$AY665,13,FALSE),0) -> 270 | P46: =IFERROR(VLOOKUP($A46,FILTRO!$A40:$AY665,14,FALSE),0) -> 227 | Q46: =IFERROR(VLOOKUP($A46,FILTRO!$A40:$AY665,15,FALSE),0) -> 8 | R46: =IFERROR(VLOOKUP($A46,FILTRO!$A40:$AY665,16,FALSE),0) -> 6 | S46: =IFERROR(VLOOKUP($A46,FILTRO!$A40:$AY665,17,FALSE),0) -> 16 | T46: =IFERROR(VLOOKUP($A46,FILTRO!$A40:$AY665,18,FALSE),0) -> 11 | U46: =CP46 & CQ46 ->  | CP46: =IF(AND(E46<>0,Q46=""), "* No olvide escribir en la celda de Pueblos Originarios (Digite CERO si no tiene). ",IF(AND(F46<>0,R46=""), "* No olvide escribir en la celda de Pueblos Originarios (Digite CERO si no tiene). ","")) ->  | CQ46: =IF(AND(E46<>0,S46=""), "* No olvide escribir en la celda de Población Migrantes (Digite CERO si no tiene). ",IF(AND(F46<>0,T46=""), "* No olvide escribir en la celda de Población Migrantes (Digite CERO si no tiene). ","")) ->  | DO46: =IF(AND(E46<>0,Q46=""), 1,IF(AND(F46<>0,R46=""), 1,0)) -> 0 | DP46: =IF(AND(E46<>0,S46=""), 1,IF(AND(F46<>0,T46=""), 1,0)) -> 0
A47: P2400180 | C47: + 1 D.S. (>= +1.0 a +1.9) | D47: =IFERROR(VLOOKUP($A47,FILTRO!$A41:$AY666,2,FALSE),0) -> 3565 | E47: =IFERROR(VLOOKUP($A47,FILTRO!$A41:$AY666,3,FALSE),0) -> 1735 | F47: =IFERROR(VLOOKUP($A47,FILTRO!$A41:$AY666,4,FALSE),0) -> 1830 | G47: =IFERROR(VLOOKUP($A47,FILTRO!$A41:$AY666,5,FALSE),0) -> 484 | H47: =IFERROR(VLOOKUP($A47,FILTRO!$A41:$AY666,6,FALSE),0) -> 459 | I47: =IFERROR(VLOOKUP($A47,FILTRO!$A41:$AY666,7,FALSE),0) -> 388 | J47: =IFERROR(VLOOKUP($A47,FILTRO!$A41:$AY666,8,FALSE),0) -> 409 | K47: =IFERROR(VLOOKUP($A47,FILTRO!$A41:$AY666,9,FALSE),0) -> 355 | L47: =IFERROR(VLOOKUP($A47,FILTRO!$A41:$AY666,10,FALSE),0) -> 367 | M47: =IFERROR(VLOOKUP($A47,FILTRO!$A41:$AY666,11,FALSE),0) -> 288 | N47: =IFERROR(VLOOKUP($A47,FILTRO!$A41:$AY666,12,FALSE),0) -> 325 | O47: =IFERROR(VLOOKUP($A47,FILTRO!$A41:$AY666,13,FALSE),0) -> 220 | P47: =IFERROR(VLOOKUP($A47,FILTRO!$A41:$AY666,14,FALSE),0) -> 270 | Q47: =IFERROR(VLOOKUP($A47,FILTRO!$A41:$AY666,15,FALSE),0) -> 11 | R47: =IFERROR(VLOOKUP($A47,FILTRO!$A41:$AY666,16,FALSE),0) -> 6 | S47: =IFERROR(VLOOKUP($A47,FILTRO!$A41:$AY666,17,FALSE),0) -> 25 | T47: =IFERROR(VLOOKUP($A47,FILTRO!$A41:$AY666,18,FALSE),0) -> 22 | U47: =CP47 & CQ47 ->  | CP47: =IF(AND(E47<>0,Q47=""), "* No olvide escribir en la celda de Pueblos Originarios (Digite CERO si no tiene). ",IF(AND(F47<>0,R47=""), "* No olvide escribir en la celda de Pueblos Originarios (Digite CERO si no tiene). ","")) ->  | CQ47: =IF(AND(E47<>0,S47=""), "* No olvide escribir en la celda de Población Migrantes (Digite CERO si no tiene). ",IF(AND(F47<>0,T47=""), "* No olvide escribir en la celda de Población Migrantes (Digite CERO si no tiene). ","")) ->  | DO47: =IF(AND(E47<>0,Q47=""), 1,IF(AND(F47<>0,R47=""), 1,0)) -> 0 | DP47: =IF(AND(E47<>0,S47=""), 1,IF(AND(F47<>0,T47=""), 1,0)) -> 0
C48: TOTAL | D48: =SUM(D44:D47) -> 25497 | E48: =SUM(E44:E47) -> 13001 | F48: 12496 | G48: 3577 | H48: 3413 | I48: 3077 | J48: 2874 | K48: 2511 | L48: 2451 | M48: 2150 | N48: 2135 | O48: 1686 | P48: 1623 | Q48: 146 | R48: 128 | S48: 353 | T48: 333 | U48: =CM48 & CN48 ->  | CM48: =IF($D48>=$Q48+$R48,"","* El Total de Pueblos Originarios no debe ser mayor al total de niños en control. ") ->  | CN48: =IF($D48>=$S48+$T48,"","* El Total de Pueblación Migrantes no debe ser mayor al total de niños en control. ") ->  | DL48: =IF($D48>=$Q48+$R48,0,1) -> 0 | DM48: =IF($D48>=$S48+$T48,0,1) -> 0
A49: P2400190 | C49: - 1 D.S. (<= -1.0 a -1.9) | D49: =IFERROR(VLOOKUP($A49,FILTRO!$A43:$AY668,2,FALSE),0) -> 608 | E49: =IFERROR(VLOOKUP($A49,FILTRO!$A43:$AY668,3,FALSE),0) -> 320 | F49: =IFERROR(VLOOKUP($A49,FILTRO!$A43:$AY668,4,FALSE),0) -> 288 | G49: =IFERROR(VLOOKUP($A49,FILTRO!$A43:$AY668,5,FALSE),0) -> 87 | H49: =IFERROR(VLOOKUP($A49,FILTRO!$A43:$AY668,6,FALSE),0) -> 79 | I49: =IFERROR(VLOOKUP($A49,FILTRO!$A43:$AY668,7,FALSE),0) -> 92 | J49: =IFERROR(VLOOKUP($A49,FILTRO!$A43:$AY668,8,FALSE),0) -> 63 | K49: =IFERROR(VLOOKUP($A49,FILTRO!$A43:$AY668,9,FALSE),0) -> 70 | L49: =IFERROR(VLOOKUP($A49,FILTRO!$A43:$AY668,10,FALSE),0) -> 63 | M49: =IFERROR(VLOOKUP($A49,FILTRO!$A43:$AY668,11,FALSE),0) -> 46 | N49: =IFERROR(VLOOKUP($A49,FILTRO!$A43:$AY668,12,FALSE),0) -> 52 | O49: =IFERROR(VLOOKUP($A49,FILTRO!$A43:$AY668,13,FALSE),0) -> 25 | P49: =IFERROR(VLOOKUP($A49,FILTRO!$A43:$AY668,14,FALSE),0) -> 31 | Q49: =IFERROR(VLOOKUP($A49,FILTRO!$A43:$AY668,15,FALSE),0) -> 2 | R49: =IFERROR(VLOOKUP($A49,FILTRO!$A43:$AY668,16,FALSE),0) -> 0 | S49: =IFERROR(VLOOKUP($A49,FILTRO!$A43:$AY668,17,FALSE),0) -> 14 | T49: =IFERROR(VLOOKUP($A49,FILTRO!$A43:$AY668,18,FALSE),0) -> 17 | U49: =CP49 & CQ49 ->  | CP49: =IF(AND(E49<>0,Q49=""), "* No olvide escribir en la celda de Pueblos Originarios (Digite CERO si no tiene). ",IF(AND(F49<>0,R49=""), "* No olvide escribir en la celda de Pueblos Originarios (Digite CERO si no tiene). ","")) ->  | CQ49: =IF(AND(E49<>0,S49=""), "* No olvide escribir en la celda de Población Migrantes (Digite CERO si no tiene). ",IF(AND(F49<>0,T49=""), "* No olvide escribir en la celda de Población Migrantes (Digite CERO si no tiene). ","")) ->  | DO49: =IF(AND(E49<>0,Q49=""), 1,IF(AND(F49<>0,R49=""), 1,0)) -> 0 | DP49: =IF(AND(E49<>0,S49=""), 1,IF(AND(F49<>0,T49=""), 1,0)) -> 0
A50: P2400200 | C50: - 2 D.S. (<= -2.0) | D50: =IFERROR(VLOOKUP($A50,FILTRO!$A44:$AY669,2,FALSE),0) -> 66 | E50: =IFERROR(VLOOKUP($A50,FILTRO!$A44:$AY669,3,FALSE),0) -> 32 | F50: =IFERROR(VLOOKUP($A50,FILTRO!$A44:$AY669,4,FALSE),0) -> 34 | G50: =IFERROR(VLOOKUP($A50,FILTRO!$A44:$AY669,5,FALSE),0) -> 7 | H50: =IFERROR(VLOOKUP($A50,FILTRO!$A44:$AY669,6,FALSE),0) -> 10 | I50: =IFERROR(VLOOKUP($A50,FILTRO!$A44:$AY669,7,FALSE),0) -> 9 | J50: =IFERROR(VLOOKUP($A50,FILTRO!$A44:$AY669,8,FALSE),0) -> 4 | K50: =IFERROR(VLOOKUP($A50,FILTRO!$A44:$AY669,9,FALSE),0) -> 7 | L50: =IFERROR(VLOOKUP($A50,FILTRO!$A44:$AY669,10,FALSE),0) -> 7 | M50: =IFERROR(VLOOKUP($A50,FILTRO!$A44:$AY669,11,FALSE),0) -> 8 | N50: =IFERROR(VLOOKUP($A50,FILTRO!$A44:$AY669,12,FALSE),0) -> 6 | O50: =IFERROR(VLOOKUP($A50,FILTRO!$A44:$AY669,13,FALSE),0) -> 1 | P50: =IFERROR(VLOOKUP($A50,FILTRO!$A44:$AY669,14,FALSE),0) -> 7 | Q50: =IFERROR(VLOOKUP($A50,FILTRO!$A44:$AY669,15,FALSE),0) -> 0 | R50: =IFERROR(VLOOKUP($A50,FILTRO!$A44:$AY669,16,FALSE),0) -> 0 | S50: =IFERROR(VLOOKUP($A50,FILTRO!$A44:$AY669,17,FALSE),0) -> 1 | T50: =IFERROR(VLOOKUP($A50,FILTRO!$A44:$AY669,18,FALSE),0) -> 2 | U50: =CP50 & CQ50 ->  | CP50: =IF(AND(E50<>0,Q50=""), "* No olvide escribir en la celda de Pueblos Originarios (Digite CERO si no tiene). ",IF(AND(F50<>0,R50=""), "* No olvide escribir en la celda de Pueblos Originarios (Digite CERO si no tiene). ","")) ->  | CQ50: =IF(AND(E50<>0,S50=""), "* No olvide escribir en la celda de Población Migrantes (Digite CERO si no tiene). ",IF(AND(F50<>0,T50=""), "* No olvide escribir en la celda de Población Migrantes (Digite CERO si no tiene). ","")) ->  | DO50: =IF(AND(E50<>0,Q50=""), 1,IF(AND(F50<>0,R50=""), 1,0)) -> 0 | DP50: =IF(AND(E50<>0,S50=""), 1,IF(AND(F50<>0,T50=""), 1,0)) -> 0
C51: TOTAL | D51: =SUM(D49:D50) -> 674 | E51: =SUM(E49:E50) -> 352 | F51: 322 | G51: 94 | H51: 89 | I51: 101 | J51: 67 | K51: 77 | L51: 70 | M51: 54 | N51: 58 | O51: 26 | P51: 38 | Q51: 2 | R51: 0 | S51: 15 | T51: 19 | U51: =CM51 & CN51 ->  | CM51: =IF($D51>=$Q51+$R51,"","* El Total de Pueblos Originarios no debe ser mayor al total de niños en control. ") ->  | CN51: =IF($D51>=$S51+$T51,"","* El Total de Pueblación Migrantes no debe ser mayor al total de niños en control. ") ->  | DL51: =IF($D51>=$Q51+$R51,0,1) -> 0 | DM51: =IF($D51>=$S51+$T51,0,1) -> 0
A52: P2400210 | C52: PROMEDIO (-0,9 A + 0,9) | D52: =IFERROR(VLOOKUP($A52,FILTRO!$A46:$AY671,2,FALSE),0) -> 6705 | E52: =IFERROR(VLOOKUP($A52,FILTRO!$A46:$AY671,3,FALSE),0) -> 3288 | F52: =IFERROR(VLOOKUP($A52,FILTRO!$A46:$AY671,4,FALSE),0) -> 3417 | G52: =IFERROR(VLOOKUP($A52,FILTRO!$A46:$AY671,5,FALSE),0) -> 1080 | H52: =IFERROR(VLOOKUP($A52,FILTRO!$A46:$AY671,6,FALSE),0) -> 1134 | I52: =IFERROR(VLOOKUP($A52,FILTRO!$A46:$AY671,7,FALSE),0) -> 919 | J52: =IFERROR(VLOOKUP($A52,FILTRO!$A46:$AY671,8,FALSE),0) -> 872 | K52: =IFERROR(VLOOKUP($A52,FILTRO!$A46:$AY671,9,FALSE),0) -> 572 | L52: =IFERROR(VLOOKUP($A52,FILTRO!$A46:$AY671,10,FALSE),0) -> 620 | M52: =IFERROR(VLOOKUP($A52,FILTRO!$A46:$AY671,11,FALSE),0) -> 397 | N52: =IFERROR(VLOOKUP($A52,FILTRO!$A46:$AY671,12,FALSE),0) -> 432 | O52: =IFERROR(VLOOKUP($A52,FILTRO!$A46:$AY671,13,FALSE),0) -> 320 | P52: =IFERROR(VLOOKUP($A52,FILTRO!$A46:$AY671,14,FALSE),0) -> 359 | Q52: =IFERROR(VLOOKUP($A52,FILTRO!$A46:$AY671,15,FALSE),0) -> 42 | R52: =IFERROR(VLOOKUP($A52,FILTRO!$A46:$AY671,16,FALSE),0) -> 46 | S52: =IFERROR(VLOOKUP($A52,FILTRO!$A46:$AY671,17,FALSE),0) -> 163 | T52: =IFERROR(VLOOKUP($A52,FILTRO!$A46:$AY671,18,FALSE),0) -> 177 | U52: =CP52 & CQ52 ->  | CP52: =IF(AND(E52<>0,Q52=""), "* No olvide escribir en la celda de Pueblos Originarios (Digite CERO si no tiene). ",IF(AND(F52<>0,R52=""), "* No olvide escribir en la celda de Pueblos Originarios (Digite CERO si no tiene). ","")) ->  | CQ52: =IF(AND(E52<>0,S52=""), "* No olvide escribir en la celda de Población Migrantes (Digite CERO si no tiene). ",IF(AND(F52<>0,T52=""), "* No olvide escribir en la celda de Población Migrantes (Digite CERO si no tiene). ","")) ->  | DO52: =IF(AND(E52<>0,Q52=""), 1,IF(AND(F52<>0,R52=""), 1,0)) -> 0 | DP52: =IF(AND(E52<>0,S52=""), 1,IF(AND(F52<>0,T52=""), 1,0)) -> 0
A53: P2400220 | B53: INDICADOR TALLA/EDAD | C53: + 2 D.S. (>= +2.0) | D53: =IFERROR(VLOOKUP($A53,FILTRO!$A47:$AY672,2,FALSE),0) -> 873 | E53: =IFERROR(VLOOKUP($A53,FILTRO!$A47:$AY672,3,FALSE),0) -> 430 | F53: =IFERROR(VLOOKUP($A53,FILTRO!$A47:$AY672,4,FALSE),0) -> 443 | G53: =IFERROR(VLOOKUP($A53,FILTRO!$A47:$AY672,5,FALSE),0) -> 123 | H53: =IFERROR(VLOOKUP($A53,FILTRO!$A47:$AY672,6,FALSE),0) -> 108 | I53: =IFERROR(VLOOKUP($A53,FILTRO!$A47:$AY672,7,FALSE),0) -> 108 | J53: =IFERROR(VLOOKUP($A53,FILTRO!$A47:$AY672,8,FALSE),0) -> 95 | K53: =IFERROR(VLOOKUP($A53,FILTRO!$A47:$AY672,9,FALSE),0) -> 72 | L53: =IFERROR(VLOOKUP($A53,FILTRO!$A47:$AY672,10,FALSE),0) -> 93 | M53: =IFERROR(VLOOKUP($A53,FILTRO!$A47:$AY672,11,FALSE),0) -> 63 | N53: =IFERROR(VLOOKUP($A53,FILTRO!$A47:$AY672,12,FALSE),0) -> 91 | O53: =IFERROR(VLOOKUP($A53,FILTRO!$A47:$AY672,13,FALSE),0) -> 64 | P53: =IFERROR(VLOOKUP($A53,FILTRO!$A47:$AY672,14,FALSE),0) -> 56 | Q53: =IFERROR(VLOOKUP($A53,FILTRO!$A47:$AY672,15,FALSE),0) -> 5 | R53: =IFERROR(VLOOKUP($A53,FILTRO!$A47:$AY672,16,FALSE),0) -> 7 | S53: =IFERROR(VLOOKUP($A53,FILTRO!$A47:$AY672,17,FALSE),0) -> 12 | T53: =IFERROR(VLOOKUP($A53,FILTRO!$A47:$AY672,18,FALSE),0) -> 7 | U53: =CP53 & CQ53 ->  | CP53: =IF(AND(E53<>0,Q53=""), "* No olvide escribir en la celda de Pueblos Originarios (Digite CERO si no tiene). ",IF(AND(F53<>0,R53=""), "* No olvide escribir en la celda de Pueblos Originarios (Digite CERO si no tiene). ","")) ->  | CQ53: =IF(AND(E53<>0,S53=""), "* No olvide escribir en la celda de Población Migrantes (Digite CERO si no tiene). ",IF(AND(F53<>0,T53=""), "* No olvide escribir en la celda de Población Migrantes (Digite CERO si no tiene). ","")) ->  | DO53: =IF(AND(E53<>0,Q53=""), 1,IF(AND(F53<>0,R53=""), 1,0)) -> 0 | DP53: =IF(AND(E53<>0,S53=""), 1,IF(AND(F53<>0,T53=""), 1,0)) -> 0
A54: P2400230 | C54: + 1 D.S. (+1.0 a +1.9) | D54: =IFERROR(VLOOKUP($A54,FILTRO!$A48:$AY673,2,FALSE),0) -> 2906 | E54: =IFERROR(VLOOKUP($A54,FILTRO!$A48:$AY673,3,FALSE),0) -> 1497 | F54: =IFERROR(VLOOKUP($A54,FILTRO!$A48:$AY673,4,FALSE),0) -> 1409 | G54: =IFERROR(VLOOKUP($A54,FILTRO!$A48:$AY673,5,FALSE),0) -> 403 | H54: =IFERROR(VLOOKUP($A54,FILTRO!$A48:$AY673,6,FALSE),0) -> 325 | I54: =IFERROR(VLOOKUP($A54,FILTRO!$A48:$AY673,7,FALSE),0) -> 344 | J54: =IFERROR(VLOOKUP($A54,FILTRO!$A48:$AY673,8,FALSE),0) -> 309 | K54: =IFERROR(VLOOKUP($A54,FILTRO!$A48:$AY673,9,FALSE),0) -> 290 | L54: =IFERROR(VLOOKUP($A54,FILTRO!$A48:$AY673,10,FALSE),0) -> 285 | M54: =IFERROR(VLOOKUP($A54,FILTRO!$A48:$AY673,11,FALSE),0) -> 267 | N54: =IFERROR(VLOOKUP($A54,FILTRO!$A48:$AY673,12,FALSE),0) -> 272 | O54: =IFERROR(VLOOKUP($A54,FILTRO!$A48:$AY673,13,FALSE),0) -> 193 | P54: =IFERROR(VLOOKUP($A54,FILTRO!$A48:$AY673,14,FALSE),0) -> 218 | Q54: =IFERROR(VLOOKUP($A54,FILTRO!$A48:$AY673,15,FALSE),0) -> 16 | R54: =IFERROR(VLOOKUP($A54,FILTRO!$A48:$AY673,16,FALSE),0) -> 15 | S54: =IFERROR(VLOOKUP($A54,FILTRO!$A48:$AY673,17,FALSE),0) -> 27 | T54: =IFERROR(VLOOKUP($A54,FILTRO!$A48:$AY673,18,FALSE),0) -> 31 | U54: =CP54 & CQ54 ->  | CP54: =IF(AND(E54<>0,Q54=""), "* No olvide escribir en la celda de Pueblos Originarios (Digite CERO si no tiene). ",IF(AND(F54<>0,R54=""), "* No olvide escribir en la celda de Pueblos Originarios (Digite CERO si no tiene). ","")) ->  | CQ54: =IF(AND(E54<>0,S54=""), "* No olvide escribir en la celda de Población Migrantes (Digite CERO si no tiene). ",IF(AND(F54<>0,T54=""), "* No olvide escribir en la celda de Población Migrantes (Digite CERO si no tiene). ","")) ->  | DO54: =IF(AND(E54<>0,Q54=""), 1,IF(AND(F54<>0,R54=""), 1,0)) -> 0 | DP54: =IF(AND(E54<>0,S54=""), 1,IF(AND(F54<>0,T54=""), 1,0)) -> 0
C55: TOTAL | D55: =SUM(D52:D54) -> 10484 | E55: =SUM(E52:E54) -> 5215 | F55: 5269 | G55: 1606 | H55: 1567 | I55: 1371 | J55: 1276 | K55: 934 | L55: 998 | M55: 727 | N55: 795 | O55: 577 | P55: 633 | Q55: 63 | R55: 68 | S55: 202 | T55: 215 | U55: =CM55 & CN55 ->  | CM55: =IF($D55>=$Q55+$R55,"","* El Total de Pueblos Originarios no debe ser mayor al total de niños en control. ") ->  | CN55: =IF($D55>=$S55+$T55,"","* El Total de Pueblación Migrantes no debe ser mayor al total de niños en control. ") ->  | DL55: =IF($D55>=$Q55+$R55,0,1) -> 0 | DM55: =IF($D55>=$S55+$T55,0,1) -> 0
A56: P2400240 | C56: - 1 D.S. (-1.0 a -1.9) | D56: =IFERROR(VLOOKUP($A56,FILTRO!$A50:$AY675,2,FALSE),0) -> 1437 | E56: =IFERROR(VLOOKUP($A56,FILTRO!$A50:$AY675,3,FALSE),0) -> 736 | F56: =IFERROR(VLOOKUP($A56,FILTRO!$A50:$AY675,4,FALSE),0) -> 701 | G56: =IFERROR(VLOOKUP($A56,FILTRO!$A50:$AY675,5,FALSE),0) -> 239 | H56: =IFERROR(VLOOKUP($A56,FILTRO!$A50:$AY675,6,FALSE),0) -> 245 | I56: =IFERROR(VLOOKUP($A56,FILTRO!$A50:$AY675,7,FALSE),0) -> 167 | J56: =IFERROR(VLOOKUP($A56,FILTRO!$A50:$AY675,8,FALSE),0) -> 140 | K56: =IFERROR(VLOOKUP($A56,FILTRO!$A50:$AY675,9,FALSE),0) -> 130 | L56: =IFERROR(VLOOKUP($A56,FILTRO!$A50:$AY675,10,FALSE),0) -> 157 | M56: =IFERROR(VLOOKUP($A56,FILTRO!$A50:$AY675,11,FALSE),0) -> 120 | N56: =IFERROR(VLOOKUP($A56,FILTRO!$A50:$AY675,12,FALSE),0) -> 88 | O56: =IFERROR(VLOOKUP($A56,FILTRO!$A50:$AY675,13,FALSE),0) -> 80 | P56: =IFERROR(VLOOKUP($A56,FILTRO!$A50:$AY675,14,FALSE),0) -> 71 | Q56: =IFERROR(VLOOKUP($A56,FILTRO!$A50:$AY675,15,FALSE),0) -> 7 | R56: =IFERROR(VLOOKUP($A56,FILTRO!$A50:$AY675,16,FALSE),0) -> 9 | S56: =IFERROR(VLOOKUP($A56,FILTRO!$A50:$AY675,17,FALSE),0) -> 41 | T56: =IFERROR(VLOOKUP($A56,FILTRO!$A50:$AY675,18,FALSE),0) -> 39 | U56: =CP56 & CQ56 ->  | CP56: =IF(AND(E56<>0,Q56=""), "* No olvide escribir en la celda de Pueblos Originarios (Digite CERO si no tiene). ",IF(AND(F56<>0,R56=""), "* No olvide escribir en la celda de Pueblos Originarios (Digite CERO si no tiene). ","")) ->  | CQ56: =IF(AND(E56<>0,S56=""), "* No olvide escribir en la celda de Población Migrantes (Digite CERO si no tiene). ",IF(AND(F56<>0,T56=""), "* No olvide escribir en la celda de Población Migrantes (Digite CERO si no tiene). ","")) ->  | DO56: =IF(AND(E56<>0,Q56=""), 1,IF(AND(F56<>0,R56=""), 1,0)) -> 0 | DP56: =IF(AND(E56<>0,S56=""), 1,IF(AND(F56<>0,T56=""), 1,0)) -> 0
A57: P2400250 | C57: - 2 D.S. (<= -2.0) | D57: =IFERROR(VLOOKUP($A57,FILTRO!$A51:$AY676,2,FALSE),0) -> 198 | E57: =IFERROR(VLOOKUP($A57,FILTRO!$A51:$AY676,3,FALSE),0) -> 109 | F57: =IFERROR(VLOOKUP($A57,FILTRO!$A51:$AY676,4,FALSE),0) -> 89 | G57: =IFERROR(VLOOKUP($A57,FILTRO!$A51:$AY676,5,FALSE),0) -> 35 | H57: =IFERROR(VLOOKUP($A57,FILTRO!$A51:$AY676,6,FALSE),0) -> 28 | I57: =IFERROR(VLOOKUP($A57,FILTRO!$A51:$AY676,7,FALSE),0) -> 25 | J57: =IFERROR(VLOOKUP($A57,FILTRO!$A51:$AY676,8,FALSE),0) -> 15 | K57: =IFERROR(VLOOKUP($A57,FILTRO!$A51:$AY676,9,FALSE),0) -> 19 | L57: =IFERROR(VLOOKUP($A57,FILTRO!$A51:$AY676,10,FALSE),0) -> 25 | M57: =IFERROR(VLOOKUP($A57,FILTRO!$A51:$AY676,11,FALSE),0) -> 15 | N57: =IFERROR(VLOOKUP($A57,FILTRO!$A51:$AY676,12,FALSE),0) -> 11 | O57: =IFERROR(VLOOKUP($A57,FILTRO!$A51:$AY676,13,FALSE),0) -> 15 | P57: =IFERROR(VLOOKUP($A57,FILTRO!$A51:$AY676,14,FALSE),0) -> 10 | Q57: =IFERROR(VLOOKUP($A57,FILTRO!$A51:$AY676,15,FALSE),0) -> 2 | R57: =IFERROR(VLOOKUP($A57,FILTRO!$A51:$AY676,16,FALSE),0) -> 2 | S57: =IFERROR(VLOOKUP($A57,FILTRO!$A51:$AY676,17,FALSE),0) -> 7 | T57: =IFERROR(VLOOKUP($A57,FILTRO!$A51:$AY676,18,FALSE),0) -> 1 | U57: =CP57 & CQ57 ->  | CP57: =IF(AND(E57<>0,Q57=""), "* No olvide escribir en la celda de Pueblos Originarios (Digite CERO si no tiene). ",IF(AND(F57<>0,R57=""), "* No olvide escribir en la celda de Pueblos Originarios (Digite CERO si no tiene). ","")) ->  | CQ57: =IF(AND(E57<>0,S57=""), "* No olvide escribir en la celda de Población Migrantes (Digite CERO si no tiene). ",IF(AND(F57<>0,T57=""), "* No olvide escribir en la celda de Población Migrantes (Digite CERO si no tiene). ","")) ->  | DO57: =IF(AND(E57<>0,Q57=""), 1,IF(AND(F57<>0,R57=""), 1,0)) -> 0 | DP57: =IF(AND(E57<>0,S57=""), 1,IF(AND(F57<>0,T57=""), 1,0)) -> 0
C58: TOTAL | D58: =SUM(D56:D57) -> 1635 | E58: =SUM(E56:E57) -> 845 | F58: 790 | G58: 274 | H58: 273 | I58: 192 | J58: 155 | K58: 149 | L58: 182 | M58: 135 | N58: 99 | O58: 95 | P58: 81 | Q58: 9 | R58: 11 | S58: 48 | T58: 40 | U58: =CM58 & CN58 ->  | CM58: =IF($D58>=$Q58+$R58,"","* El Total de Pueblos Originarios no debe ser mayor al total de niños en control. ") ->  | CN58: =IF($D58>=$S58+$T58,"","* El Total de Pueblación Migrantes no debe ser mayor al total de niños en control. ") ->  | DL58: =IF($D58>=$Q58+$R58,0,1) -> 0 | DM58: =IF($D58>=$S58+$T58,0,1) -> 0
A59: P2400260 | C59: PROMEDIO (-0,9 A + 0,9) | D59: =IFERROR(VLOOKUP($A59,FILTRO!$A53:$AY678,2,FALSE),0) -> 9382 | E59: =IFERROR(VLOOKUP($A59,FILTRO!$A53:$AY678,3,FALSE),0) -> 4738 | F59: =IFERROR(VLOOKUP($A59,FILTRO!$A53:$AY678,4,FALSE),0) -> 4644 | G59: =IFERROR(VLOOKUP($A59,FILTRO!$A53:$AY678,5,FALSE),0) -> 1392 | H59: =IFERROR(VLOOKUP($A59,FILTRO!$A53:$AY678,6,FALSE),0) -> 1407 | I59: =IFERROR(VLOOKUP($A59,FILTRO!$A53:$AY678,7,FALSE),0) -> 1181 | J59: =IFERROR(VLOOKUP($A59,FILTRO!$A53:$AY678,8,FALSE),0) -> 1110 | K59: =IFERROR(VLOOKUP($A59,FILTRO!$A53:$AY678,9,FALSE),0) -> 899 | L59: =IFERROR(VLOOKUP($A59,FILTRO!$A53:$AY678,10,FALSE),0) -> 872 | M59: =IFERROR(VLOOKUP($A59,FILTRO!$A53:$AY678,11,FALSE),0) -> 690 | N59: =IFERROR(VLOOKUP($A59,FILTRO!$A53:$AY678,12,FALSE),0) -> 696 | O59: =IFERROR(VLOOKUP($A59,FILTRO!$A53:$AY678,13,FALSE),0) -> 576 | P59: =IFERROR(VLOOKUP($A59,FILTRO!$A53:$AY678,14,FALSE),0) -> 559 | Q59: =IFERROR(VLOOKUP($A59,FILTRO!$A53:$AY678,15,FALSE),0) -> 63 | R59: =IFERROR(VLOOKUP($A59,FILTRO!$A53:$AY678,16,FALSE),0) -> 63 | S59: =IFERROR(VLOOKUP($A59,FILTRO!$A53:$AY678,17,FALSE),0) -> 141 | T59: =IFERROR(VLOOKUP($A59,FILTRO!$A53:$AY678,18,FALSE),0) -> 147 | U59: =CP59 & CQ59 ->  | CP59: =IF(AND(E59<>0,Q59=""), "* No olvide escribir en la celda de Pueblos Originarios (Digite CERO si no tiene). ",IF(AND(F59<>0,R59=""), "* No olvide escribir en la celda de Pueblos Originarios (Digite CERO si no tiene). ","")) ->  | CQ59: =IF(AND(E59<>0,S59=""), "* No olvide escribir en la celda de Población Migrantes (Digite CERO si no tiene). ",IF(AND(F59<>0,T59=""), "* No olvide escribir en la celda de Población Migrantes (Digite CERO si no tiene). ","")) ->  | DO59: =IF(AND(E59<>0,Q59=""), 1,IF(AND(F59<>0,R59=""), 1,0)) -> 0 | DP59: =IF(AND(E59<>0,S59=""), 1,IF(AND(F59<>0,T59=""), 1,0)) -> 0
A60: P2400270 | B60: INDICADOR PERIMETRO DE CINTURA / EDAD | C60: NORMAL (<p75) | D60: =IFERROR(VLOOKUP($A60,FILTRO!$A54:$AY679,2,FALSE),0) -> 8276 | E60: =IFERROR(VLOOKUP($A60,FILTRO!$A54:$AY679,3,FALSE),0) -> 4112 | F60: =IFERROR(VLOOKUP($A60,FILTRO!$A54:$AY679,4,FALSE),0) -> 4164 | G60: =IFERROR(VLOOKUP($A60,FILTRO!$A54:$AY679,5,FALSE),0) -> 1219 | H60: =IFERROR(VLOOKUP($A60,FILTRO!$A54:$AY679,6,FALSE),0) -> 1232 | I60: =IFERROR(VLOOKUP($A60,FILTRO!$A54:$AY679,7,FALSE),0) -> 1065 | J60: =IFERROR(VLOOKUP($A60,FILTRO!$A54:$AY679,8,FALSE),0) -> 1016 | K60: =IFERROR(VLOOKUP($A60,FILTRO!$A54:$AY679,9,FALSE),0) -> 796 | L60: =IFERROR(VLOOKUP($A60,FILTRO!$A54:$AY679,10,FALSE),0) -> 809 | M60: =IFERROR(VLOOKUP($A60,FILTRO!$A54:$AY679,11,FALSE),0) -> 621 | N60: =IFERROR(VLOOKUP($A60,FILTRO!$A54:$AY679,12,FALSE),0) -> 628 | O60: =IFERROR(VLOOKUP($A60,FILTRO!$A54:$AY679,13,FALSE),0) -> 411 | P60: =IFERROR(VLOOKUP($A60,FILTRO!$A54:$AY679,14,FALSE),0) -> 479 | Q60: =IFERROR(VLOOKUP($A60,FILTRO!$A54:$AY679,15,FALSE),0) -> 37 | R60: =IFERROR(VLOOKUP($A60,FILTRO!$A54:$AY679,16,FALSE),0) -> 37 | S60: =IFERROR(VLOOKUP($A60,FILTRO!$A54:$AY679,17,FALSE),0) -> 125 | T60: =IFERROR(VLOOKUP($A60,FILTRO!$A54:$AY679,18,FALSE),0) -> 144 | U60: =CP60 & CQ60 ->  | CP60: =IF(AND(E60<>0,Q60=""), "* No olvide escribir en la celda de Pueblos Originarios (Digite CERO si no tiene). ",IF(AND(F60<>0,R60=""), "* No olvide escribir en la celda de Pueblos Originarios (Digite CERO si no tiene). ","")) ->  | CQ60: =IF(AND(E60<>0,S60=""), "* No olvide escribir en la celda de Población Migrantes (Digite CERO si no tiene). ",IF(AND(F60<>0,T60=""), "* No olvide escribir en la celda de Población Migrantes (Digite CERO si no tiene). ","")) ->  | DO60: =IF(AND(E60<>0,Q60=""), 1,IF(AND(F60<>0,R60=""), 1,0)) -> 0 | DP60: =IF(AND(E60<>0,S60=""), 1,IF(AND(F60<>0,T60=""), 1,0)) -> 0
A61: P2400280 | C61: RIESGO DE OBESIDAD ABDOMINAL (75<p<90) | D61: =IFERROR(VLOOKUP($A61,FILTRO!$A55:$AY680,2,FALSE),0) -> 2725 | E61: =IFERROR(VLOOKUP($A61,FILTRO!$A55:$AY680,3,FALSE),0) -> 1359 | F61: =IFERROR(VLOOKUP($A61,FILTRO!$A55:$AY680,4,FALSE),0) -> 1366 | G61: =IFERROR(VLOOKUP($A61,FILTRO!$A55:$AY680,5,FALSE),0) -> 348 | H61: =IFERROR(VLOOKUP($A61,FILTRO!$A55:$AY680,6,FALSE),0) -> 328 | I61: =IFERROR(VLOOKUP($A61,FILTRO!$A55:$AY680,7,FALSE),0) -> 319 | J61: =IFERROR(VLOOKUP($A61,FILTRO!$A55:$AY680,8,FALSE),0) -> 289 | K61: =IFERROR(VLOOKUP($A61,FILTRO!$A55:$AY680,9,FALSE),0) -> 258 | L61: =IFERROR(VLOOKUP($A61,FILTRO!$A55:$AY680,10,FALSE),0) -> 268 | M61: =IFERROR(VLOOKUP($A61,FILTRO!$A55:$AY680,11,FALSE),0) -> 239 | N61: =IFERROR(VLOOKUP($A61,FILTRO!$A55:$AY680,12,FALSE),0) -> 264 | O61: =IFERROR(VLOOKUP($A61,FILTRO!$A55:$AY680,13,FALSE),0) -> 195 | P61: =IFERROR(VLOOKUP($A61,FILTRO!$A55:$AY680,14,FALSE),0) -> 217 | Q61: =IFERROR(VLOOKUP($A61,FILTRO!$A55:$AY680,15,FALSE),0) -> 16 | R61: =IFERROR(VLOOKUP($A61,FILTRO!$A55:$AY680,16,FALSE),0) -> 11 | S61: =IFERROR(VLOOKUP($A61,FILTRO!$A55:$AY680,17,FALSE),0) -> 13 | T61: =IFERROR(VLOOKUP($A61,FILTRO!$A55:$AY680,18,FALSE),0) -> 17 | U61: =CP61 & CQ61 ->  | CP61: =IF(AND(E61<>0,Q61=""), "* No olvide escribir en la celda de Pueblos Originarios (Digite CERO si no tiene). ",IF(AND(F61<>0,R61=""), "* No olvide escribir en la celda de Pueblos Originarios (Digite CERO si no tiene). ","")) ->  | CQ61: =IF(AND(E61<>0,S61=""), "* No olvide escribir en la celda de Población Migrantes (Digite CERO si no tiene). ",IF(AND(F61<>0,T61=""), "* No olvide escribir en la celda de Población Migrantes (Digite CERO si no tiene). ","")) ->  | DO61: =IF(AND(E61<>0,Q61=""), 1,IF(AND(F61<>0,R61=""), 1,0)) -> 0 | DP61: =IF(AND(E61<>0,S61=""), 1,IF(AND(F61<>0,T61=""), 1,0)) -> 0
A62: P2400290 | C62: OBESIDAD ABDOMINAL (>p90) | D62: =IFERROR(VLOOKUP($A62,FILTRO!$A56:$AY681,2,FALSE),0) -> 3323 | E62: =IFERROR(VLOOKUP($A62,FILTRO!$A56:$AY681,3,FALSE),0) -> 1766 | F62: =IFERROR(VLOOKUP($A62,FILTRO!$A56:$AY681,4,FALSE),0) -> 1557 | G62: =IFERROR(VLOOKUP($A62,FILTRO!$A56:$AY681,5,FALSE),0) -> 396 | H62: =IFERROR(VLOOKUP($A62,FILTRO!$A56:$AY681,6,FALSE),0) -> 328 | I62: =IFERROR(VLOOKUP($A62,FILTRO!$A56:$AY681,7,FALSE),0) -> 345 | J62: =IFERROR(VLOOKUP($A62,FILTRO!$A56:$AY681,8,FALSE),0) -> 315 | K62: =IFERROR(VLOOKUP($A62,FILTRO!$A56:$AY681,9,FALSE),0) -> 364 | L62: =IFERROR(VLOOKUP($A62,FILTRO!$A56:$AY681,10,FALSE),0) -> 336 | M62: =IFERROR(VLOOKUP($A62,FILTRO!$A56:$AY681,11,FALSE),0) -> 368 | N62: =IFERROR(VLOOKUP($A62,FILTRO!$A56:$AY681,12,FALSE),0) -> 333 | O62: =IFERROR(VLOOKUP($A62,FILTRO!$A56:$AY681,13,FALSE),0) -> 293 | P62: =IFERROR(VLOOKUP($A62,FILTRO!$A56:$AY681,14,FALSE),0) -> 245 | Q62: =IFERROR(VLOOKUP($A62,FILTRO!$A56:$AY681,15,FALSE),0) -> 14 | R62: =IFERROR(VLOOKUP($A62,FILTRO!$A56:$AY681,16,FALSE),0) -> 13 | S62: =IFERROR(VLOOKUP($A62,FILTRO!$A56:$AY681,17,FALSE),0) -> 21 | T62: =IFERROR(VLOOKUP($A62,FILTRO!$A56:$AY681,18,FALSE),0) -> 13 | U62: =CP62 & CQ62 ->  | CP62: =IF(AND(E62<>0,Q62=""), "* No olvide escribir en la celda de Pueblos Originarios (Digite CERO si no tiene). ",IF(AND(F62<>0,R62=""), "* No olvide escribir en la celda de Pueblos Originarios (Digite CERO si no tiene). ","")) ->  | CQ62: =IF(AND(E62<>0,S62=""), "* No olvide escribir en la celda de Población Migrantes (Digite CERO si no tiene). ",IF(AND(F62<>0,T62=""), "* No olvide escribir en la celda de Población Migrantes (Digite CERO si no tiene). ","")) ->  | DO62: =IF(AND(E62<>0,Q62=""), 1,IF(AND(F62<>0,R62=""), 1,0)) -> 0 | DP62: =IF(AND(E62<>0,S62=""), 1,IF(AND(F62<>0,T62=""), 1,0)) -> 0
C63: TOTAL | D63: =SUM(D59:D62) -> 23706 | E63: =SUM(E59:E62) -> 11975 | F63: 11731 | G63: 3355 | H63: 3295 | I63: 2910 | J63: 2730 | K63: 2317 | L63: 2285 | M63: 1918 | N63: 1921 | O63: 1475 | P63: 1500 | Q63: 130 | R63: 124 | S63: 300 | T63: 321 | U63: =CM63 & CN63 ->  | CM63: =IF($D63>=$Q63+$R63,"","* El Total de Pueblos Originarios no debe ser mayor al total de niños en control. ") ->  | CN63: =IF($D63>=$S63+$T63,"","* El Total de Pueblación Migrantes no debe ser mayor al total de niños en control. ") ->  | DL63: =IF($D63>=$Q63+$R63,0,1) -> 0 | DM63: =IF($D63>=$S63+$T63,0,1) -> 0
A64: P2400300 | B64: DIAGNOSTICO NUTRICIONAL INTEGRADO | C64: RIESGO DE DESNUTRIR/ DEFICIT PONDERAL* | D64: =IFERROR(VLOOKUP($A64,FILTRO!$A58:$AY683,2,FALSE),0) -> 586 | E64: =IFERROR(VLOOKUP($A64,FILTRO!$A58:$AY683,3,FALSE),0) -> 299 | F64: =IFERROR(VLOOKUP($A64,FILTRO!$A58:$AY683,4,FALSE),0) -> 287 | G64: =IFERROR(VLOOKUP($A64,FILTRO!$A58:$AY683,5,FALSE),0) -> 80 | H64: =IFERROR(VLOOKUP($A64,FILTRO!$A58:$AY683,6,FALSE),0) -> 81 | I64: =IFERROR(VLOOKUP($A64,FILTRO!$A58:$AY683,7,FALSE),0) -> 83 | J64: =IFERROR(VLOOKUP($A64,FILTRO!$A58:$AY683,8,FALSE),0) -> 63 | K64: =IFERROR(VLOOKUP($A64,FILTRO!$A58:$AY683,9,FALSE),0) -> 68 | L64: =IFERROR(VLOOKUP($A64,FILTRO!$A58:$AY683,10,FALSE),0) -> 59 | M64: =IFERROR(VLOOKUP($A64,FILTRO!$A58:$AY683,11,FALSE),0) -> 46 | N64: =IFERROR(VLOOKUP($A64,FILTRO!$A58:$AY683,12,FALSE),0) -> 56 | O64: =IFERROR(VLOOKUP($A64,FILTRO!$A58:$AY683,13,FALSE),0) -> 22 | P64: =IFERROR(VLOOKUP($A64,FILTRO!$A58:$AY683,14,FALSE),0) -> 28 | Q64: =IFERROR(VLOOKUP($A64,FILTRO!$A58:$AY683,15,FALSE),0) -> 6 | R64: =IFERROR(VLOOKUP($A64,FILTRO!$A58:$AY683,16,FALSE),0) -> 3 | S64: =IFERROR(VLOOKUP($A64,FILTRO!$A58:$AY683,17,FALSE),0) -> 14 | T64: =IFERROR(VLOOKUP($A64,FILTRO!$A58:$AY683,18,FALSE),0) -> 18 | U64: =CP64 & CQ64 ->  | CP64: =IF(AND(E64<>0,Q64=""), "* No olvide escribir en la celda de Pueblos Originarios (Digite CERO si no tiene). ",IF(AND(F64<>0,R64=""), "* No olvide escribir en la celda de Pueblos Originarios (Digite CERO si no tiene). ","")) ->  | CQ64: =IF(AND(E64<>0,S64=""), "* No olvide escribir en la celda de Población Migrantes (Digite CERO si no tiene). ",IF(AND(F64<>0,T64=""), "* No olvide escribir en la celda de Población Migrantes (Digite CERO si no tiene). ","")) ->  | DO64: =IF(AND(E64<>0,Q64=""), 1,IF(AND(F64<>0,R64=""), 1,0)) -> 0 | DP64: =IF(AND(E64<>0,S64=""), 1,IF(AND(F64<>0,T64=""), 1,0)) -> 0
A65: P2400310 | C65: DESNUTRIDO | D65: =IFERROR(VLOOKUP($A65,FILTRO!$A59:$AY684,2,FALSE),0) -> 62 | E65: =IFERROR(VLOOKUP($A65,FILTRO!$A59:$AY684,3,FALSE),0) -> 32 | F65: =IFERROR(VLOOKUP($A65,FILTRO!$A59:$AY684,4,FALSE),0) -> 30 | G65: =IFERROR(VLOOKUP($A65,FILTRO!$A59:$AY684,5,FALSE),0) -> 8 | H65: =IFERROR(VLOOKUP($A65,FILTRO!$A59:$AY684,6,FALSE),0) -> 7 | I65: =IFERROR(VLOOKUP($A65,FILTRO!$A59:$AY684,7,FALSE),0) -> 7 | J65: =IFERROR(VLOOKUP($A65,FILTRO!$A59:$AY684,8,FALSE),0) -> 3 | K65: =IFERROR(VLOOKUP($A65,FILTRO!$A59:$AY684,9,FALSE),0) -> 6 | L65: =IFERROR(VLOOKUP($A65,FILTRO!$A59:$AY684,10,FALSE),0) -> 9 | M65: =IFERROR(VLOOKUP($A65,FILTRO!$A59:$AY684,11,FALSE),0) -> 9 | N65: =IFERROR(VLOOKUP($A65,FILTRO!$A59:$AY684,12,FALSE),0) -> 5 | O65: =IFERROR(VLOOKUP($A65,FILTRO!$A59:$AY684,13,FALSE),0) -> 2 | P65: =IFERROR(VLOOKUP($A65,FILTRO!$A59:$AY684,14,FALSE),0) -> 6 | Q65: =IFERROR(VLOOKUP($A65,FILTRO!$A59:$AY684,15,FALSE),0) -> 0 | R65: =IFERROR(VLOOKUP($A65,FILTRO!$A59:$AY684,16,FALSE),0) -> 0 | S65: =IFERROR(VLOOKUP($A65,FILTRO!$A59:$AY684,17,FALSE),0) -> 1 | T65: =IFERROR(VLOOKUP($A65,FILTRO!$A59:$AY684,18,FALSE),0) -> 2 | DO65: 0 | DP65: 0
A66: P2400320 | C66: SOBREPESO / RIESGO OBESIDAD | D66: =IFERROR(VLOOKUP($A66,FILTRO!$A60:$AY685,2,FALSE),0) -> 3575 | E66: =IFERROR(VLOOKUP($A66,FILTRO!$A60:$AY685,3,FALSE),0) -> 1740 | F66: =IFERROR(VLOOKUP($A66,FILTRO!$A60:$AY685,4,FALSE),0) -> 1835 | G66: =IFERROR(VLOOKUP($A66,FILTRO!$A60:$AY685,5,FALSE),0) -> 518 | H66: =IFERROR(VLOOKUP($A66,FILTRO!$A60:$AY685,6,FALSE),0) -> 462 | I66: =IFERROR(VLOOKUP($A66,FILTRO!$A60:$AY685,7,FALSE),0) -> 390 | J66: =IFERROR(VLOOKUP($A66,FILTRO!$A60:$AY685,8,FALSE),0) -> 413 | K66: =IFERROR(VLOOKUP($A66,FILTRO!$A60:$AY685,9,FALSE),0) -> 350 | L66: =IFERROR(VLOOKUP($A66,FILTRO!$A60:$AY685,10,FALSE),0) -> 366 | M66: =IFERROR(VLOOKUP($A66,FILTRO!$A60:$AY685,11,FALSE),0) -> 286 | N66: =IFERROR(VLOOKUP($A66,FILTRO!$A60:$AY685,12,FALSE),0) -> 321 | O66: =IFERROR(VLOOKUP($A66,FILTRO!$A60:$AY685,13,FALSE),0) -> 223 | P66: =IFERROR(VLOOKUP($A66,FILTRO!$A60:$AY685,14,FALSE),0) -> 273 | Q66: =IFERROR(VLOOKUP($A66,FILTRO!$A60:$AY685,15,FALSE),0) -> 26 | R66: =IFERROR(VLOOKUP($A66,FILTRO!$A60:$AY685,16,FALSE),0) -> 24 | S66: =IFERROR(VLOOKUP($A66,FILTRO!$A60:$AY685,17,FALSE),0) -> 49 | T66: =IFERROR(VLOOKUP($A66,FILTRO!$A60:$AY685,18,FALSE),0) -> 42 | DO66: 0 | DP66: 0
A67: P2400330 | C67: OBESO | D67: =IFERROR(VLOOKUP($A67,FILTRO!$A61:$AY686,2,FALSE),0) -> 3028 | E67: =IFERROR(VLOOKUP($A67,FILTRO!$A61:$AY686,3,FALSE),0) -> 1508 | F67: =IFERROR(VLOOKUP($A67,FILTRO!$A61:$AY686,4,FALSE),0) -> 1520 | G67: =IFERROR(VLOOKUP($A67,FILTRO!$A61:$AY686,5,FALSE),0) -> 398 | H67: =IFERROR(VLOOKUP($A67,FILTRO!$A61:$AY686,6,FALSE),0) -> 366 | I67: =IFERROR(VLOOKUP($A67,FILTRO!$A61:$AY686,7,FALSE),0) -> 296 | J67: =IFERROR(VLOOKUP($A67,FILTRO!$A61:$AY686,8,FALSE),0) -> 321 | K67: =IFERROR(VLOOKUP($A67,FILTRO!$A61:$AY686,9,FALSE),0) -> 281 | L67: =IFERROR(VLOOKUP($A67,FILTRO!$A61:$AY686,10,FALSE),0) -> 299 | M67: =IFERROR(VLOOKUP($A67,FILTRO!$A61:$AY686,11,FALSE),0) -> 281 | N67: =IFERROR(VLOOKUP($A67,FILTRO!$A61:$AY686,12,FALSE),0) -> 301 | O67: =IFERROR(VLOOKUP($A67,FILTRO!$A61:$AY686,13,FALSE),0) -> 270 | P67: =IFERROR(VLOOKUP($A67,FILTRO!$A61:$AY686,14,FALSE),0) -> 233 | Q67: =IFERROR(VLOOKUP($A67,FILTRO!$A61:$AY686,15,FALSE),0) -> 16 | R67: =IFERROR(VLOOKUP($A67,FILTRO!$A61:$AY686,16,FALSE),0) -> 19 | S67: =IFERROR(VLOOKUP($A67,FILTRO!$A61:$AY686,17,FALSE),0) -> 23 | T67: =IFERROR(VLOOKUP($A67,FILTRO!$A61:$AY686,18,FALSE),0) -> 24 | DO67: 0 | DP67: 0
A68: P2400340 | C68: OBESO SEVERO | D68: =IFERROR(VLOOKUP($A68,FILTRO!$A62:$AY687,2,FALSE),0) -> 1510 | E68: =IFERROR(VLOOKUP($A68,FILTRO!$A62:$AY687,3,FALSE),0) -> 986 | F68: =IFERROR(VLOOKUP($A68,FILTRO!$A62:$AY687,4,FALSE),0) -> 524 | G68: =IFERROR(VLOOKUP($A68,FILTRO!$A62:$AY687,5,FALSE),0) -> 184 | H68: =IFERROR(VLOOKUP($A68,FILTRO!$A62:$AY687,6,FALSE),0) -> 90 | I68: =IFERROR(VLOOKUP($A68,FILTRO!$A62:$AY687,7,FALSE),0) -> 236 | J68: =IFERROR(VLOOKUP($A68,FILTRO!$A62:$AY687,8,FALSE),0) -> 129 | K68: =IFERROR(VLOOKUP($A68,FILTRO!$A62:$AY687,9,FALSE),0) -> 215 | L68: =IFERROR(VLOOKUP($A68,FILTRO!$A62:$AY687,10,FALSE),0) -> 119 | M68: =IFERROR(VLOOKUP($A68,FILTRO!$A62:$AY687,11,FALSE),0) -> 207 | N68: =IFERROR(VLOOKUP($A68,FILTRO!$A62:$AY687,12,FALSE),0) -> 117 | O68: =IFERROR(VLOOKUP($A68,FILTRO!$A62:$AY687,13,FALSE),0) -> 144 | P68: =IFERROR(VLOOKUP($A68,FILTRO!$A62:$AY687,14,FALSE),0) -> 69 | Q68: =IFERROR(VLOOKUP($A68,FILTRO!$A62:$AY687,15,FALSE),0) -> 8 | R68: =IFERROR(VLOOKUP($A68,FILTRO!$A62:$AY687,16,FALSE),0) -> 3 | S68: =IFERROR(VLOOKUP($A68,FILTRO!$A62:$AY687,17,FALSE),0) -> 15 | T68: =IFERROR(VLOOKUP($A68,FILTRO!$A62:$AY687,18,FALSE),0) -> 4 | DO68: 0 | DP68: 0
A69: P2400350 | C69: NORMAL | D69: =IFERROR(VLOOKUP($A69,FILTRO!$A63:$AY688,2,FALSE),0) -> 8652 | E69: =IFERROR(VLOOKUP($A69,FILTRO!$A63:$AY688,3,FALSE),0) -> 4222 | F69: =IFERROR(VLOOKUP($A69,FILTRO!$A63:$AY688,4,FALSE),0) -> 4430 | G69: =IFERROR(VLOOKUP($A69,FILTRO!$A63:$AY688,5,FALSE),0) -> 1398 | H69: =IFERROR(VLOOKUP($A69,FILTRO!$A63:$AY688,6,FALSE),0) -> 1493 | I69: =IFERROR(VLOOKUP($A69,FILTRO!$A63:$AY688,7,FALSE),0) -> 1137 | J69: =IFERROR(VLOOKUP($A69,FILTRO!$A63:$AY688,8,FALSE),0) -> 1082 | K69: =IFERROR(VLOOKUP($A69,FILTRO!$A63:$AY688,9,FALSE),0) -> 747 | L69: =IFERROR(VLOOKUP($A69,FILTRO!$A63:$AY688,10,FALSE),0) -> 816 | M69: =IFERROR(VLOOKUP($A69,FILTRO!$A63:$AY688,11,FALSE),0) -> 545 | N69: =IFERROR(VLOOKUP($A69,FILTRO!$A63:$AY688,12,FALSE),0) -> 592 | O69: =IFERROR(VLOOKUP($A69,FILTRO!$A63:$AY688,13,FALSE),0) -> 395 | P69: =IFERROR(VLOOKUP($A69,FILTRO!$A63:$AY688,14,FALSE),0) -> 447 | Q69: =IFERROR(VLOOKUP($A69,FILTRO!$A63:$AY688,15,FALSE),0) -> 64 | R69: =IFERROR(VLOOKUP($A69,FILTRO!$A63:$AY688,16,FALSE),0) -> 66 | S69: =IFERROR(VLOOKUP($A69,FILTRO!$A63:$AY688,17,FALSE),0) -> 173 | T69: =IFERROR(VLOOKUP($A69,FILTRO!$A63:$AY688,18,FALSE),0) -> 176 | DO69: 0 | DP69: 0
C70: SUBTOTAL | D70: =SUM(D64:D69) -> 17413 | E70: =SUM(E64:E69) -> 8787 | F70: 8626 | G70: 2586 | H70: 2499 | I70: 2149 | J70: 2011 | K70: 1667 | L70: 1668 | M70: 1374 | N70: 1392 | O70: 1056 | P70: 1056 | Q70: 120 | R70: 115 | S70: 275 | T70: 266 | U70: =CM70 & CN70 ->  | CM70: =IF($D70>=$Q70+$R70,"","* El Total de Pueblos Originarios no debe ser mayor al total de niños en control. ") ->  | CN70: =IF($D70>=$S70+$T70,"","* El Total de Pueblación Migrantes no debe ser mayor al total de niños en control. ") ->  | DL70: =IF($D70>=$Q70+$R70,0,1) -> 0 | DM70: =IF($D70>=$S70+$T70,0,1) -> 0
A71: P2400360 | C71: DESNUTRICIÓN SECUNDARIA | D71: =IFERROR(VLOOKUP($A71,FILTRO!$A65:$AY690,2,FALSE),0) -> 7 | E71: =IFERROR(VLOOKUP($A71,FILTRO!$A65:$AY690,3,FALSE),0) -> 3 | F71: =IFERROR(VLOOKUP($A71,FILTRO!$A65:$AY690,4,FALSE),0) -> 4 | G71: =IFERROR(VLOOKUP($A71,FILTRO!$A65:$AY690,5,FALSE),0) -> 0 | H71: =IFERROR(VLOOKUP($A71,FILTRO!$A65:$AY690,6,FALSE),0) -> 3 | I71: =IFERROR(VLOOKUP($A71,FILTRO!$A65:$AY690,7,FALSE),0) -> 2 | J71: =IFERROR(VLOOKUP($A71,FILTRO!$A65:$AY690,8,FALSE),0) -> 1 | K71: =IFERROR(VLOOKUP($A71,FILTRO!$A65:$AY690,9,FALSE),0) -> 0 | L71: =IFERROR(VLOOKUP($A71,FILTRO!$A65:$AY690,10,FALSE),0) -> 0 | M71: =IFERROR(VLOOKUP($A71,FILTRO!$A65:$AY690,11,FALSE),0) -> 0 | N71: =IFERROR(VLOOKUP($A71,FILTRO!$A65:$AY690,12,FALSE),0) -> 0 | O71: =IFERROR(VLOOKUP($A71,FILTRO!$A65:$AY690,13,FALSE),0) -> 1 | P71: =IFERROR(VLOOKUP($A71,FILTRO!$A65:$AY690,14,FALSE),0) -> 0 | Q71: =IFERROR(VLOOKUP($A71,FILTRO!$A65:$AY690,15,FALSE),0) -> 0 | R71: =IFERROR(VLOOKUP($A71,FILTRO!$A65:$AY690,16,FALSE),0) -> 0 | S71: =IFERROR(VLOOKUP($A71,FILTRO!$A65:$AY690,17,FALSE),0) -> 0 | T71: =IFERROR(VLOOKUP($A71,FILTRO!$A65:$AY690,18,FALSE),0) -> 0 | U71: =CP71 & CQ71 ->  | CP71: =IF(AND(E71<>0,Q71=""), "* No olvide escribir en la celda de Pueblos Originarios (Digite CERO si no tiene). ",IF(AND(F71<>0,R71=""), "* No olvide escribir en la celda de Pueblos Originarios (Digite CERO si no tiene). ","")) ->  | CQ71: =IF(AND(E71<>0,S71=""), "* No olvide escribir en la celda de Población Migrantes (Digite CERO si no tiene). ",IF(AND(F71<>0,T71=""), "* No olvide escribir en la celda de Población Migrantes (Digite CERO si no tiene). ","")) ->  | DO71: =IF(AND(E71<>0,Q71=""), 1,IF(AND(F71<>0,R71=""), 1,0)) -> 0 | DP71: =IF(AND(E71<>0,S71=""), 1,IF(AND(F71<>0,T71=""), 1,0)) -> 0
C72: T O T A L | D72: =SUM(E72:F72) -> 17420 | E72: =SUM(E64:E69)+E71 -> 8790 | F72: 8630 | G72: 2586 | H72: 2502 | I72: 2151 | J72: 2012 | K72: 1667 | L72: 1668 | M72: 1374 | N72: 1392 | O72: 1057 | P72: 1056 | Q72: 120 | R72: 115 | S72: 275 | T72: 266 | U72: =CM72 & CN72 ->  | CM72: =IF($D72>=$Q72+$R72,"","* El Total de Pueblos Originarios no debe ser mayor al total de niños en control. ") ->  | CN72: =IF($D72>=$S72+$T72,"","* El Total de Pueblación Migrantes no debe ser mayor al total de niños en control. ") ->  | DL72: =IF($D72>=$Q72+$R72,0,1) -> 0 | DM72: =IF($D72>=$S72+$T72,0,1) -> 0
A73: P2501801 | B73: NIÑOS SIN EVALUACIÓN NUTRICIONAL POR CURSO DE VIDA (RECIÉN NACIDOS) O POR CONDICIÓN ESPECIAL DE SALUD | D73: =IFERROR(VLOOKUP($A73,FILTRO!$A67:$AY692,2,FALSE),0) -> 18 | E73: =IFERROR(VLOOKUP($A73,FILTRO!$A67:$AY692,3,FALSE),0) -> 8 | F73: =IFERROR(VLOOKUP($A73,FILTRO!$A67:$AY692,4,FALSE),0) -> 10 | G73: =IFERROR(VLOOKUP($A73,FILTRO!$A67:$AY692,5,FALSE),0) -> 1 | H73: =IFERROR(VLOOKUP($A73,FILTRO!$A67:$AY692,6,FALSE),0) -> 1 | I73: =IFERROR(VLOOKUP($A73,FILTRO!$A67:$AY692,7,FALSE),0) -> 2 | J73: =IFERROR(VLOOKUP($A73,FILTRO!$A67:$AY692,8,FALSE),0) -> 3 | K73: =IFERROR(VLOOKUP($A73,FILTRO!$A67:$AY692,9,FALSE),0) -> 1 | L73: =IFERROR(VLOOKUP($A73,FILTRO!$A67:$AY692,10,FALSE),0) -> 1 | M73: =IFERROR(VLOOKUP($A73,FILTRO!$A67:$AY692,11,FALSE),0) -> 1 | N73: =IFERROR(VLOOKUP($A73,FILTRO!$A67:$AY692,12,FALSE),0) -> 2 | O73: =IFERROR(VLOOKUP($A73,FILTRO!$A67:$AY692,13,FALSE),0) -> 3 | P73: =IFERROR(VLOOKUP($A73,FILTRO!$A67:$AY692,14,FALSE),0) -> 3 | Q73: =IFERROR(VLOOKUP($A73,FILTRO!$A67:$AY692,15,FALSE),0) -> 0 | R73: =IFERROR(VLOOKUP($A73,FILTRO!$A67:$AY692,16,FALSE),0) -> 0 | S73: =IFERROR(VLOOKUP($A73,FILTRO!$A67:$AY692,17,FALSE),0) -> 0 | T73: =IFERROR(VLOOKUP($A73,FILTRO!$A67:$AY692,18,FALSE),0) -> 0
B74: NOTA(*): El Diagnóstico Nutricional Integrado de Déficit para los niños (as) 5 años y más denomina Déficit Ponderal al Riesgo de Desnutrir.
B75: SECCION B: POBLACION EN CONTROL SEGÚN RESULTADO DE EVALUACIÓN DEL DESARROLLO PSICOMOTOR
B76: RESULTADO Y GRUPOS DE EDAD | D76: TOTAL | E76: Hombres | F76: Mujeres | G76: Pueblos Originarios | H76: Migrantes
A77: P2501802 | B77: NORMAL | C77: Menor de 12 meses | D77: =IFERROR(VLOOKUP($A77,FILTRO!$A71:$AY696,2,FALSE),0) -> 2386 | E77: =IFERROR(VLOOKUP($A77,FILTRO!$A71:$AY696,3,FALSE),0) -> 1210 | F77: =IFERROR(VLOOKUP($A77,FILTRO!$A71:$AY696,4,FALSE),0) -> 1176 | G77: =IFERROR(VLOOKUP($A77,FILTRO!$A71:$AY696,5,FALSE),0) -> 27 | H77: =IFERROR(VLOOKUP($A77,FILTRO!$A71:$AY696,6,FALSE),0) -> 8 | CF77: =IF($G1+$I1+$K1+$M1+$O1+$Q1+$S1+$U1<$E77+$E83,"* La suma de Población Masculina Menor de 12 meses según resultado de 'Riesgo y Retraso' no puede ser mayor que la Población Masculina bajo control de la sección A. ","") -> * La suma de Población Masculina Menor de 12 meses según resultado de 'Riesgo y Retraso' no puede ser mayor que la Población Masculina bajo control de la sección A. | CG77: =IF($H1+$J1+$L1+$N1+$P1+$R1+$T1+$V1<$F77+$F83,"* La suma de Población Femenina de Menor de 12 meses según resultado de 'Riesgo y Retraso' no puede ser mayor que la Población Femenina bajo control de la sección A. ","") -> * La suma de Población Femenina de Menor de 12 meses según resultado de 'Riesgo y Retraso' no puede ser mayor que la Población Femenina bajo control de la sección A. | DE77: =IF($G1+$I1+$K1+$M1+$O1+$Q1+$S1+$U1<$E77+$E83,1,0) -> 1 | DF77: =IF($H1+$J1+$L1+$N1+$P1+$R1+$T1+$V1<$F77+$F83,1,0) -> 1
A78: P2501803 | C78: 12 a 17 meses | D78: =IFERROR(VLOOKUP($A78,FILTRO!$A72:$AY697,2,FALSE),0) -> 819 | E78: =IFERROR(VLOOKUP($A78,FILTRO!$A72:$AY697,3,FALSE),0) -> 403 | F78: =IFERROR(VLOOKUP($A78,FILTRO!$A72:$AY697,4,FALSE),0) -> 416 | G78: =IFERROR(VLOOKUP($A78,FILTRO!$A72:$AY697,5,FALSE),0) -> 5 | H78: =IFERROR(VLOOKUP($A78,FILTRO!$A72:$AY697,6,FALSE),0) -> 6 | CF78: =IF($K$11<$E$90+$E$96,"* La suma de Población Masculina de 12 a 17 meses según resultado de 'Riesgo y Retraso' no puede ser mayor que la Población Masculina bajo control de la sección A. ","") ->  | CG78: =IF($L$11<$F$90+$F$96,"* La suma de Población Femenina de 12 a 17 meses según resultado de 'Riesgo y Retraso' no puede ser mayor que la Población Femenina bajo control de la sección A. ","") ->  | DE78: =IF($K$11<$E$90+$E$96,1,0) -> 0 | DF78: =IF($L$11<$F$90+$F$96,1,0) -> 0
A79: P2501804 | C79: 18 a 23 meses | D79: =IFERROR(VLOOKUP($A79,FILTRO!$A73:$AY698,2,FALSE),0) -> 2067 | E79: =IFERROR(VLOOKUP($A79,FILTRO!$A73:$AY698,3,FALSE),0) -> 981 | F79: =IFERROR(VLOOKUP($A79,FILTRO!$A73:$AY698,4,FALSE),0) -> 1086 | G79: =IFERROR(VLOOKUP($A79,FILTRO!$A73:$AY698,5,FALSE),0) -> 18 | H79: =IFERROR(VLOOKUP($A79,FILTRO!$A73:$AY698,6,FALSE),0) -> 17 | CF79: =IF($M$11<$E$91+$E$97,"* La suma de Población Masculina de 18 a 23 meses según resultado de 'Riesgo y Retraso' no puede ser mayor que la Población Masculina bajo control de la sección A. ","") ->  | CG79: =IF($N$11<$F$91+$F$97,"* La suma de Población Femenina de 18 a 23 meses según resultado de 'Riesgo y Retraso' no puede ser mayor que la Población Femenina bajo control de la sección A. ","") ->  | DE79: =IF($M$11<$E$91+$E$97,1,0) -> 0 | DF79: =IF($N$11<$F$91+$F$97,1,0) -> 0
A80: P2501805 | C80: 24 a 35 meses | D80: =IFERROR(VLOOKUP($A80,FILTRO!$A74:$AY699,2,FALSE),0) -> 979 | E80: =IFERROR(VLOOKUP($A80,FILTRO!$A74:$AY699,3,FALSE),0) -> 490 | F80: =IFERROR(VLOOKUP($A80,FILTRO!$A74:$AY699,4,FALSE),0) -> 489 | G80: =IFERROR(VLOOKUP($A80,FILTRO!$A74:$AY699,5,FALSE),0) -> 4 | H80: =IFERROR(VLOOKUP($A80,FILTRO!$A74:$AY699,6,FALSE),0) -> 3 | CF80: =IF($AA1+$AE1+$AC1<$E80+$E86,"* La suma de Población Masculina de 24 a 47 meses según resultado de 'Riesgo y Retraso' no puede ser mayor que la Población Masculina bajo control de la sección A. ","") -> * La suma de Población Masculina de 24 a 47 meses según resultado de 'Riesgo y Retraso' no puede ser mayor que la Población Masculina bajo control de la sección A. | CG80: =IF($AB1+$AF1+$AD1<$F80+$F86,"* La suma de Población Femenina de 24 a 47 meses según resultado de 'Riesgo y Retraso' no puede ser mayor que la Población Femenina bajo control de la sección A. ","") -> * La suma de Población Femenina de 24 a 47 meses según resultado de 'Riesgo y Retraso' no puede ser mayor que la Población Femenina bajo control de la sección A. | DE80: =IF($AA1+$AE1+$AC1<$E80+$E86,1,0) -> 1 | DF80: =IF($AB1+$AF1+$AD1<$F80+$F86,1,0) -> 1
A81: P2501806 | C81: 36 a 47 meses | D81: =IFERROR(VLOOKUP($A81,FILTRO!$A75:$AY700,2,FALSE),0) -> 2144 | E81: =IFERROR(VLOOKUP($A81,FILTRO!$A75:$AY700,3,FALSE),0) -> 1006 | F81: =IFERROR(VLOOKUP($A81,FILTRO!$A75:$AY700,4,FALSE),0) -> 1138 | G81: =IFERROR(VLOOKUP($A81,FILTRO!$A75:$AY700,5,FALSE),0) -> 27 | H81: =IFERROR(VLOOKUP($A81,FILTRO!$A75:$AY700,6,FALSE),0) -> 30
A82: P2501807 | C82: 48 a 59 meses | D82: =IFERROR(VLOOKUP($A82,FILTRO!$A76:$AY701,2,FALSE),0) -> 688 | E82: =IFERROR(VLOOKUP($A82,FILTRO!$A76:$AY701,3,FALSE),0) -> 371 | F82: =IFERROR(VLOOKUP($A82,FILTRO!$A76:$AY701,4,FALSE),0) -> 317 | G82: =IFERROR(VLOOKUP($A82,FILTRO!$A76:$AY701,5,FALSE),0) -> 7 | H82: =IFERROR(VLOOKUP($A82,FILTRO!$A76:$AY701,6,FALSE),0) -> 3 | CF82: =IF($S$11<$E$94+$E$100,"* La suma de Población Masculina de 48 a 59 meses según resultado de 'Riesgo y Retraso' no puede ser mayor que la Población Masculina bajo control de la sección A. ","") ->  | CG82: =IF($T$11<$F$94+$F$100,"* La suma de Población Femenina de 48 a 59 meses según resultado de 'Riesgo y Retraso' no puede ser mayor que la Población Femenina bajo control de la sección A. ","") ->  | DE82: =IF($S$11<$E$94+$E$100,1,0) -> 0 | DF82: =IF($T$11<$F$94+$F$100,1,0) -> 0
A83: P2501808 | B83: NORMAL CON REZAGO | C83: Menor de 12 meses | D83: =IFERROR(VLOOKUP($A83,FILTRO!$A77:$AY702,2,FALSE),0) -> 71 | E83: =IFERROR(VLOOKUP($A83,FILTRO!$A77:$AY702,3,FALSE),0) -> 42 | F83: =IFERROR(VLOOKUP($A83,FILTRO!$A77:$AY702,4,FALSE),0) -> 29 | G83: =IFERROR(VLOOKUP($A83,FILTRO!$A77:$AY702,5,FALSE),0) -> 0 | H83: =IFERROR(VLOOKUP($A83,FILTRO!$A77:$AY702,6,FALSE),0) -> 0 | CF83: =IF($G6+$I6+$K6+$M6+$O6+$Q6+$S6+$U6<$E83+$E89,"* La suma de Población Masculina Menor de 12 meses según resultado de 'Riesgo y Retraso' no puede ser mayor que la Población Masculina bajo control de la sección A. ","") -> * La suma de Población Masculina Menor de 12 meses según resultado de 'Riesgo y Retraso' no puede ser mayor que la Población Masculina bajo control de la sección A. | CG83: =IF($H6+$J6+$L6+$N6+$P6+$R6+$T6+$V6<$F83+$F89,"* La suma de Población Femenina de Menor de 12 meses según resultado de 'Riesgo y Retraso' no puede ser mayor que la Población Femenina bajo control de la sección A. ","") -> * La suma de Población Femenina de Menor de 12 meses según resultado de 'Riesgo y Retraso' no puede ser mayor que la Población Femenina bajo control de la sección A. | DE83: =IF($G6+$I6+$K6+$M6+$O6+$Q6+$S6+$U6<$E83+$E89,1,0) -> 1 | DF83: =IF($H6+$J6+$L6+$N6+$P6+$R6+$T6+$V6<$F83+$F89,1,0) -> 1
A84: P2501809 | C84: 12 a 17 meses | D84: =IFERROR(VLOOKUP($A84,FILTRO!$A78:$AY703,2,FALSE),0) -> 38 | E84: =IFERROR(VLOOKUP($A84,FILTRO!$A78:$AY703,3,FALSE),0) -> 20 | F84: =IFERROR(VLOOKUP($A84,FILTRO!$A78:$AY703,4,FALSE),0) -> 18 | G84: =IFERROR(VLOOKUP($A84,FILTRO!$A78:$AY703,5,FALSE),0) -> 1 | H84: =IFERROR(VLOOKUP($A84,FILTRO!$A78:$AY703,6,FALSE),0) -> 0 | CF84: =IF($K$11<$E$90+$E$96,"* La suma de Población Masculina de 12 a 17 meses según resultado de 'Riesgo y Retraso' no puede ser mayor que la Población Masculina bajo control de la sección A. ","") ->  | CG84: =IF($L$11<$F$90+$F$96,"* La suma de Población Femenina de 12 a 17 meses según resultado de 'Riesgo y Retraso' no puede ser mayor que la Población Femenina bajo control de la sección A. ","") ->  | DE84: =IF($K$11<$E$90+$E$96,1,0) -> 0 | DF84: =IF($L$11<$F$90+$F$96,1,0) -> 0
A85: P2501810 | C85: 18 a 23 meses | D85: =IFERROR(VLOOKUP($A85,FILTRO!$A79:$AY704,2,FALSE),0) -> 138 | E85: =IFERROR(VLOOKUP($A85,FILTRO!$A79:$AY704,3,FALSE),0) -> 84 | F85: =IFERROR(VLOOKUP($A85,FILTRO!$A79:$AY704,4,FALSE),0) -> 54 | G85: =IFERROR(VLOOKUP($A85,FILTRO!$A79:$AY704,5,FALSE),0) -> 4 | H85: =IFERROR(VLOOKUP($A85,FILTRO!$A79:$AY704,6,FALSE),0) -> 2 | CF85: =IF($M$11<$E$91+$E$97,"* La suma de Población Masculina de 18 a 23 meses según resultado de 'Riesgo y Retraso' no puede ser mayor que la Población Masculina bajo control de la sección A. ","") ->  | CG85: =IF($N$11<$F$91+$F$97,"* La suma de Población Femenina de 18 a 23 meses según resultado de 'Riesgo y Retraso' no puede ser mayor que la Población Femenina bajo control de la sección A. ","") ->  | DE85: =IF($M$11<$E$91+$E$97,1,0) -> 0 | DF85: =IF($N$11<$F$91+$F$97,1,0) -> 0
A86: P2501811 | C86: 24 a 35 meses | D86: =IFERROR(VLOOKUP($A86,FILTRO!$A80:$AY705,2,FALSE),0) -> 107 | E86: =IFERROR(VLOOKUP($A86,FILTRO!$A80:$AY705,3,FALSE),0) -> 78 | F86: =IFERROR(VLOOKUP($A86,FILTRO!$A80:$AY705,4,FALSE),0) -> 29 | G86: =IFERROR(VLOOKUP($A86,FILTRO!$A80:$AY705,5,FALSE),0) -> 2 | H86: =IFERROR(VLOOKUP($A86,FILTRO!$A80:$AY705,6,FALSE),0) -> 2 | CF86: =IF($AA6+$AE6+$AC6<$E86+$E92,"* La suma de Población Masculina de 24 a 47 meses según resultado de 'Riesgo y Retraso' no puede ser mayor que la Población Masculina bajo control de la sección A. ","") -> * La suma de Población Masculina de 24 a 47 meses según resultado de 'Riesgo y Retraso' no puede ser mayor que la Población Masculina bajo control de la sección A. | CG86: =IF($AB6+$AF6+$AD6<$F86+$F92,"* La suma de Población Femenina de 24 a 47 meses según resultado de 'Riesgo y Retraso' no puede ser mayor que la Población Femenina bajo control de la sección A. ","") -> * La suma de Población Femenina de 24 a 47 meses según resultado de 'Riesgo y Retraso' no puede ser mayor que la Población Femenina bajo control de la sección A. | DE86: =IF($AA6+$AE6+$AC6<$E86+$E92,1,0) -> 1 | DF86: =IF($AB6+$AF6+$AD6<$F86+$F92,1,0) -> 1
A87: P2501812 | C87: 36 a 47 meses | D87: =IFERROR(VLOOKUP($A87,FILTRO!$A81:$AY706,2,FALSE),0) -> 207 | E87: =IFERROR(VLOOKUP($A87,FILTRO!$A81:$AY706,3,FALSE),0) -> 106 | F87: =IFERROR(VLOOKUP($A87,FILTRO!$A81:$AY706,4,FALSE),0) -> 101 | G87: =IFERROR(VLOOKUP($A87,FILTRO!$A81:$AY706,5,FALSE),0) -> 3 | H87: =IFERROR(VLOOKUP($A87,FILTRO!$A81:$AY706,6,FALSE),0) -> 4
A88: P2501813 | C88: 48 a 59 meses | D88: =IFERROR(VLOOKUP($A88,FILTRO!$A82:$AY707,2,FALSE),0) -> 19 | E88: =IFERROR(VLOOKUP($A88,FILTRO!$A82:$AY707,3,FALSE),0) -> 15 | F88: =IFERROR(VLOOKUP($A88,FILTRO!$A82:$AY707,4,FALSE),0) -> 4 | G88: =IFERROR(VLOOKUP($A88,FILTRO!$A82:$AY707,5,FALSE),0) -> 0 | H88: =IFERROR(VLOOKUP($A88,FILTRO!$A82:$AY707,6,FALSE),0) -> 0 | CF88: =IF($S$11<$E$94+$E$100,"* La suma de Población Masculina de 48 a 59 meses según resultado de 'Riesgo y Retraso' no puede ser mayor que la Población Masculina bajo control de la sección A. ","") ->  | CG88: =IF($T$11<$F$94+$F$100,"* La suma de Población Femenina de 48 a 59 meses según resultado de 'Riesgo y Retraso' no puede ser mayor que la Población Femenina bajo control de la sección A. ","") ->  | DE88: =IF($S$11<$E$94+$E$100,1,0) -> 0 | DF88: =IF($T$11<$F$94+$F$100,1,0) -> 0
A89: P2100200 | B89: RIESGO | C89: Menor de 12 meses | D89: =IFERROR(VLOOKUP($A89,FILTRO!$A83:$AY708,2,FALSE),0) -> 115 | E89: =IFERROR(VLOOKUP($A89,FILTRO!$A83:$AY708,3,FALSE),0) -> 59 | F89: =IFERROR(VLOOKUP($A89,FILTRO!$A83:$AY708,4,FALSE),0) -> 56 | G89: =IFERROR(VLOOKUP($A89,FILTRO!$A83:$AY708,5,FALSE),0) -> 4 | H89: =IFERROR(VLOOKUP($A89,FILTRO!$A83:$AY708,6,FALSE),0) -> 2 | DE89: =IF(#REF!+#REF!+#REF!+#REF!+#REF!+#REF!+$G11+$I11<$E89+$E95,1,0) ->  | DF89: =IF(#REF!+#REF!+#REF!+#REF!+#REF!+#REF!+$H11+$J11<$F89+$F95,1,0) -> 
A90: P2300100 | C90: 12 a 17 meses | D90: =IFERROR(VLOOKUP($A90,FILTRO!$A84:$AY709,2,FALSE),0) -> 51 | E90: =IFERROR(VLOOKUP($A90,FILTRO!$A84:$AY709,3,FALSE),0) -> 34 | F90: =IFERROR(VLOOKUP($A90,FILTRO!$A84:$AY709,4,FALSE),0) -> 17 | G90: =IFERROR(VLOOKUP($A90,FILTRO!$A84:$AY709,5,FALSE),0) -> 3 | H90: =IFERROR(VLOOKUP($A90,FILTRO!$A84:$AY709,6,FALSE),0) -> 2 | DE90: =IF($K$11<$E$90+$E$96,1,0) -> 0 | DF90: =IF($L$11<$F$90+$F$96,1,0) -> 0
A91: P2300200 | C91: 18 a 23 meses | D91: =IFERROR(VLOOKUP($A91,FILTRO!$A85:$AY710,2,FALSE),0) -> 271 | E91: =IFERROR(VLOOKUP($A91,FILTRO!$A85:$AY710,3,FALSE),0) -> 169 | F91: =IFERROR(VLOOKUP($A91,FILTRO!$A85:$AY710,4,FALSE),0) -> 102 | G91: =IFERROR(VLOOKUP($A91,FILTRO!$A85:$AY710,5,FALSE),0) -> 3 | H91: =IFERROR(VLOOKUP($A91,FILTRO!$A85:$AY710,6,FALSE),0) -> 3 | DE91: =IF($M$11<$E$91+$E$97,1,0) -> 0 | DF91: =IF($N$11<$F$91+$F$97,1,0) -> 0
A92: P2501814 | C92: 24 a 35 meses | D92: =IFERROR(VLOOKUP($A92,FILTRO!$A86:$AY711,2,FALSE),0) -> 109 | E92: =IFERROR(VLOOKUP($A92,FILTRO!$A86:$AY711,3,FALSE),0) -> 72 | F92: =IFERROR(VLOOKUP($A92,FILTRO!$A86:$AY711,4,FALSE),0) -> 37 | G92: =IFERROR(VLOOKUP($A92,FILTRO!$A86:$AY711,5,FALSE),0) -> 3 | H92: =IFERROR(VLOOKUP($A92,FILTRO!$A86:$AY711,6,FALSE),0) -> 2 | DE92: =IF($O11+$Q11+#REF!<$E92+$E98,1,0) ->  | DF92: =IF($P11+$R11+#REF!<$F92+$F98,1,0) -> 
A93: P2501815 | C93: 36 a 47 meses | D93: =IFERROR(VLOOKUP($A93,FILTRO!$A87:$AY712,2,FALSE),0) -> 210 | E93: =IFERROR(VLOOKUP($A93,FILTRO!$A87:$AY712,3,FALSE),0) -> 127 | F93: =IFERROR(VLOOKUP($A93,FILTRO!$A87:$AY712,4,FALSE),0) -> 83 | G93: =IFERROR(VLOOKUP($A93,FILTRO!$A87:$AY712,5,FALSE),0) -> 4 | H93: =IFERROR(VLOOKUP($A93,FILTRO!$A87:$AY712,6,FALSE),0) -> 4
A94: P2100500 | C94: 48 a 59 meses | D94: =IFERROR(VLOOKUP($A94,FILTRO!$A88:$AY713,2,FALSE),0) -> 9 | E94: =IFERROR(VLOOKUP($A94,FILTRO!$A88:$AY713,3,FALSE),0) -> 7 | F94: =IFERROR(VLOOKUP($A94,FILTRO!$A88:$AY713,4,FALSE),0) -> 2 | G94: =IFERROR(VLOOKUP($A94,FILTRO!$A88:$AY713,5,FALSE),0) -> 0 | H94: =IFERROR(VLOOKUP($A94,FILTRO!$A88:$AY713,6,FALSE),0) -> 0 | CF94: =IF($S$11<$E$94+$E$100,"* La suma de Población Masculina de 48 a 59 meses según resultado de 'Riesgo y Retraso' no puede ser mayor que la Población Masculina bajo control de la sección A. ","") ->  | CG94: =IF($T$11<$F$94+$F$100,"* La suma de Población Femenina de 48 a 59 meses según resultado de 'Riesgo y Retraso' no puede ser mayor que la Población Femenina bajo control de la sección A. ","") ->  | DE94: =IF($S$11<$E$94+$E$100,1,0) -> 0 | DF94: =IF($T$11<$F$94+$F$100,1,0) -> 0
A95: P2100600 | B95: RETRASO | C95: Menor de 12 meses | D95: =IFERROR(VLOOKUP($A95,FILTRO!$A89:$AY714,2,FALSE),0) -> 53 | E95: =IFERROR(VLOOKUP($A95,FILTRO!$A89:$AY714,3,FALSE),0) -> 25 | F95: =IFERROR(VLOOKUP($A95,FILTRO!$A89:$AY714,4,FALSE),0) -> 28 | G95: =IFERROR(VLOOKUP($A95,FILTRO!$A89:$AY714,5,FALSE),0) -> 2 | H95: =IFERROR(VLOOKUP($A95,FILTRO!$A89:$AY714,6,FALSE),0) -> 0
A96: P2300300 | C96: 12 a 17 meses | D96: =IFERROR(VLOOKUP($A96,FILTRO!$A90:$AY715,2,FALSE),0) -> 12 | E96: =IFERROR(VLOOKUP($A96,FILTRO!$A90:$AY715,3,FALSE),0) -> 9 | F96: =IFERROR(VLOOKUP($A96,FILTRO!$A90:$AY715,4,FALSE),0) -> 3 | G96: =IFERROR(VLOOKUP($A96,FILTRO!$A90:$AY715,5,FALSE),0) -> 0 | H96: =IFERROR(VLOOKUP($A96,FILTRO!$A90:$AY715,6,FALSE),0) -> 0
A97: P2300400 | C97: 18 a 23 meses | D97: =IFERROR(VLOOKUP($A97,FILTRO!$A91:$AY716,2,FALSE),0) -> 136 | E97: =IFERROR(VLOOKUP($A97,FILTRO!$A91:$AY716,3,FALSE),0) -> 94 | F97: =IFERROR(VLOOKUP($A97,FILTRO!$A91:$AY716,4,FALSE),0) -> 42 | G97: =IFERROR(VLOOKUP($A97,FILTRO!$A91:$AY716,5,FALSE),0) -> 1 | H97: =IFERROR(VLOOKUP($A97,FILTRO!$A91:$AY716,6,FALSE),0) -> 2
A98: P2501816 | C98: 24 a 35 meses | D98: =IFERROR(VLOOKUP($A98,FILTRO!$A92:$AY717,2,FALSE),0) -> 24 | E98: =IFERROR(VLOOKUP($A98,FILTRO!$A92:$AY717,3,FALSE),0) -> 15 | F98: =IFERROR(VLOOKUP($A98,FILTRO!$A92:$AY717,4,FALSE),0) -> 9 | G98: =IFERROR(VLOOKUP($A98,FILTRO!$A92:$AY717,5,FALSE),0) -> 0 | H98: =IFERROR(VLOOKUP($A98,FILTRO!$A92:$AY717,6,FALSE),0) -> 1
A99: P2501817 | C99: 36 a 47 meses | D99: =IFERROR(VLOOKUP($A99,FILTRO!$A93:$AY718,2,FALSE),0) -> 95 | E99: =IFERROR(VLOOKUP($A99,FILTRO!$A93:$AY718,3,FALSE),0) -> 68 | F99: =IFERROR(VLOOKUP($A99,FILTRO!$A93:$AY718,4,FALSE),0) -> 27 | G99: =IFERROR(VLOOKUP($A99,FILTRO!$A93:$AY718,5,FALSE),0) -> 1 | H99: =IFERROR(VLOOKUP($A99,FILTRO!$A93:$AY718,6,FALSE),0) -> 1
A100: P2300000 | C100: 48 a 59 meses | D100: =IFERROR(VLOOKUP($A100,FILTRO!$A94:$AY719,2,FALSE),0) -> 12 | E100: =IFERROR(VLOOKUP($A100,FILTRO!$A94:$AY719,3,FALSE),0) -> 12 | F100: =IFERROR(VLOOKUP($A100,FILTRO!$A94:$AY719,4,FALSE),0) -> 0 | G100: =IFERROR(VLOOKUP($A100,FILTRO!$A94:$AY719,5,FALSE),0) -> 1 | H100: =IFERROR(VLOOKUP($A100,FILTRO!$A94:$AY719,6,FALSE),0) -> 0
B101: SECCION C: POBLACIÓN MENOR DE 1 AÑO EN CONTROL, SEGÚN SCORE RIESGO EN IRA Y VISITA DOMICILIARIA INTEGRAL
B102: RESULTADO | D102: TOTAL | E102: Diada, menor de 10 días | F102: 1 mes | G102: 2 meses | H102: 3 meses | I102: 4 meses | J102: 5 meses | K102: 6 meses | L102: 7 a 12 meses | M102: Total de Niños y Niñas que han recibido VDI | N102: Pueblos Originarios | O102: Migrantes
A104: P2090300 | B104: SCORE DE RIESGO | C104: LEVE | D104: =IFERROR(VLOOKUP($A104,FILTRO!$A98:$AY723,2,FALSE),0) -> 7422 | E104: =IFERROR(VLOOKUP($A104,FILTRO!$A98:$AY723,3,FALSE),0) -> 421 | F104: =IFERROR(VLOOKUP($A104,FILTRO!$A98:$AY723,4,FALSE),0) -> 780 | G104: =IFERROR(VLOOKUP($A104,FILTRO!$A98:$AY723,5,FALSE),0) -> 878 | H104: =IFERROR(VLOOKUP($A104,FILTRO!$A98:$AY723,6,FALSE),0) -> 678 | I104: =IFERROR(VLOOKUP($A104,FILTRO!$A98:$AY723,7,FALSE),0) -> 840 | J104: =IFERROR(VLOOKUP($A104,FILTRO!$A98:$AY723,8,FALSE),0) -> 607 | K104: =IFERROR(VLOOKUP($A104,FILTRO!$A98:$AY723,9,FALSE),0) -> 862 | L104: =IFERROR(VLOOKUP($A104,FILTRO!$A98:$AY723,10,FALSE),0) -> 2356 | M104: =IFERROR(VLOOKUP($A104,FILTRO!$A98:$AY723,11,FALSE),0) -> 0 | N104: =IFERROR(VLOOKUP($A104,FILTRO!$A98:$AY723,12,FALSE),0) -> 48 | O104: =IFERROR(VLOOKUP($A104,FILTRO!$A98:$AY723,13,FALSE),0) -> 22
A105: P2090400 | C105: MODERADO | D105: =IFERROR(VLOOKUP($A105,FILTRO!$A99:$AY724,2,FALSE),0) -> 1182 | E105: =IFERROR(VLOOKUP($A105,FILTRO!$A99:$AY724,3,FALSE),0) -> 24 | F105: =IFERROR(VLOOKUP($A105,FILTRO!$A99:$AY724,4,FALSE),0) -> 100 | G105: =IFERROR(VLOOKUP($A105,FILTRO!$A99:$AY724,5,FALSE),0) -> 130 | H105: =IFERROR(VLOOKUP($A105,FILTRO!$A99:$AY724,6,FALSE),0) -> 103 | I105: =IFERROR(VLOOKUP($A105,FILTRO!$A99:$AY724,7,FALSE),0) -> 136 | J105: =IFERROR(VLOOKUP($A105,FILTRO!$A99:$AY724,8,FALSE),0) -> 86 | K105: =IFERROR(VLOOKUP($A105,FILTRO!$A99:$AY724,9,FALSE),0) -> 148 | L105: =IFERROR(VLOOKUP($A105,FILTRO!$A99:$AY724,10,FALSE),0) -> 455 | M105: =IFERROR(VLOOKUP($A105,FILTRO!$A99:$AY724,11,FALSE),0) -> 173 | N105: =IFERROR(VLOOKUP($A105,FILTRO!$A99:$AY724,12,FALSE),0) -> 7 | O105: =IFERROR(VLOOKUP($A105,FILTRO!$A99:$AY724,13,FALSE),0) -> 3 | CH105: =IF($D105<$M105, "* Niños visitados no puede ser mayor que el total Score Moderado. ","") ->  | DF105: =IF($D105<$M105, 1,0) -> 0
A106: P2100100 | C106: GRAVE | D106: =IFERROR(VLOOKUP($A106,FILTRO!$A100:$AY725,2,FALSE),0) -> 474 | E106: =IFERROR(VLOOKUP($A106,FILTRO!$A100:$AY725,3,FALSE),0) -> 4 | F106: =IFERROR(VLOOKUP($A106,FILTRO!$A100:$AY725,4,FALSE),0) -> 37 | G106: =IFERROR(VLOOKUP($A106,FILTRO!$A100:$AY725,5,FALSE),0) -> 55 | H106: =IFERROR(VLOOKUP($A106,FILTRO!$A100:$AY725,6,FALSE),0) -> 35 | I106: =IFERROR(VLOOKUP($A106,FILTRO!$A100:$AY725,7,FALSE),0) -> 49 | J106: =IFERROR(VLOOKUP($A106,FILTRO!$A100:$AY725,8,FALSE),0) -> 63 | K106: =IFERROR(VLOOKUP($A106,FILTRO!$A100:$AY725,9,FALSE),0) -> 57 | L106: =IFERROR(VLOOKUP($A106,FILTRO!$A100:$AY725,10,FALSE),0) -> 174 | M106: =IFERROR(VLOOKUP($A106,FILTRO!$A100:$AY725,11,FALSE),0) -> 166 | N106: =IFERROR(VLOOKUP($A106,FILTRO!$A100:$AY725,12,FALSE),0) -> 2 | O106: =IFERROR(VLOOKUP($A106,FILTRO!$A100:$AY725,13,FALSE),0) -> 5 | CH106: =IF($D106<$M106, "* Niños visitados no puede ser mayor que el total Score Grave. ","") ->  | DF106: =IF($D106<$M106,1,0) -> 0
C107: TOTAL | D107: =SUM(E107:L107) -> 9078 | E107: =SUM(E104:E106) -> 449 | F107: 917 | G107: 1063 | H107: 816 | I107: 1025 | J107: 756 | K107: =SUM(K104:K106) -> 1067 | L107: 2985 | M107: =SUM(M105:M106) -> 339 | N107: =SUM(N104:N106) -> 57 | O107: =SUM(O104:O106) -> 30
B108: SECCION D: POBLACIÓN EN CONTROL EN EL SEMESTRE CON CONSULTA NUTRICIONAL, SEGÚN ESTRATEGIA
B109: NIÑO/A CON CONSULTA NUTRICIONAL EN | D109: TOTAL
A111: P2200700 | B111: Del 5to mes | D111: =IFERROR(VLOOKUP($A111,FILTRO!$A105:$AY730,2,FALSE),0) -> 2409
A112: P2200800 | B112: De los 3 años y 6 meses | D112: =IFERROR(VLOOKUP($A112,FILTRO!$A106:$AY731,2,FALSE),0) -> 1540
B113: SECCION E: POBLACIÓN INASISTENTE A CONTROL DEL NIÑO SANO (AL CORTE)
B114: EDAD | D114: TOTAL
A116: P2501818 | B116: 0 - 11 meses | D116: =IFERROR(VLOOKUP($A116,FILTRO!$A110:$AY735,2,FALSE),0) -> 551
A117: P2501819 | B117: 12 - 24 meses | D117: =IFERROR(VLOOKUP($A117,FILTRO!$A111:$AY736,2,FALSE),0) -> 914
A118: P2501820 | B118: 25 - 35 meses | D118: =IFERROR(VLOOKUP($A118,FILTRO!$A112:$AY737,2,FALSE),0) -> 1353
A119: P2501821 | B119: 36 - 59 meses | D119: =IFERROR(VLOOKUP($A119,FILTRO!$A113:$AY738,2,FALSE),0) -> 3229
A120: P2501822 | B120: 60 meses - 9 años | D120: =IFERROR(VLOOKUP($A120,FILTRO!$A114:$AY739,2,FALSE),0) -> 9998
B121: TOTAL | D121: =SUM(D116:D120) -> 16045
B122: SECCION F: POBLACIÓN INFANTIL SEGÚN DIAGNÓSTICO DE PRESIÓN ARTERIAL (Incluida en sección A y A1)
B123: CLASIFICACIÓN | D123: Total | G123: GRUPOS DE EDAD (en meses) | M123: Derivación Nivel Secundario
G124: 36 a 47 meses | I124: 48 a 71 meses | K124: 6-9 años
D125: Total | E125: Hombres | F125: Mujeres | G125: Hombres | H125: Mujeres | I125: Hombres | J125: Mujeres | K125: Hombres | L125: Mujeres
A126: P2300530 | B126: NORMAL (PA menor al percentil 90) | D126: =IFERROR(VLOOKUP($A126,FILTRO!$A120:$AY745,2,FALSE),0) -> 12741 | E126: =IFERROR(VLOOKUP($A126,FILTRO!$A120:$AY745,3,FALSE),0) -> 6181 | F126: =IFERROR(VLOOKUP($A126,FILTRO!$A120:$AY745,4,FALSE),0) -> 6560 | G126: =IFERROR(VLOOKUP($A126,FILTRO!$A120:$AY745,5,FALSE),0) -> 684 | H126: =IFERROR(VLOOKUP($A126,FILTRO!$A120:$AY745,6,FALSE),0) -> 769 | I126: =IFERROR(VLOOKUP($A126,FILTRO!$A120:$AY745,7,FALSE),0) -> 2102 | J126: =IFERROR(VLOOKUP($A126,FILTRO!$A120:$AY745,8,FALSE),0) -> 2199 | K126: =IFERROR(VLOOKUP($A126,FILTRO!$A120:$AY745,9,FALSE),0) -> 3395 | L126: =IFERROR(VLOOKUP($A126,FILTRO!$A120:$AY745,10,FALSE),0) -> 3592 | M126: =IFERROR(VLOOKUP($A126,FILTRO!$A120:$AY745,11,FALSE),0) -> 0 | CO126: =IF($G126<=SUM($Q$11:$R$11),"","* Niños(as) de 36 a 47 ms clasificados debe ser menor o igual al Total de la población de niños bajo control de en sección A misma edad. ") -> * Niños(as) de 36 a 47 ms clasificados debe ser menor o igual al Total de la población de niños bajo control de en sección A misma edad. | CP126: =IF($J126<=SUM($S$11:$T$11,$G$44:$H$44),"","* Niños(as) de 48 a 71 meses clasificados debe ser menor o igual al Total de la población de niños bajo control de en sección A y A1 de la misma edad. ") ->  | CQ126: =IF($L126<=SUM($O$44:$P$44),"","* Niños(as) de 6 a 9 años clasificados debe ser menor o igual al Total de la población de niños bajo control de en sección A1 misma edad ") -> * Niños(as) de 6 a 9 años clasificados debe ser menor o igual al Total de la población de niños bajo control de en sección A1 misma edad | DK126: =IF($G126<=SUM($Q$11:$R$11),0,1) -> 1 | DL126: =IF($J126<=SUM($S$11:$T$11,$G$44:$H$44),0,1) -> 0 | DM126: =IF($L126<=SUM($O$44:$P$44),0,1) -> 1
A127: P2300540 | B127: PRESIÓN ARTERIAL ELEVADA | D127: =IFERROR(VLOOKUP($A127,FILTRO!$A121:$AY746,2,FALSE),0) -> 697 | E127: =IFERROR(VLOOKUP($A127,FILTRO!$A121:$AY746,3,FALSE),0) -> 350 | F127: =IFERROR(VLOOKUP($A127,FILTRO!$A121:$AY746,4,FALSE),0) -> 347 | G127: =IFERROR(VLOOKUP($A127,FILTRO!$A121:$AY746,5,FALSE),0) -> 32 | H127: =IFERROR(VLOOKUP($A127,FILTRO!$A121:$AY746,6,FALSE),0) -> 29 | I127: =IFERROR(VLOOKUP($A127,FILTRO!$A121:$AY746,7,FALSE),0) -> 103 | J127: =IFERROR(VLOOKUP($A127,FILTRO!$A121:$AY746,8,FALSE),0) -> 117 | K127: =IFERROR(VLOOKUP($A127,FILTRO!$A121:$AY746,9,FALSE),0) -> 215 | L127: =IFERROR(VLOOKUP($A127,FILTRO!$A121:$AY746,10,FALSE),0) -> 201 | M127: =IFERROR(VLOOKUP($A127,FILTRO!$A121:$AY746,11,FALSE),0) -> 3 | CO127: =IF($G127<=SUM($Q$11:$R$11),"","* Niños(as) de 36 a 47 ms clasificados debe ser menor o igual al Total de la población de niños bajo control de en sección A misma edad. ") ->  | CP127: =IF($J127<=SUM($S$11:$T$11,$G$44:$H$44),"","* Niños(as) de 48 a 71 meses clasificados debe ser menor o igual al Total de la población de niños bajo control de en sección A y A1 de la misma edad. ") ->  | CQ127: =IF($L127<=SUM($O$44:$P$44),"","* Niños(as) de 6 a 9 años clasificados debe ser menor o igual al Total de la población de niños bajo control de en sección A1 misma edad ") ->  | DK127: =IF($G127<=SUM($Q$11:$R$11),0,1) -> 0 | DL127: =IF($J127<=SUM($S$11:$T$11,$G$44:$H$44),0,1) -> 0 | DM127: =IF($L127<=SUM($O$44:$P$44),0,1) -> 0
A128: P2300550 | B128: HTA ESTADIO I | D128: =IFERROR(VLOOKUP($A128,FILTRO!$A122:$AY747,2,FALSE),0) -> 236 | E128: =IFERROR(VLOOKUP($A128,FILTRO!$A122:$AY747,3,FALSE),0) -> 122 | F128: =IFERROR(VLOOKUP($A128,FILTRO!$A122:$AY747,4,FALSE),0) -> 114 | G128: =IFERROR(VLOOKUP($A128,FILTRO!$A122:$AY747,5,FALSE),0) -> 17 | H128: =IFERROR(VLOOKUP($A128,FILTRO!$A122:$AY747,6,FALSE),0) -> 17 | I128: =IFERROR(VLOOKUP($A128,FILTRO!$A122:$AY747,7,FALSE),0) -> 34 | J128: =IFERROR(VLOOKUP($A128,FILTRO!$A122:$AY747,8,FALSE),0) -> 31 | K128: =IFERROR(VLOOKUP($A128,FILTRO!$A122:$AY747,9,FALSE),0) -> 71 | L128: =IFERROR(VLOOKUP($A128,FILTRO!$A122:$AY747,10,FALSE),0) -> 66 | M128: =IFERROR(VLOOKUP($A128,FILTRO!$A122:$AY747,11,FALSE),0) -> 4 | CO128: =IF($G128<=SUM($Q$11:$R$11),"","* Niños(as) de 36 a 47 ms clasificados debe ser menor o igual al Total de la población de niños bajo control de en sección A misma edad. ") ->  | CP128: =IF($J128<=SUM($S$11:$T$11,$G$44:$H$44),"","* Niños(as) de 48 a 71 meses clasificados debe ser menor o igual al Total de la población de niños bajo control de en sección A y A1 de la misma edad. ") ->  | CQ128: =IF($L128<=SUM($O$44:$P$44),"","* Niños(as) de 6 a 9 años clasificados debe ser menor o igual al Total de la población de niños bajo control de en sección A1 misma edad ") ->  | DK128: =IF($G128<=SUM($Q$11:$R$11),0,1) -> 0 | DL128: =IF($J128<=SUM($S$11:$T$11,$G$44:$H$44),0,1) -> 0 | DM128: =IF($L128<=SUM($O$44:$P$44),0,1) -> 0
A129: P2300560 | B129: HTA ESTADIO II | D129: =IFERROR(VLOOKUP($A129,FILTRO!$A123:$AY748,2,FALSE),0) -> 56 | E129: =IFERROR(VLOOKUP($A129,FILTRO!$A123:$AY748,3,FALSE),0) -> 31 | F129: =IFERROR(VLOOKUP($A129,FILTRO!$A123:$AY748,4,FALSE),0) -> 25 | G129: =IFERROR(VLOOKUP($A129,FILTRO!$A123:$AY748,5,FALSE),0) -> 3 | H129: =IFERROR(VLOOKUP($A129,FILTRO!$A123:$AY748,6,FALSE),0) -> 8 | I129: =IFERROR(VLOOKUP($A129,FILTRO!$A123:$AY748,7,FALSE),0) -> 15 | J129: =IFERROR(VLOOKUP($A129,FILTRO!$A123:$AY748,8,FALSE),0) -> 5 | K129: =IFERROR(VLOOKUP($A129,FILTRO!$A123:$AY748,9,FALSE),0) -> 13 | L129: =IFERROR(VLOOKUP($A129,FILTRO!$A123:$AY748,10,FALSE),0) -> 12 | M129: =IFERROR(VLOOKUP($A129,FILTRO!$A123:$AY748,11,FALSE),0) -> 10 | CO129: =IF($G129<=SUM($Q$11:$R$11),"","* Niños(as) de 36 a 47 ms clasificados debe ser menor o igual al Total de la población de niños bajo control de en sección A misma edad. ") ->  | CP129: =IF($J129<=SUM($S$11:$T$11,$G$44:$H$44),"","* Niños(as) de 48 a 71 meses clasificados debe ser menor o igual al Total de la población de niños bajo control de en sección A y A1 de la misma edad. ") ->  | CQ129: =IF($L129<=SUM($O$44:$P$44),"","* Niños(as) de 6 a 9 años clasificados debe ser menor o igual al Total de la población de niños bajo control de en sección A1 misma edad ") ->  | DK129: =IF($G129<=SUM($Q$11:$R$11),0,1) -> 0 | DL129: =IF($J129<=SUM($S$11:$T$11,$G$44:$H$44),0,1) -> 0 | DM129: =IF($L129<=SUM($O$44:$P$44),0,1) -> 0
B130: TOTAL | D130: =SUM(E130:F130) -> 13730 | E130: =+G130+I130+K130 -> 6684 | F130: =+H130+J130+L130 -> 7046 | G130: =SUM(G126:G129) -> 736 | H130: =SUM(H126:H129) -> 823 | I130: =SUM(I126:I129) -> 2254 | J130: 2352 | K130: 3694 | L130: =SUM(L126:L129) -> 3871 | M130: =SUM(M126:M129) -> 17 | CO130: =IF($G130<=SUM(Q11:R11),"","* Niños(as) de 36 a 47 ms clasificados debe ser menor o igual al Total de la población de niños bajo control de en sección A misma edad. ") -> * Niños(as) de 36 a 47 ms clasificados debe ser menor o igual al Total de la población de niños bajo control de en sección A misma edad. | CP130: =IF($J130<=SUM($S$11:$T$11,$G$44:$H$44),"","* Niños(as) de 48 a 71 meses clasificados debe ser menor o igual al Total de la población de niños bajo control de en sección A y A1 de la misma edad. ") ->  | CQ130: =IF($L130<=SUM($O$44:$P$44),"","* Niños(as) de 6 a 9 años clasificados debe ser menor o igual al Total de la población de niños bajo control de en sección A1 misma edad ") -> * Niños(as) de 6 a 9 años clasificados debe ser menor o igual al Total de la población de niños bajo control de en sección A1 misma edad | DK130: =IF($G130<=SUM($Q$11:$R$11),0,1) -> 1 | DL130: =IF($J130<=SUM($S$11:$T$11,$G$44:$H$44),0,1) -> 0 | DM130: =IF($L130<=SUM($O$44:$P$44),0,1) -> 1
B131: SECCION G: POBLACIÓN INFANTIL EUTRÓFICA, SEGÚN RIESGO DE MALNUTRICIÓN POR EXCESO (Incluida en sección A y A1)
B132: RESULTADO | D132: TOTAL | E132: GRUPOS DE EDAD (en meses)
E133: 4 a 11 meses | F133: 12 a 23 meses | G133: 24 a 35 meses | H133: 36 a 47 meses | I133: 48 a 59 meses | J133: 60 a 71 meses
A134: P2300570 | B134: SIN RIESGO | D134: =IFERROR(VLOOKUP($A134,FILTRO!$A128:$AY753,2,FALSE),0) -> 9456 | E134: =IFERROR(VLOOKUP($A134,FILTRO!$A128:$AY753,3,FALSE),0) -> 1378 | F134: =IFERROR(VLOOKUP($A134,FILTRO!$A128:$AY753,4,FALSE),0) -> 1903 | G134: =IFERROR(VLOOKUP($A134,FILTRO!$A128:$AY753,5,FALSE),0) -> 1713 | H134: =IFERROR(VLOOKUP($A134,FILTRO!$A128:$AY753,6,FALSE),0) -> 1640 | I134: =IFERROR(VLOOKUP($A134,FILTRO!$A128:$AY753,7,FALSE),0) -> 1568 | J134: =IFERROR(VLOOKUP($A134,FILTRO!$A128:$AY753,8,FALSE),0) -> 1254 | K134: =CG134 & CH134 & CI134 & CJ134 & CK134 & CL134 -> * Niños(as) de 4 a 11 ms clasificados debe ser menor o igual al Total niños diagnostidos en NORMAL sección A misma edad. * Niños(as) de 12 a 23 ms clasificados debe ser menor o igual al Total niños diagnosticados en NORMAL en sección A misma edad. * Niños(as) de 24 a 35 ms clasificados debe ser menor o igual al Total niños diagnosticados en NORMAL en sección A misma edad. * Niños(as) de 36 a 47 ms clasificados debe ser menor o igual al Total niños diagnosticos en NORMAL en sección A misma edad. * Niños(as) de 48 a 59 ms clasificados debe ser menor o igual al Total niños diagnosticados en NORMAL en sección A misma edad. | CG134: =IF($E134<=SUM($G$35:$J$35),"","* Niños(as) de 4 a 11 ms clasificados debe ser menor o igual al Total niños diagnostidos en NORMAL sección A misma edad. ") -> * Niños(as) de 4 a 11 ms clasificados debe ser menor o igual al Total niños diagnostidos en NORMAL sección A misma edad. | CH134: =IF($F134<=SUM($K$35:$N$35),"","* Niños(as) de 12 a 23 ms clasificados debe ser menor o igual al Total niños diagnosticados en NORMAL en sección A misma edad. ") -> * Niños(as) de 12 a 23 ms clasificados debe ser menor o igual al Total niños diagnosticados en NORMAL en sección A misma edad. | CI134: =IF($G134<=SUM($O$35:$P$35),"","* Niños(as) de 24 a 35 ms clasificados debe ser menor o igual al Total niños diagnosticados en NORMAL en sección A misma edad. ") -> * Niños(as) de 24 a 35 ms clasificados debe ser menor o igual al Total niños diagnosticados en NORMAL en sección A misma edad. | CJ134: =IF($H134<=SUM($Q$35:$R$35),"","* Niños(as) de 36 a 47 ms clasificados debe ser menor o igual al Total niños diagnosticos en NORMAL en sección A misma edad. ") -> * Niños(as) de 36 a 47 ms clasificados debe ser menor o igual al Total niños diagnosticos en NORMAL en sección A misma edad. | CK134: =IF($I134<=SUM($S$35:$T$35),"","* Niños(as) de 48 a 59 ms clasificados debe ser menor o igual al Total niños diagnosticados en NORMAL en sección A misma edad. ") -> * Niños(as) de 48 a 59 ms clasificados debe ser menor o igual al Total niños diagnosticados en NORMAL en sección A misma edad. | CL134: =IF($J134<=SUM($G$69:$H$69),"","* Niños(as) de 60 a 71 ms clasificados debe ser menor o igual al Total niños diagnosticados en NORMAL en sección A1 misma edad. ") ->  | DF134: =IF($E134<=SUM($G$35:$J$35),0,1) -> 1 | DG134: =IF($F134<=SUM($K$35:$N$35),0,1) -> 1 | DH134: =IF($G134<=SUM($O$35:$P$35),0,1) -> 1 | DI134: =IF($H134<=SUM($Q$35:$R$35),0,1) -> 1 | DJ134: =IF($I134<=SUM($S$35:$T$35),0,1) -> 1 | DK134: =IF($J134<=SUM($G$69:$H$69),0,1) -> 0
A135: P2300580 | B135: CON RIESGO | D135: =IFERROR(VLOOKUP($A135,FILTRO!$A129:$AY754,2,FALSE),0) -> 4195 | E135: =IFERROR(VLOOKUP($A135,FILTRO!$A129:$AY754,3,FALSE),0) -> 681 | F135: =IFERROR(VLOOKUP($A135,FILTRO!$A129:$AY754,4,FALSE),0) -> 888 | G135: =IFERROR(VLOOKUP($A135,FILTRO!$A129:$AY754,5,FALSE),0) -> 705 | H135: =IFERROR(VLOOKUP($A135,FILTRO!$A129:$AY754,6,FALSE),0) -> 595 | I135: =IFERROR(VLOOKUP($A135,FILTRO!$A129:$AY754,7,FALSE),0) -> 704 | J135: =IFERROR(VLOOKUP($A135,FILTRO!$A129:$AY754,8,FALSE),0) -> 622 | K135: =CG135 & CH135 & CI135 & CJ135 & CK135 & CL135 -> * Niños(as) de 4 a 11 ms clasificados debe ser menor o igual al Total niños diagnostidos en NORMAL sección A misma edad. * Niños(as) de 24 a 35 ms clasificados debe ser menor o igual al Total niños diagnosticados en NORMAL en sección A misma edad. * Niños(as) de 36 a 47 ms clasificados debe ser menor o igual al Total niños diagnosticos en NORMAL en sección A misma edad. * Niños(as) de 48 a 59 ms clasificados debe ser menor o igual al Total niños diagnosticados en NORMAL en sección A misma edad. | CG135: =IF($E135<=SUM($G$35:$J$35),"","* Niños(as) de 4 a 11 ms clasificados debe ser menor o igual al Total niños diagnostidos en NORMAL sección A misma edad. ") -> * Niños(as) de 4 a 11 ms clasificados debe ser menor o igual al Total niños diagnostidos en NORMAL sección A misma edad. | CH135: =IF($F135<=SUM($K$35:$N$35),"","* Niños(as) de 12 a 23 ms clasificados debe ser menor o igual al Total niños diagnosticados en NORMAL en sección A misma edad. ") ->  | CI135: =IF($G135<=SUM($O$35:$P$35),"","* Niños(as) de 24 a 35 ms clasificados debe ser menor o igual al Total niños diagnosticados en NORMAL en sección A misma edad. ") -> * Niños(as) de 24 a 35 ms clasificados debe ser menor o igual al Total niños diagnosticados en NORMAL en sección A misma edad. | CJ135: =IF($H135<=SUM($Q$35:$R$35),"","* Niños(as) de 36 a 47 ms clasificados debe ser menor o igual al Total niños diagnosticos en NORMAL en sección A misma edad. ") -> * Niños(as) de 36 a 47 ms clasificados debe ser menor o igual al Total niños diagnosticos en NORMAL en sección A misma edad. | CK135: =IF($I135<=SUM($S$35:$T$35),"","* Niños(as) de 48 a 59 ms clasificados debe ser menor o igual al Total niños diagnosticados en NORMAL en sección A misma edad. ") -> * Niños(as) de 48 a 59 ms clasificados debe ser menor o igual al Total niños diagnosticados en NORMAL en sección A misma edad. | CL135: =IF($J135<=SUM($G$69:$H$69),"","* Niños(as) de 60 a 71 ms clasificados debe ser menor o igual al Total niños diagnosticados en NORMAL en sección A1 misma edad. ") ->  | DF135: =IF($E135<=SUM($G$35:$J$35),0,1) -> 1 | DG135: =IF($F135<=SUM($K$35:$N$35),0,1) -> 0 | DH135: =IF($G135<=SUM($O$35:$P$35),0,1) -> 1 | DI135: =IF($H135<=SUM($Q$35:$R$35),0,1) -> 1 | DJ135: =IF($I135<=SUM($S$35:$T$35),0,1) -> 1 | DK135: =IF($J135<=SUM($G$69:$H$69),0,1) -> 0
B136: TOTAL | D136: =SUM(E136:J136) -> 13651 | E136: =SUM(E134:E135) -> 2059 | F136: 2791 | G136: 2418 | H136: 2235 | I136: 2272 | J136: 1876 | K136: =CG136 & CH136 & CI136 & CJ136 & CK136 & CL136 -> * Niños(as) de 4 a 11 ms clasificados debe ser menor o igual al Total niños diagnostidos en NORMAL sección A misma edad. * Niños(as) de 12 a 23 ms clasificados debe ser menor o igual al Total niños diagnosticados en NORMAL en sección A misma edad. * Niños(as) de 24 a 35 ms clasificados debe ser menor o igual al Total niños diagnosticados en NORMAL en sección A misma edad. * Niños(as) de 36 a 47 ms clasificados debe ser menor o igual al Total niños diagnosticos en NORMAL en sección A misma edad. * Niños(as) de 48 a 59 ms clasificados debe ser menor o igual al Total niños diagnosticados en NORMAL en sección A misma edad. | CG136: =IF($E136<=SUM($G$35:$J$35),"","* Niños(as) de 4 a 11 ms clasificados debe ser menor o igual al Total niños diagnostidos en NORMAL sección A misma edad. ") -> * Niños(as) de 4 a 11 ms clasificados debe ser menor o igual al Total niños diagnostidos en NORMAL sección A misma edad. | CH136: =IF($F136<=SUM($K$35:$N$35),"","* Niños(as) de 12 a 23 ms clasificados debe ser menor o igual al Total niños diagnosticados en NORMAL en sección A misma edad. ") -> * Niños(as) de 12 a 23 ms clasificados debe ser menor o igual al Total niños diagnosticados en NORMAL en sección A misma edad. | CI136: =IF($G136<=SUM($O$35:$P$35),"","* Niños(as) de 24 a 35 ms clasificados debe ser menor o igual al Total niños diagnosticados en NORMAL en sección A misma edad. ") -> * Niños(as) de 24 a 35 ms clasificados debe ser menor o igual al Total niños diagnosticados en NORMAL en sección A misma edad. | CJ136: =IF($H136<=SUM($Q$35:$R$35),"","* Niños(as) de 36 a 47 ms clasificados debe ser menor o igual al Total niños diagnosticos en NORMAL en sección A misma edad. ") -> * Niños(as) de 36 a 47 ms clasificados debe ser menor o igual al Total niños diagnosticos en NORMAL en sección A misma edad. | CK136: =IF($I136<=SUM($S$35:$T$35),"","* Niños(as) de 48 a 59 ms clasificados debe ser menor o igual al Total niños diagnosticados en NORMAL en sección A misma edad. ") -> * Niños(as) de 48 a 59 ms clasificados debe ser menor o igual al Total niños diagnosticados en NORMAL en sección A misma edad. | CL136: =IF($J136<=SUM($G$69:$H$69),"","* Niños(as) de 60 a 71 ms clasificados debe ser menor o igual al Total niños diagnosticados en NORMAL en sección A1 misma edad. ") ->  | DF136: =IF($E136<=SUM($G$35:$J$35),0,1) -> 1 | DG136: =IF($F136<=SUM($K$35:$N$35),0,1) -> 1 | DH136: =IF($G136<=SUM($O$35:$P$35),0,1) -> 1 | DI136: =IF($H136<=SUM($Q$35:$R$35),0,1) -> 1 | DJ136: =IF($I136<=SUM($S$35:$T$35),0,1) -> 1 | DK136: =IF($J136<=SUM($G$69:$H$69),0,1) -> 0
B137: SECCION H: POBLACIÓN SEGÚN DIAGNÓSTICO DE NIÑOS, NIÑAS Y ADOLESCENTES CON NECESIDADES ESPECIALES DE ATENCIÓN EN SALUD (NANEAS) (Incluida en sección A y A1)
B138: DIAGNOSTICOS | D138: TOTAL | G138: GRUPOS DE EDAD (en meses - años) Y SEXO | AS138: Pueblos Originarios | AU138: Población Migrantes
G139: Menor de 1 mes | I139: 1 mes | K139: 2 meses | M139: 3 meses | O139: 4 meses | Q139: 5 meses | S139: 6 meses | U139: 7 a 11 meses | W139: 12 a 17 meses | Y139: 18 a 23 meses | AA139: 24 a 35 meses | AC139: 36 a 41 meses | AE139: 42 a 47 meses | AG139: 48 a 59 meses | AI139: 60 a 71 meses | AK139: 6 a 7 años | AM139: 8 a 9 años | AO139: 10 a 14 años | AQ139: 15 a 19 años
D140: Ambos sexos | E140: Hombres | F140: Mujeres | G140: Hombres | H140: Mujeres | I140: Hombres | J140: Mujeres | K140: Hombres | L140: Mujeres | M140: Hombres | N140: Mujeres | O140: Hombres | P140: Mujeres | Q140: Hombres | R140: Mujeres | S140: Hombres | T140: Mujeres | U140: Hombres | V140: Mujeres | W140: Hombres | X140: Mujeres | Y140: Hombres | Z140: Mujeres | AA140: Hombres | AB140: Mujeres | AC140: Hombres | AD140: Mujeres | AE140: Hombres | AF140: Mujeres | AG140: Hombres | AH140: Mujeres | AI140: Hombres | AJ140: Mujeres | AK140: Hombres | AL140: Mujeres | AM140: Hombres | AN140: Mujeres | AO140: Hombres | AP140: Mujeres | AQ140: Hombres | AR140: Mujeres | AS140: Hombres | AT140: Mujeres | AU140: Hombres | AV140: Mujeres
B141: TOTAL POBLACIÓN NANEAS BAJO CONTROL | D141: =SUM(E141:F141) -> 4633 | E141: =+G141+I141+K141+M141+O141+Q141+S141+U141+W141+Y141+AA141+AC141+AE141+AG141+AI141+AO141+AQ141+AK141+AM141 -> 2691 | F141: 1942 | G141: =SUM(G142:G185) -> 4 | H141: =SUM(H142:H185) -> 4 | I141: 18 | J141: 10 | K141: 26 | L141: 15 | M141: 21 | N141: 18 | O141: 24 | P141: 19 | Q141: 26 | R141: 19 | S141: 30 | T141: 31 | U141: 134 | V141: 99 | W141: 181 | X141: 134 | Y141: 130 | Z141: 67 | AA141: 208 | AB141: 183 | AC141: 218 | AD141: 126 | AE141: 62 | AF141: 31 | AG141: 303 | AH141: 224 | AI141: 304 | AJ141: 178 | AK141: 392 | AL141: 287 | AM141: 285 | AN141: 220 | AO141: 217 | AP141: 178 | AQ141: 108 | AR141: 99 | AS141: 8 | AT141: 9 | AU141: 7 | AV141: 10 | AW141: =CG141&CH141&CI141&CJ141 -> 
A142: P2500400 | B142: Síndrome de Down | D142: =IFERROR(VLOOKUP($A142,FILTRO!$A136:$AY761,2,FALSE),0) -> 119 | E142: =IFERROR(VLOOKUP($A142,FILTRO!$A136:$AY761,3,FALSE),0) -> 49 | F142: =IFERROR(VLOOKUP($A142,FILTRO!$A136:$AY761,4,FALSE),0) -> 70 | G142: =IFERROR(VLOOKUP($A142,FILTRO!$A136:$AY761,5,FALSE),0) -> 0 | H142: =IFERROR(VLOOKUP($A142,FILTRO!$A136:$AY761,6,FALSE),0) -> 0 | I142: =IFERROR(VLOOKUP($A142,FILTRO!$A136:$AY761,7,FALSE),0) -> 0 | J142: =IFERROR(VLOOKUP($A142,FILTRO!$A136:$AY761,8,FALSE),0) -> 0 | K142: =IFERROR(VLOOKUP($A142,FILTRO!$A136:$AY761,9,FALSE),0) -> 0 | L142: =IFERROR(VLOOKUP($A142,FILTRO!$A136:$AY761,10,FALSE),0) -> 1 | M142: =IFERROR(VLOOKUP($A142,FILTRO!$A136:$AY761,11,FALSE),0) -> 1 | N142: =IFERROR(VLOOKUP($A142,FILTRO!$A136:$AY761,12,FALSE),0) -> 1 | O142: =IFERROR(VLOOKUP($A142,FILTRO!$A136:$AY761,13,FALSE),0) -> 3 | P142: =IFERROR(VLOOKUP($A142,FILTRO!$A136:$AY761,14,FALSE),0) -> 2 | Q142: =IFERROR(VLOOKUP($A142,FILTRO!$A136:$AY761,15,FALSE),0) -> 1 | R142: =IFERROR(VLOOKUP($A142,FILTRO!$A136:$AY761,16,FALSE),0) -> 0 | S142: =IFERROR(VLOOKUP($A142,FILTRO!$A136:$AY761,17,FALSE),0) -> 0 | T142: =IFERROR(VLOOKUP($A142,FILTRO!$A136:$AY761,18,FALSE),0) -> 0 | U142: =IFERROR(VLOOKUP($A142,FILTRO!$A136:$AY761,19,FALSE),0) -> 1 | V142: =IFERROR(VLOOKUP($A142,FILTRO!$A136:$AY761,20,FALSE),0) -> 5 | W142: =IFERROR(VLOOKUP($A142,FILTRO!$A136:$AY761,21,FALSE),0) -> 2 | X142: =IFERROR(VLOOKUP($A142,FILTRO!$A136:$AY761,22,FALSE),0) -> 6 | Y142: =IFERROR(VLOOKUP($A142,FILTRO!$A136:$AY761,23,FALSE),0) -> 2 | Z142: =IFERROR(VLOOKUP($A142,FILTRO!$A136:$AY761,24,FALSE),0) -> 4 | AA142: =IFERROR(VLOOKUP($A142,FILTRO!$A136:$AY761,25,FALSE),0) -> 9 | AB142: =IFERROR(VLOOKUP($A142,FILTRO!$A136:$AY761,26,FALSE),0) -> 8 | AC142: =IFERROR(VLOOKUP($A142,FILTRO!$A136:$AY761,27,FALSE),0) -> 5 | AD142: =IFERROR(VLOOKUP($A142,FILTRO!$A136:$AY761,28,FALSE),0) -> 4 | AE142: =IFERROR(VLOOKUP($A142,FILTRO!$A136:$AY761,29,FALSE),0) -> 1 | AF142: =IFERROR(VLOOKUP($A142,FILTRO!$A136:$AY761,30,FALSE),0) -> 0 | AG142: =IFERROR(VLOOKUP($A142,FILTRO!$A136:$AY761,31,FALSE),0) -> 8 | AH142: =IFERROR(VLOOKUP($A142,FILTRO!$A136:$AY761,32,FALSE),0) -> 8 | AI142: =IFERROR(VLOOKUP($A142,FILTRO!$A136:$AY761,33,FALSE),0) -> 7 | AJ142: =IFERROR(VLOOKUP($A142,FILTRO!$A136:$AY761,34,FALSE),0) -> 9 | AK142: =IFERROR(VLOOKUP($A142,FILTRO!$A136:$AY761,35,FALSE),0) -> 4 | AL142: =IFERROR(VLOOKUP($A142,FILTRO!$A136:$AY761,36,FALSE),0) -> 14 | AM142: =IFERROR(VLOOKUP($A142,FILTRO!$A136:$AY761,37,FALSE),0) -> 4 | AN142: =IFERROR(VLOOKUP($A142,FILTRO!$A136:$AY761,38,FALSE),0) -> 3 | AO142: =IFERROR(VLOOKUP($A142,FILTRO!$A136:$AY761,39,FALSE),0) -> 3 | AP142: =IFERROR(VLOOKUP($A142,FILTRO!$A136:$AY761,40,FALSE),0) -> 3 | AQ142: =IFERROR(VLOOKUP($A142,FILTRO!$A136:$AY761,41,FALSE),0) -> 0 | AR142: =IFERROR(VLOOKUP($A142,FILTRO!$A136:$AY761,42,FALSE),0) -> 4 | AS142: =IFERROR(VLOOKUP($A142,FILTRO!$A136:$AY761,43,FALSE),0) -> 1 | AT142: =IFERROR(VLOOKUP($A142,FILTRO!$A136:$AY761,44,FALSE),0) -> 0 | AU142: =IFERROR(VLOOKUP($A142,FILTRO!$A136:$AY761,45,FALSE),0) -> 1 | AV142: =IFERROR(VLOOKUP($A142,FILTRO!$A136:$AY761,46,FALSE),0) -> 1 | AW142: =CG142&CH142&CI142&CJ142 ->  | CG142: =IF(DF142=1,"* No olvide escribir en las celdas de ""Pueblos Originarios"" (Digite Cero si no tiene).","") ->  | CH142: =IF(DG142=1,"* No olvide escribir en las celdas de ""Población Migrante"" (Digite Cero si no tiene).","") ->  | CI142: =IF(DH142=1,"* La suma de las celdas de ""Pueblos Originarios""no debe superar el Total.","") ->  | CJ142: =IF(DI142=1,"* La suma de las celdas de ""Población Migrante"" no debe superar el Total.","") ->  | DF142: =IF(AND($D142<>0,OR(AS142="",AT142="")),1,0) -> 0 | DG142: =IF(AND($D142<>0,OR(AU142="",AV142="")),1,0) -> 0 | DH142: =IF((AS142+AT142)>$D142,1,0) -> 0 | DI142: =IF((AV142+AU142)>$D142,1,0) -> 0
A143: P2500500 | B143: Trastorno del Espectro Autista | C143: Trastorno del Espectro Autista | D143: =IFERROR(VLOOKUP($A143,FILTRO!$A137:$AY762,2,FALSE),0) -> 821 | E143: =IFERROR(VLOOKUP($A143,FILTRO!$A137:$AY762,3,FALSE),0) -> 609 | F143: =IFERROR(VLOOKUP($A143,FILTRO!$A137:$AY762,4,FALSE),0) -> 212 | G143: =IFERROR(VLOOKUP($A143,FILTRO!$A137:$AY762,5,FALSE),0) -> 0 | H143: =IFERROR(VLOOKUP($A143,FILTRO!$A137:$AY762,6,FALSE),0) -> 0 | I143: =IFERROR(VLOOKUP($A143,FILTRO!$A137:$AY762,7,FALSE),0) -> 0 | J143: =IFERROR(VLOOKUP($A143,FILTRO!$A137:$AY762,8,FALSE),0) -> 0 | K143: =IFERROR(VLOOKUP($A143,FILTRO!$A137:$AY762,9,FALSE),0) -> 0 | L143: =IFERROR(VLOOKUP($A143,FILTRO!$A137:$AY762,10,FALSE),0) -> 0 | M143: =IFERROR(VLOOKUP($A143,FILTRO!$A137:$AY762,11,FALSE),0) -> 0 | N143: =IFERROR(VLOOKUP($A143,FILTRO!$A137:$AY762,12,FALSE),0) -> 0 | O143: =IFERROR(VLOOKUP($A143,FILTRO!$A137:$AY762,13,FALSE),0) -> 0 | P143: =IFERROR(VLOOKUP($A143,FILTRO!$A137:$AY762,14,FALSE),0) -> 0 | Q143: =IFERROR(VLOOKUP($A143,FILTRO!$A137:$AY762,15,FALSE),0) -> 1 | R143: =IFERROR(VLOOKUP($A143,FILTRO!$A137:$AY762,16,FALSE),0) -> 0 | S143: =IFERROR(VLOOKUP($A143,FILTRO!$A137:$AY762,17,FALSE),0) -> 0 | T143: =IFERROR(VLOOKUP($A143,FILTRO!$A137:$AY762,18,FALSE),0) -> 0 | U143: =IFERROR(VLOOKUP($A143,FILTRO!$A137:$AY762,19,FALSE),0) -> 0 | V143: =IFERROR(VLOOKUP($A143,FILTRO!$A137:$AY762,20,FALSE),0) -> 0 | W143: =IFERROR(VLOOKUP($A143,FILTRO!$A137:$AY762,21,FALSE),0) -> 4 | X143: =IFERROR(VLOOKUP($A143,FILTRO!$A137:$AY762,22,FALSE),0) -> 0 | Y143: =IFERROR(VLOOKUP($A143,FILTRO!$A137:$AY762,23,FALSE),0) -> 3 | Z143: =IFERROR(VLOOKUP($A143,FILTRO!$A137:$AY762,24,FALSE),0) -> 1 | AA143: =IFERROR(VLOOKUP($A143,FILTRO!$A137:$AY762,25,FALSE),0) -> 37 | AB143: =IFERROR(VLOOKUP($A143,FILTRO!$A137:$AY762,26,FALSE),0) -> 19 | AC143: =IFERROR(VLOOKUP($A143,FILTRO!$A137:$AY762,27,FALSE),0) -> 78 | AD143: =IFERROR(VLOOKUP($A143,FILTRO!$A137:$AY762,28,FALSE),0) -> 31 | AE143: =IFERROR(VLOOKUP($A143,FILTRO!$A137:$AY762,29,FALSE),0) -> 33 | AF143: =IFERROR(VLOOKUP($A143,FILTRO!$A137:$AY762,30,FALSE),0) -> 10 | AG143: =IFERROR(VLOOKUP($A143,FILTRO!$A137:$AY762,31,FALSE),0) -> 132 | AH143: =IFERROR(VLOOKUP($A143,FILTRO!$A137:$AY762,32,FALSE),0) -> 55 | AI143: =IFERROR(VLOOKUP($A143,FILTRO!$A137:$AY762,33,FALSE),0) -> 99 | AJ143: =IFERROR(VLOOKUP($A143,FILTRO!$A137:$AY762,34,FALSE),0) -> 34 | AK143: =IFERROR(VLOOKUP($A143,FILTRO!$A137:$AY762,35,FALSE),0) -> 121 | AL143: =IFERROR(VLOOKUP($A143,FILTRO!$A137:$AY762,36,FALSE),0) -> 36 | AM143: =IFERROR(VLOOKUP($A143,FILTRO!$A137:$AY762,37,FALSE),0) -> 73 | AN143: =IFERROR(VLOOKUP($A143,FILTRO!$A137:$AY762,38,FALSE),0) -> 13 | AO143: =IFERROR(VLOOKUP($A143,FILTRO!$A137:$AY762,39,FALSE),0) -> 32 | AP143: =IFERROR(VLOOKUP($A143,FILTRO!$A137:$AY762,40,FALSE),0) -> 12 | AQ143: =IFERROR(VLOOKUP($A143,FILTRO!$A137:$AY762,41,FALSE),0) -> 8 | AR143: =IFERROR(VLOOKUP($A143,FILTRO!$A137:$AY762,42,FALSE),0) -> 4 | AS143: =IFERROR(VLOOKUP($A143,FILTRO!$A137:$AY762,43,FALSE),0) -> 1 | AT143: =IFERROR(VLOOKUP($A143,FILTRO!$A137:$AY762,44,FALSE),0) -> 3 | AU143: =IFERROR(VLOOKUP($A143,FILTRO!$A137:$AY762,45,FALSE),0) -> 3 | AV143: =IFERROR(VLOOKUP($A143,FILTRO!$A137:$AY762,46,FALSE),0) -> 0 | AW143: =CG143&CH143&CI143&CJ143 ->  | CG143: =IF(DF143=1,"* No olvide escribir en las celdas de ""Pueblos Originarios"" (Digite Cero si no tiene).","") ->  | CH143: =IF(DG143=1,"* No olvide escribir en las celdas de ""Población Migrante"" (Digite Cero si no tiene).","") ->  | CI143: =IF(DH143=1,"* La suma de las celdas de ""Pueblos Originarios""no debe superar el Total.","") ->  | CJ143: =IF(DI143=1,"* La suma de las celdas de ""Población Migrante"" no debe superar el Total.","") ->  | DF143: =IF(AND($D143<>0,OR(AS143="",AT143="")),1,0) -> 0 | DG143: =IF(AND($D143<>0,OR(AU143="",AV143="")),1,0) -> 0 | DH143: =IF((AS143+AT143)>$D143,1,0) -> 0 | DI143: =IF((AV143+AU143)>$D143,1,0) -> 0
A144: P2501823 | B144: Síndrome de Rett | C144: Síndrome de Rett | D144: =IFERROR(VLOOKUP($A144,FILTRO!$A138:$AY763,2,FALSE),0) -> 1 | E144: =IFERROR(VLOOKUP($A144,FILTRO!$A138:$AY763,3,FALSE),0) -> 0 | F144: =IFERROR(VLOOKUP($A144,FILTRO!$A138:$AY763,4,FALSE),0) -> 1 | G144: =IFERROR(VLOOKUP($A144,FILTRO!$A138:$AY763,5,FALSE),0) -> 0 | H144: =IFERROR(VLOOKUP($A144,FILTRO!$A138:$AY763,6,FALSE),0) -> 0 | I144: =IFERROR(VLOOKUP($A144,FILTRO!$A138:$AY763,7,FALSE),0) -> 0 | J144: =IFERROR(VLOOKUP($A144,FILTRO!$A138:$AY763,8,FALSE),0) -> 0 | K144: =IFERROR(VLOOKUP($A144,FILTRO!$A138:$AY763,9,FALSE),0) -> 0 | L144: =IFERROR(VLOOKUP($A144,FILTRO!$A138:$AY763,10,FALSE),0) -> 0 | M144: =IFERROR(VLOOKUP($A144,FILTRO!$A138:$AY763,11,FALSE),0) -> 0 | N144: =IFERROR(VLOOKUP($A144,FILTRO!$A138:$AY763,12,FALSE),0) -> 0 | O144: =IFERROR(VLOOKUP($A144,FILTRO!$A138:$AY763,13,FALSE),0) -> 0 | P144: =IFERROR(VLOOKUP($A144,FILTRO!$A138:$AY763,14,FALSE),0) -> 0 | Q144: =IFERROR(VLOOKUP($A144,FILTRO!$A138:$AY763,15,FALSE),0) -> 0 | R144: =IFERROR(VLOOKUP($A144,FILTRO!$A138:$AY763,16,FALSE),0) -> 0 | S144: =IFERROR(VLOOKUP($A144,FILTRO!$A138:$AY763,17,FALSE),0) -> 0 | T144: =IFERROR(VLOOKUP($A144,FILTRO!$A138:$AY763,18,FALSE),0) -> 0 | U144: =IFERROR(VLOOKUP($A144,FILTRO!$A138:$AY763,19,FALSE),0) -> 0 | V144: =IFERROR(VLOOKUP($A144,FILTRO!$A138:$AY763,20,FALSE),0) -> 0 | W144: =IFERROR(VLOOKUP($A144,FILTRO!$A138:$AY763,21,FALSE),0) -> 0 | X144: =IFERROR(VLOOKUP($A144,FILTRO!$A138:$AY763,22,FALSE),0) -> 0 | Y144: =IFERROR(VLOOKUP($A144,FILTRO!$A138:$AY763,23,FALSE),0) -> 0 | Z144: =IFERROR(VLOOKUP($A144,FILTRO!$A138:$AY763,24,FALSE),0) -> 0 | AA144: =IFERROR(VLOOKUP($A144,FILTRO!$A138:$AY763,25,FALSE),0) -> 0 | AB144: =IFERROR(VLOOKUP($A144,FILTRO!$A138:$AY763,26,FALSE),0) -> 0 | AC144: =IFERROR(VLOOKUP($A144,FILTRO!$A138:$AY763,27,FALSE),0) -> 0 | AD144: =IFERROR(VLOOKUP($A144,FILTRO!$A138:$AY763,28,FALSE),0) -> 0 | AE144: =IFERROR(VLOOKUP($A144,FILTRO!$A138:$AY763,29,FALSE),0) -> 0 | AF144: =IFERROR(VLOOKUP($A144,FILTRO!$A138:$AY763,30,FALSE),0) -> 0 | AG144: =IFERROR(VLOOKUP($A144,FILTRO!$A138:$AY763,31,FALSE),0) -> 0 | AH144: =IFERROR(VLOOKUP($A144,FILTRO!$A138:$AY763,32,FALSE),0) -> 0 | AI144: =IFERROR(VLOOKUP($A144,FILTRO!$A138:$AY763,33,FALSE),0) -> 0 | AJ144: =IFERROR(VLOOKUP($A144,FILTRO!$A138:$AY763,34,FALSE),0) -> 0 | AK144: =IFERROR(VLOOKUP($A144,FILTRO!$A138:$AY763,35,FALSE),0) -> 0 | AL144: =IFERROR(VLOOKUP($A144,FILTRO!$A138:$AY763,36,FALSE),0) -> 0 | AM144: =IFERROR(VLOOKUP($A144,FILTRO!$A138:$AY763,37,FALSE),0) -> 0 | AN144: =IFERROR(VLOOKUP($A144,FILTRO!$A138:$AY763,38,FALSE),0) -> 0 | AO144: =IFERROR(VLOOKUP($A144,FILTRO!$A138:$AY763,39,FALSE),0) -> 0 | AP144: =IFERROR(VLOOKUP($A144,FILTRO!$A138:$AY763,40,FALSE),0) -> 0 | AQ144: =IFERROR(VLOOKUP($A144,FILTRO!$A138:$AY763,41,FALSE),0) -> 0 | AR144: =IFERROR(VLOOKUP($A144,FILTRO!$A138:$AY763,42,FALSE),0) -> 1 | AS144: =IFERROR(VLOOKUP($A144,FILTRO!$A138:$AY763,43,FALSE),0) -> 0 | AT144: =IFERROR(VLOOKUP($A144,FILTRO!$A138:$AY763,44,FALSE),0) -> 0 | AU144: =IFERROR(VLOOKUP($A144,FILTRO!$A138:$AY763,45,FALSE),0) -> 0 | AV144: =IFERROR(VLOOKUP($A144,FILTRO!$A138:$AY763,46,FALSE),0) -> 0
A145: P2500700 | B145: Parálisis Cerebral | C145: Parálisis Cerebral | D145: =IFERROR(VLOOKUP($A145,FILTRO!$A139:$AY764,2,FALSE),0) -> 52 | E145: =IFERROR(VLOOKUP($A145,FILTRO!$A139:$AY764,3,FALSE),0) -> 28 | F145: =IFERROR(VLOOKUP($A145,FILTRO!$A139:$AY764,4,FALSE),0) -> 24 | G145: =IFERROR(VLOOKUP($A145,FILTRO!$A139:$AY764,5,FALSE),0) -> 0 | H145: =IFERROR(VLOOKUP($A145,FILTRO!$A139:$AY764,6,FALSE),0) -> 0 | I145: =IFERROR(VLOOKUP($A145,FILTRO!$A139:$AY764,7,FALSE),0) -> 0 | J145: =IFERROR(VLOOKUP($A145,FILTRO!$A139:$AY764,8,FALSE),0) -> 0 | K145: =IFERROR(VLOOKUP($A145,FILTRO!$A139:$AY764,9,FALSE),0) -> 0 | L145: =IFERROR(VLOOKUP($A145,FILTRO!$A139:$AY764,10,FALSE),0) -> 0 | M145: =IFERROR(VLOOKUP($A145,FILTRO!$A139:$AY764,11,FALSE),0) -> 0 | N145: =IFERROR(VLOOKUP($A145,FILTRO!$A139:$AY764,12,FALSE),0) -> 0 | O145: =IFERROR(VLOOKUP($A145,FILTRO!$A139:$AY764,13,FALSE),0) -> 0 | P145: =IFERROR(VLOOKUP($A145,FILTRO!$A139:$AY764,14,FALSE),0) -> 0 | Q145: =IFERROR(VLOOKUP($A145,FILTRO!$A139:$AY764,15,FALSE),0) -> 0 | R145: =IFERROR(VLOOKUP($A145,FILTRO!$A139:$AY764,16,FALSE),0) -> 0 | S145: =IFERROR(VLOOKUP($A145,FILTRO!$A139:$AY764,17,FALSE),0) -> 0 | T145: =IFERROR(VLOOKUP($A145,FILTRO!$A139:$AY764,18,FALSE),0) -> 2 | U145: =IFERROR(VLOOKUP($A145,FILTRO!$A139:$AY764,19,FALSE),0) -> 0 | V145: =IFERROR(VLOOKUP($A145,FILTRO!$A139:$AY764,20,FALSE),0) -> 0 | W145: =IFERROR(VLOOKUP($A145,FILTRO!$A139:$AY764,21,FALSE),0) -> 0 | X145: =IFERROR(VLOOKUP($A145,FILTRO!$A139:$AY764,22,FALSE),0) -> 1 | Y145: =IFERROR(VLOOKUP($A145,FILTRO!$A139:$AY764,23,FALSE),0) -> 1 | Z145: =IFERROR(VLOOKUP($A145,FILTRO!$A139:$AY764,24,FALSE),0) -> 0 | AA145: =IFERROR(VLOOKUP($A145,FILTRO!$A139:$AY764,25,FALSE),0) -> 2 | AB145: =IFERROR(VLOOKUP($A145,FILTRO!$A139:$AY764,26,FALSE),0) -> 0 | AC145: =IFERROR(VLOOKUP($A145,FILTRO!$A139:$AY764,27,FALSE),0) -> 2 | AD145: =IFERROR(VLOOKUP($A145,FILTRO!$A139:$AY764,28,FALSE),0) -> 0 | AE145: =IFERROR(VLOOKUP($A145,FILTRO!$A139:$AY764,29,FALSE),0) -> 0 | AF145: =IFERROR(VLOOKUP($A145,FILTRO!$A139:$AY764,30,FALSE),0) -> 0 | AG145: =IFERROR(VLOOKUP($A145,FILTRO!$A139:$AY764,31,FALSE),0) -> 3 | AH145: =IFERROR(VLOOKUP($A145,FILTRO!$A139:$AY764,32,FALSE),0) -> 1 | AI145: =IFERROR(VLOOKUP($A145,FILTRO!$A139:$AY764,33,FALSE),0) -> 2 | AJ145: =IFERROR(VLOOKUP($A145,FILTRO!$A139:$AY764,34,FALSE),0) -> 1 | AK145: =IFERROR(VLOOKUP($A145,FILTRO!$A139:$AY764,35,FALSE),0) -> 6 | AL145: =IFERROR(VLOOKUP($A145,FILTRO!$A139:$AY764,36,FALSE),0) -> 6 | AM145: =IFERROR(VLOOKUP($A145,FILTRO!$A139:$AY764,37,FALSE),0) -> 0 | AN145: =IFERROR(VLOOKUP($A145,FILTRO!$A139:$AY764,38,FALSE),0) -> 2 | AO145: =IFERROR(VLOOKUP($A145,FILTRO!$A139:$AY764,39,FALSE),0) -> 8 | AP145: =IFERROR(VLOOKUP($A145,FILTRO!$A139:$AY764,40,FALSE),0) -> 7 | AQ145: =IFERROR(VLOOKUP($A145,FILTRO!$A139:$AY764,41,FALSE),0) -> 6 | AR145: =IFERROR(VLOOKUP($A145,FILTRO!$A139:$AY764,42,FALSE),0) -> 4 | AS145: =IFERROR(VLOOKUP($A145,FILTRO!$A139:$AY764,43,FALSE),0) -> 0 | AT145: =IFERROR(VLOOKUP($A145,FILTRO!$A139:$AY764,44,FALSE),0) -> 0 | AU145: =IFERROR(VLOOKUP($A145,FILTRO!$A139:$AY764,45,FALSE),0) -> 0 | AV145: =IFERROR(VLOOKUP($A145,FILTRO!$A139:$AY764,46,FALSE),0) -> 1
A146: P2501824 | B146: Epilepsia | C146: Epilepsia | D146: =IFERROR(VLOOKUP($A146,FILTRO!$A140:$AY765,2,FALSE),0) -> 64 | E146: =IFERROR(VLOOKUP($A146,FILTRO!$A140:$AY765,3,FALSE),0) -> 29 | F146: =IFERROR(VLOOKUP($A146,FILTRO!$A140:$AY765,4,FALSE),0) -> 35 | G146: =IFERROR(VLOOKUP($A146,FILTRO!$A140:$AY765,5,FALSE),0) -> 0 | H146: =IFERROR(VLOOKUP($A146,FILTRO!$A140:$AY765,6,FALSE),0) -> 0 | I146: =IFERROR(VLOOKUP($A146,FILTRO!$A140:$AY765,7,FALSE),0) -> 0 | J146: =IFERROR(VLOOKUP($A146,FILTRO!$A140:$AY765,8,FALSE),0) -> 0 | K146: =IFERROR(VLOOKUP($A146,FILTRO!$A140:$AY765,9,FALSE),0) -> 0 | L146: =IFERROR(VLOOKUP($A146,FILTRO!$A140:$AY765,10,FALSE),0) -> 0 | M146: =IFERROR(VLOOKUP($A146,FILTRO!$A140:$AY765,11,FALSE),0) -> 0 | N146: =IFERROR(VLOOKUP($A146,FILTRO!$A140:$AY765,12,FALSE),0) -> 1 | O146: =IFERROR(VLOOKUP($A146,FILTRO!$A140:$AY765,13,FALSE),0) -> 0 | P146: =IFERROR(VLOOKUP($A146,FILTRO!$A140:$AY765,14,FALSE),0) -> 0 | Q146: =IFERROR(VLOOKUP($A146,FILTRO!$A140:$AY765,15,FALSE),0) -> 1 | R146: =IFERROR(VLOOKUP($A146,FILTRO!$A140:$AY765,16,FALSE),0) -> 0 | S146: =IFERROR(VLOOKUP($A146,FILTRO!$A140:$AY765,17,FALSE),0) -> 0 | T146: =IFERROR(VLOOKUP($A146,FILTRO!$A140:$AY765,18,FALSE),0) -> 0 | U146: =IFERROR(VLOOKUP($A146,FILTRO!$A140:$AY765,19,FALSE),0) -> 1 | V146: =IFERROR(VLOOKUP($A146,FILTRO!$A140:$AY765,20,FALSE),0) -> 0 | W146: =IFERROR(VLOOKUP($A146,FILTRO!$A140:$AY765,21,FALSE),0) -> 1 | X146: =IFERROR(VLOOKUP($A146,FILTRO!$A140:$AY765,22,FALSE),0) -> 3 | Y146: =IFERROR(VLOOKUP($A146,FILTRO!$A140:$AY765,23,FALSE),0) -> 0 | Z146: =IFERROR(VLOOKUP($A146,FILTRO!$A140:$AY765,24,FALSE),0) -> 0 | AA146: =IFERROR(VLOOKUP($A146,FILTRO!$A140:$AY765,25,FALSE),0) -> 2 | AB146: =IFERROR(VLOOKUP($A146,FILTRO!$A140:$AY765,26,FALSE),0) -> 3 | AC146: =IFERROR(VLOOKUP($A146,FILTRO!$A140:$AY765,27,FALSE),0) -> 4 | AD146: =IFERROR(VLOOKUP($A146,FILTRO!$A140:$AY765,28,FALSE),0) -> 2 | AE146: =IFERROR(VLOOKUP($A146,FILTRO!$A140:$AY765,29,FALSE),0) -> 0 | AF146: =IFERROR(VLOOKUP($A146,FILTRO!$A140:$AY765,30,FALSE),0) -> 0 | AG146: =IFERROR(VLOOKUP($A146,FILTRO!$A140:$AY765,31,FALSE),0) -> 2 | AH146: =IFERROR(VLOOKUP($A146,FILTRO!$A140:$AY765,32,FALSE),0) -> 4 | AI146: =IFERROR(VLOOKUP($A146,FILTRO!$A140:$AY765,33,FALSE),0) -> 1 | AJ146: =IFERROR(VLOOKUP($A146,FILTRO!$A140:$AY765,34,FALSE),0) -> 1 | AK146: =IFERROR(VLOOKUP($A146,FILTRO!$A140:$AY765,35,FALSE),0) -> 8 | AL146: =IFERROR(VLOOKUP($A146,FILTRO!$A140:$AY765,36,FALSE),0) -> 8 | AM146: =IFERROR(VLOOKUP($A146,FILTRO!$A140:$AY765,37,FALSE),0) -> 2 | AN146: =IFERROR(VLOOKUP($A146,FILTRO!$A140:$AY765,38,FALSE),0) -> 2 | AO146: =IFERROR(VLOOKUP($A146,FILTRO!$A140:$AY765,39,FALSE),0) -> 4 | AP146: =IFERROR(VLOOKUP($A146,FILTRO!$A140:$AY765,40,FALSE),0) -> 8 | AQ146: =IFERROR(VLOOKUP($A146,FILTRO!$A140:$AY765,41,FALSE),0) -> 6 | AR146: =IFERROR(VLOOKUP($A146,FILTRO!$A140:$AY765,42,FALSE),0) -> 4 | AS146: =IFERROR(VLOOKUP($A146,FILTRO!$A140:$AY765,43,FALSE),0) -> 0 | AT146: =IFERROR(VLOOKUP($A146,FILTRO!$A140:$AY765,44,FALSE),0) -> 0 | AU146: =IFERROR(VLOOKUP($A146,FILTRO!$A140:$AY765,45,FALSE),0) -> 0 | AV146: =IFERROR(VLOOKUP($A146,FILTRO!$A140:$AY765,46,FALSE),0) -> 0 | CG146: =IF(DF146=1,"* No olvide escribir en las celdas de ""Pueblos Originarios"" (Digite Cero si no tiene).","") ->  | CH146: =IF(DG146=1,"* No olvide escribir en las celdas de ""Población Migrante"" (Digite Cero si no tiene).","") ->  | CI146: =IF(DH146=1,"* La suma de las celdas de ""Pueblos Originarios""no debe superar el Total.","") ->  | CJ146: =IF(DI146=1,"* La suma de las celdas de ""Población Migrante"" no debe superar el Total.","") ->  | DF146: =IF(AND($D146<>0,OR(AS146="",AT146="")),1,0) -> 0 | DG146: =IF(AND($D146<>0,OR(AU146="",AV146="")),1,0) -> 0 | DH146: =IF((AS146+AT146)>$D146,1,0) -> 0 | DI146: =IF((AV146+AU146)>$D146,1,0) -> 0
A147: P2501825 | B147: Otros trastornos del Neurodesarrollo (no incluye TEA) | C147: Otros trastornos del Neurodesarrollo ( no incluye TEA) | D147: =IFERROR(VLOOKUP($A147,FILTRO!$A141:$AY766,2,FALSE),0) -> 55 | E147: =IFERROR(VLOOKUP($A147,FILTRO!$A141:$AY766,3,FALSE),0) -> 33 | F147: =IFERROR(VLOOKUP($A147,FILTRO!$A141:$AY766,4,FALSE),0) -> 22 | G147: =IFERROR(VLOOKUP($A147,FILTRO!$A141:$AY766,5,FALSE),0) -> 0 | H147: =IFERROR(VLOOKUP($A147,FILTRO!$A141:$AY766,6,FALSE),0) -> 0 | I147: =IFERROR(VLOOKUP($A147,FILTRO!$A141:$AY766,7,FALSE),0) -> 0 | J147: =IFERROR(VLOOKUP($A147,FILTRO!$A141:$AY766,8,FALSE),0) -> 0 | K147: =IFERROR(VLOOKUP($A147,FILTRO!$A141:$AY766,9,FALSE),0) -> 0 | L147: =IFERROR(VLOOKUP($A147,FILTRO!$A141:$AY766,10,FALSE),0) -> 0 | M147: =IFERROR(VLOOKUP($A147,FILTRO!$A141:$AY766,11,FALSE),0) -> 0 | N147: =IFERROR(VLOOKUP($A147,FILTRO!$A141:$AY766,12,FALSE),0) -> 0 | O147: =IFERROR(VLOOKUP($A147,FILTRO!$A141:$AY766,13,FALSE),0) -> 0 | P147: =IFERROR(VLOOKUP($A147,FILTRO!$A141:$AY766,14,FALSE),0) -> 0 | Q147: =IFERROR(VLOOKUP($A147,FILTRO!$A141:$AY766,15,FALSE),0) -> 0 | R147: =IFERROR(VLOOKUP($A147,FILTRO!$A141:$AY766,16,FALSE),0) -> 0 | S147: =IFERROR(VLOOKUP($A147,FILTRO!$A141:$AY766,17,FALSE),0) -> 0 | T147: =IFERROR(VLOOKUP($A147,FILTRO!$A141:$AY766,18,FALSE),0) -> 0 | U147: =IFERROR(VLOOKUP($A147,FILTRO!$A141:$AY766,19,FALSE),0) -> 1 | V147: =IFERROR(VLOOKUP($A147,FILTRO!$A141:$AY766,20,FALSE),0) -> 0 | W147: =IFERROR(VLOOKUP($A147,FILTRO!$A141:$AY766,21,FALSE),0) -> 1 | X147: =IFERROR(VLOOKUP($A147,FILTRO!$A141:$AY766,22,FALSE),0) -> 1 | Y147: =IFERROR(VLOOKUP($A147,FILTRO!$A141:$AY766,23,FALSE),0) -> 2 | Z147: =IFERROR(VLOOKUP($A147,FILTRO!$A141:$AY766,24,FALSE),0) -> 1 | AA147: =IFERROR(VLOOKUP($A147,FILTRO!$A141:$AY766,25,FALSE),0) -> 5 | AB147: =IFERROR(VLOOKUP($A147,FILTRO!$A141:$AY766,26,FALSE),0) -> 3 | AC147: =IFERROR(VLOOKUP($A147,FILTRO!$A141:$AY766,27,FALSE),0) -> 1 | AD147: =IFERROR(VLOOKUP($A147,FILTRO!$A141:$AY766,28,FALSE),0) -> 2 | AE147: =IFERROR(VLOOKUP($A147,FILTRO!$A141:$AY766,29,FALSE),0) -> 1 | AF147: =IFERROR(VLOOKUP($A147,FILTRO!$A141:$AY766,30,FALSE),0) -> 0 | AG147: =IFERROR(VLOOKUP($A147,FILTRO!$A141:$AY766,31,FALSE),0) -> 1 | AH147: =IFERROR(VLOOKUP($A147,FILTRO!$A141:$AY766,32,FALSE),0) -> 2 | AI147: =IFERROR(VLOOKUP($A147,FILTRO!$A141:$AY766,33,FALSE),0) -> 7 | AJ147: =IFERROR(VLOOKUP($A147,FILTRO!$A141:$AY766,34,FALSE),0) -> 3 | AK147: =IFERROR(VLOOKUP($A147,FILTRO!$A141:$AY766,35,FALSE),0) -> 8 | AL147: =IFERROR(VLOOKUP($A147,FILTRO!$A141:$AY766,36,FALSE),0) -> 4 | AM147: =IFERROR(VLOOKUP($A147,FILTRO!$A141:$AY766,37,FALSE),0) -> 5 | AN147: =IFERROR(VLOOKUP($A147,FILTRO!$A141:$AY766,38,FALSE),0) -> 3 | AO147: =IFERROR(VLOOKUP($A147,FILTRO!$A141:$AY766,39,FALSE),0) -> 1 | AP147: =IFERROR(VLOOKUP($A147,FILTRO!$A141:$AY766,40,FALSE),0) -> 2 | AQ147: =IFERROR(VLOOKUP($A147,FILTRO!$A141:$AY766,41,FALSE),0) -> 0 | AR147: =IFERROR(VLOOKUP($A147,FILTRO!$A141:$AY766,42,FALSE),0) -> 1 | AS147: =IFERROR(VLOOKUP($A147,FILTRO!$A141:$AY766,43,FALSE),0) -> 0 | AT147: =IFERROR(VLOOKUP($A147,FILTRO!$A141:$AY766,44,FALSE),0) -> 0 | AU147: =IFERROR(VLOOKUP($A147,FILTRO!$A141:$AY766,45,FALSE),0) -> 0 | AV147: =IFERROR(VLOOKUP($A147,FILTRO!$A141:$AY766,46,FALSE),0) -> 0
A148: P2501826 | B148: Hipertensión Arterial | C148: Hipertensión Arterial (En vez de Presión Arterial Elevada) | D148: =IFERROR(VLOOKUP($A148,FILTRO!$A142:$AY767,2,FALSE),0) -> 43 | E148: =IFERROR(VLOOKUP($A148,FILTRO!$A142:$AY767,3,FALSE),0) -> 25 | F148: =IFERROR(VLOOKUP($A148,FILTRO!$A142:$AY767,4,FALSE),0) -> 18 | G148: =IFERROR(VLOOKUP($A148,FILTRO!$A142:$AY767,5,FALSE),0) -> 0 | H148: =IFERROR(VLOOKUP($A148,FILTRO!$A142:$AY767,6,FALSE),0) -> 0 | I148: =IFERROR(VLOOKUP($A148,FILTRO!$A142:$AY767,7,FALSE),0) -> 0 | J148: =IFERROR(VLOOKUP($A148,FILTRO!$A142:$AY767,8,FALSE),0) -> 0 | K148: =IFERROR(VLOOKUP($A148,FILTRO!$A142:$AY767,9,FALSE),0) -> 0 | L148: =IFERROR(VLOOKUP($A148,FILTRO!$A142:$AY767,10,FALSE),0) -> 0 | M148: =IFERROR(VLOOKUP($A148,FILTRO!$A142:$AY767,11,FALSE),0) -> 0 | N148: =IFERROR(VLOOKUP($A148,FILTRO!$A142:$AY767,12,FALSE),0) -> 0 | O148: =IFERROR(VLOOKUP($A148,FILTRO!$A142:$AY767,13,FALSE),0) -> 0 | P148: =IFERROR(VLOOKUP($A148,FILTRO!$A142:$AY767,14,FALSE),0) -> 0 | Q148: =IFERROR(VLOOKUP($A148,FILTRO!$A142:$AY767,15,FALSE),0) -> 0 | R148: =IFERROR(VLOOKUP($A148,FILTRO!$A142:$AY767,16,FALSE),0) -> 0 | S148: =IFERROR(VLOOKUP($A148,FILTRO!$A142:$AY767,17,FALSE),0) -> 0 | T148: =IFERROR(VLOOKUP($A148,FILTRO!$A142:$AY767,18,FALSE),0) -> 0 | U148: =IFERROR(VLOOKUP($A148,FILTRO!$A142:$AY767,19,FALSE),0) -> 0 | V148: =IFERROR(VLOOKUP($A148,FILTRO!$A142:$AY767,20,FALSE),0) -> 0 | W148: =IFERROR(VLOOKUP($A148,FILTRO!$A142:$AY767,21,FALSE),0) -> 0 | X148: =IFERROR(VLOOKUP($A148,FILTRO!$A142:$AY767,22,FALSE),0) -> 0 | Y148: =IFERROR(VLOOKUP($A148,FILTRO!$A142:$AY767,23,FALSE),0) -> 0 | Z148: =IFERROR(VLOOKUP($A148,FILTRO!$A142:$AY767,24,FALSE),0) -> 0 | AA148: =IFERROR(VLOOKUP($A148,FILTRO!$A142:$AY767,25,FALSE),0) -> 0 | AB148: =IFERROR(VLOOKUP($A148,FILTRO!$A142:$AY767,26,FALSE),0) -> 0 | AC148: =IFERROR(VLOOKUP($A148,FILTRO!$A142:$AY767,27,FALSE),0) -> 1 | AD148: =IFERROR(VLOOKUP($A148,FILTRO!$A142:$AY767,28,FALSE),0) -> 1 | AE148: =IFERROR(VLOOKUP($A148,FILTRO!$A142:$AY767,29,FALSE),0) -> 3 | AF148: =IFERROR(VLOOKUP($A148,FILTRO!$A142:$AY767,30,FALSE),0) -> 1 | AG148: =IFERROR(VLOOKUP($A148,FILTRO!$A142:$AY767,31,FALSE),0) -> 2 | AH148: =IFERROR(VLOOKUP($A148,FILTRO!$A142:$AY767,32,FALSE),0) -> 2 | AI148: =IFERROR(VLOOKUP($A148,FILTRO!$A142:$AY767,33,FALSE),0) -> 5 | AJ148: =IFERROR(VLOOKUP($A148,FILTRO!$A142:$AY767,34,FALSE),0) -> 3 | AK148: =IFERROR(VLOOKUP($A148,FILTRO!$A142:$AY767,35,FALSE),0) -> 6 | AL148: =IFERROR(VLOOKUP($A148,FILTRO!$A142:$AY767,36,FALSE),0) -> 5 | AM148: =IFERROR(VLOOKUP($A148,FILTRO!$A142:$AY767,37,FALSE),0) -> 3 | AN148: =IFERROR(VLOOKUP($A148,FILTRO!$A142:$AY767,38,FALSE),0) -> 5 | AO148: =IFERROR(VLOOKUP($A148,FILTRO!$A142:$AY767,39,FALSE),0) -> 1 | AP148: =IFERROR(VLOOKUP($A148,FILTRO!$A142:$AY767,40,FALSE),0) -> 0 | AQ148: =IFERROR(VLOOKUP($A148,FILTRO!$A142:$AY767,41,FALSE),0) -> 4 | AR148: =IFERROR(VLOOKUP($A148,FILTRO!$A142:$AY767,42,FALSE),0) -> 1 | AS148: =IFERROR(VLOOKUP($A148,FILTRO!$A142:$AY767,43,FALSE),0) -> 0 | AT148: =IFERROR(VLOOKUP($A148,FILTRO!$A142:$AY767,44,FALSE),0) -> 0 | AU148: =IFERROR(VLOOKUP($A148,FILTRO!$A142:$AY767,45,FALSE),0) -> 0 | AV148: =IFERROR(VLOOKUP($A148,FILTRO!$A142:$AY767,46,FALSE),0) -> 0
A149: P2501827 | B149: Enfermedad renal crónica | C149: Enfermedad renal crónica | D149: =IFERROR(VLOOKUP($A149,FILTRO!$A143:$AY768,2,FALSE),0) -> 15 | E149: =IFERROR(VLOOKUP($A149,FILTRO!$A143:$AY768,3,FALSE),0) -> 12 | F149: =IFERROR(VLOOKUP($A149,FILTRO!$A143:$AY768,4,FALSE),0) -> 3 | G149: =IFERROR(VLOOKUP($A149,FILTRO!$A143:$AY768,5,FALSE),0) -> 0 | H149: =IFERROR(VLOOKUP($A149,FILTRO!$A143:$AY768,6,FALSE),0) -> 0 | I149: =IFERROR(VLOOKUP($A149,FILTRO!$A143:$AY768,7,FALSE),0) -> 0 | J149: =IFERROR(VLOOKUP($A149,FILTRO!$A143:$AY768,8,FALSE),0) -> 0 | K149: =IFERROR(VLOOKUP($A149,FILTRO!$A143:$AY768,9,FALSE),0) -> 0 | L149: =IFERROR(VLOOKUP($A149,FILTRO!$A143:$AY768,10,FALSE),0) -> 0 | M149: =IFERROR(VLOOKUP($A149,FILTRO!$A143:$AY768,11,FALSE),0) -> 0 | N149: =IFERROR(VLOOKUP($A149,FILTRO!$A143:$AY768,12,FALSE),0) -> 0 | O149: =IFERROR(VLOOKUP($A149,FILTRO!$A143:$AY768,13,FALSE),0) -> 1 | P149: =IFERROR(VLOOKUP($A149,FILTRO!$A143:$AY768,14,FALSE),0) -> 0 | Q149: =IFERROR(VLOOKUP($A149,FILTRO!$A143:$AY768,15,FALSE),0) -> 0 | R149: =IFERROR(VLOOKUP($A149,FILTRO!$A143:$AY768,16,FALSE),0) -> 0 | S149: =IFERROR(VLOOKUP($A149,FILTRO!$A143:$AY768,17,FALSE),0) -> 0 | T149: =IFERROR(VLOOKUP($A149,FILTRO!$A143:$AY768,18,FALSE),0) -> 0 | U149: =IFERROR(VLOOKUP($A149,FILTRO!$A143:$AY768,19,FALSE),0) -> 1 | V149: =IFERROR(VLOOKUP($A149,FILTRO!$A143:$AY768,20,FALSE),0) -> 0 | W149: =IFERROR(VLOOKUP($A149,FILTRO!$A143:$AY768,21,FALSE),0) -> 1 | X149: =IFERROR(VLOOKUP($A149,FILTRO!$A143:$AY768,22,FALSE),0) -> 0 | Y149: =IFERROR(VLOOKUP($A149,FILTRO!$A143:$AY768,23,FALSE),0) -> 2 | Z149: =IFERROR(VLOOKUP($A149,FILTRO!$A143:$AY768,24,FALSE),0) -> 0 | AA149: =IFERROR(VLOOKUP($A149,FILTRO!$A143:$AY768,25,FALSE),0) -> 2 | AB149: =IFERROR(VLOOKUP($A149,FILTRO!$A143:$AY768,26,FALSE),0) -> 0 | AC149: =IFERROR(VLOOKUP($A149,FILTRO!$A143:$AY768,27,FALSE),0) -> 1 | AD149: =IFERROR(VLOOKUP($A149,FILTRO!$A143:$AY768,28,FALSE),0) -> 0 | AE149: =IFERROR(VLOOKUP($A149,FILTRO!$A143:$AY768,29,FALSE),0) -> 0 | AF149: =IFERROR(VLOOKUP($A149,FILTRO!$A143:$AY768,30,FALSE),0) -> 0 | AG149: =IFERROR(VLOOKUP($A149,FILTRO!$A143:$AY768,31,FALSE),0) -> 0 | AH149: =IFERROR(VLOOKUP($A149,FILTRO!$A143:$AY768,32,FALSE),0) -> 0 | AI149: =IFERROR(VLOOKUP($A149,FILTRO!$A143:$AY768,33,FALSE),0) -> 1 | AJ149: =IFERROR(VLOOKUP($A149,FILTRO!$A143:$AY768,34,FALSE),0) -> 1 | AK149: =IFERROR(VLOOKUP($A149,FILTRO!$A143:$AY768,35,FALSE),0) -> 1 | AL149: =IFERROR(VLOOKUP($A149,FILTRO!$A143:$AY768,36,FALSE),0) -> 1 | AM149: =IFERROR(VLOOKUP($A149,FILTRO!$A143:$AY768,37,FALSE),0) -> 1 | AN149: =IFERROR(VLOOKUP($A149,FILTRO!$A143:$AY768,38,FALSE),0) -> 0 | AO149: =IFERROR(VLOOKUP($A149,FILTRO!$A143:$AY768,39,FALSE),0) -> 0 | AP149: =IFERROR(VLOOKUP($A149,FILTRO!$A143:$AY768,40,FALSE),0) -> 1 | AQ149: =IFERROR(VLOOKUP($A149,FILTRO!$A143:$AY768,41,FALSE),0) -> 1 | AR149: =IFERROR(VLOOKUP($A149,FILTRO!$A143:$AY768,42,FALSE),0) -> 0 | AS149: =IFERROR(VLOOKUP($A149,FILTRO!$A143:$AY768,43,FALSE),0) -> 0 | AT149: =IFERROR(VLOOKUP($A149,FILTRO!$A143:$AY768,44,FALSE),0) -> 0 | AU149: =IFERROR(VLOOKUP($A149,FILTRO!$A143:$AY768,45,FALSE),0) -> 0 | AV149: =IFERROR(VLOOKUP($A149,FILTRO!$A143:$AY768,46,FALSE),0) -> 0
A150: P2501828 | B150: Otras Enfermedades cardiovasculares crónicas (no incluye Hipertensión Arterial ni Cardiopatías Congénitas) | C150: Otras Enfermedades cardiovasculares crónicas (no incluye Hipertensión Arterial ni Cardiopatías Congénitas) | D150: =IFERROR(VLOOKUP($A150,FILTRO!$A144:$AY769,2,FALSE),0) -> 22 | E150: =IFERROR(VLOOKUP($A150,FILTRO!$A144:$AY769,3,FALSE),0) -> 11 | F150: =IFERROR(VLOOKUP($A150,FILTRO!$A144:$AY769,4,FALSE),0) -> 11 | G150: =IFERROR(VLOOKUP($A150,FILTRO!$A144:$AY769,5,FALSE),0) -> 0 | H150: =IFERROR(VLOOKUP($A150,FILTRO!$A144:$AY769,6,FALSE),0) -> 0 | I150: =IFERROR(VLOOKUP($A150,FILTRO!$A144:$AY769,7,FALSE),0) -> 0 | J150: =IFERROR(VLOOKUP($A150,FILTRO!$A144:$AY769,8,FALSE),0) -> 0 | K150: =IFERROR(VLOOKUP($A150,FILTRO!$A144:$AY769,9,FALSE),0) -> 0 | L150: =IFERROR(VLOOKUP($A150,FILTRO!$A144:$AY769,10,FALSE),0) -> 1 | M150: =IFERROR(VLOOKUP($A150,FILTRO!$A144:$AY769,11,FALSE),0) -> 0 | N150: =IFERROR(VLOOKUP($A150,FILTRO!$A144:$AY769,12,FALSE),0) -> 0 | O150: =IFERROR(VLOOKUP($A150,FILTRO!$A144:$AY769,13,FALSE),0) -> 0 | P150: =IFERROR(VLOOKUP($A150,FILTRO!$A144:$AY769,14,FALSE),0) -> 0 | Q150: =IFERROR(VLOOKUP($A150,FILTRO!$A144:$AY769,15,FALSE),0) -> 0 | R150: =IFERROR(VLOOKUP($A150,FILTRO!$A144:$AY769,16,FALSE),0) -> 0 | S150: =IFERROR(VLOOKUP($A150,FILTRO!$A144:$AY769,17,FALSE),0) -> 0 | T150: =IFERROR(VLOOKUP($A150,FILTRO!$A144:$AY769,18,FALSE),0) -> 1 | U150: =IFERROR(VLOOKUP($A150,FILTRO!$A144:$AY769,19,FALSE),0) -> 1 | V150: =IFERROR(VLOOKUP($A150,FILTRO!$A144:$AY769,20,FALSE),0) -> 2 | W150: =IFERROR(VLOOKUP($A150,FILTRO!$A144:$AY769,21,FALSE),0) -> 1 | X150: =IFERROR(VLOOKUP($A150,FILTRO!$A144:$AY769,22,FALSE),0) -> 1 | Y150: =IFERROR(VLOOKUP($A150,FILTRO!$A144:$AY769,23,FALSE),0) -> 0 | Z150: =IFERROR(VLOOKUP($A150,FILTRO!$A144:$AY769,24,FALSE),0) -> 0 | AA150: =IFERROR(VLOOKUP($A150,FILTRO!$A144:$AY769,25,FALSE),0) -> 0 | AB150: =IFERROR(VLOOKUP($A150,FILTRO!$A144:$AY769,26,FALSE),0) -> 1 | AC150: =IFERROR(VLOOKUP($A150,FILTRO!$A144:$AY769,27,FALSE),0) -> 0 | AD150: =IFERROR(VLOOKUP($A150,FILTRO!$A144:$AY769,28,FALSE),0) -> 0 | AE150: =IFERROR(VLOOKUP($A150,FILTRO!$A144:$AY769,29,FALSE),0) -> 1 | AF150: =IFERROR(VLOOKUP($A150,FILTRO!$A144:$AY769,30,FALSE),0) -> 0 | AG150: =IFERROR(VLOOKUP($A150,FILTRO!$A144:$AY769,31,FALSE),0) -> 2 | AH150: =IFERROR(VLOOKUP($A150,FILTRO!$A144:$AY769,32,FALSE),0) -> 0 | AI150: =IFERROR(VLOOKUP($A150,FILTRO!$A144:$AY769,33,FALSE),0) -> 0 | AJ150: =IFERROR(VLOOKUP($A150,FILTRO!$A144:$AY769,34,FALSE),0) -> 0 | AK150: =IFERROR(VLOOKUP($A150,FILTRO!$A144:$AY769,35,FALSE),0) -> 1 | AL150: =IFERROR(VLOOKUP($A150,FILTRO!$A144:$AY769,36,FALSE),0) -> 0 | AM150: =IFERROR(VLOOKUP($A150,FILTRO!$A144:$AY769,37,FALSE),0) -> 3 | AN150: =IFERROR(VLOOKUP($A150,FILTRO!$A144:$AY769,38,FALSE),0) -> 4 | AO150: =IFERROR(VLOOKUP($A150,FILTRO!$A144:$AY769,39,FALSE),0) -> 2 | AP150: =IFERROR(VLOOKUP($A150,FILTRO!$A144:$AY769,40,FALSE),0) -> 1 | AQ150: =IFERROR(VLOOKUP($A150,FILTRO!$A144:$AY769,41,FALSE),0) -> 0 | AR150: =IFERROR(VLOOKUP($A150,FILTRO!$A144:$AY769,42,FALSE),0) -> 0 | AS150: =IFERROR(VLOOKUP($A150,FILTRO!$A144:$AY769,43,FALSE),0) -> 0 | AT150: =IFERROR(VLOOKUP($A150,FILTRO!$A144:$AY769,44,FALSE),0) -> 0 | AU150: =IFERROR(VLOOKUP($A150,FILTRO!$A144:$AY769,45,FALSE),0) -> 0 | AV150: =IFERROR(VLOOKUP($A150,FILTRO!$A144:$AY769,46,FALSE),0) -> 0
A151: P2501829 | B151: Enfermedades gastrointestinales crónicas (no incluye enfermedad celiaca) | C151: Enfermedades crónicas gastrointestinales (no incluye enfermedad celiaca) | D151: =IFERROR(VLOOKUP($A151,FILTRO!$A145:$AY770,2,FALSE),0) -> 78 | E151: =IFERROR(VLOOKUP($A151,FILTRO!$A145:$AY770,3,FALSE),0) -> 45 | F151: =IFERROR(VLOOKUP($A151,FILTRO!$A145:$AY770,4,FALSE),0) -> 33 | G151: =IFERROR(VLOOKUP($A151,FILTRO!$A145:$AY770,5,FALSE),0) -> 0 | H151: =IFERROR(VLOOKUP($A151,FILTRO!$A145:$AY770,6,FALSE),0) -> 0 | I151: =IFERROR(VLOOKUP($A151,FILTRO!$A145:$AY770,7,FALSE),0) -> 0 | J151: =IFERROR(VLOOKUP($A151,FILTRO!$A145:$AY770,8,FALSE),0) -> 1 | K151: =IFERROR(VLOOKUP($A151,FILTRO!$A145:$AY770,9,FALSE),0) -> 1 | L151: =IFERROR(VLOOKUP($A151,FILTRO!$A145:$AY770,10,FALSE),0) -> 0 | M151: =IFERROR(VLOOKUP($A151,FILTRO!$A145:$AY770,11,FALSE),0) -> 1 | N151: =IFERROR(VLOOKUP($A151,FILTRO!$A145:$AY770,12,FALSE),0) -> 0 | O151: =IFERROR(VLOOKUP($A151,FILTRO!$A145:$AY770,13,FALSE),0) -> 1 | P151: =IFERROR(VLOOKUP($A151,FILTRO!$A145:$AY770,14,FALSE),0) -> 1 | Q151: =IFERROR(VLOOKUP($A151,FILTRO!$A145:$AY770,15,FALSE),0) -> 2 | R151: =IFERROR(VLOOKUP($A151,FILTRO!$A145:$AY770,16,FALSE),0) -> 2 | S151: =IFERROR(VLOOKUP($A151,FILTRO!$A145:$AY770,17,FALSE),0) -> 1 | T151: =IFERROR(VLOOKUP($A151,FILTRO!$A145:$AY770,18,FALSE),0) -> 1 | U151: =IFERROR(VLOOKUP($A151,FILTRO!$A145:$AY770,19,FALSE),0) -> 9 | V151: =IFERROR(VLOOKUP($A151,FILTRO!$A145:$AY770,20,FALSE),0) -> 6 | W151: =IFERROR(VLOOKUP($A151,FILTRO!$A145:$AY770,21,FALSE),0) -> 13 | X151: =IFERROR(VLOOKUP($A151,FILTRO!$A145:$AY770,22,FALSE),0) -> 4 | Y151: =IFERROR(VLOOKUP($A151,FILTRO!$A145:$AY770,23,FALSE),0) -> 4 | Z151: =IFERROR(VLOOKUP($A151,FILTRO!$A145:$AY770,24,FALSE),0) -> 2 | AA151: =IFERROR(VLOOKUP($A151,FILTRO!$A145:$AY770,25,FALSE),0) -> 3 | AB151: =IFERROR(VLOOKUP($A151,FILTRO!$A145:$AY770,26,FALSE),0) -> 3 | AC151: =IFERROR(VLOOKUP($A151,FILTRO!$A145:$AY770,27,FALSE),0) -> 0 | AD151: =IFERROR(VLOOKUP($A151,FILTRO!$A145:$AY770,28,FALSE),0) -> 0 | AE151: =IFERROR(VLOOKUP($A151,FILTRO!$A145:$AY770,29,FALSE),0) -> 0 | AF151: =IFERROR(VLOOKUP($A151,FILTRO!$A145:$AY770,30,FALSE),0) -> 0 | AG151: =IFERROR(VLOOKUP($A151,FILTRO!$A145:$AY770,31,FALSE),0) -> 0 | AH151: =IFERROR(VLOOKUP($A151,FILTRO!$A145:$AY770,32,FALSE),0) -> 0 | AI151: =IFERROR(VLOOKUP($A151,FILTRO!$A145:$AY770,33,FALSE),0) -> 1 | AJ151: =IFERROR(VLOOKUP($A151,FILTRO!$A145:$AY770,34,FALSE),0) -> 2 | AK151: =IFERROR(VLOOKUP($A151,FILTRO!$A145:$AY770,35,FALSE),0) -> 0 | AL151: =IFERROR(VLOOKUP($A151,FILTRO!$A145:$AY770,36,FALSE),0) -> 3 | AM151: =IFERROR(VLOOKUP($A151,FILTRO!$A145:$AY770,37,FALSE),0) -> 3 | AN151: =IFERROR(VLOOKUP($A151,FILTRO!$A145:$AY770,38,FALSE),0) -> 2 | AO151: =IFERROR(VLOOKUP($A151,FILTRO!$A145:$AY770,39,FALSE),0) -> 4 | AP151: =IFERROR(VLOOKUP($A151,FILTRO!$A145:$AY770,40,FALSE),0) -> 4 | AQ151: =IFERROR(VLOOKUP($A151,FILTRO!$A145:$AY770,41,FALSE),0) -> 2 | AR151: =IFERROR(VLOOKUP($A151,FILTRO!$A145:$AY770,42,FALSE),0) -> 2 | AS151: =IFERROR(VLOOKUP($A151,FILTRO!$A145:$AY770,43,FALSE),0) -> 0 | AT151: =IFERROR(VLOOKUP($A151,FILTRO!$A145:$AY770,44,FALSE),0) -> 0 | AU151: =IFERROR(VLOOKUP($A151,FILTRO!$A145:$AY770,45,FALSE),0) -> 0 | AV151: =IFERROR(VLOOKUP($A151,FILTRO!$A145:$AY770,46,FALSE),0) -> 0
A152: P2501830 | B152: Enfermedades crónicas del sistema visual (no incluye estrabismo ni errores de refracción) | C152: Enfermedades crónicas del sistema visual (no incluye Estabismo ni Errores de Refracción) | D152: =IFERROR(VLOOKUP($A152,FILTRO!$A146:$AY771,2,FALSE),0) -> 9 | E152: =IFERROR(VLOOKUP($A152,FILTRO!$A146:$AY771,3,FALSE),0) -> 6 | F152: =IFERROR(VLOOKUP($A152,FILTRO!$A146:$AY771,4,FALSE),0) -> 3 | G152: =IFERROR(VLOOKUP($A152,FILTRO!$A146:$AY771,5,FALSE),0) -> 0 | H152: =IFERROR(VLOOKUP($A152,FILTRO!$A146:$AY771,6,FALSE),0) -> 0 | I152: =IFERROR(VLOOKUP($A152,FILTRO!$A146:$AY771,7,FALSE),0) -> 0 | J152: =IFERROR(VLOOKUP($A152,FILTRO!$A146:$AY771,8,FALSE),0) -> 0 | K152: =IFERROR(VLOOKUP($A152,FILTRO!$A146:$AY771,9,FALSE),0) -> 0 | L152: =IFERROR(VLOOKUP($A152,FILTRO!$A146:$AY771,10,FALSE),0) -> 0 | M152: =IFERROR(VLOOKUP($A152,FILTRO!$A146:$AY771,11,FALSE),0) -> 0 | N152: =IFERROR(VLOOKUP($A152,FILTRO!$A146:$AY771,12,FALSE),0) -> 0 | O152: =IFERROR(VLOOKUP($A152,FILTRO!$A146:$AY771,13,FALSE),0) -> 0 | P152: =IFERROR(VLOOKUP($A152,FILTRO!$A146:$AY771,14,FALSE),0) -> 0 | Q152: =IFERROR(VLOOKUP($A152,FILTRO!$A146:$AY771,15,FALSE),0) -> 0 | R152: =IFERROR(VLOOKUP($A152,FILTRO!$A146:$AY771,16,FALSE),0) -> 0 | S152: =IFERROR(VLOOKUP($A152,FILTRO!$A146:$AY771,17,FALSE),0) -> 0 | T152: =IFERROR(VLOOKUP($A152,FILTRO!$A146:$AY771,18,FALSE),0) -> 0 | U152: =IFERROR(VLOOKUP($A152,FILTRO!$A146:$AY771,19,FALSE),0) -> 0 | V152: =IFERROR(VLOOKUP($A152,FILTRO!$A146:$AY771,20,FALSE),0) -> 0 | W152: =IFERROR(VLOOKUP($A152,FILTRO!$A146:$AY771,21,FALSE),0) -> 1 | X152: =IFERROR(VLOOKUP($A152,FILTRO!$A146:$AY771,22,FALSE),0) -> 0 | Y152: =IFERROR(VLOOKUP($A152,FILTRO!$A146:$AY771,23,FALSE),0) -> 2 | Z152: =IFERROR(VLOOKUP($A152,FILTRO!$A146:$AY771,24,FALSE),0) -> 0 | AA152: =IFERROR(VLOOKUP($A152,FILTRO!$A146:$AY771,25,FALSE),0) -> 0 | AB152: =IFERROR(VLOOKUP($A152,FILTRO!$A146:$AY771,26,FALSE),0) -> 0 | AC152: =IFERROR(VLOOKUP($A152,FILTRO!$A146:$AY771,27,FALSE),0) -> 0 | AD152: =IFERROR(VLOOKUP($A152,FILTRO!$A146:$AY771,28,FALSE),0) -> 0 | AE152: =IFERROR(VLOOKUP($A152,FILTRO!$A146:$AY771,29,FALSE),0) -> 0 | AF152: =IFERROR(VLOOKUP($A152,FILTRO!$A146:$AY771,30,FALSE),0) -> 0 | AG152: =IFERROR(VLOOKUP($A152,FILTRO!$A146:$AY771,31,FALSE),0) -> 0 | AH152: =IFERROR(VLOOKUP($A152,FILTRO!$A146:$AY771,32,FALSE),0) -> 0 | AI152: =IFERROR(VLOOKUP($A152,FILTRO!$A146:$AY771,33,FALSE),0) -> 1 | AJ152: =IFERROR(VLOOKUP($A152,FILTRO!$A146:$AY771,34,FALSE),0) -> 1 | AK152: =IFERROR(VLOOKUP($A152,FILTRO!$A146:$AY771,35,FALSE),0) -> 0 | AL152: =IFERROR(VLOOKUP($A152,FILTRO!$A146:$AY771,36,FALSE),0) -> 0 | AM152: =IFERROR(VLOOKUP($A152,FILTRO!$A146:$AY771,37,FALSE),0) -> 1 | AN152: =IFERROR(VLOOKUP($A152,FILTRO!$A146:$AY771,38,FALSE),0) -> 0 | AO152: =IFERROR(VLOOKUP($A152,FILTRO!$A146:$AY771,39,FALSE),0) -> 0 | AP152: =IFERROR(VLOOKUP($A152,FILTRO!$A146:$AY771,40,FALSE),0) -> 1 | AQ152: =IFERROR(VLOOKUP($A152,FILTRO!$A146:$AY771,41,FALSE),0) -> 1 | AR152: =IFERROR(VLOOKUP($A152,FILTRO!$A146:$AY771,42,FALSE),0) -> 1 | AS152: =IFERROR(VLOOKUP($A152,FILTRO!$A146:$AY771,43,FALSE),0) -> 0 | AT152: =IFERROR(VLOOKUP($A152,FILTRO!$A146:$AY771,44,FALSE),0) -> 0 | AU152: =IFERROR(VLOOKUP($A152,FILTRO!$A146:$AY771,45,FALSE),0) -> 0 | AV152: =IFERROR(VLOOKUP($A152,FILTRO!$A146:$AY771,46,FALSE),0) -> 0 | CG152: =IF(DF152=1,"* No olvide escribir en las celdas de ""Pueblos Originarios"" (Digite Cero si no tiene).","") ->  | CH152: =IF(DG152=1,"* No olvide escribir en las celdas de ""Población Migrante"" (Digite Cero si no tiene).","") ->  | CI152: =IF(DH152=1,"* La suma de las celdas de ""Pueblos Originarios""no debe superar el Total.","") ->  | CJ152: =IF(DI152=1,"* La suma de las celdas de ""Población Migrante"" no debe superar el Total.","") ->  | DF152: =IF(AND($D152<>0,OR(AS152="",AT152="")),1,0) -> 0 | DG152: =IF(AND($D152<>0,OR(AU152="",AV152="")),1,0) -> 0 | DH152: =IF((AS152+AT152)>$D152,1,0) -> 0 | DI152: =IF((AV152+AU152)>$D152,1,0) -> 0
A153: P2501831 | B153: Enfermedades crónicas del oído | C153: Enfermedades crónicas del oído | D153: =IFERROR(VLOOKUP($A153,FILTRO!$A147:$AY772,2,FALSE),0) -> 31 | E153: =IFERROR(VLOOKUP($A153,FILTRO!$A147:$AY772,3,FALSE),0) -> 16 | F153: =IFERROR(VLOOKUP($A153,FILTRO!$A147:$AY772,4,FALSE),0) -> 15 | G153: =IFERROR(VLOOKUP($A153,FILTRO!$A147:$AY772,5,FALSE),0) -> 0 | H153: =IFERROR(VLOOKUP($A153,FILTRO!$A147:$AY772,6,FALSE),0) -> 0 | I153: =IFERROR(VLOOKUP($A153,FILTRO!$A147:$AY772,7,FALSE),0) -> 0 | J153: =IFERROR(VLOOKUP($A153,FILTRO!$A147:$AY772,8,FALSE),0) -> 0 | K153: =IFERROR(VLOOKUP($A153,FILTRO!$A147:$AY772,9,FALSE),0) -> 0 | L153: =IFERROR(VLOOKUP($A153,FILTRO!$A147:$AY772,10,FALSE),0) -> 0 | M153: =IFERROR(VLOOKUP($A153,FILTRO!$A147:$AY772,11,FALSE),0) -> 0 | N153: =IFERROR(VLOOKUP($A153,FILTRO!$A147:$AY772,12,FALSE),0) -> 0 | O153: =IFERROR(VLOOKUP($A153,FILTRO!$A147:$AY772,13,FALSE),0) -> 0 | P153: =IFERROR(VLOOKUP($A153,FILTRO!$A147:$AY772,14,FALSE),0) -> 1 | Q153: =IFERROR(VLOOKUP($A153,FILTRO!$A147:$AY772,15,FALSE),0) -> 2 | R153: =IFERROR(VLOOKUP($A153,FILTRO!$A147:$AY772,16,FALSE),0) -> 0 | S153: =IFERROR(VLOOKUP($A153,FILTRO!$A147:$AY772,17,FALSE),0) -> 2 | T153: =IFERROR(VLOOKUP($A153,FILTRO!$A147:$AY772,18,FALSE),0) -> 0 | U153: =IFERROR(VLOOKUP($A153,FILTRO!$A147:$AY772,19,FALSE),0) -> 1 | V153: =IFERROR(VLOOKUP($A153,FILTRO!$A147:$AY772,20,FALSE),0) -> 2 | W153: =IFERROR(VLOOKUP($A153,FILTRO!$A147:$AY772,21,FALSE),0) -> 0 | X153: =IFERROR(VLOOKUP($A153,FILTRO!$A147:$AY772,22,FALSE),0) -> 0 | Y153: =IFERROR(VLOOKUP($A153,FILTRO!$A147:$AY772,23,FALSE),0) -> 3 | Z153: =IFERROR(VLOOKUP($A153,FILTRO!$A147:$AY772,24,FALSE),0) -> 1 | AA153: =IFERROR(VLOOKUP($A153,FILTRO!$A147:$AY772,25,FALSE),0) -> 3 | AB153: =IFERROR(VLOOKUP($A153,FILTRO!$A147:$AY772,26,FALSE),0) -> 1 | AC153: =IFERROR(VLOOKUP($A153,FILTRO!$A147:$AY772,27,FALSE),0) -> 1 | AD153: =IFERROR(VLOOKUP($A153,FILTRO!$A147:$AY772,28,FALSE),0) -> 1 | AE153: =IFERROR(VLOOKUP($A153,FILTRO!$A147:$AY772,29,FALSE),0) -> 0 | AF153: =IFERROR(VLOOKUP($A153,FILTRO!$A147:$AY772,30,FALSE),0) -> 0 | AG153: =IFERROR(VLOOKUP($A153,FILTRO!$A147:$AY772,31,FALSE),0) -> 1 | AH153: =IFERROR(VLOOKUP($A153,FILTRO!$A147:$AY772,32,FALSE),0) -> 2 | AI153: =IFERROR(VLOOKUP($A153,FILTRO!$A147:$AY772,33,FALSE),0) -> 1 | AJ153: =IFERROR(VLOOKUP($A153,FILTRO!$A147:$AY772,34,FALSE),0) -> 1 | AK153: =IFERROR(VLOOKUP($A153,FILTRO!$A147:$AY772,35,FALSE),0) -> 0 | AL153: =IFERROR(VLOOKUP($A153,FILTRO!$A147:$AY772,36,FALSE),0) -> 2 | AM153: =IFERROR(VLOOKUP($A153,FILTRO!$A147:$AY772,37,FALSE),0) -> 1 | AN153: =IFERROR(VLOOKUP($A153,FILTRO!$A147:$AY772,38,FALSE),0) -> 1 | AO153: =IFERROR(VLOOKUP($A153,FILTRO!$A147:$AY772,39,FALSE),0) -> 0 | AP153: =IFERROR(VLOOKUP($A153,FILTRO!$A147:$AY772,40,FALSE),0) -> 1 | AQ153: =IFERROR(VLOOKUP($A153,FILTRO!$A147:$AY772,41,FALSE),0) -> 1 | AR153: =IFERROR(VLOOKUP($A153,FILTRO!$A147:$AY772,42,FALSE),0) -> 2 | AS153: =IFERROR(VLOOKUP($A153,FILTRO!$A147:$AY772,43,FALSE),0) -> 0 | AT153: =IFERROR(VLOOKUP($A153,FILTRO!$A147:$AY772,44,FALSE),0) -> 0 | AU153: =IFERROR(VLOOKUP($A153,FILTRO!$A147:$AY772,45,FALSE),0) -> 0 | AV153: =IFERROR(VLOOKUP($A153,FILTRO!$A147:$AY772,46,FALSE),0) -> 0 | CG153: =IF(DF153=1,"* No olvide escribir en las celdas de ""Pueblos Originarios"" (Digite Cero si no tiene).","") ->  | CH153: =IF(DG153=1,"* No olvide escribir en las celdas de ""Población Migrante"" (Digite Cero si no tiene).","") ->  | CI153: =IF(DH153=1,"* La suma de las celdas de ""Pueblos Originarios""no debe superar el Total.","") ->  | CJ153: =IF(DI153=1,"* La suma de las celdas de ""Población Migrante"" no debe superar el Total.","") ->  | DF153: =IF(AND($D153<>0,OR(AS153="",AT153="")),1,0) -> 0 | DG153: =IF(AND($D153<>0,OR(AU153="",AV153="")),1,0) -> 0 | DH153: =IF((AS153+AT153)>$D153,1,0) -> 0 | DI153: =IF((AV153+AU153)>$D153,1,0) -> 0
